Workbook

Sheet Personalize (hidden)
A1: 260 | D1: FORM RESULTS | F1: 0 | G1: RotoChamp | H1: RotoChamp | I1: CAIRO | J1: Teams | K1: Starters | L1: More Starters | N1: 2 | O1: =E2 -> TRUE | P1: =O1&"."&COUNTIF($O$1:$O1,O1) -> TRUE.1 | Q1: Runs | R1: Cairo | S1: 25 | T1: 25 | U1: LAA | V1: TRUE | W1: C
A2: 25 | D2: R | E2: TRUE | F2: 1 | H2: Yahoo Staff | I2: Steamer | J2: 6 | K2: 0 | L2: 0 | M2: Proj. $ Value | O2: TRUE | P2: =O2&"."&COUNTIF($O$1:$O2,O2) -> TRUE.2 | Q2: HR | R2: Steamer | S2: 25 | T2: 25 | U2: ARI | V2: TRUE | W2: 1B
A3: =(A1)*E18 -> 3120 | B3: Team 1 | D3: HR | E3: TRUE | F3: 2 | G3: Fantasy Gameday | H3: Fox Sports Staff | I3: Steamer 600 | J3: 7 | K3: 1 | L3: 1 | M3: By Position | O3: TRUE | P3: =O3&"."&COUNTIF($O$1:$O3,O3) -> TRUE.3 | Q3: AVG | R3: Fangraphs | S3: 25 | T3: 25 | U3: ATL | V3: TRUE | W3: 2B
A4: 1 | B4: Team 2 | D4: AVG | E4: TRUE | F4: 3 | G4: ESPN Mock Draft Avg | H4: ESPN - T. Cockcroft | I4: Fangraphs | J4: 8 | K4: 2 | L4: 2 | M4: By Team | O4: TRUE | P4: =O4&"."&COUNTIF($O$1:$O4,O4) -> TRUE.4 | Q4: RBI | R4: ZiPS | S4: 25 | T4: 25 | U4: BAL | V4: TRUE | W4: 3B
A5: =A2*E18 -> 300 | B5: Team 3 | D5: RBI | E5: TRUE | F5: 4 | G5: Yahoo Site | I5: ZiPS | J5: 9 | K5: 3 | L5: 3 | M5: Exp. Rank | O5: TRUE | P5: =O5&"."&COUNTIF($O$1:$O5,O5) -> TRUE.5 | Q5: SB | S5: 0 | T5: 0 | U5: BOS | V5: TRUE | W5: SS
A6: =Filtered!AL15 -> 156 | B6: Team 4 | D6: SB | E6: TRUE | F6: 5 | G6: Yahoo Mock Draft Avg | H6: Yahoo - A. Behrens | J6: 10 | K6: 4 | L6: 4 | M6: WERTH Rank | O6: FALSE | P6: =O6&"."&COUNTIF($O$1:$O6,O6) -> FALSE.1 | Q6: SLG | S6: 0 | T6: 0 | U6: CHC | V6: TRUE | W6: OF
A7: ='Filtered-P'!AG6 -> 96 | B7: Team 5 | D7: SLG | E7: FALSE | F7: 6 | G7: FantasyPros Avg Experts | H7: Rotographs | I7: Marcel | J7: 11 | K7: 5 | L7: 5 | M7: Pos WERTH | O7: FALSE | P7: =O7&"."&COUNTIF($O$1:$O7,O7) -> FALSE.2 | Q7: OBP | S7: 0 | T7: 0 | U7: CWS | V7: TRUE | W7: SP
A8: =A5-A6-A7 -> 48 | B8: Team 6 | D8: OBP | E8: FALSE | F8: 7 | G8: FantasyPros Projected | H8: Fantasy Pros Avg | I8: MORPS | J8: 12 | L8: 6 | M8: =IFERROR(VLOOKUP("TRUE."&ROW(A1),$P$1:$Q$20,2,FALSE),"") -> Runs | O8: FALSE | P8: =O8&"."&COUNTIF($O$1:$O8,O8) -> FALSE.3 | Q8: OPS | R8: MORPS | S8: 0 | T8: 0 | U8: CIN | V8: TRUE | W8: RP
A9: =A3-A5 -> 2820 | B9: Team 7 | D9: OPS | E9: FALSE | F9: 8 | G9: Expert Average | H9: Mr. Cheatsheet | I9: Clay Davenport | J9: 13 | L9: 7 | M9: =IFERROR(VLOOKUP("TRUE."&ROW(A2),$P$1:$Q$20,2,FALSE),"") -> HR | O9: TRUE | P9: =O9&"."&COUNTIF($O$1:$O9,O9) -> TRUE.6 | Q9: Wins | R9: Clay Davenport | S9: 0 | T9: 0 | U9: CLE | V9: TRUE
B10: Team 8 | D10: W | E10: TRUE | F10: 9 | G10: Imported Values | I10: Weighted Projections | J10: 14 | L10: 8 | M10: AVG | O10: TRUE | P10: =O10&"."&COUNTIF($O$1:$O10,O10) -> TRUE.7 | Q10: K's | R10: Steamer 600 | S10: 0 | T10: 0 | U10: COL | V10: TRUE
A11: 70 | B11: Team 9 | D11: K | E11: TRUE | F11: 10 | I11: Mr. Cheatsheet's Special Blend | J11: 15 | L11: 9 | M11: RBI | O11: TRUE | P11: =O11&"."&COUNTIF($O$1:$O11,O11) -> TRUE.8 | Q11: Saves | U11: DET | V11: TRUE
A12: 30 | B12: Team 10 | D12: S | E12: TRUE | F12: 11 | I12: Imported Projections | J12: 16 | M12: SB | O12: TRUE | P12: =O12&"."&COUNTIF($O$1:$O12,O12) -> TRUE.9 | Q12: ERA | U12: HOU | V12: TRUE
B13: Team 11 | D13: ERA | E13: TRUE | F13: 12 | J13: 17 | M13: Wins | O13: TRUE | P13: =O13&"."&COUNTIF($O$1:$O13,O13) -> TRUE.10 | Q13: WHIP | U13: KC | V13: TRUE
A14: =((((0.01*A12)*A9)*0.03)-A4)/4 -> 6.095 | B14: Team 12 | D14: WHIP | E14: TRUE | F14: 13 | J14: 18 | M14: K's | O14: FALSE | P14: =O14&"."&COUNTIF($O$1:$O14,O14) -> FALSE.4 | Q14: K/9 | U14: LAD | V14: TRUE
A15: =((((0.01*A11)*A9)*0.02)-A4)/4 -> 9.62 | B15: Team 13 | D15: K/9 | E15: FALSE | F15: 14 | J15: 19 | M15: Saves | O15: FALSE | P15: =O15&"."&COUNTIF($O$1:$O15,O15) -> FALSE.5 | Q15: Losses | U15: MIA | V15: TRUE
B16: Team 14 | D16: L | E16: FALSE | F16: 15 | J16: 20 | M16: ERA | O16: FALSE | P16: =O16&"."&COUNTIF($O$1:$O16,O16) -> FALSE.6 | Q16: QS | U16: MIL | V16: TRUE
B17: Team 15 | D17: QS | E17: FALSE | F17: 16 | M17: WHIP | O17: =E37 -> FALSE | P17: =O17&"."&COUNTIF($O$1:$O17,O17) -> FALSE.7 | Q17: Holds | U17: MIN | V17: TRUE
B18: Team 16 | D18: # of Teams | E18: 12 | F18: 17 | O18: =E38 -> FALSE | P18: =O18&"."&COUNTIF($O$1:$O18,O18) -> FALSE.8 | Q18: Saves + Holds | U18: NYM | V18: TRUE
B19: Team 17 | D19: C | E19: 1 | F19: 18 | O19: =E39 -> FALSE | P19: =O19&"."&COUNTIF($O$1:$O19,O19) -> FALSE.9 | Q19: BB | U19: NYY | V19: TRUE
B20: Team 18 | D20: 1B | E20: 1 | F20: 19 | O20: =E40 -> FALSE | P20: =O20&"."&COUNTIF($O$1:$O20,O20) -> FALSE.10 | Q20: Hits | U20: OAK | V20: TRUE
B21: Team 19 | D21: 2B | E21: 1 | F21: 20 | U21: PHI | V21: TRUE
B22: Team 20 | D22: 3B | E22: 1 | F22: 21 | U22: PIT | V22: TRUE
B23: Team 21 | D23: SS | E23: 1 | F23: 22 | U23: SD | V23: TRUE
B24: Team 22 | D24: CI | E24: 1 | F24: 23 | U24: SEA | V24: TRUE
B25: Team 23 | D25: MI | E25: 1 | F25: 24 | U25: SF | V25: TRUE
B26: Team 24 | D26: OF | E26: 5 | U26: STL | V26: TRUE
D27: DH | E27: 1 | U27: TB | V27: TRUE
B28: TRUE | D28: RP | E28: 4 | U28: TEX | V28: TRUE
B29: TRUE | D29: SP | E29: 2 | U29: TOR | V29: TRUE
B30: FALSE | D30: P | E30: 2 | U30: WSH | V30: TRUE
B31: FALSE | D31: ADP Site: | E31: =IF(F31=G1,1,IF(F31=G2,2,IF(F31=G3,3,IF(F31=G4,4,IF(F31=G5,5,IF(F31=G6,6,IF(F31=G7,7,IF(F31=G8,8,0)))))))) -> 7 | F31: FantasyPros Avg Experts | U31: All Players
D32: Rankings: | E32: =IF(F32=H1,1,IF(F32=H2,2,IF(F32=H3,3,IF(F32=H4,4,IF(F32=H5,5,IF(F32=H6,6,IF(F32=H7,7,IF(F32=H8,8,IF(F32=H9,9,0))))))))) -> 8 | F32: Fantasy Pros Avg | U32: NL-Only
D33: Projections: | E33: =IF(F33=I1,1,IF(F33=I2,2,IF(F33=I3,10,IF(F33=I4,3,IF(F33=I5,4,IF(F33=I6,5,IF(F33=I7,6,IF(F33=I9,9,IF(F33=I10,7,IF(F33=I8,8,IF(F33=I11,11,IF(F33=I12,12,0)))))))))))) -> 11 | F33: Mr. Cheatsheet's Special Blend | U33: AL-Only
D34: LF | E34: 0 | U34: Custom
D35: CF | E35: 0
D36: RF | E36: 0
D37: Holds | E37: FALSE
D38: Saves + Holds | E38: FALSE
D39: BB | E39: FALSE
D40: Hits | E40: FALSE
D41: Total Bases | E41: FALSE
D42: Doubles | E42: FALSE
D43: Triples | E43: FALSE
D44: TB+BB | E44: FALSE
D45: IP | E45: FALSE
D46: K-BB | E46: FALSE
D47: BB-P | E47: FALSE
D48: H-P | E48: FALSE
D49: 2B+3B | E49: FALSE
D50: Net SB | E50: FALSE
D51: K-Batter | E51: FALSE
D52: HRA | E52: FALSE
D53: BAA | E53: FALSE
D54: K/BB | E54: FALSE
D55: IF | E55: 0
D56: CG | E56: FALSE
D57: SO | E57: FALSE
D58: ER | E58: FALSE
D59: GS | E59: FALSE
D60: 1B | E60: FALSE
D61: Combo | E61: FALSE
D62: CS | E62: FALSE
D63: Errors | E63: FALSE

Sheet Draft Central
AT1: Sort by: | AZ1: =SUMIF($D$7:$D$746,"*P",$B$7:$B$746) -> 0 | BB1: =((Personalize!A9*(0.01*Personalize!A12))-AZ1)-BA1 -> 846 | BC1: =SUM($J$7:$J$650) -> 3397 | BD1: =SUMIFS($N$7:$N$746,$AZ$7:$AZ$746,"Yes",$D$7:$D$746,"*P") -> 302.649308
AZ2: =SUMIF($D$7:$D$746,"<>*P",$B$7:$B$746) -> 0 | BB2: =((Personalize!A9*(0.01*Personalize!A11))-AZ2) -> 1974 | BD2: =SUMIFS($N$7:$N$746,$AZ$7:$AZ$746,"Yes",$D$7:$D$746,"<>*P") -> 517.9302308
C3: Player Info | H3: Auction Data | M3: WERTH Roto Value (Pitchers in Gray Rows) | AJ3: Projected Stats | AU3: 3 | AV3: 1 | AZ3: =SUMIF($AZ$7:$AZ$746,"Yes",$B$7:$B$746) -> 0 | BA3: =AVERAGEIFS($BB$7:$BB$746,$AZ$7:$AZ$746,"Yes",$D$7:$D$746,"*P") -> 3.959533174 | BB3: =AVERAGEIFS($BB$7:$BB$746,$AZ$7:$AZ$746,"Yes",$D$7:$D$746,"<>*P") -> 4.191340511 | BE3: =SQRT(AVERAGEIFS($BE$7:$BE$746,$AZ$7:$AZ$746,"Yes",$D$7:$D$746,"<>*P")) -> 2.710278643
O4: =IF(Personalize!E10=TRUE,"W","") -> W | P4: =IF(Personalize!E12=TRUE,"S","") -> S | Q4: =IF(Personalize!E11=TRUE,"K","") -> K | R4: =IF(Personalize!E13=TRUE,"ERA","") -> ERA | S4: =IF(Personalize!E14=TRUE,"WHIP","") -> WHIP | T4: =IF(Personalize!E16=TRUE,"L","") ->  | U4: =IF(Personalize!E15=TRUE,"K/9","") ->  | V4: =IF(Personalize!E17=TRUE,"QS","") ->  | W4: =IF(Personalize!E37=TRUE,"HLD","") ->  | X4: =IF(Personalize!E38=TRUE,"H+S","") ->  | Y4: =IF(Personalize!E45=TRUE,"IP","") ->  | Z4: =IF(Personalize!E46=TRUE,"K-BB","") ->  | AA4: =IF(Personalize!E47=TRUE,"BB","") ->  | AB4: =IF(Personalize!E48=TRUE,"H","") ->  | AC4: =IF(Personalize!E52=TRUE,"HRA","") ->  | AD4: =IF(Personalize!E53=TRUE,"BAA","") ->  | AE4: =IF(Personalize!E54=TRUE,"K/BB","") ->  | AF4: =IF(Personalize!E56=TRUE,"CG","") ->  | AG4: =IF(Personalize!E57=TRUE,"SO","") ->  | AH4: =IF(Personalize!E58=TRUE,"ER","") ->  | AI4: =IF(Personalize!E59=TRUE,"GS","") ->  | AZ4: =SUM(B7:B746) -> 0 | BA4: =IFERROR(SMALL(IF($AZ$7:$AZ$746="Yes",$BA$7:$BA$746,""),1),"") -> -0.8712749294 | BB4: =SUMIFS($N$7:$N$746,$AZ$7:$AZ$746,"Yes") -> 820.5795388
A5: Drafted By (click box to select team) | B5: Winning Bid | C5: Name | D5: Pos | E5: OF Elig | F5: Tm | G5: Age | H5: Curr Proj $ Value | I5: Exp Rank | J5: Exp Orig $ Val | K5: Exp Adj $ Val | L5: WERTH Rank | M5: Werth Total | N5: Pos Adj WERTH | O5: =IF(Personalize!E4=TRUE,"AVG","") -> AVG | P5: =IF(Personalize!E3=TRUE,"HR","") -> HR | Q5: =IF(Personalize!E2=TRUE,"R","") -> R | R5: =IF(Personalize!E5=TRUE,"RBI","") -> RBI | S5: =IF(Personalize!E6=TRUE,"SB","") -> SB | T5: =IF(Personalize!E7=TRUE,"SLG","") ->  | U5: =IF(Personalize!E8=TRUE,"OBP","") ->  | V5: =IF(Personalize!E9=TRUE,"OPS","") ->  | W5: =IF(Personalize!E39=TRUE,"BB","") ->  | X5: =IF(Personalize!E40=TRUE,"H","") ->  | Y5: =IF(Personalize!E41=TRUE,"TB","") ->  | Z5: RP | AA5: =IF(Personalize!E42=TRUE,"2B","") ->  | AB5: =IF(Personalize!E43=TRUE,"3B","") ->  | AC5: =IF(Personalize!E49=TRUE,"2B+3B","") ->  | AD5: =IF(Personalize!E50=TRUE,"Net SB","") ->  | AE5: =IF(Personalize!E51=TRUE,"K's","") ->  | AF5: =IF(Personalize!E60=TRUE,"1B","") ->  | AG5: =IF(Personalize!E61=TRUE,"CMB","") ->  | AH5: =IF(Personalize!E62=TRUE,"CS","") ->  | AI5: =IF(Personalize!E63=TRUE,"Err","") ->  | AJ5: W | AK5: S | AL5: K | AM5: ERA | AN5: WHIP | AO5: AVG | AP5: HR | AQ5: RBI | AR5: R | AS5: SB | AT5: Your Player Notes: | AU5: Drafted | AZ5: Proj Starter | BA5: WERTH+RL | BB5: W+RL+SM
A6: =VLOOKUP(B6,#REF!,2,FALSE) ->  | B6: =VLOOKUP(C6,#REF!,3,FALSE) -> 
C7: Mike Trout | D7: OF | E7: =IFERROR(IF(VLOOKUP(C7,'Starter Calc'!$B$2:$E$700,4,FALSE)="","",VLOOKUP(C7,'Starter Calc'!$B$2:$E$700,4,FALSE)),"") -> ,CF, | F7: =IFERROR(VLOOKUP($C7,'ADP-Rank'!$A$2:$G$620,5,FALSE),"") -> LAA | G7: =IFERROR(VLOOKUP($C7,'ADP-Rank'!$A$2:$X$620,6,FALSE),"") -> 23 | H7: =IFERROR(IF(ISBLANK($B7),IF(BF7="Rostered",1,(IF((OR($D7="RP",$D7="SP")),ROUND((N7*($BB$1/$BD$1))+1,0),ROUND((N7*($BB$2/$BD$2))+1,0)))),""),"") -> 53 | I7: =VLOOKUP($C7,'ADP-Rank'!$A$2:$AB$620,26,FALSE) -> 1 | J7: =IF(ISBLANK($B7),IFERROR(CHOOSE(Personalize!$E$31,(VLOOKUP(C7,'ADP-Rank'!$A$2:$Z$620,7,FALSE)*(Personalize!$A$3)+1),(VLOOKUP(C7,'ADP-Rank'!$A$2:$Z$620,8,FALSE)*(Personalize!$A$3)+1),(VLOOKUP(C7,'ADP-Rank'!$A$2:$Z$620,9,FALSE)*(Personalize!$A$3)+1),(VLOOKUP(C7,'ADP-Rank'!$A$2:$AA$620,10,FALSE)*(Personalize!$A$3)+1),(VLOOKUP(C7,'ADP-Rank'!$A$2:$AA$620,11,FALSE)*(Personalize!$A$3)+1),(VLOOKUP(C7,'ADP-Rank'!$A$2:$AA$620,12,FALSE)*(Personalize!$A$3)+1),(VLOOKUP(C7,'ADP-Rank'!$A$2:$AA$620,13,FALSE)*(Personalize!$A$3)+1),(VLOOKUP(C7,'ADP-Rank'!$A$2:$AA$620,14,FALSE)*(Personalize!$A$3)+1),(VLOOKUP(C7,'ADP-Rank'!$A$2:$AA$620,15,FALSE)*(Personalize!$A$3)+1),(VLOOKUP(C7,'ADP-Rank'!$A$2:$AG$620,28,FALSE)*(Personalize!$A$3)+1)),""),"") -> 57 | K7: =IF(ISBLANK($B7),IFERROR(CHOOSE(Personalize!$E$31,(VLOOKUP(C7,'ADP-Rank'!$A$2:$Z$620,7,FALSE)*(Personalize!$A$3-$AZ$4)+1),(VLOOKUP(C7,'ADP-Rank'!$A$2:$Z$620,8,FALSE)*(Personalize!$A$3-$AZ$4)+1),(VLOOKUP(C7,'ADP-Rank'!$A$2:$Z$620,9,FALSE)*(Personalize!$A$3-$AZ$4)+1),(VLOOKUP(C7,'ADP-Rank'!$A$2:$AA$620,10,FALSE)*(Personalize!$A$3-$AZ$4)+1),(VLOOKUP(C7,'ADP-Rank'!$A$2:$AA$620,11,FALSE)*(Personalize!$A$3-$AZ$4)+1),(VLOOKUP(C7,'ADP-Rank'!$A$2:$AA$620,12,FALSE)*(Personalize!$A$3-$AZ$4)+1),(VLOOKUP(C7,'ADP-Rank'!$A$2:$AA$620,13,FALSE)*(Personalize!$A$3-$AZ$4)+1),(VLOOKUP(C7,'ADP-Rank'!$A$2:$AA$620,14,FALSE)*(Personalize!$A$3-$AZ$4)+1),(VLOOKUP(C7,'ADP-Rank'!$A$2:$AA$620,15,FALSE)*(Personalize!$A$3-$AZ$4)+1),(VLOOKUP(C7,'ADP-Rank'!$A$2:$AG$620,28,FALSE)*(Personalize!$A$3-$AZ$4)+1)),""),"") -> 57 | L7: =IFERROR(RANK($M7,$M$7:$M$746,0),"") -> 2 | M7: =IF((SUM(O7:AI7)=0),"",SUM(O7:AI7)) -> 10.50790434 | N7: =IFERROR(IF(ISTEXT($A7),"",IF((OR($D7="RP",$D7="SP")),ABS(VLOOKUP(D7,'Filtered-P'!$AE$3:$AI$4,5,FALSE))+M7,ABS(VLOOKUP(D7,Filtered!$AJ$3:$AN$14,5,FALSE))+M7)),"") -> 13.60574649 | O7: =IFERROR(IF((OR($D7="RP",$D7="SP")),IF(Personalize!$E$10=TRUE,(((VLOOKUP($C7,'Filtered-P'!$A$1:$P$700,2,FALSE))-'Filtered-P'!$AF$8)/'Filtered-P'!$AG$8),""),IF(Personalize!$E$4=TRUE,(((VLOOKUP($C7,Filtered!$A$1:$AD$700,22,FALSE))-Filtered!$AK$35)/Filtered!$AL$35),"")),"") -> 2.045323436 | P7: =IFERROR(IF((OR($D7="RP",$D7="SP")),IF(Personalize!$E$12=TRUE,(((VLOOKUP($C7,'Filtered-P'!$A$1:$P$700,9,FALSE))-'Filtered-P'!$AF$15)/'Filtered-P'!$AG$15),""),IF(Personalize!$E$3=TRUE,(((VLOOKUP($C7,Filtered!$A$1:$AB$700,10,FALSE))-Filtered!$AK$25)/Filtered!$AL$25),"")),"") -> 1.993005878 | Q7: =IFERROR(IF((OR($D7="RP",$D7="SP")),IF(Personalize!$E$11=TRUE,(((VLOOKUP($C7,'Filtered-P'!$A$1:$P$700,7,FALSE))-'Filtered-P'!$AF$13)/'Filtered-P'!$AG$13),""),IF(Personalize!$E$2=TRUE,(((VLOOKUP($C7,Filtered!$A$1:$AB$700,5,FALSE))-Filtered!$AK$20)/Filtered!$AL$20),"")),"") -> 3.344112117 | R7: =IFERROR(IF((OR($D7="RP",$D7="SP")),IF(Personalize!$E$13=TRUE,(((VLOOKUP($C7,'Filtered-P'!$A$1:$P$700,13,FALSE))-'Filtered-P'!$AF$19)/'Filtered-P'!$AG$19),""),IF(Personalize!$E$5=TRUE,(((VLOOKUP($C7,Filtered!$A$1:$AB$700,11,FALSE))-Filtered!$AK$26)/Filtered!$AL$26),"")),"") -> 1.913200931 | S7: =IFERROR(IF((OR($D7="RP",$D7="SP")),IF(Personalize!$E$14=TRUE,(((VLOOKUP($C7,'Filtered-P'!$A$1:$P$700,14,FALSE))-'Filtered-P'!$AF$20)/'Filtered-P'!$AG$20),""),IF(Personalize!$E$6=TRUE,(((VLOOKUP($C7,Filtered!$A$1:$AB$700,12,FALSE))-Filtered!$AK$27)/Filtered!$AL$27),"")),"") -> 1.212261973 | T7: =IFERROR(IF((OR($D7="RP",$D7="SP")),IF(Personalize!$E$16=TRUE,(((VLOOKUP($C7,'Filtered-P'!$A$1:$P$700,3,FALSE))-'Filtered-P'!$AF$9)/'Filtered-P'!$AG$9),""),IF(Personalize!$E$7=TRUE,(((VLOOKUP($C7,Filtered!$A$1:$AD$700,24,FALSE))-Filtered!$AK$37)/Filtered!$AL$37),"")),"") ->  | U7: =IFERROR(IF((OR($D7="RP",$D7="SP")),IF(Personalize!$E$15=TRUE,(((VLOOKUP($C7,'Filtered-P'!$A$1:$P$700,15,FALSE))-'Filtered-P'!$AF$21)/'Filtered-P'!$AG$21),""),IF(Personalize!$E$8=TRUE,(((VLOOKUP($C7,Filtered!$A$1:$AD$700,23,FALSE))-Filtered!$AK$36)/Filtered!$AL$36),"")),"") ->  | V7: =IFERROR(IF((OR($D7="RP",$D7="SP")),IF(Personalize!$E$17=TRUE,(((VLOOKUP($C7,'Filtered-P'!$A$1:$P$700,16,FALSE))-'Filtered-P'!$AF$22)/'Filtered-P'!$AG$22),""),IF(Personalize!$E$9=TRUE,(((VLOOKUP($C7,Filtered!$A$1:$AD$700,25,FALSE))-Filtered!$AK$38)/Filtered!$AL$38),"")),"") ->  | W7: =IFERROR(IF((OR($D7="RP",$D7="SP")),IF(Personalize!$E$37=TRUE,(((VLOOKUP($C7,'Filtered-P'!$A$1:$Z$700,17,FALSE))-'Filtered-P'!$AF$25)/'Filtered-P'!$AG$25),""),IF(Personalize!$E$39=TRUE,(((VLOOKUP($C7,Filtered!$A$1:$X$700,6,FALSE))-Filtered!$AK$21)/Filtered!$AL$21),"")),"") ->  | X7: =IFERROR(IF((OR($D7="RP",$D7="SP")),IF(Personalize!$E$38=TRUE,(((VLOOKUP($C7,'Filtered-P'!$A$1:$Z$700,18,FALSE))-'Filtered-P'!$AF$26)/'Filtered-P'!$AG$26),""),IF(Personalize!$E$40=TRUE,(((VLOOKUP($C7,Filtered!$A$1:$X$700,14,FALSE))-Filtered!$AK$29)/Filtered!$AL$29),"")),"") ->  | Y7: =IFERROR(IF((OR($D7="RP",$D7="SP")),IF(Personalize!$E$45=TRUE,(((VLOOKUP($C7,'Filtered-P'!$A$1:$Z$700,4,FALSE))-'Filtered-P'!$AF$10)/'Filtered-P'!$AG$10),""),IF(Personalize!$E$41=TRUE,(((VLOOKUP($C7,Filtered!$A$1:$AD$700,20,FALSE))-Filtered!$AK$43)/Filtered!$AL$43),"")),"") ->  | Z7: =IFERROR(IF((OR($D7="RP",$D7="SP")),IF(Personalize!$E$46=TRUE,(((VLOOKUP($C7,'Filtered-P'!$A$1:$Z$700,19,FALSE))-'Filtered-P'!$AF$27)/'Filtered-P'!$AG$27),""),IF(Personalize!$E$44=TRUE,(((VLOOKUP($C7,Filtered!$A$1:$AD$700,21,FALSE))-Filtered!$AK$44)/Filtered!$AL$44),"")),"") ->  | AA7: =IFERROR(IF((OR($D7="RP",$D7="SP")),IF(Personalize!$E$47=TRUE,(((VLOOKUP($C7,'Filtered-P'!$A$1:$Z$700,6,FALSE))-'Filtered-P'!$AF$12)/'Filtered-P'!$AG$12),""),IF(Personalize!$E$42=TRUE,(((VLOOKUP($C7,Filtered!$A$1:$AD$700,8,FALSE))-Filtered!$AK$23)/Filtered!$AL$23),"")),"") ->  | AB7: =IFERROR(IF((OR($D7="RP",$D7="SP")),IF(Personalize!$E$48=TRUE,(((VLOOKUP($C7,'Filtered-P'!$A$1:$Z$700,5,FALSE))-'Filtered-P'!$AF$11)/'Filtered-P'!$AG$11),""),IF(Personalize!$E$43=TRUE,(((VLOOKUP($C7,Filtered!$A$1:$AD$700,9,FALSE))-Filtered!$AK$24)/Filtered!$AL$24),"")),"") ->  | AC7: =IFERROR(IF((OR($D7="RP",$D7="SP")),IF(Personalize!$E$52=TRUE,(((VLOOKUP($C7,'Filtered-P'!$A$1:$AD$700,21,FALSE))-'Filtered-P'!$AF$29)/(-1*'Filtered-P'!$AG$29)),""),IF(Personalize!$E$49=TRUE,(((VLOOKUP($C7,Filtered!$A$1:$AF$628,30,FALSE))-Filtered!$AK$45)/Filtered!$AL$45),"")),"") ->  | AD7: =IFERROR(IF((OR($D7="RP",$D7="SP")),IF(Personalize!$E$53=TRUE,(((VLOOKUP($C7,'Filtered-P'!$A$1:$AD$700,23,FALSE))-'Filtered-P'!$AF$31)/(-1*'Filtered-P'!$AG$31)),""),IF(Personalize!$E$50=TRUE,(((VLOOKUP($C7,Filtered!$A$1:$AF$628,31,FALSE))-Filtered!$AK$46)/Filtered!$AL$46),"")),"") ->  | AE7: =IFERROR(IF((OR($D7="RP",$D7="SP")),IF(Personalize!$E$54=TRUE,(((VLOOKUP($C7,'Filtered-P'!$A$1:$AD$700,24,FALSE))-'Filtered-P'!$AF$32)/'Filtered-P'!$AG$32),""),IF(Personalize!$E$51=TRUE,(((VLOOKUP($C7,Filtered!$A$1:$AF$628,15,FALSE))-Filtered!$AK$30)/(-1*Filtered!$AL$30)),"")),"") ->  | AF7: =IFERROR(IF((OR($D7="RP",$D7="SP")),IF(Personalize!$E$56=TRUE,(((VLOOKUP($C7,'Filtered-P'!$A$1:$AD$700,29,FALSE))-'Filtered-P'!$AF$35)/'Filtered-P'!$AG$35),""),IF(Personalize!$E$60=TRUE,(((VLOOKUP($C7,Filtered!$A$1:$AF$700,7,FALSE))-Filtered!$AK$22)/Filtered!$AL$22),"")),"") ->  | AG7: =IFERROR(IF((OR($D7="RP",$D7="SP")),IF(Personalize!$E$57=TRUE,(((VLOOKUP($C7,'Filtered-P'!$A$1:$AD$700,28,FALSE))-'Filtered-P'!$AF$34)/'Filtered-P'!$AG$34),""),IF(Personalize!$E$61=TRUE,(((VLOOKUP($C7,Filtered!$A$1:$AZ$700,34,FALSE))-Filtered!$AK$47)/Filtered!$AL$47),"")),"") ->  | AH7: =IFERROR(IF((OR($D7="RP",$D7="SP")),IF(Personalize!$E$58=TRUE,(((VLOOKUP($C7,'Filtered-P'!$A$1:$Z$700,8,FALSE))-'Filtered-P'!$AF$14)/'Filtered-P'!$AG$14),""),IF(Personalize!$E$62=TRUE,(((VLOOKUP($C7,Filtered!$A$1:$AF$700,13,FALSE))-Filtered!$AK$28)/(-1*Filtered!$AL$28)),"")),"") ->  | AI7: =IFERROR(IF((OR($D7="RP",$D7="SP")),IF(Personalize!$E$59=TRUE,(((VLOOKUP($C7,'Filtered-P'!$A$1:$AD$700,27,FALSE))-'Filtered-P'!$AF$33)/'Filtered-P'!$AG$33),""),IF(Personalize!$E$63=TRUE,(((VLOOKUP($C7,Filtered!$A$1:$AZ$700,35,FALSE))-Filtered!$AK$48)/(-1*Filtered!$AL$48)),"")),"") ->  | AJ7: =IFERROR(IF((OR($D7="RP",$D7="SP")),VLOOKUP($C7,'Filtered-P'!$A$1:$P$700,2,FALSE),""),"") ->  | AK7: =IFERROR(IF((OR($D7="RP",$D7="SP")),VLOOKUP($C7,'Filtered-P'!$A$1:$P$700,9,FALSE),""),"") ->  | AL7: =IFERROR(IF((OR($D7="RP",$D7="SP")),VLOOKUP($C7,'Filtered-P'!$A$1:$P$700,7,FALSE),""),"") ->  | AM7: =IFERROR(IF((OR($D7="RP",$D7="SP")),VLOOKUP($C7,'Filtered-P'!$A$1:$P$700,10,FALSE),""),"") ->  | AN7: =IFERROR(IF((OR($D7="RP",$D7="SP")),VLOOKUP($C7,'Filtered-P'!$A$1:$P$700,11,FALSE),""),"") ->  | AO7: =IFERROR(IF((OR($D7="RP",$D7="SP")),"",VLOOKUP($C7,Filtered!$A$1:$X$700,16,FALSE)),"") -> 0.2929976604 | AP7: =IFERROR(IF((OR($D7="RP",$D7="SP")),"",VLOOKUP($C7,Filtered!$A$1:$X$700,10,FALSE)),"") -> 30.60333006 | AQ7: =IFERROR(IF((OR($D7="RP",$D7="SP")),"",VLOOKUP($C7,Filtered!$A$1:$X$700,11,FALSE)),"") -> 91.09535637 | AR7: =IFERROR(IF((OR($D7="RP",$D7="SP")),"",VLOOKUP($C7,Filtered!$A$1:$X$700,5,FALSE)),"") -> 102.1584099 | AS7: =IFERROR(IF((OR($D7="RP",$D7="SP")),"",VLOOKUP($C7,Filtered!$A$1:$X$700,12,FALSE)),"") -> 21.13175478 | AU7: =IF(ISBLANK(A7),0,1) -> 0 | AV7: =IF(M7="",0,1) -> 1 | AW7: =A7 -> 0 | AX7: =IF(D7="C",1,IF(D7="1B",2,IF(D7="2B",3,IF(D7="3B",4,IF(D7="SS",5,IF(D7="CI",6,IF(D7="MI",7,IF(D7="OF",11,IF(D7="LF",8,IF(D7="CF",9,IF(D7="RF",10,IF(D7="DH",12,IF(D7="SP",13,IF(D7="RP",14,IF(D7="P",15,16))))))))))))))) -> 11 | AY7: =VLOOKUP(C7,'Starter Calc'!$B$2:$BS$700,70,FALSE) -> Bench | AZ7: =VLOOKUP(C7,'Starter Calc'!$B$2:$AO$700,40,FALSE) -> Yes | BA7: =IFERROR(IF(ISTEXT($A7),"",IF((OR($D7="RP",$D7="SP")),ABS(VLOOKUP(D7,'Filtered-P'!$AE$3:$AI$4,5,FALSE))+M7,ABS(VLOOKUP(D7,Filtered!$AJ$3:$AN$14,5,FALSE))+M7)),"") -> 13.60574649 | BB7: =IFERROR(BA7+ABS($BA$4),"") -> 14.47702142 | BC7: =IF(AND($A7<>"",$B7<>""),B7,"N") -> N | BD7: =IFERROR(VLOOKUP($C7,'ADP-Rank'!$A$2:$AB$620,25,FALSE),TRUE) -> TRUE | BE7: =IFERROR((BB7-BB$3)^2,"") -> 105.7952318 | BF7: =VLOOKUP(C7,'Starter Calc'!$B$2:$CD$700,71,FALSE) -> OF.Yes
C8: Miguel Cabrera | D8: 1B | E8: =IFERROR(IF(VLOOKUP(C8,'Starter Calc'!$B$2:$E$700,4,FALSE)="","",VLOOKUP(C8,'Starter Calc'!$B$2:$E$700,4,FALSE)),"") -> ,, | F8: =IFERROR(VLOOKUP($C8,'ADP-Rank'!$A$2:$G$620,5,FALSE),"") -> DET | G8: =IFERROR(VLOOKUP($C8,'ADP-Rank'!$A$2:$X$620,6,FALSE),"") -> 31 | H8: =IFERROR(IF(ISBLANK($B8),IF(BF8="Rostered",1,(IF((OR($D8="RP",$D8="SP")),ROUND((N8*($BB$1/$BD$1))+1,0),ROUND((N8*($BB$2/$BD$2))+1,0)))),""),"") -> 43 | I8: =VLOOKUP($C8,'ADP-Rank'!$A$2:$AB$620,26,FALSE) -> 6 | J8: =IF(ISBLANK($B8),IFERROR(CHOOSE(Personalize!$E$31,(VLOOKUP(C8,'ADP-Rank'!$A$2:$Z$620,7,FALSE)*(Personalize!$A$3)+1),(VLOOKUP(C8,'ADP-Rank'!$A$2:$Z$620,8,FALSE)*(Personalize!$A$3)+1),(VLOOKUP(C8,'ADP-Rank'!$A$2:$Z$620,9,FALSE)*(Personalize!$A$3)+1),(VLOOKUP(C8,'ADP-Rank'!$A$2:$AA$620,10,FALSE)*(Personalize!$A$3)+1),(VLOOKUP(C8,'ADP-Rank'!$A$2:$AA$620,11,FALSE)*(Personalize!$A$3)+1),(VLOOKUP(C8,'ADP-Rank'!$A$2:$AA$620,12,FALSE)*(Personalize!$A$3)+1),(VLOOKUP(C8,'ADP-Rank'!$A$2:$AA$620,13,FALSE)*(Personalize!$A$3)+1),(VLOOKUP(C8,'ADP-Rank'!$A$2:$AA$620,14,FALSE)*(Personalize!$A$3)+1),(VLOOKUP(C8,'ADP-Rank'!$A$2:$AA$620,15,FALSE)*(Personalize!$A$3)+1),(VLOOKUP(C8,'ADP-Rank'!$A$2:$AG$620,28,FALSE)*(Personalize!$A$3)+1)),""),"") -> 47 | K8: =IF(ISBLANK($B8),IFERROR(CHOOSE(Personalize!$E$31,(VLOOKUP(C8,'ADP-Rank'!$A$2:$Z$620,7,FALSE)*(Personalize!$A$3-$AZ$4)+1),(VLOOKUP(C8,'ADP-Rank'!$A$2:$Z$620,8,FALSE)*(Personalize!$A$3-$AZ$4)+1),(VLOOKUP(C8,'ADP-Rank'!$A$2:$Z$620,9,FALSE)*(Personalize!$A$3-$AZ$4)+1),(VLOOKUP(C8,'ADP-Rank'!$A$2:$AA$620,10,FALSE)*(Personalize!$A$3-$AZ$4)+1),(VLOOKUP(C8,'ADP-Rank'!$A$2:$AA$620,11,FALSE)*(Personalize!$A$3-$AZ$4)+1),(VLOOKUP(C8,'ADP-Rank'!$A$2:$AA$620,12,FALSE)*(Personalize!$A$3-$AZ$4)+1),(VLOOKUP(C8,'ADP-Rank'!$A$2:$AA$620,13,FALSE)*(Personalize!$A$3-$AZ$4)+1),(VLOOKUP(C8,'ADP-Rank'!$A$2:$AA$620,14,FALSE)*(Personalize!$A$3-$AZ$4)+1),(VLOOKUP(C8,'ADP-Rank'!$A$2:$AA$620,15,FALSE)*(Personalize!$A$3-$AZ$4)+1),(VLOOKUP(C8,'ADP-Rank'!$A$2:$AG$620,28,FALSE)*(Personalize!$A$3-$AZ$4)+1)),""),"") -> 47 | L8: =IFERROR(RANK($M8,$M$7:$M$746,0),"") -> 3 | M8: =IF((SUM(O8:AI8)=0),"",SUM(O8:AI8)) -> 8.879351604 | N8: =IFERROR(IF(ISTEXT($A8),"",IF((OR($D8="RP",$D8="SP")),ABS(VLOOKUP(D8,'Filtered-P'!$AE$3:$AI$4,5,FALSE))+M8,ABS(VLOOKUP(D8,Filtered!$AJ$3:$AN$14,5,FALSE))+M8)),"") -> 11.06654799 | O8: =IFERROR(IF((OR($D8="RP",$D8="SP")),IF(Personalize!$E$10=TRUE,(((VLOOKUP($C8,'Filtered-P'!$A$1:$P$700,2,FALSE))-'Filtered-P'!$AF$8)/'Filtered-P'!$AG$8),""),IF(Personalize!$E$4=TRUE,(((VLOOKUP($C8,Filtered!$A$1:$AD$700,22,FALSE))-Filtered!$AK$35)/Filtered!$AL$35),"")),"") -> 2.886522256 | P8: =IFERROR(IF((OR($D8="RP",$D8="SP")),IF(Personalize!$E$12=TRUE,(((VLOOKUP($C8,'Filtered-P'!$A$1:$P$700,9,FALSE))-'Filtered-P'!$AF$15)/'Filtered-P'!$AG$15),""),IF(Personalize!$E$3=TRUE,(((VLOOKUP($C8,Filtered!$A$1:$AB$700,10,FALSE))-Filtered!$AK$25)/Filtered!$AL$25),"")),"") -> 1.904972928 | Q8: =IFERROR(IF((OR($D8="RP",$D8="SP")),IF(Personalize!$E$11=TRUE,(((VLOOKUP($C8,'Filtered-P'!$A$1:$P$700,7,FALSE))-'Filtered-P'!$AF$13)/'Filtered-P'!$AG$13),""),IF(Personalize!$E$2=TRUE,(((VLOOKUP($C8,Filtered!$A$1:$AB$700,5,FALSE))-Filtered!$AK$20)/Filtered!$AL$20),"")),"") -> 2.140371679 | R8: =IFERROR(IF((OR($D8="RP",$D8="SP")),IF(Personalize!$E$13=TRUE,(((VLOOKUP($C8,'Filtered-P'!$A$1:$P$700,13,FALSE))-'Filtered-P'!$AF$19)/'Filtered-P'!$AG$19),""),IF(Personalize!$E$5=TRUE,(((VLOOKUP($C8,Filtered!$A$1:$AB$700,11,FALSE))-Filtered!$AK$26)/Filtered!$AL$26),"")),"") -> 2.808754618 | S8: =IFERROR(IF((OR($D8="RP",$D8="SP")),IF(Personalize!$E$14=TRUE,(((VLOOKUP($C8,'Filtered-P'!$A$1:$P$700,14,FALSE))-'Filtered-P'!$AF$20)/'Filtered-P'!$AG$20),""),IF(Personalize!$E$6=TRUE,(((VLOOKUP($C8,Filtered!$A$1:$AB$700,12,FALSE))-Filtered!$AK$27)/Filtered!$AL$27),"")),"") -> -0.8612698775 | T8: =IFERROR(IF((OR($D8="RP",$D8="SP")),IF(Personalize!$E$16=TRUE,(((VLOOKUP($C8,'Filtered-P'!$A$1:$P$700,3,FALSE))-'Filtered-P'!$AF$9)/'Filtered-P'!$AG$9),""),IF(Personalize!$E$7=TRUE,(((VLOOKUP($C8,Filtered!$A$1:$AD$700,24,FALSE))-Filtered!$AK$37)/Filtered!$AL$37),"")),"") ->  | U8: =IFERROR(IF((OR($D8="RP",$D8="SP")),IF(Personalize!$E$15=TRUE,(((VLOOKUP($C8,'Filtered-P'!$A$1:$P$700,15,FALSE))-'Filtered-P'!$AF$21)/'Filtered-P'!$AG$21),""),IF(Personalize!$E$8=TRUE,(((VLOOKUP($C8,Filtered!$A$1:$AD$700,23,FALSE))-Filtered!$AK$36)/Filtered!$AL$36),"")),"") ->  | V8: =IFERROR(IF((OR($D8="RP",$D8="SP")),IF(Personalize!$E$17=TRUE,(((VLOOKUP($C8,'Filtered-P'!$A$1:$P$700,16,FALSE))-'Filtered-P'!$AF$22)/'Filtered-P'!$AG$22),""),IF(Personalize!$E$9=TRUE,(((VLOOKUP($C8,Filtered!$A$1:$AD$700,25,FALSE))-Filtered!$AK$38)/Filtered!$AL$38),"")),"") ->  | W8: =IFERROR(IF((OR($D8="RP",$D8="SP")),IF(Personalize!$E$37=TRUE,(((VLOOKUP($C8,'Filtered-P'!$A$1:$Z$700,17,FALSE))-'Filtered-P'!$AF$25)/'Filtered-P'!$AG$25),""),IF(Personalize!$E$39=TRUE,(((VLOOKUP($C8,Filtered!$A$1:$X$700,6,FALSE))-Filtered!$AK$21)/Filtered!$AL$21),"")),"") ->  | X8: =IFERROR(IF((OR($D8="RP",$D8="SP")),IF(Personalize!$E$38=TRUE,(((VLOOKUP($C8,'Filtered-P'!$A$1:$Z$700,18,FALSE))-'Filtered-P'!$AF$26)/'Filtered-P'!$AG$26),""),IF(Personalize!$E$40=TRUE,(((VLOOKUP($C8,Filtered!$A$1:$X$700,14,FALSE))-Filtered!$AK$29)/Filtered!$AL$29),"")),"") ->  | Y8: =IFERROR(IF((OR($D8="RP",$D8="SP")),IF(Personalize!$E$45=TRUE,(((VLOOKUP($C8,'Filtered-P'!$A$1:$Z$700,4,FALSE))-'Filtered-P'!$AF$10)/'Filtered-P'!$AG$10),""),IF(Personalize!$E$41=TRUE,(((VLOOKUP($C8,Filtered!$A$1:$AD$700,20,FALSE))-Filtered!$AK$43)/Filtered!$AL$43),"")),"") ->  | Z8: =IFERROR(IF((OR($D8="RP",$D8="SP")),IF(Personalize!$E$46=TRUE,(((VLOOKUP($C8,'Filtered-P'!$A$1:$Z$700,19,FALSE))-'Filtered-P'!$AF$27)/'Filtered-P'!$AG$27),""),IF(Personalize!$E$44=TRUE,(((VLOOKUP($C8,Filtered!$A$1:$AD$700,21,FALSE))-Filtered!$AK$44)/Filtered!$AL$44),"")),"") ->  | AA8: =IFERROR(IF((OR($D8="RP",$D8="SP")),IF(Personalize!$E$47=TRUE,(((VLOOKUP($C8,'Filtered-P'!$A$1:$Z$700,6,FALSE))-'Filtered-P'!$AF$12)/'Filtered-P'!$AG$12),""),IF(Personalize!$E$42=TRUE,(((VLOOKUP($C8,Filtered!$A$1:$AD$700,8,FALSE))-Filtered!$AK$23)/Filtered!$AL$23),"")),"") ->  | AB8: =IFERROR(IF((OR($D8="RP",$D8="SP")),IF(Personalize!$E$48=TRUE,(((VLOOKUP($C8,'Filtered-P'!$A$1:$Z$700,5,FALSE))-'Filtered-P'!$AF$11)/'Filtered-P'!$AG$11),""),IF(Personalize!$E$43=TRUE,(((VLOOKUP($C8,Filtered!$A$1:$AD$700,9,FALSE))-Filtered!$AK$24)/Filtered!$AL$24),"")),"") ->  | AC8: =IFERROR(IF((OR($D8="RP",$D8="SP")),IF(Personalize!$E$52=TRUE,(((VLOOKUP($C8,'Filtered-P'!$A$1:$AD$700,21,FALSE))-'Filtered-P'!$AF$29)/(-1*'Filtered-P'!$AG$29)),""),IF(Personalize!$E$49=TRUE,(((VLOOKUP($C8,Filtered!$A$1:$AF$628,30,FALSE))-Filtered!$AK$45)/Filtered!$AL$45),"")),"") ->  | AD8: =IFERROR(IF((OR($D8="RP",$D8="SP")),IF(Personalize!$E$53=TRUE,(((VLOOKUP($C8,'Filtered-P'!$A$1:$AD$700,23,FALSE))-'Filtered-P'!$AF$31)/(-1*'Filtered-P'!$AG$31)),""),IF(Personalize!$E$50=TRUE,(((VLOOKUP($C8,Filtered!$A$1:$AF$628,31,FALSE))-Filtered!$AK$46)/Filtered!$AL$46),"")),"") ->  | AE8: =IFERROR(IF((OR($D8="RP",$D8="SP")),IF(Personalize!$E$54=TRUE,(((VLOOKUP($C8,'Filtered-P'!$A$1:$AD$700,24,FALSE))-'Filtered-P'!$AF$32)/'Filtered-P'!$AG$32),""),IF(Personalize!$E$51=TRUE,(((VLOOKUP($C8,Filtered!$A$1:$AF$628,15,FALSE))-Filtered!$AK$30)/(-1*Filtered!$AL$30)),"")),"") ->  | AF8: =IFERROR(IF((OR($D8="RP",$D8="SP")),IF(Personalize!$E$56=TRUE,(((VLOOKUP($C8,'Filtered-P'!$A$1:$AD$700,29,FALSE))-'Filtered-P'!$AF$35)/'Filtered-P'!$AG$35),""),IF(Personalize!$E$60=TRUE,(((VLOOKUP($C8,Filtered!$A$1:$AF$700,7,FALSE))-Filtered!$AK$22)/Filtered!$AL$22),"")),"") ->  | AG8: =IFERROR(IF((OR($D8="RP",$D8="SP")),IF(Personalize!$E$57=TRUE,(((VLOOKUP($C8,'Filtered-P'!$A$1:$AD$700,28,FALSE))-'Filtered-P'!$AF$34)/'Filtered-P'!$AG$34),""),IF(Personalize!$E$61=TRUE,(((VLOOKUP($C8,Filtered!$A$1:$AZ$700,34,FALSE))-Filtered!$AK$47)/Filtered!$AL$47),"")),"") ->  | AH8: =IFERROR(IF((OR($D8="RP",$D8="SP")),IF(Personalize!$E$58=TRUE,(((VLOOKUP($C8,'Filtered-P'!$A$1:$Z$700,8,FALSE))-'Filtered-P'!$AF$14)/'Filtered-P'!$AG$14),""),IF(Personalize!$E$62=TRUE,(((VLOOKUP($C8,Filtered!$A$1:$AF$700,13,FALSE))-Filtered!$AK$28)/(-1*Filtered!$AL$28)),"")),"") ->  | AI8: =IFERROR(IF((OR($D8="RP",$D8="SP")),IF(Personalize!$E$59=TRUE,(((VLOOKUP($C8,'Filtered-P'!$A$1:$AD$700,27,FALSE))-'Filtered-P'!$AF$33)/'Filtered-P'!$AG$33),""),IF(Personalize!$E$63=TRUE,(((VLOOKUP($C8,Filtered!$A$1:$AZ$700,35,FALSE))-Filtered!$AK$48)/(-1*Filtered!$AL$48)),"")),"") ->  | AJ8: =IFERROR(IF((OR($D8="RP",$D8="SP")),VLOOKUP($C8,'Filtered-P'!$A$1:$P$700,2,FALSE),""),"") ->  | AK8: =IFERROR(IF((OR($D8="RP",$D8="SP")),VLOOKUP($C8,'Filtered-P'!$A$1:$P$700,9,FALSE),""),"") ->  | AL8: =IFERROR(IF((OR($D8="RP",$D8="SP")),VLOOKUP($C8,'Filtered-P'!$A$1:$P$700,7,FALSE),""),"") ->  | AM8: =IFERROR(IF((OR($D8="RP",$D8="SP")),VLOOKUP($C8,'Filtered-P'!$A$1:$P$700,10,FALSE),""),"") ->  | AN8: =IFERROR(IF((OR($D8="RP",$D8="SP")),VLOOKUP($C8,'Filtered-P'!$A$1:$P$700,11,FALSE),""),"") ->  | AO8: =IFERROR(IF((OR($D8="RP",$D8="SP")),"",VLOOKUP($C8,Filtered!$A$1:$X$700,16,FALSE)),"") -> 0.305841406 | AP8: =IFERROR(IF((OR($D8="RP",$D8="SP")),"",VLOOKUP($C8,Filtered!$A$1:$X$700,10,FALSE)),"") -> 29.99882153 | AQ8: =IFERROR(IF((OR($D8="RP",$D8="SP")),"",VLOOKUP($C8,Filtered!$A$1:$X$700,11,FALSE)),"") -> 102.8153746 | AR8: =IFERROR(IF((OR($D8="RP",$D8="SP")),"",VLOOKUP($C8,Filtered!$A$1:$X$700,5,FALSE)),"") -> 89.71964691 | AS8: =IFERROR(IF((OR($D8="RP",$D8="SP")),"",VLOOKUP($C8,Filtered!$A$1:$X$700,12,FALSE)),"") -> 2.408938847 | AU8: =IF(ISBLANK(A8),0,1) -> 0 | AV8: =IF(M8="",0,1) -> 1 | AW8: =A8 -> 0 | AX8: =IF(D8="C",1,IF(D8="1B",2,IF(D8="2B",3,IF(D8="3B",4,IF(D8="SS",5,IF(D8="CI",6,IF(D8="MI",7,IF(D8="OF",11,IF(D8="LF",8,IF(D8="CF",9,IF(D8="RF",10,IF(D8="DH",12,IF(D8="SP",13,IF(D8="RP",14,IF(D8="P",15,16))))))))))))))) -> 2 | AY8: =VLOOKUP(C8,'Starter Calc'!$B$2:$BS$700,70,FALSE) -> Bench | AZ8: =VLOOKUP(C8,'Starter Calc'!$B$2:$AO$700,40,FALSE) -> Yes | BA8: =IFERROR(IF(ISTEXT($A8),"",IF((OR($D8="RP",$D8="SP")),ABS(VLOOKUP(D8,'Filtered-P'!$AE$3:$AI$4,5,FALSE))+M8,ABS(VLOOKUP(D8,Filtered!$AJ$3:$AN$14,5,FALSE))+M8)),"") -> 11.06654799 | BB8: =IFERROR(BA8+ABS($BA$4),"") -> 11.93782292 | BC8: =IF(AND($A8<>"",$B8<>""),B8,"N") -> N | BD8: =IFERROR(VLOOKUP($C8,'ADP-Rank'!$A$2:$AB$620,25,FALSE),TRUE) -> TRUE | BE8: =IFERROR((BB8-BB$3)^2,"") -> 60.00798966 | BF8: =VLOOKUP(C8,'Starter Calc'!$B$2:$CD$700,71,FALSE) -> 1B.Yes
C9: Clayton Kershaw | D9: SP | E9: =IFERROR(IF(VLOOKUP(C9,'Starter Calc'!$B$2:$E$700,4,FALSE)="","",VLOOKUP(C9,'Starter Calc'!$B$2:$E$700,4,FALSE)),"") -> ,, | F9: =IFERROR(VLOOKUP($C9,'ADP-Rank'!$A$2:$G$620,5,FALSE),"") -> LAD | G9: =IFERROR(VLOOKUP($C9,'ADP-Rank'!$A$2:$X$620,6,FALSE),"") -> 27 | H9: =IFERROR(IF(ISBLANK($B9),IF(BF9="Rostered",1,(IF((OR($D9="RP",$D9="SP")),ROUND((N9*($BB$1/$BD$1))+1,0),ROUND((N9*($BB$2/$BD$2))+1,0)))),""),"") -> 40 | I9: =VLOOKUP($C9,'ADP-Rank'!$A$2:$AB$620,26,FALSE) -> 4 | J9: =IF(ISBLANK($B9),IFERROR(CHOOSE(Personalize!$E$31,(VLOOKUP(C9,'ADP-Rank'!$A$2:$Z$620,7,FALSE)*(Personalize!$A$3)+1),(VLOOKUP(C9,'ADP-Rank'!$A$2:$Z$620,8,FALSE)*(Personalize!$A$3)+1),(VLOOKUP(C9,'ADP-Rank'!$A$2:$Z$620,9,FALSE)*(Personalize!$A$3)+1),(VLOOKUP(C9,'ADP-Rank'!$A$2:$AA$620,10,FALSE)*(Personalize!$A$3)+1),(VLOOKUP(C9,'ADP-Rank'!$A$2:$AA$620,11,FALSE)*(Personalize!$A$3)+1),(VLOOKUP(C9,'ADP-Rank'!$A$2:$AA$620,12,FALSE)*(Personalize!$A$3)+1),(VLOOKUP(C9,'ADP-Rank'!$A$2:$AA$620,13,FALSE)*(Personalize!$A$3)+1),(VLOOKUP(C9,'ADP-Rank'!$A$2:$AA$620,14,FALSE)*(Personalize!$A$3)+1),(VLOOKUP(C9,'ADP-Rank'!$A$2:$AA$620,15,FALSE)*(Personalize!$A$3)+1),(VLOOKUP(C9,'ADP-Rank'!$A$2:$AG$620,28,FALSE)*(Personalize!$A$3)+1)),""),"") -> 39 | K9: =IF(ISBLANK($B9),IFERROR(CHOOSE(Personalize!$E$31,(VLOOKUP(C9,'ADP-Rank'!$A$2:$Z$620,7,FALSE)*(Personalize!$A$3-$AZ$4)+1),(VLOOKUP(C9,'ADP-Rank'!$A$2:$Z$620,8,FALSE)*(Personalize!$A$3-$AZ$4)+1),(VLOOKUP(C9,'ADP-Rank'!$A$2:$Z$620,9,FALSE)*(Personalize!$A$3-$AZ$4)+1),(VLOOKUP(C9,'ADP-Rank'!$A$2:$AA$620,10,FALSE)*(Personalize!$A$3-$AZ$4)+1),(VLOOKUP(C9,'ADP-Rank'!$A$2:$AA$620,11,FALSE)*(Personalize!$A$3-$AZ$4)+1),(VLOOKUP(C9,'ADP-Rank'!$A$2:$AA$620,12,FALSE)*(Personalize!$A$3-$AZ$4)+1),(VLOOKUP(C9,'ADP-Rank'!$A$2:$AA$620,13,FALSE)*(Personalize!$A$3-$AZ$4)+1),(VLOOKUP(C9,'ADP-Rank'!$A$2:$AA$620,14,FALSE)*(Personalize!$A$3-$AZ$4)+1),(VLOOKUP(C9,'ADP-Rank'!$A$2:$AA$620,15,FALSE)*(Personalize!$A$3-$AZ$4)+1),(VLOOKUP(C9,'ADP-Rank'!$A$2:$AG$620,28,FALSE)*(Personalize!$A$3-$AZ$4)+1)),""),"") -> 39 | L9: =IFERROR(RANK($M9,$M$7:$M$746,0),"") -> 1 | M9: =IF((SUM(O9:AI9)=0),"",SUM(O9:AI9)) -> 11.10411576 | N9: =IFERROR(IF(ISTEXT($A9),"",IF((OR($D9="RP",$D9="SP")),ABS(VLOOKUP(D9,'Filtered-P'!$AE$3:$AI$4,5,FALSE))+M9,ABS(VLOOKUP(D9,Filtered!$AJ$3:$AN$14,5,FALSE))+M9)),"") -> 13.8235931 | O9: =IFERROR(IF((OR($D9="RP",$D9="SP")),IF(Personalize!$E$10=TRUE,(((VLOOKUP($C9,'Filtered-P'!$A$1:$P$700,2,FALSE))-'Filtered-P'!$AF$8)/'Filtered-P'!$AG$8),""),IF(Personalize!$E$4=TRUE,(((VLOOKUP($C9,Filtered!$A$1:$AD$700,22,FALSE))-Filtered!$AK$35)/Filtered!$AL$35),"")),"") -> 1.733058707 | P9: =IFERROR(IF((OR($D9="RP",$D9="SP")),IF(Personalize!$E$12=TRUE,(((VLOOKUP($C9,'Filtered-P'!$A$1:$P$700,9,FALSE))-'Filtered-P'!$AF$15)/'Filtered-P'!$AG$15),""),IF(Personalize!$E$3=TRUE,(((VLOOKUP($C9,Filtered!$A$1:$AB$700,10,FALSE))-Filtered!$AK$25)/Filtered!$AL$25),"")),"") -> -0.4771200697 | Q9: =IFERROR(IF((OR($D9="RP",$D9="SP")),IF(Personalize!$E$11=TRUE,(((VLOOKUP($C9,'Filtered-P'!$A$1:$P$700,7,FALSE))-'Filtered-P'!$AF$13)/'Filtered-P'!$AG$13),""),IF(Personalize!$E$2=TRUE,(((VLOOKUP($C9,Filtered!$A$1:$AB$700,5,FALSE))-Filtered!$AK$20)/Filtered!$AL$20),"")),"") -> 2.15294128 | R9: =IFERROR(IF((OR($D9="RP",$D9="SP")),IF(Personalize!$E$13=TRUE,(((VLOOKUP($C9,'Filtered-P'!$A$1:$P$700,13,FALSE))-'Filtered-P'!$AF$19)/'Filtered-P'!$AG$19),""),IF(Personalize!$E$5=TRUE,(((VLOOKUP($C9,Filtered!$A$1:$AB$700,11,FALSE))-Filtered!$AK$26)/Filtered!$AL$26),"")),"") -> 4.292839405 | S9: =IFERROR(IF((OR($D9="RP",$D9="SP")),IF(Personalize!$E$14=TRUE,(((VLOOKUP($C9,'Filtered-P'!$A$1:$P$700,14,FALSE))-'Filtered-P'!$AF$20)/'Filtered-P'!$AG$20),""),IF(Personalize!$E$6=TRUE,(((VLOOKUP($C9,Filtered!$A$1:$AB$700,12,FALSE))-Filtered!$AK$27)/Filtered!$AL$27),"")),"") -> 3.402396442 | T9: =IFERROR(IF((OR($D9="RP",$D9="SP")),IF(Personalize!$E$16=TRUE,(((VLOOKUP($C9,'Filtered-P'!$A$1:$P$700,3,FALSE))-'Filtered-P'!$AF$9)/'Filtered-P'!$AG$9),""),IF(Personalize!$E$7=TRUE,(((VLOOKUP($C9,Filtered!$A$1:$AD$700,24,FALSE))-Filtered!$AK$37)/Filtered!$AL$37),"")),"") ->  | U9: =IFERROR(IF((OR($D9="RP",$D9="SP")),IF(Personalize!$E$15=TRUE,(((VLOOKUP($C9,'Filtered-P'!$A$1:$P$700,15,FALSE))-'Filtered-P'!$AF$21)/'Filtered-P'!$AG$21),""),IF(Personalize!$E$8=TRUE,(((VLOOKUP($C9,Filtered!$A$1:$AD$700,23,FALSE))-Filtered!$AK$36)/Filtered!$AL$36),"")),"") ->  | V9: =IFERROR(IF((OR($D9="RP",$D9="SP")),IF(Personalize!$E$17=TRUE,(((VLOOKUP($C9,'Filtered-P'!$A$1:$P$700,16,FALSE))-'Filtered-P'!$AF$22)/'Filtered-P'!$AG$22),""),IF(Personalize!$E$9=TRUE,(((VLOOKUP($C9,Filtered!$A$1:$AD$700,25,FALSE))-Filtered!$AK$38)/Filtered!$AL$38),"")),"") ->  | W9: =IFERROR(IF((OR($D9="RP",$D9="SP")),IF(Personalize!$E$37=TRUE,(((VLOOKUP($C9,'Filtered-P'!$A$1:$Z$700,17,FALSE))-'Filtered-P'!$AF$25)/'Filtered-P'!$AG$25),""),IF(Personalize!$E$39=TRUE,(((VLOOKUP($C9,Filtered!$A$1:$X$700,6,FALSE))-Filtered!$AK$21)/Filtered!$AL$21),"")),"") ->  | X9: =IFERROR(IF((OR($D9="RP",$D9="SP")),IF(Personalize!$E$38=TRUE,(((VLOOKUP($C9,'Filtered-P'!$A$1:$Z$700,18,FALSE))-'Filtered-P'!$AF$26)/'Filtered-P'!$AG$26),""),IF(Personalize!$E$40=TRUE,(((VLOOKUP($C9,Filtered!$A$1:$X$700,14,FALSE))-Filtered!$AK$29)/Filtered!$AL$29),"")),"") ->  | Y9: =IFERROR(IF((OR($D9="RP",$D9="SP")),IF(Personalize!$E$45=TRUE,(((VLOOKUP($C9,'Filtered-P'!$A$1:$Z$700,4,FALSE))-'Filtered-P'!$AF$10)/'Filtered-P'!$AG$10),""),IF(Personalize!$E$41=TRUE,(((VLOOKUP($C9,Filtered!$A$1:$AD$700,20,FALSE))-Filtered!$AK$43)/Filtered!$AL$43),"")),"") ->  | Z9: =IFERROR(IF((OR($D9="RP",$D9="SP")),IF(Personalize!$E$46=TRUE,(((VLOOKUP($C9,'Filtered-P'!$A$1:$Z$700,19,FALSE))-'Filtered-P'!$AF$27)/'Filtered-P'!$AG$27),""),IF(Personalize!$E$44=TRUE,(((VLOOKUP($C9,Filtered!$A$1:$AD$700,21,FALSE))-Filtered!$AK$44)/Filtered!$AL$44),"")),"") ->  | AA9: =IFERROR(IF((OR($D9="RP",$D9="SP")),IF(Personalize!$E$47=TRUE,(((VLOOKUP($C9,'Filtered-P'!$A$1:$Z$700,6,FALSE))-'Filtered-P'!$AF$12)/'Filtered-P'!$AG$12),""),IF(Personalize!$E$42=TRUE,(((VLOOKUP($C9,Filtered!$A$1:$AD$700,8,FALSE))-Filtered!$AK$23)/Filtered!$AL$23),"")),"") ->  | AB9: =IFERROR(IF((OR($D9="RP",$D9="SP")),IF(Personalize!$E$48=TRUE,(((VLOOKUP($C9,'Filtered-P'!$A$1:$Z$700,5,FALSE))-'Filtered-P'!$AF$11)/'Filtered-P'!$AG$11),""),IF(Personalize!$E$43=TRUE,(((VLOOKUP($C9,Filtered!$A$1:$AD$700,9,FALSE))-Filtered!$AK$24)/Filtered!$AL$24),"")),"") ->  | AC9: =IFERROR(IF((OR($D9="RP",$D9="SP")),IF(Personalize!$E$52=TRUE,(((VLOOKUP($C9,'Filtered-P'!$A$1:$AD$700,21,FALSE))-'Filtered-P'!$AF$29)/(-1*'Filtered-P'!$AG$29)),""),IF(Personalize!$E$49=TRUE,(((VLOOKUP($C9,Filtered!$A$1:$AF$628,30,FALSE))-Filtered!$AK$45)/Filtered!$AL$45),"")),"") ->  | AD9: =IFERROR(IF((OR($D9="RP",$D9="SP")),IF(Personalize!$E$53=TRUE,(((VLOOKUP($C9,'Filtered-P'!$A$1:$AD$700,23,FALSE))-'Filtered-P'!$AF$31)/(-1*'Filtered-P'!$AG$31)),""),IF(Personalize!$E$50=TRUE,(((VLOOKUP($C9,Filtered!$A$1:$AF$628,31,FALSE))-Filtered!$AK$46)/Filtered!$AL$46),"")),"") ->  | AE9: =IFERROR(IF((OR($D9="RP",$D9="SP")),IF(Personalize!$E$54=TRUE,(((VLOOKUP($C9,'Filtered-P'!$A$1:$AD$700,24,FALSE))-'Filtered-P'!$AF$32)/'Filtered-P'!$AG$32),""),IF(Personalize!$E$51=TRUE,(((VLOOKUP($C9,Filtered!$A$1:$AF$628,15,FALSE))-Filtered!$AK$30)/(-1*Filtered!$AL$30)),"")),"") ->  | AF9: =IFERROR(IF((OR($D9="RP",$D9="SP")),IF(Personalize!$E$56=TRUE,(((VLOOKUP($C9,'Filtered-P'!$A$1:$AD$700,29,FALSE))-'Filtered-P'!$AF$35)/'Filtered-P'!$AG$35),""),IF(Personalize!$E$60=TRUE,(((VLOOKUP($C9,Filtered!$A$1:$AF$700,7,FALSE))-Filtered!$AK$22)/Filtered!$AL$22),"")),"") ->  | AG9: =IFERROR(IF((OR($D9="RP",$D9="SP")),IF(Personalize!$E$57=TRUE,(((VLOOKUP($C9,'Filtered-P'!$A$1:$AD$700,28,FALSE))-'Filtered-P'!$AF$34)/'Filtered-P'!$AG$34),""),IF(Personalize!$E$61=TRUE,(((VLOOKUP($C9,Filtered!$A$1:$AZ$700,34,FALSE))-Filtered!$AK$47)/Filtered!$AL$47),"")),"") ->  | AH9: =IFERROR(IF((OR($D9="RP",$D9="SP")),IF(Personalize!$E$58=TRUE,(((VLOOKUP($C9,'Filtered-P'!$A$1:$Z$700,8,FALSE))-'Filtered-P'!$AF$14)/'Filtered-P'!$AG$14),""),IF(Personalize!$E$62=TRUE,(((VLOOKUP($C9,Filtered!$A$1:$AF$700,13,FALSE))-Filtered!$AK$28)/(-1*Filtered!$AL$28)),"")),"") ->  | AI9: =IFERROR(IF((OR($D9="RP",$D9="SP")),IF(Personalize!$E$59=TRUE,(((VLOOKUP($C9,'Filtered-P'!$A$1:$AD$700,27,FALSE))-'Filtered-P'!$AF$33)/'Filtered-P'!$AG$33),""),IF(Personalize!$E$63=TRUE,(((VLOOKUP($C9,Filtered!$A$1:$AZ$700,35,FALSE))-Filtered!$AK$48)/(-1*Filtered!$AL$48)),"")),"") ->  | AJ9: =IFERROR(IF((OR($D9="RP",$D9="SP")),VLOOKUP($C9,'Filtered-P'!$A$1:$P$700,2,FALSE),""),"") -> 15.99388564 | AK9: =IFERROR(IF((OR($D9="RP",$D9="SP")),VLOOKUP($C9,'Filtered-P'!$A$1:$P$700,9,FALSE),""),"") -> 0 | AL9: =IFERROR(IF((OR($D9="RP",$D9="SP")),VLOOKUP($C9,'Filtered-P'!$A$1:$P$700,7,FALSE),""),"") -> 233.796943 | AM9: =IFERROR(IF((OR($D9="RP",$D9="SP")),VLOOKUP($C9,'Filtered-P'!$A$1:$P$700,10,FALSE),""),"") -> 2.467582635 | AN9: =IFERROR(IF((OR($D9="RP",$D9="SP")),VLOOKUP($C9,'Filtered-P'!$A$1:$P$700,11,FALSE),""),"") -> 1.015841783 | AO9: =IFERROR(IF((OR($D9="RP",$D9="SP")),"",VLOOKUP($C9,Filtered!$A$1:$X$700,16,FALSE)),"") ->  | AP9: =IFERROR(IF((OR($D9="RP",$D9="SP")),"",VLOOKUP($C9,Filtered!$A$1:$X$700,10,FALSE)),"") ->  | AQ9: =IFERROR(IF((OR($D9="RP",$D9="SP")),"",VLOOKUP($C9,Filtered!$A$1:$X$700,11,FALSE)),"") ->  | AR9: =IFERROR(IF((OR($D9="RP",$D9="SP")),"",VLOOKUP($C9,Filtered!$A$1:$X$700,5,FALSE)),"") ->  | AS9: =IFERROR(IF((OR($D9="RP",$D9="SP")),"",VLOOKUP($C9,Filtered!$A$1:$X$700,12,FALSE)),"") ->  | AU9: =IF(ISBLANK(A9),0,1) -> 0 | AV9: =IF(M9="",0,1) -> 1 | AW9: =A9 -> 0 | AX9: =IF(D9="C",1,IF(D9="1B",2,IF(D9="2B",3,IF(D9="3B",4,IF(D9="SS",5,IF(D9="CI",6,IF(D9="MI",7,IF(D9="OF",11,IF(D9="LF",8,IF(D9="CF",9,IF(D9="RF",10,IF(D9="DH",12,IF(D9="SP",13,IF(D9="RP",14,IF(D9="P",15,16))))))))))))))) -> 13 | AY9: =VLOOKUP(C9,'Starter Calc'!$B$2:$BS$700,70,FALSE) -> Bench | AZ9: =VLOOKUP(C9,'Starter Calc'!$B$2:$AO$700,40,FALSE) -> Yes | BA9: =IFERROR(IF(ISTEXT($A9),"",IF((OR($D9="RP",$D9="SP")),ABS(VLOOKUP(D9,'Filtered-P'!$AE$3:$AI$4,5,FALSE))+M9,ABS(VLOOKUP(D9,Filtered!$AJ$3:$AN$14,5,FALSE))+M9)),"") -> 13.8235931 | BB9: =IFERROR(BA9+ABS($BA$4),"") -> 14.69486803 | BC9: =IF(AND($A9<>"",$B9<>""),B9,"N") -> N | BD9: =IFERROR(VLOOKUP($C9,'ADP-Rank'!$A$2:$AB$620,25,FALSE),TRUE) -> TRUE | BE9: =IFERROR((BB9-BB$3)^2,"") -> 110.3240903 | BF9: =VLOOKUP(C9,'Starter Calc'!$B$2:$CD$700,71,FALSE) -> SP.No
C10: Giancarlo Stanton | D10: OF | E10: =IFERROR(IF(VLOOKUP(C10,'Starter Calc'!$B$2:$E$700,4,FALSE)="","",VLOOKUP(C10,'Starter Calc'!$B$2:$E$700,4,FALSE)),"") -> ,,RF | F10: =IFERROR(VLOOKUP($C10,'ADP-Rank'!$A$2:$G$620,5,FALSE),"") -> MIA | G10: =IFERROR(VLOOKUP($C10,'ADP-Rank'!$A$2:$X$620,6,FALSE),"") -> 25 | H10: =IFERROR(IF(ISBLANK($B10),IF(BF10="Rostered",1,(IF((OR($D10="RP",$D10="SP")),ROUND((N10*($BB$1/$BD$1))+1,0),ROUND((N10*($BB$2/$BD$2))+1,0)))),""),"") -> 40 | I10: =VLOOKUP($C10,'ADP-Rank'!$A$2:$AB$620,26,FALSE) -> 3 | J10: =IF(ISBLANK($B10),IFERROR(CHOOSE(Personalize!$E$31,(VLOOKUP(C10,'ADP-Rank'!$A$2:$Z$620,7,FALSE)*(Personalize!$A$3)+1),(VLOOKUP(C10,'ADP-Rank'!$A$2:$Z$620,8,FALSE)*(Personalize!$A$3)+1),(VLOOKUP(C10,'ADP-Rank'!$A$2:$Z$620,9,FALSE)*(Personalize!$A$3)+1),(VLOOKUP(C10,'ADP-Rank'!$A$2:$AA$620,10,FALSE)*(Personalize!$A$3)+1),(VLOOKUP(C10,'ADP-Rank'!$A$2:$AA$620,11,FALSE)*(Personalize!$A$3)+1),(VLOOKUP(C10,'ADP-Rank'!$A$2:$AA$620,12,FALSE)*(Personalize!$A$3)+1),(VLOOKUP(C10,'ADP-Rank'!$A$2:$AA$620,13,FALSE)*(Personalize!$A$3)+1),(VLOOKUP(C10,'ADP-Rank'!$A$2:$AA$620,14,FALSE)*(Personalize!$A$3)+1),(VLOOKUP(C10,'ADP-Rank'!$A$2:$AA$620,15,FALSE)*(Personalize!$A$3)+1),(VLOOKUP(C10,'ADP-Rank'!$A$2:$AG$620,28,FALSE)*(Personalize!$A$3)+1)),""),"") -> 41 | K10: =IF(ISBLANK($B10),IFERROR(CHOOSE(Personalize!$E$31,(VLOOKUP(C10,'ADP-Rank'!$A$2:$Z$620,7,FALSE)*(Personalize!$A$3-$AZ$4)+1),(VLOOKUP(C10,'ADP-Rank'!$A$2:$Z$620,8,FALSE)*(Personalize!$A$3-$AZ$4)+1),(VLOOKUP(C10,'ADP-Rank'!$A$2:$Z$620,9,FALSE)*(Personalize!$A$3-$AZ$4)+1),(VLOOKUP(C10,'ADP-Rank'!$A$2:$AA$620,10,FALSE)*(Personalize!$A$3-$AZ$4)+1),(VLOOKUP(C10,'ADP-Rank'!$A$2:$AA$620,11,FALSE)*(Personalize!$A$3-$AZ$4)+1),(VLOOKUP(C10,'ADP-Rank'!$A$2:$AA$620,12,FALSE)*(Personalize!$A$3-$AZ$4)+1),(VLOOKUP(C10,'ADP-Rank'!$A$2:$AA$620,13,FALSE)*(Personalize!$A$3-$AZ$4)+1),(VLOOKUP(C10,'ADP-Rank'!$A$2:$AA$620,14,FALSE)*(Personalize!$A$3-$AZ$4)+1),(VLOOKUP(C10,'ADP-Rank'!$A$2:$AA$620,15,FALSE)*(Personalize!$A$3-$AZ$4)+1),(VLOOKUP(C10,'ADP-Rank'!$A$2:$AG$620,28,FALSE)*(Personalize!$A$3-$AZ$4)+1)),""),"") -> 41 | L10: =IFERROR(RANK($M10,$M$7:$M$746,0),"") -> 7 | M10: =IF((SUM(O10:AI10)=0),"",SUM(O10:AI10)) -> 7.196040824 | N10: =IFERROR(IF(ISTEXT($A10),"",IF((OR($D10="RP",$D10="SP")),ABS(VLOOKUP(D10,'Filtered-P'!$AE$3:$AI$4,5,FALSE))+M10,ABS(VLOOKUP(D10,Filtered!$AJ$3:$AN$14,5,FALSE))+M10)),"") -> 10.29388298 | O10: =IFERROR(IF((OR($D10="RP",$D10="SP")),IF(Personalize!$E$10=TRUE,(((VLOOKUP($C10,'Filtered-P'!$A$1:$P$700,2,FALSE))-'Filtered-P'!$AF$8)/'Filtered-P'!$AG$8),""),IF(Personalize!$E$4=TRUE,(((VLOOKUP($C10,Filtered!$A$1:$AD$700,22,FALSE))-Filtered!$AK$35)/Filtered!$AL$35),"")),"") -> 0.5812548646 | P10: =IFERROR(IF((OR($D10="RP",$D10="SP")),IF(Personalize!$E$12=TRUE,(((VLOOKUP($C10,'Filtered-P'!$A$1:$P$700,9,FALSE))-'Filtered-P'!$AF$15)/'Filtered-P'!$AG$15),""),IF(Personalize!$E$3=TRUE,(((VLOOKUP($C10,Filtered!$A$1:$AB$700,10,FALSE))-Filtered!$AK$25)/Filtered!$AL$25),"")),"") -> 2.862841328 | Q10: =IFERROR(IF((OR($D10="RP",$D10="SP")),IF(Personalize!$E$11=TRUE,(((VLOOKUP($C10,'Filtered-P'!$A$1:$P$700,7,FALSE))-'Filtered-P'!$AF$13)/'Filtered-P'!$AG$13),""),IF(Personalize!$E$2=TRUE,(((VLOOKUP($C10,Filtered!$A$1:$AB$700,5,FALSE))-Filtered!$AK$20)/Filtered!$AL$20),"")),"") -> 1.910619401 | R10: =IFERROR(IF((OR($D10="RP",$D10="SP")),IF(Personalize!$E$13=TRUE,(((VLOOKUP($C10,'Filtered-P'!$A$1:$P$700,13,FALSE))-'Filtered-P'!$AF$19)/'Filtered-P'!$AG$19),""),IF(Personalize!$E$5=TRUE,(((VLOOKUP($C10,Filtered!$A$1:$AB$700,11,FALSE))-Filtered!$AK$26)/Filtered!$AL$26),"")),"") -> 2.085843313 | S10: =IFERROR(IF((OR($D10="RP",$D10="SP")),IF(Personalize!$E$14=TRUE,(((VLOOKUP($C10,'Filtered-P'!$A$1:$P$700,14,FALSE))-'Filtered-P'!$AF$20)/'Filtered-P'!$AG$20),""),IF(Personalize!$E$6=TRUE,(((VLOOKUP($C10,Filtered!$A$1:$AB$700,12,FALSE))-Filtered!$AK$27)/Filtered!$AL$27),"")),"") -> -0.2445180817 | T10: =IFERROR(IF((OR($D10="RP",$D10="SP")),IF(Personalize!$E$16=TRUE,(((VLOOKUP($C10,'Filtered-P'!$A$1:$P$700,3,FALSE))-'Filtered-P'!$AF$9)/'Filtered-P'!$AG$9),""),IF(Personalize!$E$7=TRUE,(((VLOOKUP($C10,Filtered!$A$1:$AD$700,24,FALSE))-Filtered!$AK$37)/Filtered!$AL$37),"")),"") ->  | U10: =IFERROR(IF((OR($D10="RP",$D10="SP")),IF(Personalize!$E$15=TRUE,(((VLOOKUP($C10,'Filtered-P'!$A$1:$P$700,15,FALSE))-'Filtered-P'!$AF$21)/'Filtered-P'!$AG$21),""),IF(Personalize!$E$8=TRUE,(((VLOOKUP($C10,Filtered!$A$1:$AD$700,23,FALSE))-Filtered!$AK$36)/Filtered!$AL$36),"")),"") ->  | V10: =IFERROR(IF((OR($D10="RP",$D10="SP")),IF(Personalize!$E$17=TRUE,(((VLOOKUP($C10,'Filtered-P'!$A$1:$P$700,16,FALSE))-'Filtered-P'!$AF$22)/'Filtered-P'!$AG$22),""),IF(Personalize!$E$9=TRUE,(((VLOOKUP($C10,Filtered!$A$1:$AD$700,25,FALSE))-Filtered!$AK$38)/Filtered!$AL$38),"")),"") ->  | W10: =IFERROR(IF((OR($D10="RP",$D10="SP")),IF(Personalize!$E$37=TRUE,(((VLOOKUP($C10,'Filtered-P'!$A$1:$Z$700,17,FALSE))-'Filtered-P'!$AF$25)/'Filtered-P'!$AG$25),""),IF(Personalize!$E$39=TRUE,(((VLOOKUP($C10,Filtered!$A$1:$X$700,6,FALSE))-Filtered!$AK$21)/Filtered!$AL$21),"")),"") ->  | X10: =IFERROR(IF((OR($D10="RP",$D10="SP")),IF(Personalize!$E$38=TRUE,(((VLOOKUP($C10,'Filtered-P'!$A$1:$Z$700,18,FALSE))-'Filtered-P'!$AF$26)/'Filtered-P'!$AG$26),""),IF(Personalize!$E$40=TRUE,(((VLOOKUP($C10,Filtered!$A$1:$X$700,14,FALSE))-Filtered!$AK$29)/Filtered!$AL$29),"")),"") ->  | Y10: =IFERROR(IF((OR($D10="RP",$D10="SP")),IF(Personalize!$E$45=TRUE,(((VLOOKUP($C10,'Filtered-P'!$A$1:$Z$700,4,FALSE))-'Filtered-P'!$AF$10)/'Filtered-P'!$AG$10),""),IF(Personalize!$E$41=TRUE,(((VLOOKUP($C10,Filtered!$A$1:$AD$700,20,FALSE))-Filtered!$AK$43)/Filtered!$AL$43),"")),"") ->  | Z10: =IFERROR(IF((OR($D10="RP",$D10="SP")),IF(Personalize!$E$46=TRUE,(((VLOOKUP($C10,'Filtered-P'!$A$1:$Z$700,19,FALSE))-'Filtered-P'!$AF$27)/'Filtered-P'!$AG$27),""),IF(Personalize!$E$44=TRUE,(((VLOOKUP($C10,Filtered!$A$1:$AD$700,21,FALSE))-Filtered!$AK$44)/Filtered!$AL$44),"")),"") ->  | AA10: =IFERROR(IF((OR($D10="RP",$D10="SP")),IF(Personalize!$E$47=TRUE,(((VLOOKUP($C10,'Filtered-P'!$A$1:$Z$700,6,FALSE))-'Filtered-P'!$AF$12)/'Filtered-P'!$AG$12),""),IF(Personalize!$E$42=TRUE,(((VLOOKUP($C10,Filtered!$A$1:$AD$700,8,FALSE))-Filtered!$AK$23)/Filtered!$AL$23),"")),"") ->  | AB10: =IFERROR(IF((OR($D10="RP",$D10="SP")),IF(Personalize!$E$48=TRUE,(((VLOOKUP($C10,'Filtered-P'!$A$1:$Z$700,5,FALSE))-'Filtered-P'!$AF$11)/'Filtered-P'!$AG$11),""),IF(Personalize!$E$43=TRUE,(((VLOOKUP($C10,Filtered!$A$1:$AD$700,9,FALSE))-Filtered!$AK$24)/Filtered!$AL$24),"")),"") ->  | AC10: =IFERROR(IF((OR($D10="RP",$D10="SP")),IF(Personalize!$E$52=TRUE,(((VLOOKUP($C10,'Filtered-P'!$A$1:$AD$700,21,FALSE))-'Filtered-P'!$AF$29)/(-1*'Filtered-P'!$AG$29)),""),IF(Personalize!$E$49=TRUE,(((VLOOKUP($C10,Filtered!$A$1:$AF$628,30,FALSE))-Filtered!$AK$45)/Filtered!$AL$45),"")),"") ->  | AD10: =IFERROR(IF((OR($D10="RP",$D10="SP")),IF(Personalize!$E$53=TRUE,(((VLOOKUP($C10,'Filtered-P'!$A$1:$AD$700,23,FALSE))-'Filtered-P'!$AF$31)/(-1*'Filtered-P'!$AG$31)),""),IF(Personalize!$E$50=TRUE,(((VLOOKUP($C10,Filtered!$A$1:$AF$628,31,FALSE))-Filtered!$AK$46)/Filtered!$AL$46),"")),"") ->  | AE10: =IFERROR(IF((OR($D10="RP",$D10="SP")),IF(Personalize!$E$54=TRUE,(((VLOOKUP($C10,'Filtered-P'!$A$1:$AD$700,24,FALSE))-'Filtered-P'!$AF$32)/'Filtered-P'!$AG$32),""),IF(Personalize!$E$51=TRUE,(((VLOOKUP($C10,Filtered!$A$1:$AF$628,15,FALSE))-Filtered!$AK$30)/(-1*Filtered!$AL$30)),"")),"") ->  | AF10: =IFERROR(IF((OR($D10="RP",$D10="SP")),IF(Personalize!$E$56=TRUE,(((VLOOKUP($C10,'Filtered-P'!$A$1:$AD$700,29,FALSE))-'Filtered-P'!$AF$35)/'Filtered-P'!$AG$35),""),IF(Personalize!$E$60=TRUE,(((VLOOKUP($C10,Filtered!$A$1:$AF$700,7,FALSE))-Filtered!$AK$22)/Filtered!$AL$22),"")),"") ->  | AG10: =IFERROR(IF((OR($D10="RP",$D10="SP")),IF(Personalize!$E$57=TRUE,(((VLOOKUP($C10,'Filtered-P'!$A$1:$AD$700,28,FALSE))-'Filtered-P'!$AF$34)/'Filtered-P'!$AG$34),""),IF(Personalize!$E$61=TRUE,(((VLOOKUP($C10,Filtered!$A$1:$AZ$700,34,FALSE))-Filtered!$AK$47)/Filtered!$AL$47),"")),"") ->  | AH10: =IFERROR(IF((OR($D10="RP",$D10="SP")),IF(Personalize!$E$58=TRUE,(((VLOOKUP($C10,'Filtered-P'!$A$1:$Z$700,8,FALSE))-'Filtered-P'!$AF$14)/'Filtered-P'!$AG$14),""),IF(Personalize!$E$62=TRUE,(((VLOOKUP($C10,Filtered!$A$1:$AF$700,13,FALSE))-Filtered!$AK$28)/(-1*Filtered!$AL$28)),"")),"") ->  | AI10: =IFERROR(IF((OR($D10="RP",$D10="SP")),IF(Personalize!$E$59=TRUE,(((VLOOKUP($C10,'Filtered-P'!$A$1:$AD$700,27,FALSE))-'Filtered-P'!$AF$33)/'Filtered-P'!$AG$33),""),IF(Personalize!$E$63=TRUE,(((VLOOKUP($C10,Filtered!$A$1:$AZ$700,35,FALSE))-Filtered!$AK$48)/(-1*Filtered!$AL$48)),"")),"") ->  | AJ10: =IFERROR(IF((OR($D10="RP",$D10="SP")),VLOOKUP($C10,'Filtered-P'!$A$1:$P$700,2,FALSE),""),"") ->  | AK10: =IFERROR(IF((OR($D10="RP",$D10="SP")),VLOOKUP($C10,'Filtered-P'!$A$1:$P$700,9,FALSE),""),"") ->  | AL10: =IFERROR(IF((OR($D10="RP",$D10="SP")),VLOOKUP($C10,'Filtered-P'!$A$1:$P$700,7,FALSE),""),"") ->  | AM10: =IFERROR(IF((OR($D10="RP",$D10="SP")),VLOOKUP($C10,'Filtered-P'!$A$1:$P$700,10,FALSE),""),"") ->  | AN10: =IFERROR(IF((OR($D10="RP",$D10="SP")),VLOOKUP($C10,'Filtered-P'!$A$1:$P$700,11,FALSE),""),"") ->  | AO10: =IFERROR(IF((OR($D10="RP",$D10="SP")),"",VLOOKUP($C10,Filtered!$A$1:$X$700,16,FALSE)),"") -> 0.2729111628 | AP10: =IFERROR(IF((OR($D10="RP",$D10="SP")),"",VLOOKUP($C10,Filtered!$A$1:$X$700,10,FALSE)),"") -> 36.57635445 | AQ10: =IFERROR(IF((OR($D10="RP",$D10="SP")),"",VLOOKUP($C10,Filtered!$A$1:$X$700,11,FALSE)),"") -> 93.35470932 | AR10: =IFERROR(IF((OR($D10="RP",$D10="SP")),"",VLOOKUP($C10,Filtered!$A$1:$X$700,5,FALSE)),"") -> 87.34551871 | AS10: =IFERROR(IF((OR($D10="RP",$D10="SP")),"",VLOOKUP($C10,Filtered!$A$1:$X$700,12,FALSE)),"") -> 7.977857571 | AT10: Due for slight decline in AVG | AU10: =IF(ISBLANK(A10),0,1) -> 0 | AV10: =IF(M10="",0,1) -> 1 | AW10: =A10 -> 0 | AX10: =IF(D10="C",1,IF(D10="1B",2,IF(D10="2B",3,IF(D10="3B",4,IF(D10="SS",5,IF(D10="CI",6,IF(D10="MI",7,IF(D10="OF",11,IF(D10="LF",8,IF(D10="CF",9,IF(D10="RF",10,IF(D10="DH",12,IF(D10="SP",13,IF(D10="RP",14,IF(D10="P",15,16))))))))))))))) -> 11 | AY10: =VLOOKUP(C10,'Starter Calc'!$B$2:$BS$700,70,FALSE) -> Bench | AZ10: =VLOOKUP(C10,'Starter Calc'!$B$2:$AO$700,40,FALSE) -> Yes | BA10: =IFERROR(IF(ISTEXT($A10),"",IF((OR($D10="RP",$D10="SP")),ABS(VLOOKUP(D10,'Filtered-P'!$AE$3:$AI$4,5,FALSE))+M10,ABS(VLOOKUP(D10,Filtered!$AJ$3:$AN$14,5,FALSE))+M10)),"") -> 10.29388298 | BB10: =IFERROR(BA10+ABS($BA$4),"") -> 11.16515791 | BC10: =IF(AND($A10<>"",$B10<>""),B10,"N") -> N | BD10: =IFERROR(VLOOKUP($C10,'ADP-Rank'!$A$2:$AB$620,25,FALSE),TRUE) -> TRUE | BE10: =IFERROR((BB10-BB$3)^2,"") -> 48.63412912 | BF10: =VLOOKUP(C10,'Starter Calc'!$B$2:$CD$700,71,FALSE) -> OF.Yes
C11: Andrew McCutchen | D11: OF | E11: =IFERROR(IF(VLOOKUP(C11,'Starter Calc'!$B$2:$E$700,4,FALSE)="","",VLOOKUP(C11,'Starter Calc'!$B$2:$E$700,4,FALSE)),"") -> ,CF, | F11: =IFERROR(VLOOKUP($C11,'ADP-Rank'!$A$2:$G$620,5,FALSE),"") -> PIT | G11: =IFERROR(VLOOKUP($C11,'ADP-Rank'!$A$2:$X$620,6,FALSE),"") -> 28 | H11: =IFERROR(IF(ISBLANK($B11),IF(BF11="Rostered",1,(IF((OR($D11="RP",$D11="SP")),ROUND((N11*($BB$1/$BD$1))+1,0),ROUND((N11*($BB$2/$BD$2))+1,0)))),""),"") -> 39 | I11: =VLOOKUP($C11,'ADP-Rank'!$A$2:$AB$620,26,FALSE) -> 2 | J11: =IF(ISBLANK($B11),IFERROR(CHOOSE(Personalize!$E$31,(VLOOKUP(C11,'ADP-Rank'!$A$2:$Z$620,7,FALSE)*(Personalize!$A$3)+1),(VLOOKUP(C11,'ADP-Rank'!$A$2:$Z$620,8,FALSE)*(Personalize!$A$3)+1),(VLOOKUP(C11,'ADP-Rank'!$A$2:$Z$620,9,FALSE)*(Personalize!$A$3)+1),(VLOOKUP(C11,'ADP-Rank'!$A$2:$AA$620,10,FALSE)*(Personalize!$A$3)+1),(VLOOKUP(C11,'ADP-Rank'!$A$2:$AA$620,11,FALSE)*(Personalize!$A$3)+1),(VLOOKUP(C11,'ADP-Rank'!$A$2:$AA$620,12,FALSE)*(Personalize!$A$3)+1),(VLOOKUP(C11,'ADP-Rank'!$A$2:$AA$620,13,FALSE)*(Personalize!$A$3)+1),(VLOOKUP(C11,'ADP-Rank'!$A$2:$AA$620,14,FALSE)*(Personalize!$A$3)+1),(VLOOKUP(C11,'ADP-Rank'!$A$2:$AA$620,15,FALSE)*(Personalize!$A$3)+1),(VLOOKUP(C11,'ADP-Rank'!$A$2:$AG$620,28,FALSE)*(Personalize!$A$3)+1)),""),"") -> 43 | K11: =IF(ISBLANK($B11),IFERROR(CHOOSE(Personalize!$E$31,(VLOOKUP(C11,'ADP-Rank'!$A$2:$Z$620,7,FALSE)*(Personalize!$A$3-$AZ$4)+1),(VLOOKUP(C11,'ADP-Rank'!$A$2:$Z$620,8,FALSE)*(Personalize!$A$3-$AZ$4)+1),(VLOOKUP(C11,'ADP-Rank'!$A$2:$Z$620,9,FALSE)*(Personalize!$A$3-$AZ$4)+1),(VLOOKUP(C11,'ADP-Rank'!$A$2:$AA$620,10,FALSE)*(Personalize!$A$3-$AZ$4)+1),(VLOOKUP(C11,'ADP-Rank'!$A$2:$AA$620,11,FALSE)*(Personalize!$A$3-$AZ$4)+1),(VLOOKUP(C11,'ADP-Rank'!$A$2:$AA$620,12,FALSE)*(Personalize!$A$3-$AZ$4)+1),(VLOOKUP(C11,'ADP-Rank'!$A$2:$AA$620,13,FALSE)*(Personalize!$A$3-$AZ$4)+1),(VLOOKUP(C11,'ADP-Rank'!$A$2:$AA$620,14,FALSE)*(Personalize!$A$3-$AZ$4)+1),(VLOOKUP(C11,'ADP-Rank'!$A$2:$AA$620,15,FALSE)*(Personalize!$A$3-$AZ$4)+1),(VLOOKUP(C11,'ADP-Rank'!$A$2:$AG$620,28,FALSE)*(Personalize!$A$3-$AZ$4)+1)),""),"") -> 43 | L11: =IFERROR(RANK($M11,$M$7:$M$746,0),"") -> 8 | M11: =IF((SUM(O11:AI11)=0),"",SUM(O11:AI11)) -> 6.990815326 | N11: =IFERROR(IF(ISTEXT($A11),"",IF((OR($D11="RP",$D11="SP")),ABS(VLOOKUP(D11,'Filtered-P'!$AE$3:$AI$4,5,FALSE))+M11,ABS(VLOOKUP(D11,Filtered!$AJ$3:$AN$14,5,FALSE))+M11)),"") -> 10.08865748 | O11: =IFERROR(IF((OR($D11="RP",$D11="SP")),IF(Personalize!$E$10=TRUE,(((VLOOKUP($C11,'Filtered-P'!$A$1:$P$700,2,FALSE))-'Filtered-P'!$AF$8)/'Filtered-P'!$AG$8),""),IF(Personalize!$E$4=TRUE,(((VLOOKUP($C11,Filtered!$A$1:$AD$700,22,FALSE))-Filtered!$AK$35)/Filtered!$AL$35),"")),"") -> 2.160426638 | P11: =IFERROR(IF((OR($D11="RP",$D11="SP")),IF(Personalize!$E$12=TRUE,(((VLOOKUP($C11,'Filtered-P'!$A$1:$P$700,9,FALSE))-'Filtered-P'!$AF$15)/'Filtered-P'!$AG$15),""),IF(Personalize!$E$3=TRUE,(((VLOOKUP($C11,Filtered!$A$1:$AB$700,10,FALSE))-Filtered!$AK$25)/Filtered!$AL$25),"")),"") -> 0.8450610708 | Q11: =IFERROR(IF((OR($D11="RP",$D11="SP")),IF(Personalize!$E$11=TRUE,(((VLOOKUP($C11,'Filtered-P'!$A$1:$P$700,7,FALSE))-'Filtered-P'!$AF$13)/'Filtered-P'!$AG$13),""),IF(Personalize!$E$2=TRUE,(((VLOOKUP($C11,Filtered!$A$1:$AB$700,5,FALSE))-Filtered!$AK$20)/Filtered!$AL$20),"")),"") -> 1.742982918 | R11: =IFERROR(IF((OR($D11="RP",$D11="SP")),IF(Personalize!$E$13=TRUE,(((VLOOKUP($C11,'Filtered-P'!$A$1:$P$700,13,FALSE))-'Filtered-P'!$AF$19)/'Filtered-P'!$AG$19),""),IF(Personalize!$E$5=TRUE,(((VLOOKUP($C11,Filtered!$A$1:$AB$700,11,FALSE))-Filtered!$AK$26)/Filtered!$AL$26),"")),"") -> 1.284243887 | S11: =IFERROR(IF((OR($D11="RP",$D11="SP")),IF(Personalize!$E$14=TRUE,(((VLOOKUP($C11,'Filtered-P'!$A$1:$P$700,14,FALSE))-'Filtered-P'!$AF$20)/'Filtered-P'!$AG$20),""),IF(Personalize!$E$6=TRUE,(((VLOOKUP($C11,Filtered!$A$1:$AB$700,12,FALSE))-Filtered!$AK$27)/Filtered!$AL$27),"")),"") -> 0.9581008119 | T11: =IFERROR(IF((OR($D11="RP",$D11="SP")),IF(Personalize!$E$16=TRUE,(((VLOOKUP($C11,'Filtered-P'!$A$1:$P$700,3,FALSE))-'Filtered-P'!$AF$9)/'Filtered-P'!$AG$9),""),IF(Personalize!$E$7=TRUE,(((VLOOKUP($C11,Filtered!$A$1:$AD$700,24,FALSE))-Filtered!$AK$37)/Filtered!$AL$37),"")),"") ->  | U11: =IFERROR(IF((OR($D11="RP",$D11="SP")),IF(Personalize!$E$15=TRUE,(((VLOOKUP($C11,'Filtered-P'!$A$1:$P$700,15,FALSE))-'Filtered-P'!$AF$21)/'Filtered-P'!$AG$21),""),IF(Personalize!$E$8=TRUE,(((VLOOKUP($C11,Filtered!$A$1:$AD$700,23,FALSE))-Filtered!$AK$36)/Filtered!$AL$36),"")),"") ->  | V11: =IFERROR(IF((OR($D11="RP",$D11="SP")),IF(Personalize!$E$17=TRUE,(((VLOOKUP($C11,'Filtered-P'!$A$1:$P$700,16,FALSE))-'Filtered-P'!$AF$22)/'Filtered-P'!$AG$22),""),IF(Personalize!$E$9=TRUE,(((VLOOKUP($C11,Filtered!$A$1:$AD$700,25,FALSE))-Filtered!$AK$38)/Filtered!$AL$38),"")),"") ->  | W11: =IFERROR(IF((OR($D11="RP",$D11="SP")),IF(Personalize!$E$37=TRUE,(((VLOOKUP($C11,'Filtered-P'!$A$1:$Z$700,17,FALSE))-'Filtered-P'!$AF$25)/'Filtered-P'!$AG$25),""),IF(Personalize!$E$39=TRUE,(((VLOOKUP($C11,Filtered!$A$1:$X$700,6,FALSE))-Filtered!$AK$21)/Filtered!$AL$21),"")),"") ->  | X11: =IFERROR(IF((OR($D11="RP",$D11="SP")),IF(Personalize!$E$38=TRUE,(((VLOOKUP($C11,'Filtered-P'!$A$1:$Z$700,18,FALSE))-'Filtered-P'!$AF$26)/'Filtered-P'!$AG$26),""),IF(Personalize!$E$40=TRUE,(((VLOOKUP($C11,Filtered!$A$1:$X$700,14,FALSE))-Filtered!$AK$29)/Filtered!$AL$29),"")),"") ->  | Y11: =IFERROR(IF((OR($D11="RP",$D11="SP")),IF(Personalize!$E$45=TRUE,(((VLOOKUP($C11,'Filtered-P'!$A$1:$Z$700,4,FALSE))-'Filtered-P'!$AF$10)/'Filtered-P'!$AG$10),""),IF(Personalize!$E$41=TRUE,(((VLOOKUP($C11,Filtered!$A$1:$AD$700,20,FALSE))-Filtered!$AK$43)/Filtered!$AL$43),"")),"") ->  | Z11: =IFERROR(IF((OR($D11="RP",$D11="SP")),IF(Personalize!$E$46=TRUE,(((VLOOKUP($C11,'Filtered-P'!$A$1:$Z$700,19,FALSE))-'Filtered-P'!$AF$27)/'Filtered-P'!$AG$27),""),IF(Personalize!$E$44=TRUE,(((VLOOKUP($C11,Filtered!$A$1:$AD$700,21,FALSE))-Filtered!$AK$44)/Filtered!$AL$44),"")),"") ->  | AA11: =IFERROR(IF((OR($D11="RP",$D11="SP")),IF(Personalize!$E$47=TRUE,(((VLOOKUP($C11,'Filtered-P'!$A$1:$Z$700,6,FALSE))-'Filtered-P'!$AF$12)/'Filtered-P'!$AG$12),""),IF(Personalize!$E$42=TRUE,(((VLOOKUP($C11,Filtered!$A$1:$AD$700,8,FALSE))-Filtered!$AK$23)/Filtered!$AL$23),"")),"") ->  | AB11: =IFERROR(IF((OR($D11="RP",$D11="SP")),IF(Personalize!$E$48=TRUE,(((VLOOKUP($C11,'Filtered-P'!$A$1:$Z$700,5,FALSE))-'Filtered-P'!$AF$11)/'Filtered-P'!$AG$11),""),IF(Personalize!$E$43=TRUE,(((VLOOKUP($C11,Filtered!$A$1:$AD$700,9,FALSE))-Filtered!$AK$24)/Filtered!$AL$24),"")),"") ->  | AC11: =IFERROR(IF((OR($D11="RP",$D11="SP")),IF(Personalize!$E$52=TRUE,(((VLOOKUP($C11,'Filtered-P'!$A$1:$AD$700,21,FALSE))-'Filtered-P'!$AF$29)/(-1*'Filtered-P'!$AG$29)),""),IF(Personalize!$E$49=TRUE,(((VLOOKUP($C11,Filtered!$A$1:$AF$628,30,FALSE))-Filtered!$AK$45)/Filtered!$AL$45),"")),"") ->  | AD11: =IFERROR(IF((OR($D11="RP",$D11="SP")),IF(Personalize!$E$53=TRUE,(((VLOOKUP($C11,'Filtered-P'!$A$1:$AD$700,23,FALSE))-'Filtered-P'!$AF$31)/(-1*'Filtered-P'!$AG$31)),""),IF(Personalize!$E$50=TRUE,(((VLOOKUP($C11,Filtered!$A$1:$AF$628,31,FALSE))-Filtered!$AK$46)/Filtered!$AL$46),"")),"") ->  | AE11: =IFERROR(IF((OR($D11="RP",$D11="SP")),IF(Personalize!$E$54=TRUE,(((VLOOKUP($C11,'Filtered-P'!$A$1:$AD$700,24,FALSE))-'Filtered-P'!$AF$32)/'Filtered-P'!$AG$32),""),IF(Personalize!$E$51=TRUE,(((VLOOKUP($C11,Filtered!$A$1:$AF$628,15,FALSE))-Filtered!$AK$30)/(-1*Filtered!$AL$30)),"")),"") ->  | AF11: =IFERROR(IF((OR($D11="RP",$D11="SP")),IF(Personalize!$E$56=TRUE,(((VLOOKUP($C11,'Filtered-P'!$A$1:$AD$700,29,FALSE))-'Filtered-P'!$AF$35)/'Filtered-P'!$AG$35),""),IF(Personalize!$E$60=TRUE,(((VLOOKUP($C11,Filtered!$A$1:$AF$700,7,FALSE))-Filtered!$AK$22)/Filtered!$AL$22),"")),"") ->  | AG11: =IFERROR(IF((OR($D11="RP",$D11="SP")),IF(Personalize!$E$57=TRUE,(((VLOOKUP($C11,'Filtered-P'!$A$1:$AD$700,28,FALSE))-'Filtered-P'!$AF$34)/'Filtered-P'!$AG$34),""),IF(Personalize!$E$61=TRUE,(((VLOOKUP($C11,Filtered!$A$1:$AZ$700,34,FALSE))-Filtered!$AK$47)/Filtered!$AL$47),"")),"") ->  | AH11: =IFERROR(IF((OR($D11="RP",$D11="SP")),IF(Personalize!$E$58=TRUE,(((VLOOKUP($C11,'Filtered-P'!$A$1:$Z$700,8,FALSE))-'Filtered-P'!$AF$14)/'Filtered-P'!$AG$14),""),IF(Personalize!$E$62=TRUE,(((VLOOKUP($C11,Filtered!$A$1:$AF$700,13,FALSE))-Filtered!$AK$28)/(-1*Filtered!$AL$28)),"")),"") ->  | AI11: =IFERROR(IF((OR($D11="RP",$D11="SP")),IF(Personalize!$E$59=TRUE,(((VLOOKUP($C11,'Filtered-P'!$A$1:$AD$700,27,FALSE))-'Filtered-P'!$AF$33)/'Filtered-P'!$AG$33),""),IF(Personalize!$E$63=TRUE,(((VLOOKUP($C11,Filtered!$A$1:$AZ$700,35,FALSE))-Filtered!$AK$48)/(-1*Filtered!$AL$48)),"")),"") ->  | AJ11: =IFERROR(IF((OR($D11="RP",$D11="SP")),VLOOKUP($C11,'Filtered-P'!$A$1:$P$700,2,FALSE),""),"") ->  | AK11: =IFERROR(IF((OR($D11="RP",$D11="SP")),VLOOKUP($C11,'Filtered-P'!$A$1:$P$700,9,FALSE),""),"") ->  | AL11: =IFERROR(IF((OR($D11="RP",$D11="SP")),VLOOKUP($C11,'Filtered-P'!$A$1:$P$700,7,FALSE),""),"") ->  | AM11: =IFERROR(IF((OR($D11="RP",$D11="SP")),VLOOKUP($C11,'Filtered-P'!$A$1:$P$700,10,FALSE),""),"") ->  | AN11: =IFERROR(IF((OR($D11="RP",$D11="SP")),VLOOKUP($C11,'Filtered-P'!$A$1:$P$700,11,FALSE),""),"") ->  | AO11: =IFERROR(IF((OR($D11="RP",$D11="SP")),"",VLOOKUP($C11,Filtered!$A$1:$X$700,16,FALSE)),"") -> 0.2959757299 | AP11: =IFERROR(IF((OR($D11="RP",$D11="SP")),"",VLOOKUP($C11,Filtered!$A$1:$X$700,10,FALSE)),"") -> 22.72057209 | AQ11: =IFERROR(IF((OR($D11="RP",$D11="SP")),"",VLOOKUP($C11,Filtered!$A$1:$X$700,11,FALSE)),"") -> 82.86426072 | AR11: =IFERROR(IF((OR($D11="RP",$D11="SP")),"",VLOOKUP($C11,Filtered!$A$1:$X$700,5,FALSE)),"") -> 85.6132595 | AS11: =IFERROR(IF((OR($D11="RP",$D11="SP")),"",VLOOKUP($C11,Filtered!$A$1:$X$700,12,FALSE)),"") -> 18.83682372 | AU11: =IF(ISBLANK(A11),0,1) -> 0 | AV11: =IF(M11="",0,1) -> 1 | AW11: =A11 -> 0 | AX11: =IF(D11="C",1,IF(D11="1B",2,IF(D11="2B",3,IF(D11="3B",4,IF(D11="SS",5,IF(D11="CI",6,IF(D11="MI",7,IF(D11="OF",11,IF(D11="LF",8,IF(D11="CF",9,IF(D11="RF",10,IF(D11="DH",12,IF(D11="SP",13,IF(D11="RP",14,IF(D11="P",15,16))))))))))))))) -> 11 | AY11: =VLOOKUP(C11,'Starter Calc'!$B$2:$BS$700,70,FALSE) -> Bench | AZ11: =VLOOKUP(C11,'Starter Calc'!$B$2:$AO$700,40,FALSE) -> Yes | BA11: =IFERROR(IF(ISTEXT($A11),"",IF((OR($D11="RP",$D11="SP")),ABS(VLOOKUP(D11,'Filtered-P'!$AE$3:$AI$4,5,FALSE))+M11,ABS(VLOOKUP(D11,Filtered!$AJ$3:$AN$14,5,FALSE))+M11)),"") -> 10.08865748 | BB11: =IFERROR(BA11+ABS($BA$4),"") -> 10.95993241 | BC11: =IF(AND($A11<>"",$B11<>""),B11,"N") -> N | BD11: =IFERROR(VLOOKUP($C11,'ADP-Rank'!$A$2:$AB$620,25,FALSE),TRUE) -> TRUE | BE11: =IFERROR((BB11-BB$3)^2,"") -> 45.81383633 | BF11: =VLOOKUP(C11,'Starter Calc'!$B$2:$CD$700,71,FALSE) -> OF.Yes
C12: Jose Abreu | D12: 1B | E12: =IFERROR(IF(VLOOKUP(C12,'Starter Calc'!$B$2:$E$700,4,FALSE)="","",VLOOKUP(C12,'Starter Calc'!$B$2:$E$700,4,FALSE)),"") -> ,, | F12: =IFERROR(VLOOKUP($C12,'ADP-Rank'!$A$2:$G$620,5,FALSE),"") -> CWS | G12: =IFERROR(VLOOKUP($C12,'ADP-Rank'!$A$2:$X$620,6,FALSE),"") -> 28 | H12: =IFERROR(IF(ISBLANK($B12),IF(BF12="Rostered",1,(IF((OR($D12="RP",$D12="SP")),ROUND((N12*($BB$1/$BD$1))+1,0),ROUND((N12*($BB$2/$BD$2))+1,0)))),""),"") -> 37 | I12: =VLOOKUP($C12,'ADP-Rank'!$A$2:$AB$620,26,FALSE) -> 7 | J12: =IF(ISBLANK($B12),IFERROR(CHOOSE(Personalize!$E$31,(VLOOKUP(C12,'ADP-Rank'!$A$2:$Z$620,7,FALSE)*(Personalize!$A$3)+1),(VLOOKUP(C12,'ADP-Rank'!$A$2:$Z$620,8,FALSE)*(Personalize!$A$3)+1),(VLOOKUP(C12,'ADP-Rank'!$A$2:$Z$620,9,FALSE)*(Personalize!$A$3)+1),(VLOOKUP(C12,'ADP-Rank'!$A$2:$AA$620,10,FALSE)*(Personalize!$A$3)+1),(VLOOKUP(C12,'ADP-Rank'!$A$2:$AA$620,11,FALSE)*(Personalize!$A$3)+1),(VLOOKUP(C12,'ADP-Rank'!$A$2:$AA$620,12,FALSE)*(Personalize!$A$3)+1),(VLOOKUP(C12,'ADP-Rank'!$A$2:$AA$620,13,FALSE)*(Personalize!$A$3)+1),(VLOOKUP(C12,'ADP-Rank'!$A$2:$AA$620,14,FALSE)*(Personalize!$A$3)+1),(VLOOKUP(C12,'ADP-Rank'!$A$2:$AA$620,15,FALSE)*(Personalize!$A$3)+1),(VLOOKUP(C12,'ADP-Rank'!$A$2:$AG$620,28,FALSE)*(Personalize!$A$3)+1)),""),"") -> 37 | K12: =IF(ISBLANK($B12),IFERROR(CHOOSE(Personalize!$E$31,(VLOOKUP(C12,'ADP-Rank'!$A$2:$Z$620,7,FALSE)*(Personalize!$A$3-$AZ$4)+1),(VLOOKUP(C12,'ADP-Rank'!$A$2:$Z$620,8,FALSE)*(Personalize!$A$3-$AZ$4)+1),(VLOOKUP(C12,'ADP-Rank'!$A$2:$Z$620,9,FALSE)*(Personalize!$A$3-$AZ$4)+1),(VLOOKUP(C12,'ADP-Rank'!$A$2:$AA$620,10,FALSE)*(Personalize!$A$3-$AZ$4)+1),(VLOOKUP(C12,'ADP-Rank'!$A$2:$AA$620,11,FALSE)*(Personalize!$A$3-$AZ$4)+1),(VLOOKUP(C12,'ADP-Rank'!$A$2:$AA$620,12,FALSE)*(Personalize!$A$3-$AZ$4)+1),(VLOOKUP(C12,'ADP-Rank'!$A$2:$AA$620,13,FALSE)*(Personalize!$A$3-$AZ$4)+1),(VLOOKUP(C12,'ADP-Rank'!$A$2:$AA$620,14,FALSE)*(Personalize!$A$3-$AZ$4)+1),(VLOOKUP(C12,'ADP-Rank'!$A$2:$AA$620,15,FALSE)*(Personalize!$A$3-$AZ$4)+1),(VLOOKUP(C12,'ADP-Rank'!$A$2:$AG$620,28,FALSE)*(Personalize!$A$3-$AZ$4)+1)),""),"") -> 37 | L12: =IFERROR(RANK($M12,$M$7:$M$746,0),"") -> 6 | M12: =IF((SUM(O12:AI12)=0),"",SUM(O12:AI12)) -> 7.250386806 | N12: =IFERROR(IF(ISTEXT($A12),"",IF((OR($D12="RP",$D12="SP")),ABS(VLOOKUP(D12,'Filtered-P'!$AE$3:$AI$4,5,FALSE))+M12,ABS(VLOOKUP(D12,Filtered!$AJ$3:$AN$14,5,FALSE))+M12)),"") -> 9.437583189 | O12: =IFERROR(IF((OR($D12="RP",$D12="SP")),IF(Personalize!$E$10=TRUE,(((VLOOKUP($C12,'Filtered-P'!$A$1:$P$700,2,FALSE))-'Filtered-P'!$AF$8)/'Filtered-P'!$AG$8),""),IF(Personalize!$E$4=TRUE,(((VLOOKUP($C12,Filtered!$A$1:$AD$700,22,FALSE))-Filtered!$AK$35)/Filtered!$AL$35),"")),"") -> 1.344371019 | P12: =IFERROR(IF((OR($D12="RP",$D12="SP")),IF(Personalize!$E$12=TRUE,(((VLOOKUP($C12,'Filtered-P'!$A$1:$P$700,9,FALSE))-'Filtered-P'!$AF$15)/'Filtered-P'!$AG$15),""),IF(Personalize!$E$3=TRUE,(((VLOOKUP($C12,Filtered!$A$1:$AB$700,10,FALSE))-Filtered!$AK$25)/Filtered!$AL$25),"")),"") -> 2.477103751 | Q12: =IFERROR(IF((OR($D12="RP",$D12="SP")),IF(Personalize!$E$11=TRUE,(((VLOOKUP($C12,'Filtered-P'!$A$1:$P$700,7,FALSE))-'Filtered-P'!$AF$13)/'Filtered-P'!$AG$13),""),IF(Personalize!$E$2=TRUE,(((VLOOKUP($C12,Filtered!$A$1:$AB$700,5,FALSE))-Filtered!$AK$20)/Filtered!$AL$20),"")),"") -> 1.849567462 | R12: =IFERROR(IF((OR($D12="RP",$D12="SP")),IF(Personalize!$E$13=TRUE,(((VLOOKUP($C12,'Filtered-P'!$A$1:$P$700,13,FALSE))-'Filtered-P'!$AF$19)/'Filtered-P'!$AG$19),""),IF(Personalize!$E$5=TRUE,(((VLOOKUP($C12,Filtered!$A$1:$AB$700,11,FALSE))-Filtered!$AK$26)/Filtered!$AL$26),"")),"") -> 2.342609989 | S12: =IFERROR(IF((OR($D12="RP",$D12="SP")),IF(Personalize!$E$14=TRUE,(((VLOOKUP($C12,'Filtered-P'!$A$1:$P$700,14,FALSE))-'Filtered-P'!$AF$20)/'Filtered-P'!$AG$20),""),IF(Personalize!$E$6=TRUE,(((VLOOKUP($C12,Filtered!$A$1:$AB$700,12,FALSE))-Filtered!$AK$27)/Filtered!$AL$27),"")),"") -> -0.7632654153 | T12: =IFERROR(IF((OR($D12="RP",$D12="SP")),IF(Personalize!$E$16=TRUE,(((VLOOKUP($C12,'Filtered-P'!$A$1:$P$700,3,FALSE))-'Filtered-P'!$AF$9)/'Filtered-P'!$AG$9),""),IF(Personalize!$E$7=TRUE,(((VLOOKUP($C12,Filtered!$A$1:$AD$700,24,FALSE))-Filtered!$AK$37)/Filtered!$AL$37),"")),"") ->  | U12: =IFERROR(IF((OR($D12="RP",$D12="SP")),IF(Personalize!$E$15=TRUE,(((VLOOKUP($C12,'Filtered-P'!$A$1:$P$700,15,FALSE))-'Filtered-P'!$AF$21)/'Filtered-P'!$AG$21),""),IF(Personalize!$E$8=TRUE,(((VLOOKUP($C12,Filtered!$A$1:$AD$700,23,FALSE))-Filtered!$AK$36)/Filtered!$AL$36),"")),"") ->  | V12: =IFERROR(IF((OR($D12="RP",$D12="SP")),IF(Personalize!$E$17=TRUE,(((VLOOKUP($C12,'Filtered-P'!$A$1:$P$700,16,FALSE))-'Filtered-P'!$AF$22)/'Filtered-P'!$AG$22),""),IF(Personalize!$E$9=TRUE,(((VLOOKUP($C12,Filtered!$A$1:$AD$700,25,FALSE))-Filtered!$AK$38)/Filtered!$AL$38),"")),"") ->  | W12: =IFERROR(IF((OR($D12="RP",$D12="SP")),IF(Personalize!$E$37=TRUE,(((VLOOKUP($C12,'Filtered-P'!$A$1:$Z$700,17,FALSE))-'Filtered-P'!$AF$25)/'Filtered-P'!$AG$25),""),IF(Personalize!$E$39=TRUE,(((VLOOKUP($C12,Filtered!$A$1:$X$700,6,FALSE))-Filtered!$AK$21)/Filtered!$AL$21),"")),"") ->  | X12: =IFERROR(IF((OR($D12="RP",$D12="SP")),IF(Personalize!$E$38=TRUE,(((VLOOKUP($C12,'Filtered-P'!$A$1:$Z$700,18,FALSE))-'Filtered-P'!$AF$26)/'Filtered-P'!$AG$26),""),IF(Personalize!$E$40=TRUE,(((VLOOKUP($C12,Filtered!$A$1:$X$700,14,FALSE))-Filtered!$AK$29)/Filtered!$AL$29),"")),"") ->  | Y12: =IFERROR(IF((OR($D12="RP",$D12="SP")),IF(Personalize!$E$45=TRUE,(((VLOOKUP($C12,'Filtered-P'!$A$1:$Z$700,4,FALSE))-'Filtered-P'!$AF$10)/'Filtered-P'!$AG$10),""),IF(Personalize!$E$41=TRUE,(((VLOOKUP($C12,Filtered!$A$1:$AD$700,20,FALSE))-Filtered!$AK$43)/Filtered!$AL$43),"")),"") ->  | Z12: =IFERROR(IF((OR($D12="RP",$D12="SP")),IF(Personalize!$E$46=TRUE,(((VLOOKUP($C12,'Filtered-P'!$A$1:$Z$700,19,FALSE))-'Filtered-P'!$AF$27)/'Filtered-P'!$AG$27),""),IF(Personalize!$E$44=TRUE,(((VLOOKUP($C12,Filtered!$A$1:$AD$700,21,FALSE))-Filtered!$AK$44)/Filtered!$AL$44),"")),"") ->  | AA12: =IFERROR(IF((OR($D12="RP",$D12="SP")),IF(Personalize!$E$47=TRUE,(((VLOOKUP($C12,'Filtered-P'!$A$1:$Z$700,6,FALSE))-'Filtered-P'!$AF$12)/'Filtered-P'!$AG$12),""),IF(Personalize!$E$42=TRUE,(((VLOOKUP($C12,Filtered!$A$1:$AD$700,8,FALSE))-Filtered!$AK$23)/Filtered!$AL$23),"")),"") ->  | AB12: =IFERROR(IF((OR($D12="RP",$D12="SP")),IF(Personalize!$E$48=TRUE,(((VLOOKUP($C12,'Filtered-P'!$A$1:$Z$700,5,FALSE))-'Filtered-P'!$AF$11)/'Filtered-P'!$AG$11),""),IF(Personalize!$E$43=TRUE,(((VLOOKUP($C12,Filtered!$A$1:$AD$700,9,FALSE))-Filtered!$AK$24)/Filtered!$AL$24),"")),"") ->  | AC12: =IFERROR(IF((OR($D12="RP",$D12="SP")),IF(Personalize!$E$52=TRUE,(((VLOOKUP($C12,'Filtered-P'!$A$1:$AD$700,21,FALSE))-'Filtered-P'!$AF$29)/(-1*'Filtered-P'!$AG$29)),""),IF(Personalize!$E$49=TRUE,(((VLOOKUP($C12,Filtered!$A$1:$AF$628,30,FALSE))-Filtered!$AK$45)/Filtered!$AL$45),"")),"") ->  | AD12: =IFERROR(IF((OR($D12="RP",$D12="SP")),IF(Personalize!$E$53=TRUE,(((VLOOKUP($C12,'Filtered-P'!$A$1:$AD$700,23,FALSE))-'Filtered-P'!$AF$31)/(-1*'Filtered-P'!$AG$31)),""),IF(Personalize!$E$50=TRUE,(((VLOOKUP($C12,Filtered!$A$1:$AF$628,31,FALSE))-Filtered!$AK$46)/Filtered!$AL$46),"")),"") ->  | AE12: =IFERROR(IF((OR($D12="RP",$D12="SP")),IF(Personalize!$E$54=TRUE,(((VLOOKUP($C12,'Filtered-P'!$A$1:$AD$700,24,FALSE))-'Filtered-P'!$AF$32)/'Filtered-P'!$AG$32),""),IF(Personalize!$E$51=TRUE,(((VLOOKUP($C12,Filtered!$A$1:$AF$628,15,FALSE))-Filtered!$AK$30)/(-1*Filtered!$AL$30)),"")),"") ->  | AF12: =IFERROR(IF((OR($D12="RP",$D12="SP")),IF(Personalize!$E$56=TRUE,(((VLOOKUP($C12,'Filtered-P'!$A$1:$AD$700,29,FALSE))-'Filtered-P'!$AF$35)/'Filtered-P'!$AG$35),""),IF(Personalize!$E$60=TRUE,(((VLOOKUP($C12,Filtered!$A$1:$AF$700,7,FALSE))-Filtered!$AK$22)/Filtered!$AL$22),"")),"") ->  | AG12: =IFERROR(IF((OR($D12="RP",$D12="SP")),IF(Personalize!$E$57=TRUE,(((VLOOKUP($C12,'Filtered-P'!$A$1:$AD$700,28,FALSE))-'Filtered-P'!$AF$34)/'Filtered-P'!$AG$34),""),IF(Personalize!$E$61=TRUE,(((VLOOKUP($C12,Filtered!$A$1:$AZ$700,34,FALSE))-Filtered!$AK$47)/Filtered!$AL$47),"")),"") ->  | AH12: =IFERROR(IF((OR($D12="RP",$D12="SP")),IF(Personalize!$E$58=TRUE,(((VLOOKUP($C12,'Filtered-P'!$A$1:$Z$700,8,FALSE))-'Filtered-P'!$AF$14)/'Filtered-P'!$AG$14),""),IF(Personalize!$E$62=TRUE,(((VLOOKUP($C12,Filtered!$A$1:$AF$700,13,FALSE))-Filtered!$AK$28)/(-1*Filtered!$AL$28)),"")),"") ->  | AI12: =IFERROR(IF((OR($D12="RP",$D12="SP")),IF(Personalize!$E$59=TRUE,(((VLOOKUP($C12,'Filtered-P'!$A$1:$AD$700,27,FALSE))-'Filtered-P'!$AF$33)/'Filtered-P'!$AG$33),""),IF(Personalize!$E$63=TRUE,(((VLOOKUP($C12,Filtered!$A$1:$AZ$700,35,FALSE))-Filtered!$AK$48)/(-1*Filtered!$AL$48)),"")),"") ->  | AJ12: =IFERROR(IF((OR($D12="RP",$D12="SP")),VLOOKUP($C12,'Filtered-P'!$A$1:$P$700,2,FALSE),""),"") ->  | AK12: =IFERROR(IF((OR($D12="RP",$D12="SP")),VLOOKUP($C12,'Filtered-P'!$A$1:$P$700,9,FALSE),""),"") ->  | AL12: =IFERROR(IF((OR($D12="RP",$D12="SP")),VLOOKUP($C12,'Filtered-P'!$A$1:$P$700,7,FALSE),""),"") ->  | AM12: =IFERROR(IF((OR($D12="RP",$D12="SP")),VLOOKUP($C12,'Filtered-P'!$A$1:$P$700,10,FALSE),""),"") ->  | AN12: =IFERROR(IF((OR($D12="RP",$D12="SP")),VLOOKUP($C12,'Filtered-P'!$A$1:$P$700,11,FALSE),""),"") ->  | AO12: =IFERROR(IF((OR($D12="RP",$D12="SP")),"",VLOOKUP($C12,Filtered!$A$1:$X$700,16,FALSE)),"") -> 0.2840027053 | AP12: =IFERROR(IF((OR($D12="RP",$D12="SP")),"",VLOOKUP($C12,Filtered!$A$1:$X$700,10,FALSE)),"") -> 33.92755467 | AQ12: =IFERROR(IF((OR($D12="RP",$D12="SP")),"",VLOOKUP($C12,Filtered!$A$1:$X$700,11,FALSE)),"") -> 96.71498819 | AR12: =IFERROR(IF((OR($D12="RP",$D12="SP")),"",VLOOKUP($C12,Filtered!$A$1:$X$700,5,FALSE)),"") -> 86.714643 | AS12: =IFERROR(IF((OR($D12="RP",$D12="SP")),"",VLOOKUP($C12,Filtered!$A$1:$X$700,12,FALSE)),"") -> 3.293863525 | AU12: =IF(ISBLANK(A12),0,1) -> 0 | AV12: =IF(M12="",0,1) -> 1 | AW12: =A12 -> 0 | AX12: =IF(D12="C",1,IF(D12="1B",2,IF(D12="2B",3,IF(D12="3B",4,IF(D12="SS",5,IF(D12="CI",6,IF(D12="MI",7,IF(D12="OF",11,IF(D12="LF",8,IF(D12="CF",9,IF(D12="RF",10,IF(D12="DH",12,IF(D12="SP",13,IF(D12="RP",14,IF(D12="P",15,16))))))))))))))) -> 2 | AY12: =VLOOKUP(C12,'Starter Calc'!$B$2:$BS$700,70,FALSE) -> Bench | AZ12: =VLOOKUP(C12,'Starter Calc'!$B$2:$AO$700,40,FALSE) -> Yes | BA12: =IFERROR(IF(ISTEXT($A12),"",IF((OR($D12="RP",$D12="SP")),ABS(VLOOKUP(D12,'Filtered-P'!$AE$3:$AI$4,5,FALSE))+M12,ABS(VLOOKUP(D12,Filtered!$AJ$3:$AN$14,5,FALSE))+M12)),"") -> 9.437583189 | BB12: =IFERROR(BA12+ABS($BA$4),"") -> 10.30885812 | BC12: =IF(AND($A12<>"",$B12<>""),B12,"N") -> N | BD12: =IFERROR(VLOOKUP($C12,'ADP-Rank'!$A$2:$AB$620,25,FALSE),TRUE) -> TRUE | BE12: =IFERROR((BB12-BB$3)^2,"") -> 37.42402167 | BF12: =VLOOKUP(C12,'Starter Calc'!$B$2:$CD$700,71,FALSE) -> 1B.Yes
C13: Jose Altuve | D13: 2B | E13: =IFERROR(IF(VLOOKUP(C13,'Starter Calc'!$B$2:$E$700,4,FALSE)="","",VLOOKUP(C13,'Starter Calc'!$B$2:$E$700,4,FALSE)),"") -> ,, | F13: =IFERROR(VLOOKUP($C13,'ADP-Rank'!$A$2:$G$620,5,FALSE),"") -> HOU | G13: =IFERROR(VLOOKUP($C13,'ADP-Rank'!$A$2:$X$620,6,FALSE),"") -> 24 | H13: =IFERROR(IF(ISBLANK($B13),IF(BF13="Rostered",1,(IF((OR($D13="RP",$D13="SP")),ROUND((N13*($BB$1/$BD$1))+1,0),ROUND((N13*($BB$2/$BD$2))+1,0)))),""),"") -> 37 | I13: =VLOOKUP($C13,'ADP-Rank'!$A$2:$AB$620,26,FALSE) -> 17 | J13: =IF(ISBLANK($B13),IFERROR(CHOOSE(Personalize!$E$31,(VLOOKUP(C13,'ADP-Rank'!$A$2:$Z$620,7,FALSE)*(Personalize!$A$3)+1),(VLOOKUP(C13,'ADP-Rank'!$A$2:$Z$620,8,FALSE)*(Personalize!$A$3)+1),(VLOOKUP(C13,'ADP-Rank'!$A$2:$Z$620,9,FALSE)*(Personalize!$A$3)+1),(VLOOKUP(C13,'ADP-Rank'!$A$2:$AA$620,10,FALSE)*(Personalize!$A$3)+1),(VLOOKUP(C13,'ADP-Rank'!$A$2:$AA$620,11,FALSE)*(Personalize!$A$3)+1),(VLOOKUP(C13,'ADP-Rank'!$A$2:$AA$620,12,FALSE)*(Personalize!$A$3)+1),(VLOOKUP(C13,'ADP-Rank'!$A$2:$AA$620,13,FALSE)*(Personalize!$A$3)+1),(VLOOKUP(C13,'ADP-Rank'!$A$2:$AA$620,14,FALSE)*(Personalize!$A$3)+1),(VLOOKUP(C13,'ADP-Rank'!$A$2:$AA$620,15,FALSE)*(Personalize!$A$3)+1),(VLOOKUP(C13,'ADP-Rank'!$A$2:$AG$620,28,FALSE)*(Personalize!$A$3)+1)),""),"") -> 32 | K13: =IF(ISBLANK($B13),IFERROR(CHOOSE(Personalize!$E$31,(VLOOKUP(C13,'ADP-Rank'!$A$2:$Z$620,7,FALSE)*(Personalize!$A$3-$AZ$4)+1),(VLOOKUP(C13,'ADP-Rank'!$A$2:$Z$620,8,FALSE)*(Personalize!$A$3-$AZ$4)+1),(VLOOKUP(C13,'ADP-Rank'!$A$2:$Z$620,9,FALSE)*(Personalize!$A$3-$AZ$4)+1),(VLOOKUP(C13,'ADP-Rank'!$A$2:$AA$620,10,FALSE)*(Personalize!$A$3-$AZ$4)+1),(VLOOKUP(C13,'ADP-Rank'!$A$2:$AA$620,11,FALSE)*(Personalize!$A$3-$AZ$4)+1),(VLOOKUP(C13,'ADP-Rank'!$A$2:$AA$620,12,FALSE)*(Personalize!$A$3-$AZ$4)+1),(VLOOKUP(C13,'ADP-Rank'!$A$2:$AA$620,13,FALSE)*(Personalize!$A$3-$AZ$4)+1),(VLOOKUP(C13,'ADP-Rank'!$A$2:$AA$620,14,FALSE)*(Personalize!$A$3-$AZ$4)+1),(VLOOKUP(C13,'ADP-Rank'!$A$2:$AA$620,15,FALSE)*(Personalize!$A$3-$AZ$4)+1),(VLOOKUP(C13,'ADP-Rank'!$A$2:$AG$620,28,FALSE)*(Personalize!$A$3-$AZ$4)+1)),""),"") -> 32 | L13: =IFERROR(RANK($M13,$M$7:$M$746,0),"") -> 17 | M13: =IF((SUM(O13:AI13)=0),"",SUM(O13:AI13)) -> 5.298273135 | N13: =IFERROR(IF(ISTEXT($A13),"",IF((OR($D13="RP",$D13="SP")),ABS(VLOOKUP(D13,'Filtered-P'!$AE$3:$AI$4,5,FALSE))+M13,ABS(VLOOKUP(D13,Filtered!$AJ$3:$AN$14,5,FALSE))+M13)),"") -> 9.327829472 | O13: =IFERROR(IF((OR($D13="RP",$D13="SP")),IF(Personalize!$E$10=TRUE,(((VLOOKUP($C13,'Filtered-P'!$A$1:$P$700,2,FALSE))-'Filtered-P'!$AF$8)/'Filtered-P'!$AG$8),""),IF(Personalize!$E$4=TRUE,(((VLOOKUP($C13,Filtered!$A$1:$AD$700,22,FALSE))-Filtered!$AK$35)/Filtered!$AL$35),"")),"") -> 2.491100404 | P13: =IFERROR(IF((OR($D13="RP",$D13="SP")),IF(Personalize!$E$12=TRUE,(((VLOOKUP($C13,'Filtered-P'!$A$1:$P$700,9,FALSE))-'Filtered-P'!$AF$15)/'Filtered-P'!$AG$15),""),IF(Personalize!$E$3=TRUE,(((VLOOKUP($C13,Filtered!$A$1:$AB$700,10,FALSE))-Filtered!$AK$25)/Filtered!$AL$25),"")),"") -> -1.317403359 | Q13: =IFERROR(IF((OR($D13="RP",$D13="SP")),IF(Personalize!$E$11=TRUE,(((VLOOKUP($C13,'Filtered-P'!$A$1:$P$700,7,FALSE))-'Filtered-P'!$AF$13)/'Filtered-P'!$AG$13),""),IF(Personalize!$E$2=TRUE,(((VLOOKUP($C13,Filtered!$A$1:$AB$700,5,FALSE))-Filtered!$AK$20)/Filtered!$AL$20),"")),"") -> 1.536089552 | R13: =IFERROR(IF((OR($D13="RP",$D13="SP")),IF(Personalize!$E$13=TRUE,(((VLOOKUP($C13,'Filtered-P'!$A$1:$P$700,13,FALSE))-'Filtered-P'!$AF$19)/'Filtered-P'!$AG$19),""),IF(Personalize!$E$5=TRUE,(((VLOOKUP($C13,Filtered!$A$1:$AB$700,11,FALSE))-Filtered!$AK$26)/Filtered!$AL$26),"")),"") -> -0.7636867836 | S13: =IFERROR(IF((OR($D13="RP",$D13="SP")),IF(Personalize!$E$14=TRUE,(((VLOOKUP($C13,'Filtered-P'!$A$1:$P$700,14,FALSE))-'Filtered-P'!$AF$20)/'Filtered-P'!$AG$20),""),IF(Personalize!$E$6=TRUE,(((VLOOKUP($C13,Filtered!$A$1:$AB$700,12,FALSE))-Filtered!$AK$27)/Filtered!$AL$27),"")),"") -> 3.352173321 | T13: =IFERROR(IF((OR($D13="RP",$D13="SP")),IF(Personalize!$E$16=TRUE,(((VLOOKUP($C13,'Filtered-P'!$A$1:$P$700,3,FALSE))-'Filtered-P'!$AF$9)/'Filtered-P'!$AG$9),""),IF(Personalize!$E$7=TRUE,(((VLOOKUP($C13,Filtered!$A$1:$AD$700,24,FALSE))-Filtered!$AK$37)/Filtered!$AL$37),"")),"") ->  | U13: =IFERROR(IF((OR($D13="RP",$D13="SP")),IF(Personalize!$E$15=TRUE,(((VLOOKUP($C13,'Filtered-P'!$A$1:$P$700,15,FALSE))-'Filtered-P'!$AF$21)/'Filtered-P'!$AG$21),""),IF(Personalize!$E$8=TRUE,(((VLOOKUP($C13,Filtered!$A$1:$AD$700,23,FALSE))-Filtered!$AK$36)/Filtered!$AL$36),"")),"") ->  | V13: =IFERROR(IF((OR($D13="RP",$D13="SP")),IF(Personalize!$E$17=TRUE,(((VLOOKUP($C13,'Filtered-P'!$A$1:$P$700,16,FALSE))-'Filtered-P'!$AF$22)/'Filtered-P'!$AG$22),""),IF(Personalize!$E$9=TRUE,(((VLOOKUP($C13,Filtered!$A$1:$AD$700,25,FALSE))-Filtered!$AK$38)/Filtered!$AL$38),"")),"") ->  | W13: =IFERROR(IF((OR($D13="RP",$D13="SP")),IF(Personalize!$E$37=TRUE,(((VLOOKUP($C13,'Filtered-P'!$A$1:$Z$700,17,FALSE))-'Filtered-P'!$AF$25)/'Filtered-P'!$AG$25),""),IF(Personalize!$E$39=TRUE,(((VLOOKUP($C13,Filtered!$A$1:$X$700,6,FALSE))-Filtered!$AK$21)/Filtered!$AL$21),"")),"") ->  | X13: =IFERROR(IF((OR($D13="RP",$D13="SP")),IF(Personalize!$E$38=TRUE,(((VLOOKUP($C13,'Filtered-P'!$A$1:$Z$700,18,FALSE))-'Filtered-P'!$AF$26)/'Filtered-P'!$AG$26),""),IF(Personalize!$E$40=TRUE,(((VLOOKUP($C13,Filtered!$A$1:$X$700,14,FALSE))-Filtered!$AK$29)/Filtered!$AL$29),"")),"") ->  | Y13: =IFERROR(IF((OR($D13="RP",$D13="SP")),IF(Personalize!$E$45=TRUE,(((VLOOKUP($C13,'Filtered-P'!$A$1:$Z$700,4,FALSE))-'Filtered-P'!$AF$10)/'Filtered-P'!$AG$10),""),IF(Personalize!$E$41=TRUE,(((VLOOKUP($C13,Filtered!$A$1:$AD$700,20,FALSE))-Filtered!$AK$43)/Filtered!$AL$43),"")),"") ->  | Z13: =IFERROR(IF((OR($D13="RP",$D13="SP")),IF(Personalize!$E$46=TRUE,(((VLOOKUP($C13,'Filtered-P'!$A$1:$Z$700,19,FALSE))-'Filtered-P'!$AF$27)/'Filtered-P'!$AG$27),""),IF(Personalize!$E$44=TRUE,(((VLOOKUP($C13,Filtered!$A$1:$AD$700,21,FALSE))-Filtered!$AK$44)/Filtered!$AL$44),"")),"") ->  | AA13: =IFERROR(IF((OR($D13="RP",$D13="SP")),IF(Personalize!$E$47=TRUE,(((VLOOKUP($C13,'Filtered-P'!$A$1:$Z$700,6,FALSE))-'Filtered-P'!$AF$12)/'Filtered-P'!$AG$12),""),IF(Personalize!$E$42=TRUE,(((VLOOKUP($C13,Filtered!$A$1:$AD$700,8,FALSE))-Filtered!$AK$23)/Filtered!$AL$23),"")),"") ->  | AB13: =IFERROR(IF((OR($D13="RP",$D13="SP")),IF(Personalize!$E$48=TRUE,(((VLOOKUP($C13,'Filtered-P'!$A$1:$Z$700,5,FALSE))-'Filtered-P'!$AF$11)/'Filtered-P'!$AG$11),""),IF(Personalize!$E$43=TRUE,(((VLOOKUP($C13,Filtered!$A$1:$AD$700,9,FALSE))-Filtered!$AK$24)/Filtered!$AL$24),"")),"") ->  | AC13: =IFERROR(IF((OR($D13="RP",$D13="SP")),IF(Personalize!$E$52=TRUE,(((VLOOKUP($C13,'Filtered-P'!$A$1:$AD$700,21,FALSE))-'Filtered-P'!$AF$29)/(-1*'Filtered-P'!$AG$29)),""),IF(Personalize!$E$49=TRUE,(((VLOOKUP($C13,Filtered!$A$1:$AF$628,30,FALSE))-Filtered!$AK$45)/Filtered!$AL$45),"")),"") ->  | AD13: =IFERROR(IF((OR($D13="RP",$D13="SP")),IF(Personalize!$E$53=TRUE,(((VLOOKUP($C13,'Filtered-P'!$A$1:$AD$700,23,FALSE))-'Filtered-P'!$AF$31)/(-1*'Filtered-P'!$AG$31)),""),IF(Personalize!$E$50=TRUE,(((VLOOKUP($C13,Filtered!$A$1:$AF$628,31,FALSE))-Filtered!$AK$46)/Filtered!$AL$46),"")),"") ->  | AE13: =IFERROR(IF((OR($D13="RP",$D13="SP")),IF(Personalize!$E$54=TRUE,(((VLOOKUP($C13,'Filtered-P'!$A$1:$AD$700,24,FALSE))-'Filtered-P'!$AF$32)/'Filtered-P'!$AG$32),""),IF(Personalize!$E$51=TRUE,(((VLOOKUP($C13,Filtered!$A$1:$AF$628,15,FALSE))-Filtered!$AK$30)/(-1*Filtered!$AL$30)),"")),"") ->  | AF13: =IFERROR(IF((OR($D13="RP",$D13="SP")),IF(Personalize!$E$56=TRUE,(((VLOOKUP($C13,'Filtered-P'!$A$1:$AD$700,29,FALSE))-'Filtered-P'!$AF$35)/'Filtered-P'!$AG$35),""),IF(Personalize!$E$60=TRUE,(((VLOOKUP($C13,Filtered!$A$1:$AF$700,7,FALSE))-Filtered!$AK$22)/Filtered!$AL$22),"")),"") ->  | AG13: =IFERROR(IF((OR($D13="RP",$D13="SP")),IF(Personalize!$E$57=TRUE,(((VLOOKUP($C13,'Filtered-P'!$A$1:$AD$700,28,FALSE))-'Filtered-P'!$AF$34)/'Filtered-P'!$AG$34),""),IF(Personalize!$E$61=TRUE,(((VLOOKUP($C13,Filtered!$A$1:$AZ$700,34,FALSE))-Filtered!$AK$47)/Filtered!$AL$47),"")),"") ->  | AH13: =IFERROR(IF((OR($D13="RP",$D13="SP")),IF(Personalize!$E$58=TRUE,(((VLOOKUP($C13,'Filtered-P'!$A$1:$Z$700,8,FALSE))-'Filtered-P'!$AF$14)/'Filtered-P'!$AG$14),""),IF(Personalize!$E$62=TRUE,(((VLOOKUP($C13,Filtered!$A$1:$AF$700,13,FALSE))-Filtered!$AK$28)/(-1*Filtered!$AL$28)),"")),"") ->  | AI13: =IFERROR(IF((OR($D13="RP",$D13="SP")),IF(Personalize!$E$59=TRUE,(((VLOOKUP($C13,'Filtered-P'!$A$1:$AD$700,27,FALSE))-'Filtered-P'!$AF$33)/'Filtered-P'!$AG$33),""),IF(Personalize!$E$63=TRUE,(((VLOOKUP($C13,Filtered!$A$1:$AZ$700,35,FALSE))-Filtered!$AK$48)/(-1*Filtered!$AL$48)),"")),"") ->  | AJ13: =IFERROR(IF((OR($D13="RP",$D13="SP")),VLOOKUP($C13,'Filtered-P'!$A$1:$P$700,2,FALSE),""),"") ->  | AK13: =IFERROR(IF((OR($D13="RP",$D13="SP")),VLOOKUP($C13,'Filtered-P'!$A$1:$P$700,9,FALSE),""),"") ->  | AL13: =IFERROR(IF((OR($D13="RP",$D13="SP")),VLOOKUP($C13,'Filtered-P'!$A$1:$P$700,7,FALSE),""),"") ->  | AM13: =IFERROR(IF((OR($D13="RP",$D13="SP")),VLOOKUP($C13,'Filtered-P'!$A$1:$P$700,10,FALSE),""),"") ->  | AN13: =IFERROR(IF((OR($D13="RP",$D13="SP")),VLOOKUP($C13,'Filtered-P'!$A$1:$P$700,11,FALSE),""),"") ->  | AO13: =IFERROR(IF((OR($D13="RP",$D13="SP")),"",VLOOKUP($C13,Filtered!$A$1:$X$700,16,FALSE)),"") -> 0.2956298735 | AP13: =IFERROR(IF((OR($D13="RP",$D13="SP")),"",VLOOKUP($C13,Filtered!$A$1:$X$700,10,FALSE)),"") -> 7.871266078 | AQ13: =IFERROR(IF((OR($D13="RP",$D13="SP")),"",VLOOKUP($C13,Filtered!$A$1:$X$700,11,FALSE)),"") -> 56.0632043 | AR13: =IFERROR(IF((OR($D13="RP",$D13="SP")),"",VLOOKUP($C13,Filtered!$A$1:$X$700,5,FALSE)),"") -> 83.47534217 | AS13: =IFERROR(IF((OR($D13="RP",$D13="SP")),"",VLOOKUP($C13,Filtered!$A$1:$X$700,12,FALSE)),"") -> 40.4539399 | AT13: Due for slight decline in AVG | AU13: =IF(ISBLANK(A13),0,1) -> 0 | AV13: =IF(M13="",0,1) -> 1 | AW13: =A13 -> 0 | AX13: =IF(D13="C",1,IF(D13="1B",2,IF(D13="2B",3,IF(D13="3B",4,IF(D13="SS",5,IF(D13="CI",6,IF(D13="MI",7,IF(D13="OF",11,IF(D13="LF",8,IF(D13="CF",9,IF(D13="RF",10,IF(D13="DH",12,IF(D13="SP",13,IF(D13="RP",14,IF(D13="P",15,16))))))))))))))) -> 3 | AY13: =VLOOKUP(C13,'Starter Calc'!$B$2:$BS$700,70,FALSE) -> Bench | AZ13: =VLOOKUP(C13,'Starter Calc'!$B$2:$AO$700,40,FALSE) -> Yes | BA13: =IFERROR(IF(ISTEXT($A13),"",IF((OR($D13="RP",$D13="SP")),ABS(VLOOKUP(D13,'Filtered-P'!$AE$3:$AI$4,5,FALSE))+M13,ABS(VLOOKUP(D13,Filtered!$AJ$3:$AN$14,5,FALSE))+M13)),"") -> 9.327829472 | BB13: =IFERROR(BA13+ABS($BA$4),"") -> 10.1991044 | BC13: =IF(AND($A13<>"",$B13<>""),B13,"N") -> N | BD13: =IFERROR(VLOOKUP($C13,'ADP-Rank'!$A$2:$AB$620,25,FALSE),TRUE) -> TRUE | BE13: =IFERROR((BB13-BB$3)^2,"") -> 36.09322696 | BF13: =VLOOKUP(C13,'Starter Calc'!$B$2:$CD$700,71,FALSE) -> 2B.Yes
C14: Jose Bautista | D14: OF | E14: =IFERROR(IF(VLOOKUP(C14,'Starter Calc'!$B$2:$E$700,4,FALSE)="","",VLOOKUP(C14,'Starter Calc'!$B$2:$E$700,4,FALSE)),"") -> ,CF,RF | F14: =IFERROR(VLOOKUP($C14,'ADP-Rank'!$A$2:$G$620,5,FALSE),"") -> TOR | G14: =IFERROR(VLOOKUP($C14,'ADP-Rank'!$A$2:$X$620,6,FALSE),"") -> 34 | H14: =IFERROR(IF(ISBLANK($B14),IF(BF14="Rostered",1,(IF((OR($D14="RP",$D14="SP")),ROUND((N14*($BB$1/$BD$1))+1,0),ROUND((N14*($BB$2/$BD$2))+1,0)))),""),"") -> 35 | I14: =VLOOKUP($C14,'ADP-Rank'!$A$2:$AB$620,26,FALSE) -> 9 | J14: =IF(ISBLANK($B14),IFERROR(CHOOSE(Personalize!$E$31,(VLOOKUP(C14,'ADP-Rank'!$A$2:$Z$620,7,FALSE)*(Personalize!$A$3)+1),(VLOOKUP(C14,'ADP-Rank'!$A$2:$Z$620,8,FALSE)*(Personalize!$A$3)+1),(VLOOKUP(C14,'ADP-Rank'!$A$2:$Z$620,9,FALSE)*(Personalize!$A$3)+1),(VLOOKUP(C14,'ADP-Rank'!$A$2:$AA$620,10,FALSE)*(Personalize!$A$3)+1),(VLOOKUP(C14,'ADP-Rank'!$A$2:$AA$620,11,FALSE)*(Personalize!$A$3)+1),(VLOOKUP(C14,'ADP-Rank'!$A$2:$AA$620,12,FALSE)*(Personalize!$A$3)+1),(VLOOKUP(C14,'ADP-Rank'!$A$2:$AA$620,13,FALSE)*(Personalize!$A$3)+1),(VLOOKUP(C14,'ADP-Rank'!$A$2:$AA$620,14,FALSE)*(Personalize!$A$3)+1),(VLOOKUP(C14,'ADP-Rank'!$A$2:$AA$620,15,FALSE)*(Personalize!$A$3)+1),(VLOOKUP(C14,'ADP-Rank'!$A$2:$AG$620,28,FALSE)*(Personalize!$A$3)+1)),""),"") -> 37 | K14: =IF(ISBLANK($B14),IFERROR(CHOOSE(Personalize!$E$31,(VLOOKUP(C14,'ADP-Rank'!$A$2:$Z$620,7,FALSE)*(Personalize!$A$3-$AZ$4)+1),(VLOOKUP(C14,'ADP-Rank'!$A$2:$Z$620,8,FALSE)*(Personalize!$A$3-$AZ$4)+1),(VLOOKUP(C14,'ADP-Rank'!$A$2:$Z$620,9,FALSE)*(Personalize!$A$3-$AZ$4)+1),(VLOOKUP(C14,'ADP-Rank'!$A$2:$AA$620,10,FALSE)*(Personalize!$A$3-$AZ$4)+1),(VLOOKUP(C14,'ADP-Rank'!$A$2:$AA$620,11,FALSE)*(Personalize!$A$3-$AZ$4)+1),(VLOOKUP(C14,'ADP-Rank'!$A$2:$AA$620,12,FALSE)*(Personalize!$A$3-$AZ$4)+1),(VLOOKUP(C14,'ADP-Rank'!$A$2:$AA$620,13,FALSE)*(Personalize!$A$3-$AZ$4)+1),(VLOOKUP(C14,'ADP-Rank'!$A$2:$AA$620,14,FALSE)*(Personalize!$A$3-$AZ$4)+1),(VLOOKUP(C14,'ADP-Rank'!$A$2:$AA$620,15,FALSE)*(Personalize!$A$3-$AZ$4)+1),(VLOOKUP(C14,'ADP-Rank'!$A$2:$AG$620,28,FALSE)*(Personalize!$A$3-$AZ$4)+1)),""),"") -> 37 | L14: =IFERROR(RANK($M14,$M$7:$M$746,0),"") -> 13 | M14: =IF((SUM(O14:AI14)=0),"",SUM(O14:AI14)) -> 5.773835484 | N14: =IFERROR(IF(ISTEXT($A14),"",IF((OR($D14="RP",$D14="SP")),ABS(VLOOKUP(D14,'Filtered-P'!$AE$3:$AI$4,5,FALSE))+M14,ABS(VLOOKUP(D14,Filtered!$AJ$3:$AN$14,5,FALSE))+M14)),"") -> 8.871677642 | O14: =IFERROR(IF((OR($D14="RP",$D14="SP")),IF(Personalize!$E$10=TRUE,(((VLOOKUP($C14,'Filtered-P'!$A$1:$P$700,2,FALSE))-'Filtered-P'!$AF$8)/'Filtered-P'!$AG$8),""),IF(Personalize!$E$4=TRUE,(((VLOOKUP($C14,Filtered!$A$1:$AD$700,22,FALSE))-Filtered!$AK$35)/Filtered!$AL$35),"")),"") -> 0.04464830126 | P14: =IFERROR(IF((OR($D14="RP",$D14="SP")),IF(Personalize!$E$12=TRUE,(((VLOOKUP($C14,'Filtered-P'!$A$1:$P$700,9,FALSE))-'Filtered-P'!$AF$15)/'Filtered-P'!$AG$15),""),IF(Personalize!$E$3=TRUE,(((VLOOKUP($C14,Filtered!$A$1:$AB$700,10,FALSE))-Filtered!$AK$25)/Filtered!$AL$25),"")),"") -> 2.184730151 | Q14: =IFERROR(IF((OR($D14="RP",$D14="SP")),IF(Personalize!$E$11=TRUE,(((VLOOKUP($C14,'Filtered-P'!$A$1:$P$700,7,FALSE))-'Filtered-P'!$AF$13)/'Filtered-P'!$AG$13),""),IF(Personalize!$E$2=TRUE,(((VLOOKUP($C14,Filtered!$A$1:$AB$700,5,FALSE))-Filtered!$AK$20)/Filtered!$AL$20),"")),"") -> 2.069647571 | R14: =IFERROR(IF((OR($D14="RP",$D14="SP")),IF(Personalize!$E$13=TRUE,(((VLOOKUP($C14,'Filtered-P'!$A$1:$P$700,13,FALSE))-'Filtered-P'!$AF$19)/'Filtered-P'!$AG$19),""),IF(Personalize!$E$5=TRUE,(((VLOOKUP($C14,Filtered!$A$1:$AB$700,11,FALSE))-Filtered!$AK$26)/Filtered!$AL$26),"")),"") -> 1.897508081 | S14: =IFERROR(IF((OR($D14="RP",$D14="SP")),IF(Personalize!$E$14=TRUE,(((VLOOKUP($C14,'Filtered-P'!$A$1:$P$700,14,FALSE))-'Filtered-P'!$AF$20)/'Filtered-P'!$AG$20),""),IF(Personalize!$E$6=TRUE,(((VLOOKUP($C14,Filtered!$A$1:$AB$700,12,FALSE))-Filtered!$AK$27)/Filtered!$AL$27),"")),"") -> -0.4226986201 | T14: =IFERROR(IF((OR($D14="RP",$D14="SP")),IF(Personalize!$E$16=TRUE,(((VLOOKUP($C14,'Filtered-P'!$A$1:$P$700,3,FALSE))-'Filtered-P'!$AF$9)/'Filtered-P'!$AG$9),""),IF(Personalize!$E$7=TRUE,(((VLOOKUP($C14,Filtered!$A$1:$AD$700,24,FALSE))-Filtered!$AK$37)/Filtered!$AL$37),"")),"") ->  | U14: =IFERROR(IF((OR($D14="RP",$D14="SP")),IF(Personalize!$E$15=TRUE,(((VLOOKUP($C14,'Filtered-P'!$A$1:$P$700,15,FALSE))-'Filtered-P'!$AF$21)/'Filtered-P'!$AG$21),""),IF(Personalize!$E$8=TRUE,(((VLOOKUP($C14,Filtered!$A$1:$AD$700,23,FALSE))-Filtered!$AK$36)/Filtered!$AL$36),"")),"") ->  | V14: =IFERROR(IF((OR($D14="RP",$D14="SP")),IF(Personalize!$E$17=TRUE,(((VLOOKUP($C14,'Filtered-P'!$A$1:$P$700,16,FALSE))-'Filtered-P'!$AF$22)/'Filtered-P'!$AG$22),""),IF(Personalize!$E$9=TRUE,(((VLOOKUP($C14,Filtered!$A$1:$AD$700,25,FALSE))-Filtered!$AK$38)/Filtered!$AL$38),"")),"") ->  | W14: =IFERROR(IF((OR($D14="RP",$D14="SP")),IF(Personalize!$E$37=TRUE,(((VLOOKUP($C14,'Filtered-P'!$A$1:$Z$700,17,FALSE))-'Filtered-P'!$AF$25)/'Filtered-P'!$AG$25),""),IF(Personalize!$E$39=TRUE,(((VLOOKUP($C14,Filtered!$A$1:$X$700,6,FALSE))-Filtered!$AK$21)/Filtered!$AL$21),"")),"") ->  | X14: =IFERROR(IF((OR($D14="RP",$D14="SP")),IF(Personalize!$E$38=TRUE,(((VLOOKUP($C14,'Filtered-P'!$A$1:$Z$700,18,FALSE))-'Filtered-P'!$AF$26)/'Filtered-P'!$AG$26),""),IF(Personalize!$E$40=TRUE,(((VLOOKUP($C14,Filtered!$A$1:$X$700,14,FALSE))-Filtered!$AK$29)/Filtered!$AL$29),"")),"") ->  | Y14: =IFERROR(IF((OR($D14="RP",$D14="SP")),IF(Personalize!$E$45=TRUE,(((VLOOKUP($C14,'Filtered-P'!$A$1:$Z$700,4,FALSE))-'Filtered-P'!$AF$10)/'Filtered-P'!$AG$10),""),IF(Personalize!$E$41=TRUE,(((VLOOKUP($C14,Filtered!$A$1:$AD$700,20,FALSE))-Filtered!$AK$43)/Filtered!$AL$43),"")),"") ->  | Z14: =IFERROR(IF((OR($D14="RP",$D14="SP")),IF(Personalize!$E$46=TRUE,(((VLOOKUP($C14,'Filtered-P'!$A$1:$Z$700,19,FALSE))-'Filtered-P'!$AF$27)/'Filtered-P'!$AG$27),""),IF(Personalize!$E$44=TRUE,(((VLOOKUP($C14,Filtered!$A$1:$AD$700,21,FALSE))-Filtered!$AK$44)/Filtered!$AL$44),"")),"") ->  | AA14: =IFERROR(IF((OR($D14="RP",$D14="SP")),IF(Personalize!$E$47=TRUE,(((VLOOKUP($C14,'Filtered-P'!$A$1:$Z$700,6,FALSE))-'Filtered-P'!$AF$12)/'Filtered-P'!$AG$12),""),IF(Personalize!$E$42=TRUE,(((VLOOKUP($C14,Filtered!$A$1:$AD$700,8,FALSE))-Filtered!$AK$23)/Filtered!$AL$23),"")),"") ->  | AB14: =IFERROR(IF((OR($D14="RP",$D14="SP")),IF(Personalize!$E$48=TRUE,(((VLOOKUP($C14,'Filtered-P'!$A$1:$Z$700,5,FALSE))-'Filtered-P'!$AF$11)/'Filtered-P'!$AG$11),""),IF(Personalize!$E$43=TRUE,(((VLOOKUP($C14,Filtered!$A$1:$AD$700,9,FALSE))-Filtered!$AK$24)/Filtered!$AL$24),"")),"") ->  | AC14: =IFERROR(IF((OR($D14="RP",$D14="SP")),IF(Personalize!$E$52=TRUE,(((VLOOKUP($C14,'Filtered-P'!$A$1:$AD$700,21,FALSE))-'Filtered-P'!$AF$29)/(-1*'Filtered-P'!$AG$29)),""),IF(Personalize!$E$49=TRUE,(((VLOOKUP($C14,Filtered!$A$1:$AF$628,30,FALSE))-Filtered!$AK$45)/Filtered!$AL$45),"")),"") ->  | AD14: =IFERROR(IF((OR($D14="RP",$D14="SP")),IF(Personalize!$E$53=TRUE,(((VLOOKUP($C14,'Filtered-P'!$A$1:$AD$700,23,FALSE))-'Filtered-P'!$AF$31)/(-1*'Filtered-P'!$AG$31)),""),IF(Personalize!$E$50=TRUE,(((VLOOKUP($C14,Filtered!$A$1:$AF$628,31,FALSE))-Filtered!$AK$46)/Filtered!$AL$46),"")),"") ->  | AE14: =IFERROR(IF((OR($D14="RP",$D14="SP")),IF(Personalize!$E$54=TRUE,(((VLOOKUP($C14,'Filtered-P'!$A$1:$AD$700,24,FALSE))-'Filtered-P'!$AF$32)/'Filtered-P'!$AG$32),""),IF(Personalize!$E$51=TRUE,(((VLOOKUP($C14,Filtered!$A$1:$AF$628,15,FALSE))-Filtered!$AK$30)/(-1*Filtered!$AL$30)),"")),"") ->  | AF14: =IFERROR(IF((OR($D14="RP",$D14="SP")),IF(Personalize!$E$56=TRUE,(((VLOOKUP($C14,'Filtered-P'!$A$1:$AD$700,29,FALSE))-'Filtered-P'!$AF$35)/'Filtered-P'!$AG$35),""),IF(Personalize!$E$60=TRUE,(((VLOOKUP($C14,Filtered!$A$1:$AF$700,7,FALSE))-Filtered!$AK$22)/Filtered!$AL$22),"")),"") ->  | AG14: =IFERROR(IF((OR($D14="RP",$D14="SP")),IF(Personalize!$E$57=TRUE,(((VLOOKUP($C14,'Filtered-P'!$A$1:$AD$700,28,FALSE))-'Filtered-P'!$AF$34)/'Filtered-P'!$AG$34),""),IF(Personalize!$E$61=TRUE,(((VLOOKUP($C14,Filtered!$A$1:$AZ$700,34,FALSE))-Filtered!$AK$47)/Filtered!$AL$47),"")),"") ->  | AH14: =IFERROR(IF((OR($D14="RP",$D14="SP")),IF(Personalize!$E$58=TRUE,(((VLOOKUP($C14,'Filtered-P'!$A$1:$Z$700,8,FALSE))-'Filtered-P'!$AF$14)/'Filtered-P'!$AG$14),""),IF(Personalize!$E$62=TRUE,(((VLOOKUP($C14,Filtered!$A$1:$AF$700,13,FALSE))-Filtered!$AK$28)/(-1*Filtered!$AL$28)),"")),"") ->  | AI14: =IFERROR(IF((OR($D14="RP",$D14="SP")),IF(Personalize!$E$59=TRUE,(((VLOOKUP($C14,'Filtered-P'!$A$1:$AD$700,27,FALSE))-'Filtered-P'!$AF$33)/'Filtered-P'!$AG$33),""),IF(Personalize!$E$63=TRUE,(((VLOOKUP($C14,Filtered!$A$1:$AZ$700,35,FALSE))-Filtered!$AK$48)/(-1*Filtered!$AL$48)),"")),"") ->  | AJ14: =IFERROR(IF((OR($D14="RP",$D14="SP")),VLOOKUP($C14,'Filtered-P'!$A$1:$P$700,2,FALSE),""),"") ->  | AK14: =IFERROR(IF((OR($D14="RP",$D14="SP")),VLOOKUP($C14,'Filtered-P'!$A$1:$P$700,9,FALSE),""),"") ->  | AL14: =IFERROR(IF((OR($D14="RP",$D14="SP")),VLOOKUP($C14,'Filtered-P'!$A$1:$P$700,7,FALSE),""),"") ->  | AM14: =IFERROR(IF((OR($D14="RP",$D14="SP")),VLOOKUP($C14,'Filtered-P'!$A$1:$P$700,10,FALSE),""),"") ->  | AN14: =IFERROR(IF((OR($D14="RP",$D14="SP")),VLOOKUP($C14,'Filtered-P'!$A$1:$P$700,11,FALSE),""),"") ->  | AO14: =IFERROR(IF((OR($D14="RP",$D14="SP")),"",VLOOKUP($C14,Filtered!$A$1:$X$700,16,FALSE)),"") -> 0.2645338403 | AP14: =IFERROR(IF((OR($D14="RP",$D14="SP")),"",VLOOKUP($C14,Filtered!$A$1:$X$700,10,FALSE)),"") -> 31.91987075 | AQ14: =IFERROR(IF((OR($D14="RP",$D14="SP")),"",VLOOKUP($C14,Filtered!$A$1:$X$700,11,FALSE)),"") -> 90.88998566 | AR14: =IFERROR(IF((OR($D14="RP",$D14="SP")),"",VLOOKUP($C14,Filtered!$A$1:$X$700,5,FALSE)),"") -> 88.98882457 | AS14: =IFERROR(IF((OR($D14="RP",$D14="SP")),"",VLOOKUP($C14,Filtered!$A$1:$X$700,12,FALSE)),"") -> 6.368988422 | AU14: =IF(ISBLANK(A14),0,1) -> 0 | AV14: =IF(M14="",0,1) -> 1 | AW14: =A14 -> 0 | AX14: =IF(D14="C",1,IF(D14="1B",2,IF(D14="2B",3,IF(D14="3B",4,IF(D14="SS",5,IF(D14="CI",6,IF(D14="MI",7,IF(D14="OF",11,IF(D14="LF",8,IF(D14="CF",9,IF(D14="RF",10,IF(D14="DH",12,IF(D14="SP",13,IF(D14="RP",14,IF(D14="P",15,16))))))))))))))) -> 11 | AY14: =VLOOKUP(C14,'Starter Calc'!$B$2:$BS$700,70,FALSE) -> Bench | AZ14: =VLOOKUP(C14,'Starter Calc'!$B$2:$AO$700,40,FALSE) -> Yes | BA14: =IFERROR(IF(ISTEXT($A14),"",IF((OR($D14="RP",$D14="SP")),ABS(VLOOKUP(D14,'Filtered-P'!$AE$3:$AI$4,5,FALSE))+M14,ABS(VLOOKUP(D14,Filtered!$AJ$3:$AN$14,5,FALSE))+M14)),"") -> 8.871677642 | BB14: =IFERROR(BA14+ABS($BA$4),"") -> 9.742952571 | BC14: =IF(AND($A14<>"",$B14<>""),B14,"N") -> N | BD14: =IFERROR(VLOOKUP($C14,'ADP-Rank'!$A$2:$AB$620,25,FALSE),TRUE) -> TRUE | BE14: =IFERROR((BB14-BB$3)^2,"") -> 30.82039646 | BF14: =VLOOKUP(C14,'Starter Calc'!$B$2:$CD$700,71,FALSE) -> OF.Yes
C15: Paul Goldschmidt | D15: 1B | E15: =IFERROR(IF(VLOOKUP(C15,'Starter Calc'!$B$2:$E$700,4,FALSE)="","",VLOOKUP(C15,'Starter Calc'!$B$2:$E$700,4,FALSE)),"") -> ,, | F15: =IFERROR(VLOOKUP($C15,'ADP-Rank'!$A$2:$G$620,5,FALSE),"") -> ARI | G15: =IFERROR(VLOOKUP($C15,'ADP-Rank'!$A$2:$X$620,6,FALSE),"") -> 27 | H15: =IFERROR(IF(ISBLANK($B15),IF(BF15="Rostered",1,(IF((OR($D15="RP",$D15="SP")),ROUND((N15*($BB$1/$BD$1))+1,0),ROUND((N15*($BB$2/$BD$2))+1,0)))),""),"") -> 32 | I15: =VLOOKUP($C15,'ADP-Rank'!$A$2:$AB$620,26,FALSE) -> 5 | J15: =IF(ISBLANK($B15),IFERROR(CHOOSE(Personalize!$E$31,(VLOOKUP(C15,'ADP-Rank'!$A$2:$Z$620,7,FALSE)*(Personalize!$A$3)+1),(VLOOKUP(C15,'ADP-Rank'!$A$2:$Z$620,8,FALSE)*(Personalize!$A$3)+1),(VLOOKUP(C15,'ADP-Rank'!$A$2:$Z$620,9,FALSE)*(Personalize!$A$3)+1),(VLOOKUP(C15,'ADP-Rank'!$A$2:$AA$620,10,FALSE)*(Personalize!$A$3)+1),(VLOOKUP(C15,'ADP-Rank'!$A$2:$AA$620,11,FALSE)*(Personalize!$A$3)+1),(VLOOKUP(C15,'ADP-Rank'!$A$2:$AA$620,12,FALSE)*(Personalize!$A$3)+1),(VLOOKUP(C15,'ADP-Rank'!$A$2:$AA$620,13,FALSE)*(Personalize!$A$3)+1),(VLOOKUP(C15,'ADP-Rank'!$A$2:$AA$620,14,FALSE)*(Personalize!$A$3)+1),(VLOOKUP(C15,'ADP-Rank'!$A$2:$AA$620,15,FALSE)*(Personalize!$A$3)+1),(VLOOKUP(C15,'ADP-Rank'!$A$2:$AG$620,28,FALSE)*(Personalize!$A$3)+1)),""),"") -> 39 | K15: =IF(ISBLANK($B15),IFERROR(CHOOSE(Personalize!$E$31,(VLOOKUP(C15,'ADP-Rank'!$A$2:$Z$620,7,FALSE)*(Personalize!$A$3-$AZ$4)+1),(VLOOKUP(C15,'ADP-Rank'!$A$2:$Z$620,8,FALSE)*(Personalize!$A$3-$AZ$4)+1),(VLOOKUP(C15,'ADP-Rank'!$A$2:$Z$620,9,FALSE)*(Personalize!$A$3-$AZ$4)+1),(VLOOKUP(C15,'ADP-Rank'!$A$2:$AA$620,10,FALSE)*(Personalize!$A$3-$AZ$4)+1),(VLOOKUP(C15,'ADP-Rank'!$A$2:$AA$620,11,FALSE)*(Personalize!$A$3-$AZ$4)+1),(VLOOKUP(C15,'ADP-Rank'!$A$2:$AA$620,12,FALSE)*(Personalize!$A$3-$AZ$4)+1),(VLOOKUP(C15,'ADP-Rank'!$A$2:$AA$620,13,FALSE)*(Personalize!$A$3-$AZ$4)+1),(VLOOKUP(C15,'ADP-Rank'!$A$2:$AA$620,14,FALSE)*(Personalize!$A$3-$AZ$4)+1),(VLOOKUP(C15,'ADP-Rank'!$A$2:$AA$620,15,FALSE)*(Personalize!$A$3-$AZ$4)+1),(VLOOKUP(C15,'ADP-Rank'!$A$2:$AG$620,28,FALSE)*(Personalize!$A$3-$AZ$4)+1)),""),"") -> 39 | L15: =IFERROR(RANK($M15,$M$7:$M$746,0),"") -> 12 | M15: =IF((SUM(O15:AI15)=0),"",SUM(O15:AI15)) -> 5.85136446 | N15: =IFERROR(IF(ISTEXT($A15),"",IF((OR($D15="RP",$D15="SP")),ABS(VLOOKUP(D15,'Filtered-P'!$AE$3:$AI$4,5,FALSE))+M15,ABS(VLOOKUP(D15,Filtered!$AJ$3:$AN$14,5,FALSE))+M15)),"") -> 8.038560844 | O15: =IFERROR(IF((OR($D15="RP",$D15="SP")),IF(Personalize!$E$10=TRUE,(((VLOOKUP($C15,'Filtered-P'!$A$1:$P$700,2,FALSE))-'Filtered-P'!$AF$8)/'Filtered-P'!$AG$8),""),IF(Personalize!$E$4=TRUE,(((VLOOKUP($C15,Filtered!$A$1:$AD$700,22,FALSE))-Filtered!$AK$35)/Filtered!$AL$35),"")),"") -> 1.049441558 | P15: =IFERROR(IF((OR($D15="RP",$D15="SP")),IF(Personalize!$E$12=TRUE,(((VLOOKUP($C15,'Filtered-P'!$A$1:$P$700,9,FALSE))-'Filtered-P'!$AF$15)/'Filtered-P'!$AG$15),""),IF(Personalize!$E$3=TRUE,(((VLOOKUP($C15,Filtered!$A$1:$AB$700,10,FALSE))-Filtered!$AK$25)/Filtered!$AL$25),"")),"") -> 1.468214147 | Q15: =IFERROR(IF((OR($D15="RP",$D15="SP")),IF(Personalize!$E$11=TRUE,(((VLOOKUP($C15,'Filtered-P'!$A$1:$P$700,7,FALSE))-'Filtered-P'!$AF$13)/'Filtered-P'!$AG$13),""),IF(Personalize!$E$2=TRUE,(((VLOOKUP($C15,Filtered!$A$1:$AB$700,5,FALSE))-Filtered!$AK$20)/Filtered!$AL$20),"")),"") -> 1.518405825 | R15: =IFERROR(IF((OR($D15="RP",$D15="SP")),IF(Personalize!$E$13=TRUE,(((VLOOKUP($C15,'Filtered-P'!$A$1:$P$700,13,FALSE))-'Filtered-P'!$AF$19)/'Filtered-P'!$AG$19),""),IF(Personalize!$E$5=TRUE,(((VLOOKUP($C15,Filtered!$A$1:$AB$700,11,FALSE))-Filtered!$AK$26)/Filtered!$AL$26),"")),"") -> 1.566743285 | S15: =IFERROR(IF((OR($D15="RP",$D15="SP")),IF(Personalize!$E$14=TRUE,(((VLOOKUP($C15,'Filtered-P'!$A$1:$P$700,14,FALSE))-'Filtered-P'!$AF$20)/'Filtered-P'!$AG$20),""),IF(Personalize!$E$6=TRUE,(((VLOOKUP($C15,Filtered!$A$1:$AB$700,12,FALSE))-Filtered!$AK$27)/Filtered!$AL$27),"")),"") -> 0.2485596453 | T15: =IFERROR(IF((OR($D15="RP",$D15="SP")),IF(Personalize!$E$16=TRUE,(((VLOOKUP($C15,'Filtered-P'!$A$1:$P$700,3,FALSE))-'Filtered-P'!$AF$9)/'Filtered-P'!$AG$9),""),IF(Personalize!$E$7=TRUE,(((VLOOKUP($C15,Filtered!$A$1:$AD$700,24,FALSE))-Filtered!$AK$37)/Filtered!$AL$37),"")),"") ->  | U15: =IFERROR(IF((OR($D15="RP",$D15="SP")),IF(Personalize!$E$15=TRUE,(((VLOOKUP($C15,'Filtered-P'!$A$1:$P$700,15,FALSE))-'Filtered-P'!$AF$21)/'Filtered-P'!$AG$21),""),IF(Personalize!$E$8=TRUE,(((VLOOKUP($C15,Filtered!$A$1:$AD$700,23,FALSE))-Filtered!$AK$36)/Filtered!$AL$36),"")),"") ->  | V15: =IFERROR(IF((OR($D15="RP",$D15="SP")),IF(Personalize!$E$17=TRUE,(((VLOOKUP($C15,'Filtered-P'!$A$1:$P$700,16,FALSE))-'Filtered-P'!$AF$22)/'Filtered-P'!$AG$22),""),IF(Personalize!$E$9=TRUE,(((VLOOKUP($C15,Filtered!$A$1:$AD$700,25,FALSE))-Filtered!$AK$38)/Filtered!$AL$38),"")),"") ->  | W15: =IFERROR(IF((OR($D15="RP",$D15="SP")),IF(Personalize!$E$37=TRUE,(((VLOOKUP($C15,'Filtered-P'!$A$1:$Z$700,17,FALSE))-'Filtered-P'!$AF$25)/'Filtered-P'!$AG$25),""),IF(Personalize!$E$39=TRUE,(((VLOOKUP($C15,Filtered!$A$1:$X$700,6,FALSE))-Filtered!$AK$21)/Filtered!$AL$21),"")),"") ->  | X15: =IFERROR(IF((OR($D15="RP",$D15="SP")),IF(Personalize!$E$38=TRUE,(((VLOOKUP($C15,'Filtered-P'!$A$1:$Z$700,18,FALSE))-'Filtered-P'!$AF$26)/'Filtered-P'!$AG$26),""),IF(Personalize!$E$40=TRUE,(((VLOOKUP($C15,Filtered!$A$1:$X$700,14,FALSE))-Filtered!$AK$29)/Filtered!$AL$29),"")),"") ->  | Y15: =IFERROR(IF((OR($D15="RP",$D15="SP")),IF(Personalize!$E$45=TRUE,(((VLOOKUP($C15,'Filtered-P'!$A$1:$Z$700,4,FALSE))-'Filtered-P'!$AF$10)/'Filtered-P'!$AG$10),""),IF(Personalize!$E$41=TRUE,(((VLOOKUP($C15,Filtered!$A$1:$AD$700,20,FALSE))-Filtered!$AK$43)/Filtered!$AL$43),"")),"") ->  | Z15: =IFERROR(IF((OR($D15="RP",$D15="SP")),IF(Personalize!$E$46=TRUE,(((VLOOKUP($C15,'Filtered-P'!$A$1:$Z$700,19,FALSE))-'Filtered-P'!$AF$27)/'Filtered-P'!$AG$27),""),IF(Personalize!$E$44=TRUE,(((VLOOKUP($C15,Filtered!$A$1:$AD$700,21,FALSE))-Filtered!$AK$44)/Filtered!$AL$44),"")),"") ->  | AA15: =IFERROR(IF((OR($D15="RP",$D15="SP")),IF(Personalize!$E$47=TRUE,(((VLOOKUP($C15,'Filtered-P'!$A$1:$Z$700,6,FALSE))-'Filtered-P'!$AF$12)/'Filtered-P'!$AG$12),""),IF(Personalize!$E$42=TRUE,(((VLOOKUP($C15,Filtered!$A$1:$AD$700,8,FALSE))-Filtered!$AK$23)/Filtered!$AL$23),"")),"") ->  | AB15: =IFERROR(IF((OR($D15="RP",$D15="SP")),IF(Personalize!$E$48=TRUE,(((VLOOKUP($C15,'Filtered-P'!$A$1:$Z$700,5,FALSE))-'Filtered-P'!$AF$11)/'Filtered-P'!$AG$11),""),IF(Personalize!$E$43=TRUE,(((VLOOKUP($C15,Filtered!$A$1:$AD$700,9,FALSE))-Filtered!$AK$24)/Filtered!$AL$24),"")),"") ->  | AC15: =IFERROR(IF((OR($D15="RP",$D15="SP")),IF(Personalize!$E$52=TRUE,(((VLOOKUP($C15,'Filtered-P'!$A$1:$AD$700,21,FALSE))-'Filtered-P'!$AF$29)/(-1*'Filtered-P'!$AG$29)),""),IF(Personalize!$E$49=TRUE,(((VLOOKUP($C15,Filtered!$A$1:$AF$628,30,FALSE))-Filtered!$AK$45)/Filtered!$AL$45),"")),"") ->  | AD15: =IFERROR(IF((OR($D15="RP",$D15="SP")),IF(Personalize!$E$53=TRUE,(((VLOOKUP($C15,'Filtered-P'!$A$1:$AD$700,23,FALSE))-'Filtered-P'!$AF$31)/(-1*'Filtered-P'!$AG$31)),""),IF(Personalize!$E$50=TRUE,(((VLOOKUP($C15,Filtered!$A$1:$AF$628,31,FALSE))-Filtered!$AK$46)/Filtered!$AL$46),"")),"") ->  | AE15: =IFERROR(IF((OR($D15="RP",$D15="SP")),IF(Personalize!$E$54=TRUE,(((VLOOKUP($C15,'Filtered-P'!$A$1:$AD$700,24,FALSE))-'Filtered-P'!$AF$32)/'Filtered-P'!$AG$32),""),IF(Personalize!$E$51=TRUE,(((VLOOKUP($C15,Filtered!$A$1:$AF$628,15,FALSE))-Filtered!$AK$30)/(-1*Filtered!$AL$30)),"")),"") ->  | AF15: =IFERROR(IF((OR($D15="RP",$D15="SP")),IF(Personalize!$E$56=TRUE,(((VLOOKUP($C15,'Filtered-P'!$A$1:$AD$700,29,FALSE))-'Filtered-P'!$AF$35)/'Filtered-P'!$AG$35),""),IF(Personalize!$E$60=TRUE,(((VLOOKUP($C15,Filtered!$A$1:$AF$700,7,FALSE))-Filtered!$AK$22)/Filtered!$AL$22),"")),"") ->  | AG15: =IFERROR(IF((OR($D15="RP",$D15="SP")),IF(Personalize!$E$57=TRUE,(((VLOOKUP($C15,'Filtered-P'!$A$1:$AD$700,28,FALSE))-'Filtered-P'!$AF$34)/'Filtered-P'!$AG$34),""),IF(Personalize!$E$61=TRUE,(((VLOOKUP($C15,Filtered!$A$1:$AZ$700,34,FALSE))-Filtered!$AK$47)/Filtered!$AL$47),"")),"") ->  | AH15: =IFERROR(IF((OR($D15="RP",$D15="SP")),IF(Personalize!$E$58=TRUE,(((VLOOKUP($C15,'Filtered-P'!$A$1:$Z$700,8,FALSE))-'Filtered-P'!$AF$14)/'Filtered-P'!$AG$14),""),IF(Personalize!$E$62=TRUE,(((VLOOKUP($C15,Filtered!$A$1:$AF$700,13,FALSE))-Filtered!$AK$28)/(-1*Filtered!$AL$28)),"")),"") ->  | AI15: =IFERROR(IF((OR($D15="RP",$D15="SP")),IF(Personalize!$E$59=TRUE,(((VLOOKUP($C15,'Filtered-P'!$A$1:$AD$700,27,FALSE))-'Filtered-P'!$AF$33)/'Filtered-P'!$AG$33),""),IF(Personalize!$E$63=TRUE,(((VLOOKUP($C15,Filtered!$A$1:$AZ$700,35,FALSE))-Filtered!$AK$48)/(-1*Filtered!$AL$48)),"")),"") ->  | AJ15: =IFERROR(IF((OR($D15="RP",$D15="SP")),VLOOKUP($C15,'Filtered-P'!$A$1:$P$700,2,FALSE),""),"") ->  | AK15: =IFERROR(IF((OR($D15="RP",$D15="SP")),VLOOKUP($C15,'Filtered-P'!$A$1:$P$700,9,FALSE),""),"") ->  | AL15: =IFERROR(IF((OR($D15="RP",$D15="SP")),VLOOKUP($C15,'Filtered-P'!$A$1:$P$700,7,FALSE),""),"") ->  | AM15: =IFERROR(IF((OR($D15="RP",$D15="SP")),VLOOKUP($C15,'Filtered-P'!$A$1:$P$700,10,FALSE),""),"") ->  | AN15: =IFERROR(IF((OR($D15="RP",$D15="SP")),VLOOKUP($C15,'Filtered-P'!$A$1:$P$700,11,FALSE),""),"") ->  | AO15: =IFERROR(IF((OR($D15="RP",$D15="SP")),"",VLOOKUP($C15,Filtered!$A$1:$X$700,16,FALSE)),"") -> 0.2806371735 | AP15: =IFERROR(IF((OR($D15="RP",$D15="SP")),"",VLOOKUP($C15,Filtered!$A$1:$X$700,10,FALSE)),"") -> 26.99966709 | AQ15: =IFERROR(IF((OR($D15="RP",$D15="SP")),"",VLOOKUP($C15,Filtered!$A$1:$X$700,11,FALSE)),"") -> 86.56130106 | AR15: =IFERROR(IF((OR($D15="RP",$D15="SP")),"",VLOOKUP($C15,Filtered!$A$1:$X$700,5,FALSE)),"") -> 83.29260868 | AS15: =IFERROR(IF((OR($D15="RP",$D15="SP")),"",VLOOKUP($C15,Filtered!$A$1:$X$700,12,FALSE)),"") -> 12.43006964 | AU15: =IF(ISBLANK(A15),0,1) -> 0 | AV15: =IF(M15="",0,1) -> 1 | AW15: =A15 -> 0 | AX15: =IF(D15="C",1,IF(D15="1B",2,IF(D15="2B",3,IF(D15="3B",4,IF(D15="SS",5,IF(D15="CI",6,IF(D15="MI",7,IF(D15="OF",11,IF(D15="LF",8,IF(D15="CF",9,IF(D15="RF",10,IF(D15="DH",12,IF(D15="SP",13,IF(D15="RP",14,IF(D15="P",15,16))))))))))))))) -> 2 | AY15: =VLOOKUP(C15,'Starter Calc'!$B$2:$BS$700,70,FALSE) -> Bench | AZ15: =VLOOKUP(C15,'Starter Calc'!$B$2:$AO$700,40,FALSE) -> Yes | BA15: =IFERROR(IF(ISTEXT($A15),"",IF((OR($D15="RP",$D15="SP")),ABS(VLOOKUP(D15,'Filtered-P'!$AE$3:$AI$4,5,FALSE))+M15,ABS(VLOOKUP(D15,Filtered!$AJ$3:$AN$14,5,FALSE))+M15)),"") -> 8.038560844 | BB15: =IFERROR(BA15+ABS($BA$4),"") -> 8.909835773 | BC15: =IF(AND($A15<>"",$B15<>""),B15,"N") -> N | BD15: =IFERROR(VLOOKUP($C15,'ADP-Rank'!$A$2:$AB$620,25,FALSE),TRUE) -> TRUE | BE15: =IFERROR((BB15-BB$3)^2,"") -> 22.26419754 | BF15: =VLOOKUP(C15,'Starter Calc'!$B$2:$CD$700,71,FALSE) -> 1B.Yes
C16: Felix Hernandez | D16: SP | E16: =IFERROR(IF(VLOOKUP(C16,'Starter Calc'!$B$2:$E$700,4,FALSE)="","",VLOOKUP(C16,'Starter Calc'!$B$2:$E$700,4,FALSE)),"") -> ,, | F16: =IFERROR(VLOOKUP($C16,'ADP-Rank'!$A$2:$G$620,5,FALSE),"") -> SEA | G16: =IFERROR(VLOOKUP($C16,'ADP-Rank'!$A$2:$X$620,6,FALSE),"") -> 29 | H16: =IFERROR(IF(ISBLANK($B16),IF(BF16="Rostered",1,(IF((OR($D16="RP",$D16="SP")),ROUND((N16*($BB$1/$BD$1))+1,0),ROUND((N16*($BB$2/$BD$2))+1,0)))),""),"") -> 31 | I16: =VLOOKUP($C16,'ADP-Rank'!$A$2:$AB$620,26,FALSE) -> 12 | J16: =IF(ISBLANK($B16),IFERROR(CHOOSE(Personalize!$E$31,(VLOOKUP(C16,'ADP-Rank'!$A$2:$Z$620,7,FALSE)*(Personalize!$A$3)+1),(VLOOKUP(C16,'ADP-Rank'!$A$2:$Z$620,8,FALSE)*(Personalize!$A$3)+1),(VLOOKUP(C16,'ADP-Rank'!$A$2:$Z$620,9,FALSE)*(Personalize!$A$3)+1),(VLOOKUP(C16,'ADP-Rank'!$A$2:$AA$620,10,FALSE)*(Personalize!$A$3)+1),(VLOOKUP(C16,'ADP-Rank'!$A$2:$AA$620,11,FALSE)*(Personalize!$A$3)+1),(VLOOKUP(C16,'ADP-Rank'!$A$2:$AA$620,12,FALSE)*(Personalize!$A$3)+1),(VLOOKUP(C16,'ADP-Rank'!$A$2:$AA$620,13,FALSE)*(Personalize!$A$3)+1),(VLOOKUP(C16,'ADP-Rank'!$A$2:$AA$620,14,FALSE)*(Personalize!$A$3)+1),(VLOOKUP(C16,'ADP-Rank'!$A$2:$AA$620,15,FALSE)*(Personalize!$A$3)+1),(VLOOKUP(C16,'ADP-Rank'!$A$2:$AG$620,28,FALSE)*(Personalize!$A$3)+1)),""),"") -> 30 | K16: =IF(ISBLANK($B16),IFERROR(CHOOSE(Personalize!$E$31,(VLOOKUP(C16,'ADP-Rank'!$A$2:$Z$620,7,FALSE)*(Personalize!$A$3-$AZ$4)+1),(VLOOKUP(C16,'ADP-Rank'!$A$2:$Z$620,8,FALSE)*(Personalize!$A$3-$AZ$4)+1),(VLOOKUP(C16,'ADP-Rank'!$A$2:$Z$620,9,FALSE)*(Personalize!$A$3-$AZ$4)+1),(VLOOKUP(C16,'ADP-Rank'!$A$2:$AA$620,10,FALSE)*(Personalize!$A$3-$AZ$4)+1),(VLOOKUP(C16,'ADP-Rank'!$A$2:$AA$620,11,FALSE)*(Personalize!$A$3-$AZ$4)+1),(VLOOKUP(C16,'ADP-Rank'!$A$2:$AA$620,12,FALSE)*(Personalize!$A$3-$AZ$4)+1),(VLOOKUP(C16,'ADP-Rank'!$A$2:$AA$620,13,FALSE)*(Personalize!$A$3-$AZ$4)+1),(VLOOKUP(C16,'ADP-Rank'!$A$2:$AA$620,14,FALSE)*(Personalize!$A$3-$AZ$4)+1),(VLOOKUP(C16,'ADP-Rank'!$A$2:$AA$620,15,FALSE)*(Personalize!$A$3-$AZ$4)+1),(VLOOKUP(C16,'ADP-Rank'!$A$2:$AG$620,28,FALSE)*(Personalize!$A$3-$AZ$4)+1)),""),"") -> 30 | L16: =IFERROR(RANK($M16,$M$7:$M$746,0),"") -> 4 | M16: =IF((SUM(O16:AI16)=0),"",SUM(O16:AI16)) -> 8.168860413 | N16: =IFERROR(IF(ISTEXT($A16),"",IF((OR($D16="RP",$D16="SP")),ABS(VLOOKUP(D16,'Filtered-P'!$AE$3:$AI$4,5,FALSE))+M16,ABS(VLOOKUP(D16,Filtered!$AJ$3:$AN$14,5,FALSE))+M16)),"") -> 10.88833775 | O16: =IFERROR(IF((OR($D16="RP",$D16="SP")),IF(Personalize!$E$10=TRUE,(((VLOOKUP($C16,'Filtered-P'!$A$1:$P$700,2,FALSE))-'Filtered-P'!$AF$8)/'Filtered-P'!$AG$8),""),IF(Personalize!$E$4=TRUE,(((VLOOKUP($C16,Filtered!$A$1:$AD$700,22,FALSE))-Filtered!$AK$35)/Filtered!$AL$35),"")),"") -> 1.240410604 | P16: =IFERROR(IF((OR($D16="RP",$D16="SP")),IF(Personalize!$E$12=TRUE,(((VLOOKUP($C16,'Filtered-P'!$A$1:$P$700,9,FALSE))-'Filtered-P'!$AF$15)/'Filtered-P'!$AG$15),""),IF(Personalize!$E$3=TRUE,(((VLOOKUP($C16,Filtered!$A$1:$AB$700,10,FALSE))-Filtered!$AK$25)/Filtered!$AL$25),"")),"") -> -0.4771200697 | Q16: =IFERROR(IF((OR($D16="RP",$D16="SP")),IF(Personalize!$E$11=TRUE,(((VLOOKUP($C16,'Filtered-P'!$A$1:$P$700,7,FALSE))-'Filtered-P'!$AF$13)/'Filtered-P'!$AG$13),""),IF(Personalize!$E$2=TRUE,(((VLOOKUP($C16,Filtered!$A$1:$AB$700,5,FALSE))-Filtered!$AK$20)/Filtered!$AL$20),"")),"") -> 1.882178242 | R16: =IFERROR(IF((OR($D16="RP",$D16="SP")),IF(Personalize!$E$13=TRUE,(((VLOOKUP($C16,'Filtered-P'!$A$1:$P$700,13,FALSE))-'Filtered-P'!$AF$19)/'Filtered-P'!$AG$19),""),IF(Personalize!$E$5=TRUE,(((VLOOKUP($C16,Filtered!$A$1:$AB$700,11,FALSE))-Filtered!$AK$26)/Filtered!$AL$26),"")),"") -> 3.092608409 | S16: =IFERROR(IF((OR($D16="RP",$D16="SP")),IF(Personalize!$E$14=TRUE,(((VLOOKUP($C16,'Filtered-P'!$A$1:$P$700,14,FALSE))-'Filtered-P'!$AF$20)/'Filtered-P'!$AG$20),""),IF(Personalize!$E$6=TRUE,(((VLOOKUP($C16,Filtered!$A$1:$AB$700,12,FALSE))-Filtered!$AK$27)/Filtered!$AL$27),"")),"") -> 2.430783228 | T16: =IFERROR(IF((OR($D16="RP",$D16="SP")),IF(Personalize!$E$16=TRUE,(((VLOOKUP($C16,'Filtered-P'!$A$1:$P$700,3,FALSE))-'Filtered-P'!$AF$9)/'Filtered-P'!$AG$9),""),IF(Personalize!$E$7=TRUE,(((VLOOKUP($C16,Filtered!$A$1:$AD$700,24,FALSE))-Filtered!$AK$37)/Filtered!$AL$37),"")),"") ->  | U16: =IFERROR(IF((OR($D16="RP",$D16="SP")),IF(Personalize!$E$15=TRUE,(((VLOOKUP($C16,'Filtered-P'!$A$1:$P$700,15,FALSE))-'Filtered-P'!$AF$21)/'Filtered-P'!$AG$21),""),IF(Personalize!$E$8=TRUE,(((VLOOKUP($C16,Filtered!$A$1:$AD$700,23,FALSE))-Filtered!$AK$36)/Filtered!$AL$36),"")),"") ->  | V16: =IFERROR(IF((OR($D16="RP",$D16="SP")),IF(Personalize!$E$17=TRUE,(((VLOOKUP($C16,'Filtered-P'!$A$1:$P$700,16,FALSE))-'Filtered-P'!$AF$22)/'Filtered-P'!$AG$22),""),IF(Personalize!$E$9=TRUE,(((VLOOKUP($C16,Filtered!$A$1:$AD$700,25,FALSE))-Filtered!$AK$38)/Filtered!$AL$38),"")),"") ->  | W16: =IFERROR(IF((OR($D16="RP",$D16="SP")),IF(Personalize!$E$37=TRUE,(((VLOOKUP($C16,'Filtered-P'!$A$1:$Z$700,17,FALSE))-'Filtered-P'!$AF$25)/'Filtered-P'!$AG$25),""),IF(Personalize!$E$39=TRUE,(((VLOOKUP($C16,Filtered!$A$1:$X$700,6,FALSE))-Filtered!$AK$21)/Filtered!$AL$21),"")),"") ->  | X16: =IFERROR(IF((OR($D16="RP",$D16="SP")),IF(Personalize!$E$38=TRUE,(((VLOOKUP($C16,'Filtered-P'!$A$1:$Z$700,18,FALSE))-'Filtered-P'!$AF$26)/'Filtered-P'!$AG$26),""),IF(Personalize!$E$40=TRUE,(((VLOOKUP($C16,Filtered!$A$1:$X$700,14,FALSE))-Filtered!$AK$29)/Filtered!$AL$29),"")),"") ->  | Y16: =IFERROR(IF((OR($D16="RP",$D16="SP")),IF(Personalize!$E$45=TRUE,(((VLOOKUP($C16,'Filtered-P'!$A$1:$Z$700,4,FALSE))-'Filtered-P'!$AF$10)/'Filtered-P'!$AG$10),""),IF(Personalize!$E$41=TRUE,(((VLOOKUP($C16,Filtered!$A$1:$AD$700,20,FALSE))-Filtered!$AK$43)/Filtered!$AL$43),"")),"") ->  | Z16: =IFERROR(IF((OR($D16="RP",$D16="SP")),IF(Personalize!$E$46=TRUE,(((VLOOKUP($C16,'Filtered-P'!$A$1:$Z$700,19,FALSE))-'Filtered-P'!$AF$27)/'Filtered-P'!$AG$27),""),IF(Personalize!$E$44=TRUE,(((VLOOKUP($C16,Filtered!$A$1:$AD$700,21,FALSE))-Filtered!$AK$44)/Filtered!$AL$44),"")),"") ->  | AA16: =IFERROR(IF((OR($D16="RP",$D16="SP")),IF(Personalize!$E$47=TRUE,(((VLOOKUP($C16,'Filtered-P'!$A$1:$Z$700,6,FALSE))-'Filtered-P'!$AF$12)/'Filtered-P'!$AG$12),""),IF(Personalize!$E$42=TRUE,(((VLOOKUP($C16,Filtered!$A$1:$AD$700,8,FALSE))-Filtered!$AK$23)/Filtered!$AL$23),"")),"") ->  | AB16: =IFERROR(IF((OR($D16="RP",$D16="SP")),IF(Personalize!$E$48=TRUE,(((VLOOKUP($C16,'Filtered-P'!$A$1:$Z$700,5,FALSE))-'Filtered-P'!$AF$11)/'Filtered-P'!$AG$11),""),IF(Personalize!$E$43=TRUE,(((VLOOKUP($C16,Filtered!$A$1:$AD$700,9,FALSE))-Filtered!$AK$24)/Filtered!$AL$24),"")),"") ->  | AC16: =IFERROR(IF((OR($D16="RP",$D16="SP")),IF(Personalize!$E$52=TRUE,(((VLOOKUP($C16,'Filtered-P'!$A$1:$AD$700,21,FALSE))-'Filtered-P'!$AF$29)/(-1*'Filtered-P'!$AG$29)),""),IF(Personalize!$E$49=TRUE,(((VLOOKUP($C16,Filtered!$A$1:$AF$628,30,FALSE))-Filtered!$AK$45)/Filtered!$AL$45),"")),"") ->  | AD16: =IFERROR(IF((OR($D16="RP",$D16="SP")),IF(Personalize!$E$53=TRUE,(((VLOOKUP($C16,'Filtered-P'!$A$1:$AD$700,23,FALSE))-'Filtered-P'!$AF$31)/(-1*'Filtered-P'!$AG$31)),""),IF(Personalize!$E$50=TRUE,(((VLOOKUP($C16,Filtered!$A$1:$AF$628,31,FALSE))-Filtered!$AK$46)/Filtered!$AL$46),"")),"") ->  | AE16: =IFERROR(IF((OR($D16="RP",$D16="SP")),IF(Personalize!$E$54=TRUE,(((VLOOKUP($C16,'Filtered-P'!$A$1:$AD$700,24,FALSE))-'Filtered-P'!$AF$32)/'Filtered-P'!$AG$32),""),IF(Personalize!$E$51=TRUE,(((VLOOKUP($C16,Filtered!$A$1:$AF$628,15,FALSE))-Filtered!$AK$30)/(-1*Filtered!$AL$30)),"")),"") ->  | AF16: =IFERROR(IF((OR($D16="RP",$D16="SP")),IF(Personalize!$E$56=TRUE,(((VLOOKUP($C16,'Filtered-P'!$A$1:$AD$700,29,FALSE))-'Filtered-P'!$AF$35)/'Filtered-P'!$AG$35),""),IF(Personalize!$E$60=TRUE,(((VLOOKUP($C16,Filtered!$A$1:$AF$700,7,FALSE))-Filtered!$AK$22)/Filtered!$AL$22),"")),"") ->  | AG16: =IFERROR(IF((OR($D16="RP",$D16="SP")),IF(Personalize!$E$57=TRUE,(((VLOOKUP($C16,'Filtered-P'!$A$1:$AD$700,28,FALSE))-'Filtered-P'!$AF$34)/'Filtered-P'!$AG$34),""),IF(Personalize!$E$61=TRUE,(((VLOOKUP($C16,Filtered!$A$1:$AZ$700,34,FALSE))-Filtered!$AK$47)/Filtered!$AL$47),"")),"") ->  | AH16: =IFERROR(IF((OR($D16="RP",$D16="SP")),IF(Personalize!$E$58=TRUE,(((VLOOKUP($C16,'Filtered-P'!$A$1:$Z$700,8,FALSE))-'Filtered-P'!$AF$14)/'Filtered-P'!$AG$14),""),IF(Personalize!$E$62=TRUE,(((VLOOKUP($C16,Filtered!$A$1:$AF$700,13,FALSE))-Filtered!$AK$28)/(-1*Filtered!$AL$28)),"")),"") ->  | AI16: =IFERROR(IF((OR($D16="RP",$D16="SP")),IF(Personalize!$E$59=TRUE,(((VLOOKUP($C16,'Filtered-P'!$A$1:$AD$700,27,FALSE))-'Filtered-P'!$AF$33)/'Filtered-P'!$AG$33),""),IF(Personalize!$E$63=TRUE,(((VLOOKUP($C16,Filtered!$A$1:$AZ$700,35,FALSE))-Filtered!$AK$48)/(-1*Filtered!$AL$48)),"")),"") ->  | AJ16: =IFERROR(IF((OR($D16="RP",$D16="SP")),VLOOKUP($C16,'Filtered-P'!$A$1:$P$700,2,FALSE),""),"") -> 14.09408252 | AK16: =IFERROR(IF((OR($D16="RP",$D16="SP")),VLOOKUP($C16,'Filtered-P'!$A$1:$P$700,9,FALSE),""),"") -> 0 | AL16: =IFERROR(IF((OR($D16="RP",$D16="SP")),VLOOKUP($C16,'Filtered-P'!$A$1:$P$700,7,FALSE),""),"") -> 221.9090161 | AM16: =IFERROR(IF((OR($D16="RP",$D16="SP")),VLOOKUP($C16,'Filtered-P'!$A$1:$P$700,10,FALSE),""),"") -> 2.785020181 | AN16: =IFERROR(IF((OR($D16="RP",$D16="SP")),VLOOKUP($C16,'Filtered-P'!$A$1:$P$700,11,FALSE),""),"") -> 1.066161113 | AO16: =IFERROR(IF((OR($D16="RP",$D16="SP")),"",VLOOKUP($C16,Filtered!$A$1:$X$700,16,FALSE)),"") ->  | AP16: =IFERROR(IF((OR($D16="RP",$D16="SP")),"",VLOOKUP($C16,Filtered!$A$1:$X$700,10,FALSE)),"") ->  | AQ16: =IFERROR(IF((OR($D16="RP",$D16="SP")),"",VLOOKUP($C16,Filtered!$A$1:$X$700,11,FALSE)),"") ->  | AR16: =IFERROR(IF((OR($D16="RP",$D16="SP")),"",VLOOKUP($C16,Filtered!$A$1:$X$700,5,FALSE)),"") ->  | AS16: =IFERROR(IF((OR($D16="RP",$D16="SP")),"",VLOOKUP($C16,Filtered!$A$1:$X$700,12,FALSE)),"") ->  | AU16: =IF(ISBLANK(A16),0,1) -> 0 | AV16: =IF(M16="",0,1) -> 1 | AW16: =A16 -> 0 | AX16: =IF(D16="C",1,IF(D16="1B",2,IF(D16="2B",3,IF(D16="3B",4,IF(D16="SS",5,IF(D16="CI",6,IF(D16="MI",7,IF(D16="OF",11,IF(D16="LF",8,IF(D16="CF",9,IF(D16="RF",10,IF(D16="DH",12,IF(D16="SP",13,IF(D16="RP",14,IF(D16="P",15,16))))))))))))))) -> 13 | AY16: =VLOOKUP(C16,'Starter Calc'!$B$2:$BS$700,70,FALSE) -> Bench | AZ16: =VLOOKUP(C16,'Starter Calc'!$B$2:$AO$700,40,FALSE) -> Yes | BA16: =IFERROR(IF(ISTEXT($A16),"",IF((OR($D16="RP",$D16="SP")),ABS(VLOOKUP(D16,'Filtered-P'!$AE$3:$AI$4,5,FALSE))+M16,ABS(VLOOKUP(D16,Filtered!$AJ$3:$AN$14,5,FALSE))+M16)),"") -> 10.88833775 | BB16: =IFERROR(BA16+ABS($BA$4),"") -> 11.75961268 | BC16: =IF(AND($A16<>"",$B16<>""),B16,"N") -> N | BD16: =IFERROR(VLOOKUP($C16,'ADP-Rank'!$A$2:$AB$620,25,FALSE),TRUE) -> TRUE | BE16: =IFERROR((BB16-BB$3)^2,"") -> 57.27874359 | BF16: =VLOOKUP(C16,'Starter Calc'!$B$2:$CD$700,71,FALSE) -> SP.No
C17: Edwin Encarnacion | D17: 1B | E17: =IFERROR(IF(VLOOKUP(C17,'Starter Calc'!$B$2:$E$700,4,FALSE)="","",VLOOKUP(C17,'Starter Calc'!$B$2:$E$700,4,FALSE)),"") -> ,, | F17: =IFERROR(VLOOKUP($C17,'ADP-Rank'!$A$2:$G$620,5,FALSE),"") -> TOR | G17: =IFERROR(VLOOKUP($C17,'ADP-Rank'!$A$2:$X$620,6,FALSE),"") -> 32 | H17: =IFERROR(IF(ISBLANK($B17),IF(BF17="Rostered",1,(IF((OR($D17="RP",$D17="SP")),ROUND((N17*($BB$1/$BD$1))+1,0),ROUND((N17*($BB$2/$BD$2))+1,0)))),""),"") -> 31 | I17: =VLOOKUP($C17,'ADP-Rank'!$A$2:$AB$620,26,FALSE) -> 11 | J17: =IF(ISBLANK($B17),IFERROR(CHOOSE(Personalize!$E$31,(VLOOKUP(C17,'ADP-Rank'!$A$2:$Z$620,7,FALSE)*(Personalize!$A$3)+1),(VLOOKUP(C17,'ADP-Rank'!$A$2:$Z$620,8,FALSE)*(Personalize!$A$3)+1),(VLOOKUP(C17,'ADP-Rank'!$A$2:$Z$620,9,FALSE)*(Personalize!$A$3)+1),(VLOOKUP(C17,'ADP-Rank'!$A$2:$AA$620,10,FALSE)*(Personalize!$A$3)+1),(VLOOKUP(C17,'ADP-Rank'!$A$2:$AA$620,11,FALSE)*(Personalize!$A$3)+1),(VLOOKUP(C17,'ADP-Rank'!$A$2:$AA$620,12,FALSE)*(Personalize!$A$3)+1),(VLOOKUP(C17,'ADP-Rank'!$A$2:$AA$620,13,FALSE)*(Personalize!$A$3)+1),(VLOOKUP(C17,'ADP-Rank'!$A$2:$AA$620,14,FALSE)*(Personalize!$A$3)+1),(VLOOKUP(C17,'ADP-Rank'!$A$2:$AA$620,15,FALSE)*(Personalize!$A$3)+1),(VLOOKUP(C17,'ADP-Rank'!$A$2:$AG$620,28,FALSE)*(Personalize!$A$3)+1)),""),"") -> 31 | K17: =IF(ISBLANK($B17),IFERROR(CHOOSE(Personalize!$E$31,(VLOOKUP(C17,'ADP-Rank'!$A$2:$Z$620,7,FALSE)*(Personalize!$A$3-$AZ$4)+1),(VLOOKUP(C17,'ADP-Rank'!$A$2:$Z$620,8,FALSE)*(Personalize!$A$3-$AZ$4)+1),(VLOOKUP(C17,'ADP-Rank'!$A$2:$Z$620,9,FALSE)*(Personalize!$A$3-$AZ$4)+1),(VLOOKUP(C17,'ADP-Rank'!$A$2:$AA$620,10,FALSE)*(Personalize!$A$3-$AZ$4)+1),(VLOOKUP(C17,'ADP-Rank'!$A$2:$AA$620,11,FALSE)*(Personalize!$A$3-$AZ$4)+1),(VLOOKUP(C17,'ADP-Rank'!$A$2:$AA$620,12,FALSE)*(Personalize!$A$3-$AZ$4)+1),(VLOOKUP(C17,'ADP-Rank'!$A$2:$AA$620,13,FALSE)*(Personalize!$A$3-$AZ$4)+1),(VLOOKUP(C17,'ADP-Rank'!$A$2:$AA$620,14,FALSE)*(Personalize!$A$3-$AZ$4)+1),(VLOOKUP(C17,'ADP-Rank'!$A$2:$AA$620,15,FALSE)*(Personalize!$A$3-$AZ$4)+1),(VLOOKUP(C17,'ADP-Rank'!$A$2:$AG$620,28,FALSE)*(Personalize!$A$3-$AZ$4)+1)),""),"") -> 31 | L17: =IFERROR(RANK($M17,$M$7:$M$746,0),"") -> 14 | M17: =IF((SUM(O17:AI17)=0),"",SUM(O17:AI17)) -> 5.755979092 | N17: =IFERROR(IF(ISTEXT($A17),"",IF((OR($D17="RP",$D17="SP")),ABS(VLOOKUP(D17,'Filtered-P'!$AE$3:$AI$4,5,FALSE))+M17,ABS(VLOOKUP(D17,Filtered!$AJ$3:$AN$14,5,FALSE))+M17)),"") -> 7.943175475 | O17: =IFERROR(IF((OR($D17="RP",$D17="SP")),IF(Personalize!$E$10=TRUE,(((VLOOKUP($C17,'Filtered-P'!$A$1:$P$700,2,FALSE))-'Filtered-P'!$AF$8)/'Filtered-P'!$AG$8),""),IF(Personalize!$E$4=TRUE,(((VLOOKUP($C17,Filtered!$A$1:$AD$700,22,FALSE))-Filtered!$AK$35)/Filtered!$AL$35),"")),"") -> 0.4016465309 | P17: =IFERROR(IF((OR($D17="RP",$D17="SP")),IF(Personalize!$E$12=TRUE,(((VLOOKUP($C17,'Filtered-P'!$A$1:$P$700,9,FALSE))-'Filtered-P'!$AF$15)/'Filtered-P'!$AG$15),""),IF(Personalize!$E$3=TRUE,(((VLOOKUP($C17,Filtered!$A$1:$AB$700,10,FALSE))-Filtered!$AK$25)/Filtered!$AL$25),"")),"") -> 2.276060733 | Q17: =IFERROR(IF((OR($D17="RP",$D17="SP")),IF(Personalize!$E$11=TRUE,(((VLOOKUP($C17,'Filtered-P'!$A$1:$P$700,7,FALSE))-'Filtered-P'!$AF$13)/'Filtered-P'!$AG$13),""),IF(Personalize!$E$2=TRUE,(((VLOOKUP($C17,Filtered!$A$1:$AB$700,5,FALSE))-Filtered!$AK$20)/Filtered!$AL$20),"")),"") -> 1.440057831 | R17: =IFERROR(IF((OR($D17="RP",$D17="SP")),IF(Personalize!$E$13=TRUE,(((VLOOKUP($C17,'Filtered-P'!$A$1:$P$700,13,FALSE))-'Filtered-P'!$AF$19)/'Filtered-P'!$AG$19),""),IF(Personalize!$E$5=TRUE,(((VLOOKUP($C17,Filtered!$A$1:$AB$700,11,FALSE))-Filtered!$AK$26)/Filtered!$AL$26),"")),"") -> 2.172260328 | S17: =IFERROR(IF((OR($D17="RP",$D17="SP")),IF(Personalize!$E$14=TRUE,(((VLOOKUP($C17,'Filtered-P'!$A$1:$P$700,14,FALSE))-'Filtered-P'!$AF$20)/'Filtered-P'!$AG$20),""),IF(Personalize!$E$6=TRUE,(((VLOOKUP($C17,Filtered!$A$1:$AB$700,12,FALSE))-Filtered!$AK$27)/Filtered!$AL$27),"")),"") -> -0.5340463302 | T17: =IFERROR(IF((OR($D17="RP",$D17="SP")),IF(Personalize!$E$16=TRUE,(((VLOOKUP($C17,'Filtered-P'!$A$1:$P$700,3,FALSE))-'Filtered-P'!$AF$9)/'Filtered-P'!$AG$9),""),IF(Personalize!$E$7=TRUE,(((VLOOKUP($C17,Filtered!$A$1:$AD$700,24,FALSE))-Filtered!$AK$37)/Filtered!$AL$37),"")),"") ->  | U17: =IFERROR(IF((OR($D17="RP",$D17="SP")),IF(Personalize!$E$15=TRUE,(((VLOOKUP($C17,'Filtered-P'!$A$1:$P$700,15,FALSE))-'Filtered-P'!$AF$21)/'Filtered-P'!$AG$21),""),IF(Personalize!$E$8=TRUE,(((VLOOKUP($C17,Filtered!$A$1:$AD$700,23,FALSE))-Filtered!$AK$36)/Filtered!$AL$36),"")),"") ->  | V17: =IFERROR(IF((OR($D17="RP",$D17="SP")),IF(Personalize!$E$17=TRUE,(((VLOOKUP($C17,'Filtered-P'!$A$1:$P$700,16,FALSE))-'Filtered-P'!$AF$22)/'Filtered-P'!$AG$22),""),IF(Personalize!$E$9=TRUE,(((VLOOKUP($C17,Filtered!$A$1:$AD$700,25,FALSE))-Filtered!$AK$38)/Filtered!$AL$38),"")),"") ->  | W17: =IFERROR(IF((OR($D17="RP",$D17="SP")),IF(Personalize!$E$37=TRUE,(((VLOOKUP($C17,'Filtered-P'!$A$1:$Z$700,17,FALSE))-'Filtered-P'!$AF$25)/'Filtered-P'!$AG$25),""),IF(Personalize!$E$39=TRUE,(((VLOOKUP($C17,Filtered!$A$1:$X$700,6,FALSE))-Filtered!$AK$21)/Filtered!$AL$21),"")),"") ->  | X17: =IFERROR(IF((OR($D17="RP",$D17="SP")),IF(Personalize!$E$38=TRUE,(((VLOOKUP($C17,'Filtered-P'!$A$1:$Z$700,18,FALSE))-'Filtered-P'!$AF$26)/'Filtered-P'!$AG$26),""),IF(Personalize!$E$40=TRUE,(((VLOOKUP($C17,Filtered!$A$1:$X$700,14,FALSE))-Filtered!$AK$29)/Filtered!$AL$29),"")),"") ->  | Y17: =IFERROR(IF((OR($D17="RP",$D17="SP")),IF(Personalize!$E$45=TRUE,(((VLOOKUP($C17,'Filtered-P'!$A$1:$Z$700,4,FALSE))-'Filtered-P'!$AF$10)/'Filtered-P'!$AG$10),""),IF(Personalize!$E$41=TRUE,(((VLOOKUP($C17,Filtered!$A$1:$AD$700,20,FALSE))-Filtered!$AK$43)/Filtered!$AL$43),"")),"") ->  | Z17: =IFERROR(IF((OR($D17="RP",$D17="SP")),IF(Personalize!$E$46=TRUE,(((VLOOKUP($C17,'Filtered-P'!$A$1:$Z$700,19,FALSE))-'Filtered-P'!$AF$27)/'Filtered-P'!$AG$27),""),IF(Personalize!$E$44=TRUE,(((VLOOKUP($C17,Filtered!$A$1:$AD$700,21,FALSE))-Filtered!$AK$44)/Filtered!$AL$44),"")),"") ->  | AA17: =IFERROR(IF((OR($D17="RP",$D17="SP")),IF(Personalize!$E$47=TRUE,(((VLOOKUP($C17,'Filtered-P'!$A$1:$Z$700,6,FALSE))-'Filtered-P'!$AF$12)/'Filtered-P'!$AG$12),""),IF(Personalize!$E$42=TRUE,(((VLOOKUP($C17,Filtered!$A$1:$AD$700,8,FALSE))-Filtered!$AK$23)/Filtered!$AL$23),"")),"") ->  | AB17: =IFERROR(IF((OR($D17="RP",$D17="SP")),IF(Personalize!$E$48=TRUE,(((VLOOKUP($C17,'Filtered-P'!$A$1:$Z$700,5,FALSE))-'Filtered-P'!$AF$11)/'Filtered-P'!$AG$11),""),IF(Personalize!$E$43=TRUE,(((VLOOKUP($C17,Filtered!$A$1:$AD$700,9,FALSE))-Filtered!$AK$24)/Filtered!$AL$24),"")),"") ->  | AC17: =IFERROR(IF((OR($D17="RP",$D17="SP")),IF(Personalize!$E$52=TRUE,(((VLOOKUP($C17,'Filtered-P'!$A$1:$AD$700,21,FALSE))-'Filtered-P'!$AF$29)/(-1*'Filtered-P'!$AG$29)),""),IF(Personalize!$E$49=TRUE,(((VLOOKUP($C17,Filtered!$A$1:$AF$628,30,FALSE))-Filtered!$AK$45)/Filtered!$AL$45),"")),"") ->  | AD17: =IFERROR(IF((OR($D17="RP",$D17="SP")),IF(Personalize!$E$53=TRUE,(((VLOOKUP($C17,'Filtered-P'!$A$1:$AD$700,23,FALSE))-'Filtered-P'!$AF$31)/(-1*'Filtered-P'!$AG$31)),""),IF(Personalize!$E$50=TRUE,(((VLOOKUP($C17,Filtered!$A$1:$AF$628,31,FALSE))-Filtered!$AK$46)/Filtered!$AL$46),"")),"") ->  | AE17: =IFERROR(IF((OR($D17="RP",$D17="SP")),IF(Personalize!$E$54=TRUE,(((VLOOKUP($C17,'Filtered-P'!$A$1:$AD$700,24,FALSE))-'Filtered-P'!$AF$32)/'Filtered-P'!$AG$32),""),IF(Personalize!$E$51=TRUE,(((VLOOKUP($C17,Filtered!$A$1:$AF$628,15,FALSE))-Filtered!$AK$30)/(-1*Filtered!$AL$30)),"")),"") ->  | AF17: =IFERROR(IF((OR($D17="RP",$D17="SP")),IF(Personalize!$E$56=TRUE,(((VLOOKUP($C17,'Filtered-P'!$A$1:$AD$700,29,FALSE))-'Filtered-P'!$AF$35)/'Filtered-P'!$AG$35),""),IF(Personalize!$E$60=TRUE,(((VLOOKUP($C17,Filtered!$A$1:$AF$700,7,FALSE))-Filtered!$AK$22)/Filtered!$AL$22),"")),"") ->  | AG17: =IFERROR(IF((OR($D17="RP",$D17="SP")),IF(Personalize!$E$57=TRUE,(((VLOOKUP($C17,'Filtered-P'!$A$1:$AD$700,28,FALSE))-'Filtered-P'!$AF$34)/'Filtered-P'!$AG$34),""),IF(Personalize!$E$61=TRUE,(((VLOOKUP($C17,Filtered!$A$1:$AZ$700,34,FALSE))-Filtered!$AK$47)/Filtered!$AL$47),"")),"") ->  | AH17: =IFERROR(IF((OR($D17="RP",$D17="SP")),IF(Personalize!$E$58=TRUE,(((VLOOKUP($C17,'Filtered-P'!$A$1:$Z$700,8,FALSE))-'Filtered-P'!$AF$14)/'Filtered-P'!$AG$14),""),IF(Personalize!$E$62=TRUE,(((VLOOKUP($C17,Filtered!$A$1:$AF$700,13,FALSE))-Filtered!$AK$28)/(-1*Filtered!$AL$28)),"")),"") ->  | AI17: =IFERROR(IF((OR($D17="RP",$D17="SP")),IF(Personalize!$E$59=TRUE,(((VLOOKUP($C17,'Filtered-P'!$A$1:$AD$700,27,FALSE))-'Filtered-P'!$AF$33)/'Filtered-P'!$AG$33),""),IF(Personalize!$E$63=TRUE,(((VLOOKUP($C17,Filtered!$A$1:$AZ$700,35,FALSE))-Filtered!$AK$48)/(-1*Filtered!$AL$48)),"")),"") ->  | AJ17: =IFERROR(IF((OR($D17="RP",$D17="SP")),VLOOKUP($C17,'Filtered-P'!$A$1:$P$700,2,FALSE),""),"") ->  | AK17: =IFERROR(IF((OR($D17="RP",$D17="SP")),VLOOKUP($C17,'Filtered-P'!$A$1:$P$700,9,FALSE),""),"") ->  | AL17: =IFERROR(IF((OR($D17="RP",$D17="SP")),VLOOKUP($C17,'Filtered-P'!$A$1:$P$700,7,FALSE),""),"") ->  | AM17: =IFERROR(IF((OR($D17="RP",$D17="SP")),VLOOKUP($C17,'Filtered-P'!$A$1:$P$700,10,FALSE),""),"") ->  | AN17: =IFERROR(IF((OR($D17="RP",$D17="SP")),VLOOKUP($C17,'Filtered-P'!$A$1:$P$700,11,FALSE),""),"") ->  | AO17: =IFERROR(IF((OR($D17="RP",$D17="SP")),"",VLOOKUP($C17,Filtered!$A$1:$X$700,16,FALSE)),"") -> 0.2702624187 | AP17: =IFERROR(IF((OR($D17="RP",$D17="SP")),"",VLOOKUP($C17,Filtered!$A$1:$X$700,10,FALSE)),"") -> 32.54702361 | AQ17: =IFERROR(IF((OR($D17="RP",$D17="SP")),"",VLOOKUP($C17,Filtered!$A$1:$X$700,11,FALSE)),"") -> 94.48563983 | AR17: =IFERROR(IF((OR($D17="RP",$D17="SP")),"",VLOOKUP($C17,Filtered!$A$1:$X$700,5,FALSE)),"") -> 82.48300547 | AS17: =IFERROR(IF((OR($D17="RP",$D17="SP")),"",VLOOKUP($C17,Filtered!$A$1:$X$700,12,FALSE)),"") -> 5.363581787 | AU17: =IF(ISBLANK(A17),0,1) -> 0 | AV17: =IF(M17="",0,1) -> 1 | AW17: =A17 -> 0 | AX17: =IF(D17="C",1,IF(D17="1B",2,IF(D17="2B",3,IF(D17="3B",4,IF(D17="SS",5,IF(D17="CI",6,IF(D17="MI",7,IF(D17="OF",11,IF(D17="LF",8,IF(D17="CF",9,IF(D17="RF",10,IF(D17="DH",12,IF(D17="SP",13,IF(D17="RP",14,IF(D17="P",15,16))))))))))))))) -> 2 | AY17: =VLOOKUP(C17,'Starter Calc'!$B$2:$BS$700,70,FALSE) -> Bench | AZ17: =VLOOKUP(C17,'Starter Calc'!$B$2:$AO$700,40,FALSE) -> Yes | BA17: =IFERROR(IF(ISTEXT($A17),"",IF((OR($D17="RP",$D17="SP")),ABS(VLOOKUP(D17,'Filtered-P'!$AE$3:$AI$4,5,FALSE))+M17,ABS(VLOOKUP(D17,Filtered!$AJ$3:$AN$14,5,FALSE))+M17)),"") -> 7.943175475 | BB17: =IFERROR(BA17+ABS($BA$4),"") -> 8.814450405 | BC17: =IF(AND($A17<>"",$B17<>""),B17,"N") -> N | BD17: =IFERROR(VLOOKUP($C17,'ADP-Rank'!$A$2:$AB$620,25,FALSE),TRUE) -> TRUE | BE17: =IFERROR((BB17-BB$3)^2,"") -> 21.37314509 | BF17: =VLOOKUP(C17,'Starter Calc'!$B$2:$CD$700,71,FALSE) -> 1B.Yes
C18: Robinson Cano | D18: 2B | E18: =IFERROR(IF(VLOOKUP(C18,'Starter Calc'!$B$2:$E$700,4,FALSE)="","",VLOOKUP(C18,'Starter Calc'!$B$2:$E$700,4,FALSE)),"") -> ,, | F18: =IFERROR(VLOOKUP($C18,'ADP-Rank'!$A$2:$G$620,5,FALSE),"") -> SEA | G18: =IFERROR(VLOOKUP($C18,'ADP-Rank'!$A$2:$X$620,6,FALSE),"") -> 32 | H18: =IFERROR(IF(ISBLANK($B18),IF(BF18="Rostered",1,(IF((OR($D18="RP",$D18="SP")),ROUND((N18*($BB$1/$BD$1))+1,0),ROUND((N18*($BB$2/$BD$2))+1,0)))),""),"") -> 31 | I18: =VLOOKUP($C18,'ADP-Rank'!$A$2:$AB$620,26,FALSE) -> 16 | J18: =IF(ISBLANK($B18),IFERROR(CHOOSE(Personalize!$E$31,(VLOOKUP(C18,'ADP-Rank'!$A$2:$Z$620,7,FALSE)*(Personalize!$A$3)+1),(VLOOKUP(C18,'ADP-Rank'!$A$2:$Z$620,8,FALSE)*(Personalize!$A$3)+1),(VLOOKUP(C18,'ADP-Rank'!$A$2:$Z$620,9,FALSE)*(Personalize!$A$3)+1),(VLOOKUP(C18,'ADP-Rank'!$A$2:$AA$620,10,FALSE)*(Personalize!$A$3)+1),(VLOOKUP(C18,'ADP-Rank'!$A$2:$AA$620,11,FALSE)*(Personalize!$A$3)+1),(VLOOKUP(C18,'ADP-Rank'!$A$2:$AA$620,12,FALSE)*(Personalize!$A$3)+1),(VLOOKUP(C18,'ADP-Rank'!$A$2:$AA$620,13,FALSE)*(Personalize!$A$3)+1),(VLOOKUP(C18,'ADP-Rank'!$A$2:$AA$620,14,FALSE)*(Personalize!$A$3)+1),(VLOOKUP(C18,'ADP-Rank'!$A$2:$AA$620,15,FALSE)*(Personalize!$A$3)+1),(VLOOKUP(C18,'ADP-Rank'!$A$2:$AG$620,28,FALSE)*(Personalize!$A$3)+1)),""),"") -> 29 | K18: =IF(ISBLANK($B18),IFERROR(CHOOSE(Personalize!$E$31,(VLOOKUP(C18,'ADP-Rank'!$A$2:$Z$620,7,FALSE)*(Personalize!$A$3-$AZ$4)+1),(VLOOKUP(C18,'ADP-Rank'!$A$2:$Z$620,8,FALSE)*(Personalize!$A$3-$AZ$4)+1),(VLOOKUP(C18,'ADP-Rank'!$A$2:$Z$620,9,FALSE)*(Personalize!$A$3-$AZ$4)+1),(VLOOKUP(C18,'ADP-Rank'!$A$2:$AA$620,10,FALSE)*(Personalize!$A$3-$AZ$4)+1),(VLOOKUP(C18,'ADP-Rank'!$A$2:$AA$620,11,FALSE)*(Personalize!$A$3-$AZ$4)+1),(VLOOKUP(C18,'ADP-Rank'!$A$2:$AA$620,12,FALSE)*(Personalize!$A$3-$AZ$4)+1),(VLOOKUP(C18,'ADP-Rank'!$A$2:$AA$620,13,FALSE)*(Personalize!$A$3-$AZ$4)+1),(VLOOKUP(C18,'ADP-Rank'!$A$2:$AA$620,14,FALSE)*(Personalize!$A$3-$AZ$4)+1),(VLOOKUP(C18,'ADP-Rank'!$A$2:$AA$620,15,FALSE)*(Personalize!$A$3-$AZ$4)+1),(VLOOKUP(C18,'ADP-Rank'!$A$2:$AG$620,28,FALSE)*(Personalize!$A$3-$AZ$4)+1)),""),"") -> 29 | L18: =IFERROR(RANK($M18,$M$7:$M$746,0),"") -> 29 | M18: =IF((SUM(O18:AI18)=0),"",SUM(O18:AI18)) -> 3.794693353 | N18: =IFERROR(IF(ISTEXT($A18),"",IF((OR($D18="RP",$D18="SP")),ABS(VLOOKUP(D18,'Filtered-P'!$AE$3:$AI$4,5,FALSE))+M18,ABS(VLOOKUP(D18,Filtered!$AJ$3:$AN$14,5,FALSE))+M18)),"") -> 7.824249689 | O18: =IFERROR(IF((OR($D18="RP",$D18="SP")),IF(Personalize!$E$10=TRUE,(((VLOOKUP($C18,'Filtered-P'!$A$1:$P$700,2,FALSE))-'Filtered-P'!$AF$8)/'Filtered-P'!$AG$8),""),IF(Personalize!$E$4=TRUE,(((VLOOKUP($C18,Filtered!$A$1:$AD$700,22,FALSE))-Filtered!$AK$35)/Filtered!$AL$35),"")),"") -> 1.96334251 | P18: =IFERROR(IF((OR($D18="RP",$D18="SP")),IF(Personalize!$E$12=TRUE,(((VLOOKUP($C18,'Filtered-P'!$A$1:$P$700,9,FALSE))-'Filtered-P'!$AF$15)/'Filtered-P'!$AG$15),""),IF(Personalize!$E$3=TRUE,(((VLOOKUP($C18,Filtered!$A$1:$AB$700,10,FALSE))-Filtered!$AK$25)/Filtered!$AL$25),"")),"") -> 0.06816161818 | Q18: =IFERROR(IF((OR($D18="RP",$D18="SP")),IF(Personalize!$E$11=TRUE,(((VLOOKUP($C18,'Filtered-P'!$A$1:$P$700,7,FALSE))-'Filtered-P'!$AF$13)/'Filtered-P'!$AG$13),""),IF(Personalize!$E$2=TRUE,(((VLOOKUP($C18,Filtered!$A$1:$AB$700,5,FALSE))-Filtered!$AK$20)/Filtered!$AL$20),"")),"") -> 0.9441022082 | R18: =IFERROR(IF((OR($D18="RP",$D18="SP")),IF(Personalize!$E$13=TRUE,(((VLOOKUP($C18,'Filtered-P'!$A$1:$P$700,13,FALSE))-'Filtered-P'!$AF$19)/'Filtered-P'!$AG$19),""),IF(Personalize!$E$5=TRUE,(((VLOOKUP($C18,Filtered!$A$1:$AB$700,11,FALSE))-Filtered!$AK$26)/Filtered!$AL$26),"")),"") -> 1.223691768 | S18: =IFERROR(IF((OR($D18="RP",$D18="SP")),IF(Personalize!$E$14=TRUE,(((VLOOKUP($C18,'Filtered-P'!$A$1:$P$700,14,FALSE))-'Filtered-P'!$AF$20)/'Filtered-P'!$AG$20),""),IF(Personalize!$E$6=TRUE,(((VLOOKUP($C18,Filtered!$A$1:$AB$700,12,FALSE))-Filtered!$AK$27)/Filtered!$AL$27),"")),"") -> -0.404604752 | T18: =IFERROR(IF((OR($D18="RP",$D18="SP")),IF(Personalize!$E$16=TRUE,(((VLOOKUP($C18,'Filtered-P'!$A$1:$P$700,3,FALSE))-'Filtered-P'!$AF$9)/'Filtered-P'!$AG$9),""),IF(Personalize!$E$7=TRUE,(((VLOOKUP($C18,Filtered!$A$1:$AD$700,24,FALSE))-Filtered!$AK$37)/Filtered!$AL$37),"")),"") ->  | U18: =IFERROR(IF((OR($D18="RP",$D18="SP")),IF(Personalize!$E$15=TRUE,(((VLOOKUP($C18,'Filtered-P'!$A$1:$P$700,15,FALSE))-'Filtered-P'!$AF$21)/'Filtered-P'!$AG$21),""),IF(Personalize!$E$8=TRUE,(((VLOOKUP($C18,Filtered!$A$1:$AD$700,23,FALSE))-Filtered!$AK$36)/Filtered!$AL$36),"")),"") ->  | V18: =IFERROR(IF((OR($D18="RP",$D18="SP")),IF(Personalize!$E$17=TRUE,(((VLOOKUP($C18,'Filtered-P'!$A$1:$P$700,16,FALSE))-'Filtered-P'!$AF$22)/'Filtered-P'!$AG$22),""),IF(Personalize!$E$9=TRUE,(((VLOOKUP($C18,Filtered!$A$1:$AD$700,25,FALSE))-Filtered!$AK$38)/Filtered!$AL$38),"")),"") ->  | W18: =IFERROR(IF((OR($D18="RP",$D18="SP")),IF(Personalize!$E$37=TRUE,(((VLOOKUP($C18,'Filtered-P'!$A$1:$Z$700,17,FALSE))-'Filtered-P'!$AF$25)/'Filtered-P'!$AG$25),""),IF(Personalize!$E$39=TRUE,(((VLOOKUP($C18,Filtered!$A$1:$X$700,6,FALSE))-Filtered!$AK$21)/Filtered!$AL$21),"")),"") ->  | X18: =IFERROR(IF((OR($D18="RP",$D18="SP")),IF(Personalize!$E$38=TRUE,(((VLOOKUP($C18,'Filtered-P'!$A$1:$Z$700,18,FALSE))-'Filtered-P'!$AF$26)/'Filtered-P'!$AG$26),""),IF(Personalize!$E$40=TRUE,(((VLOOKUP($C18,Filtered!$A$1:$X$700,14,FALSE))-Filtered!$AK$29)/Filtered!$AL$29),"")),"") ->  | Y18: =IFERROR(IF((OR($D18="RP",$D18="SP")),IF(Personalize!$E$45=TRUE,(((VLOOKUP($C18,'Filtered-P'!$A$1:$Z$700,4,FALSE))-'Filtered-P'!$AF$10)/'Filtered-P'!$AG$10),""),IF(Personalize!$E$41=TRUE,(((VLOOKUP($C18,Filtered!$A$1:$AD$700,20,FALSE))-Filtered!$AK$43)/Filtered!$AL$43),"")),"") ->  | Z18: =IFERROR(IF((OR($D18="RP",$D18="SP")),IF(Personalize!$E$46=TRUE,(((VLOOKUP($C18,'Filtered-P'!$A$1:$Z$700,19,FALSE))-'Filtered-P'!$AF$27)/'Filtered-P'!$AG$27),""),IF(Personalize!$E$44=TRUE,(((VLOOKUP($C18,Filtered!$A$1:$AD$700,21,FALSE))-Filtered!$AK$44)/Filtered!$AL$44),"")),"") ->  | AA18: =IFERROR(IF((OR($D18="RP",$D18="SP")),IF(Personalize!$E$47=TRUE,(((VLOOKUP($C18,'Filtered-P'!$A$1:$Z$700,6,FALSE))-'Filtered-P'!$AF$12)/'Filtered-P'!$AG$12),""),IF(Personalize!$E$42=TRUE,(((VLOOKUP($C18,Filtered!$A$1:$AD$700,8,FALSE))-Filtered!$AK$23)/Filtered!$AL$23),"")),"") ->  | AB18: =IFERROR(IF((OR($D18="RP",$D18="SP")),IF(Personalize!$E$48=TRUE,(((VLOOKUP($C18,'Filtered-P'!$A$1:$Z$700,5,FALSE))-'Filtered-P'!$AF$11)/'Filtered-P'!$AG$11),""),IF(Personalize!$E$43=TRUE,(((VLOOKUP($C18,Filtered!$A$1:$AD$700,9,FALSE))-Filtered!$AK$24)/Filtered!$AL$24),"")),"") ->  | AC18: =IFERROR(IF((OR($D18="RP",$D18="SP")),IF(Personalize!$E$52=TRUE,(((VLOOKUP($C18,'Filtered-P'!$A$1:$AD$700,21,FALSE))-'Filtered-P'!$AF$29)/(-1*'Filtered-P'!$AG$29)),""),IF(Personalize!$E$49=TRUE,(((VLOOKUP($C18,Filtered!$A$1:$AF$628,30,FALSE))-Filtered!$AK$45)/Filtered!$AL$45),"")),"") ->  | AD18: =IFERROR(IF((OR($D18="RP",$D18="SP")),IF(Personalize!$E$53=TRUE,(((VLOOKUP($C18,'Filtered-P'!$A$1:$AD$700,23,FALSE))-'Filtered-P'!$AF$31)/(-1*'Filtered-P'!$AG$31)),""),IF(Personalize!$E$50=TRUE,(((VLOOKUP($C18,Filtered!$A$1:$AF$628,31,FALSE))-Filtered!$AK$46)/Filtered!$AL$46),"")),"") ->  | AE18: =IFERROR(IF((OR($D18="RP",$D18="SP")),IF(Personalize!$E$54=TRUE,(((VLOOKUP($C18,'Filtered-P'!$A$1:$AD$700,24,FALSE))-'Filtered-P'!$AF$32)/'Filtered-P'!$AG$32),""),IF(Personalize!$E$51=TRUE,(((VLOOKUP($C18,Filtered!$A$1:$AF$628,15,FALSE))-Filtered!$AK$30)/(-1*Filtered!$AL$30)),"")),"") ->  | AF18: =IFERROR(IF((OR($D18="RP",$D18="SP")),IF(Personalize!$E$56=TRUE,(((VLOOKUP($C18,'Filtered-P'!$A$1:$AD$700,29,FALSE))-'Filtered-P'!$AF$35)/'Filtered-P'!$AG$35),""),IF(Personalize!$E$60=TRUE,(((VLOOKUP($C18,Filtered!$A$1:$AF$700,7,FALSE))-Filtered!$AK$22)/Filtered!$AL$22),"")),"") ->  | AG18: =IFERROR(IF((OR($D18="RP",$D18="SP")),IF(Personalize!$E$57=TRUE,(((VLOOKUP($C18,'Filtered-P'!$A$1:$AD$700,28,FALSE))-'Filtered-P'!$AF$34)/'Filtered-P'!$AG$34),""),IF(Personalize!$E$61=TRUE,(((VLOOKUP($C18,Filtered!$A$1:$AZ$700,34,FALSE))-Filtered!$AK$47)/Filtered!$AL$47),"")),"") ->  | AH18: =IFERROR(IF((OR($D18="RP",$D18="SP")),IF(Personalize!$E$58=TRUE,(((VLOOKUP($C18,'Filtered-P'!$A$1:$Z$700,8,FALSE))-'Filtered-P'!$AF$14)/'Filtered-P'!$AG$14),""),IF(Personalize!$E$62=TRUE,(((VLOOKUP($C18,Filtered!$A$1:$AF$700,13,FALSE))-Filtered!$AK$28)/(-1*Filtered!$AL$28)),"")),"") ->  | AI18: =IFERROR(IF((OR($D18="RP",$D18="SP")),IF(Personalize!$E$59=TRUE,(((VLOOKUP($C18,'Filtered-P'!$A$1:$AD$700,27,FALSE))-'Filtered-P'!$AF$33)/'Filtered-P'!$AG$33),""),IF(Personalize!$E$63=TRUE,(((VLOOKUP($C18,Filtered!$A$1:$AZ$700,35,FALSE))-Filtered!$AK$48)/(-1*Filtered!$AL$48)),"")),"") ->  | AJ18: =IFERROR(IF((OR($D18="RP",$D18="SP")),VLOOKUP($C18,'Filtered-P'!$A$1:$P$700,2,FALSE),""),"") ->  | AK18: =IFERROR(IF((OR($D18="RP",$D18="SP")),VLOOKUP($C18,'Filtered-P'!$A$1:$P$700,9,FALSE),""),"") ->  | AL18: =IFERROR(IF((OR($D18="RP",$D18="SP")),VLOOKUP($C18,'Filtered-P'!$A$1:$P$700,7,FALSE),""),"") ->  | AM18: =IFERROR(IF((OR($D18="RP",$D18="SP")),VLOOKUP($C18,'Filtered-P'!$A$1:$P$700,10,FALSE),""),"") ->  | AN18: =IFERROR(IF((OR($D18="RP",$D18="SP")),VLOOKUP($C18,'Filtered-P'!$A$1:$P$700,11,FALSE),""),"") ->  | AO18: =IFERROR(IF((OR($D18="RP",$D18="SP")),"",VLOOKUP($C18,Filtered!$A$1:$X$700,16,FALSE)),"") -> 0.2910871445 | AP18: =IFERROR(IF((OR($D18="RP",$D18="SP")),"",VLOOKUP($C18,Filtered!$A$1:$X$700,10,FALSE)),"") -> 17.3857247 | AQ18: =IFERROR(IF((OR($D18="RP",$D18="SP")),"",VLOOKUP($C18,Filtered!$A$1:$X$700,11,FALSE)),"") -> 82.07182142 | AR18: =IFERROR(IF((OR($D18="RP",$D18="SP")),"",VLOOKUP($C18,Filtered!$A$1:$X$700,5,FALSE)),"") -> 77.35808466 | AS18: =IFERROR(IF((OR($D18="RP",$D18="SP")),"",VLOOKUP($C18,Filtered!$A$1:$X$700,12,FALSE)),"") -> 6.532365784 | AU18: =IF(ISBLANK(A18),0,1) -> 0 | AV18: =IF(M18="",0,1) -> 1 | AW18: =A18 -> 0 | AX18: =IF(D18="C",1,IF(D18="1B",2,IF(D18="2B",3,IF(D18="3B",4,IF(D18="SS",5,IF(D18="CI",6,IF(D18="MI",7,IF(D18="OF",11,IF(D18="LF",8,IF(D18="CF",9,IF(D18="RF",10,IF(D18="DH",12,IF(D18="SP",13,IF(D18="RP",14,IF(D18="P",15,16))))))))))))))) -> 3 | AY18: =VLOOKUP(C18,'Starter Calc'!$B$2:$BS$700,70,FALSE) -> Bench | AZ18: =VLOOKUP(C18,'Starter Calc'!$B$2:$AO$700,40,FALSE) -> Yes | BA18: =IFERROR(IF(ISTEXT($A18),"",IF((OR($D18="RP",$D18="SP")),ABS(VLOOKUP(D18,'Filtered-P'!$AE$3:$AI$4,5,FALSE))+M18,ABS(VLOOKUP(D18,Filtered!$AJ$3:$AN$14,5,FALSE))+M18)),"") -> 7.824249689 | BB18: =IFERROR(BA18+ABS($BA$4),"") -> 8.695524619 | BC18: =IF(AND($A18<>"",$B18<>""),B18,"N") -> N | BD18: =IFERROR(VLOOKUP($C18,'ADP-Rank'!$A$2:$AB$620,25,FALSE),TRUE) -> TRUE | BE18: =IFERROR((BB18-BB$3)^2,"") -> 20.28767447 | BF18: =VLOOKUP(C18,'Starter Calc'!$B$2:$CD$700,71,FALSE) -> 2B.Yes
C19: Max Scherzer | D19: SP | E19: =IFERROR(IF(VLOOKUP(C19,'Starter Calc'!$B$2:$E$700,4,FALSE)="","",VLOOKUP(C19,'Starter Calc'!$B$2:$E$700,4,FALSE)),"") -> ,, | F19: =IFERROR(VLOOKUP($C19,'ADP-Rank'!$A$2:$G$620,5,FALSE),"") -> WSH | G19: =IFERROR(VLOOKUP($C19,'ADP-Rank'!$A$2:$X$620,6,FALSE),"") -> 30 | H19: =IFERROR(IF(ISBLANK($B19),IF(BF19="Rostered",1,(IF((OR($D19="RP",$D19="SP")),ROUND((N19*($BB$1/$BD$1))+1,0),ROUND((N19*($BB$2/$BD$2))+1,0)))),""),"") -> 30 | I19: =VLOOKUP($C19,'ADP-Rank'!$A$2:$AB$620,26,FALSE) -> 14 | J19: =IF(ISBLANK($B19),IFERROR(CHOOSE(Personalize!$E$31,(VLOOKUP(C19,'ADP-Rank'!$A$2:$Z$620,7,FALSE)*(Personalize!$A$3)+1),(VLOOKUP(C19,'ADP-Rank'!$A$2:$Z$620,8,FALSE)*(Personalize!$A$3)+1),(VLOOKUP(C19,'ADP-Rank'!$A$2:$Z$620,9,FALSE)*(Personalize!$A$3)+1),(VLOOKUP(C19,'ADP-Rank'!$A$2:$AA$620,10,FALSE)*(Personalize!$A$3)+1),(VLOOKUP(C19,'ADP-Rank'!$A$2:$AA$620,11,FALSE)*(Personalize!$A$3)+1),(VLOOKUP(C19,'ADP-Rank'!$A$2:$AA$620,12,FALSE)*(Personalize!$A$3)+1),(VLOOKUP(C19,'ADP-Rank'!$A$2:$AA$620,13,FALSE)*(Personalize!$A$3)+1),(VLOOKUP(C19,'ADP-Rank'!$A$2:$AA$620,14,FALSE)*(Personalize!$A$3)+1),(VLOOKUP(C19,'ADP-Rank'!$A$2:$AA$620,15,FALSE)*(Personalize!$A$3)+1),(VLOOKUP(C19,'ADP-Rank'!$A$2:$AG$620,28,FALSE)*(Personalize!$A$3)+1)),""),"") -> 26 | K19: =IF(ISBLANK($B19),IFERROR(CHOOSE(Personalize!$E$31,(VLOOKUP(C19,'ADP-Rank'!$A$2:$Z$620,7,FALSE)*(Personalize!$A$3-$AZ$4)+1),(VLOOKUP(C19,'ADP-Rank'!$A$2:$Z$620,8,FALSE)*(Personalize!$A$3-$AZ$4)+1),(VLOOKUP(C19,'ADP-Rank'!$A$2:$Z$620,9,FALSE)*(Personalize!$A$3-$AZ$4)+1),(VLOOKUP(C19,'ADP-Rank'!$A$2:$AA$620,10,FALSE)*(Personalize!$A$3-$AZ$4)+1),(VLOOKUP(C19,'ADP-Rank'!$A$2:$AA$620,11,FALSE)*(Personalize!$A$3-$AZ$4)+1),(VLOOKUP(C19,'ADP-Rank'!$A$2:$AA$620,12,FALSE)*(Personalize!$A$3-$AZ$4)+1),(VLOOKUP(C19,'ADP-Rank'!$A$2:$AA$620,13,FALSE)*(Personalize!$A$3-$AZ$4)+1),(VLOOKUP(C19,'ADP-Rank'!$A$2:$AA$620,14,FALSE)*(Personalize!$A$3-$AZ$4)+1),(VLOOKUP(C19,'ADP-Rank'!$A$2:$AA$620,15,FALSE)*(Personalize!$A$3-$AZ$4)+1),(VLOOKUP(C19,'ADP-Rank'!$A$2:$AG$620,28,FALSE)*(Personalize!$A$3-$AZ$4)+1)),""),"") -> 26 | L19: =IFERROR(RANK($M19,$M$7:$M$746,0),"") -> 5 | M19: =IF((SUM(O19:AI19)=0),"",SUM(O19:AI19)) -> 7.811170088 | N19: =IFERROR(IF(ISTEXT($A19),"",IF((OR($D19="RP",$D19="SP")),ABS(VLOOKUP(D19,'Filtered-P'!$AE$3:$AI$4,5,FALSE))+M19,ABS(VLOOKUP(D19,Filtered!$AJ$3:$AN$14,5,FALSE))+M19)),"") -> 10.53064742 | O19: =IFERROR(IF((OR($D19="RP",$D19="SP")),IF(Personalize!$E$10=TRUE,(((VLOOKUP($C19,'Filtered-P'!$A$1:$P$700,2,FALSE))-'Filtered-P'!$AF$8)/'Filtered-P'!$AG$8),""),IF(Personalize!$E$4=TRUE,(((VLOOKUP($C19,Filtered!$A$1:$AD$700,22,FALSE))-Filtered!$AK$35)/Filtered!$AL$35),"")),"") -> 1.484424688 | P19: =IFERROR(IF((OR($D19="RP",$D19="SP")),IF(Personalize!$E$12=TRUE,(((VLOOKUP($C19,'Filtered-P'!$A$1:$P$700,9,FALSE))-'Filtered-P'!$AF$15)/'Filtered-P'!$AG$15),""),IF(Personalize!$E$3=TRUE,(((VLOOKUP($C19,Filtered!$A$1:$AB$700,10,FALSE))-Filtered!$AK$25)/Filtered!$AL$25),"")),"") -> -0.4771200697 | Q19: =IFERROR(IF((OR($D19="RP",$D19="SP")),IF(Personalize!$E$11=TRUE,(((VLOOKUP($C19,'Filtered-P'!$A$1:$P$700,7,FALSE))-'Filtered-P'!$AF$13)/'Filtered-P'!$AG$13),""),IF(Personalize!$E$2=TRUE,(((VLOOKUP($C19,Filtered!$A$1:$AB$700,5,FALSE))-Filtered!$AK$20)/Filtered!$AL$20),"")),"") -> 2.32268897 | R19: =IFERROR(IF((OR($D19="RP",$D19="SP")),IF(Personalize!$E$13=TRUE,(((VLOOKUP($C19,'Filtered-P'!$A$1:$P$700,13,FALSE))-'Filtered-P'!$AF$19)/'Filtered-P'!$AG$19),""),IF(Personalize!$E$5=TRUE,(((VLOOKUP($C19,Filtered!$A$1:$AB$700,11,FALSE))-Filtered!$AK$26)/Filtered!$AL$26),"")),"") -> 2.656817218 | S19: =IFERROR(IF((OR($D19="RP",$D19="SP")),IF(Personalize!$E$14=TRUE,(((VLOOKUP($C19,'Filtered-P'!$A$1:$P$700,14,FALSE))-'Filtered-P'!$AF$20)/'Filtered-P'!$AG$20),""),IF(Personalize!$E$6=TRUE,(((VLOOKUP($C19,Filtered!$A$1:$AB$700,12,FALSE))-Filtered!$AK$27)/Filtered!$AL$27),"")),"") -> 1.824359282 | T19: =IFERROR(IF((OR($D19="RP",$D19="SP")),IF(Personalize!$E$16=TRUE,(((VLOOKUP($C19,'Filtered-P'!$A$1:$P$700,3,FALSE))-'Filtered-P'!$AF$9)/'Filtered-P'!$AG$9),""),IF(Personalize!$E$7=TRUE,(((VLOOKUP($C19,Filtered!$A$1:$AD$700,24,FALSE))-Filtered!$AK$37)/Filtered!$AL$37),"")),"") ->  | U19: =IFERROR(IF((OR($D19="RP",$D19="SP")),IF(Personalize!$E$15=TRUE,(((VLOOKUP($C19,'Filtered-P'!$A$1:$P$700,15,FALSE))-'Filtered-P'!$AF$21)/'Filtered-P'!$AG$21),""),IF(Personalize!$E$8=TRUE,(((VLOOKUP($C19,Filtered!$A$1:$AD$700,23,FALSE))-Filtered!$AK$36)/Filtered!$AL$36),"")),"") ->  | V19: =IFERROR(IF((OR($D19="RP",$D19="SP")),IF(Personalize!$E$17=TRUE,(((VLOOKUP($C19,'Filtered-P'!$A$1:$P$700,16,FALSE))-'Filtered-P'!$AF$22)/'Filtered-P'!$AG$22),""),IF(Personalize!$E$9=TRUE,(((VLOOKUP($C19,Filtered!$A$1:$AD$700,25,FALSE))-Filtered!$AK$38)/Filtered!$AL$38),"")),"") ->  | W19: =IFERROR(IF((OR($D19="RP",$D19="SP")),IF(Personalize!$E$37=TRUE,(((VLOOKUP($C19,'Filtered-P'!$A$1:$Z$700,17,FALSE))-'Filtered-P'!$AF$25)/'Filtered-P'!$AG$25),""),IF(Personalize!$E$39=TRUE,(((VLOOKUP($C19,Filtered!$A$1:$X$700,6,FALSE))-Filtered!$AK$21)/Filtered!$AL$21),"")),"") ->  | X19: =IFERROR(IF((OR($D19="RP",$D19="SP")),IF(Personalize!$E$38=TRUE,(((VLOOKUP($C19,'Filtered-P'!$A$1:$Z$700,18,FALSE))-'Filtered-P'!$AF$26)/'Filtered-P'!$AG$26),""),IF(Personalize!$E$40=TRUE,(((VLOOKUP($C19,Filtered!$A$1:$X$700,14,FALSE))-Filtered!$AK$29)/Filtered!$AL$29),"")),"") ->  | Y19: =IFERROR(IF((OR($D19="RP",$D19="SP")),IF(Personalize!$E$45=TRUE,(((VLOOKUP($C19,'Filtered-P'!$A$1:$Z$700,4,FALSE))-'Filtered-P'!$AF$10)/'Filtered-P'!$AG$10),""),IF(Personalize!$E$41=TRUE,(((VLOOKUP($C19,Filtered!$A$1:$AD$700,20,FALSE))-Filtered!$AK$43)/Filtered!$AL$43),"")),"") ->  | Z19: =IFERROR(IF((OR($D19="RP",$D19="SP")),IF(Personalize!$E$46=TRUE,(((VLOOKUP($C19,'Filtered-P'!$A$1:$Z$700,19,FALSE))-'Filtered-P'!$AF$27)/'Filtered-P'!$AG$27),""),IF(Personalize!$E$44=TRUE,(((VLOOKUP($C19,Filtered!$A$1:$AD$700,21,FALSE))-Filtered!$AK$44)/Filtered!$AL$44),"")),"") ->  | AA19: =IFERROR(IF((OR($D19="RP",$D19="SP")),IF(Personalize!$E$47=TRUE,(((VLOOKUP($C19,'Filtered-P'!$A$1:$Z$700,6,FALSE))-'Filtered-P'!$AF$12)/'Filtered-P'!$AG$12),""),IF(Personalize!$E$42=TRUE,(((VLOOKUP($C19,Filtered!$A$1:$AD$700,8,FALSE))-Filtered!$AK$23)/Filtered!$AL$23),"")),"") ->  | AB19: =IFERROR(IF((OR($D19="RP",$D19="SP")),IF(Personalize!$E$48=TRUE,(((VLOOKUP($C19,'Filtered-P'!$A$1:$Z$700,5,FALSE))-'Filtered-P'!$AF$11)/'Filtered-P'!$AG$11),""),IF(Personalize!$E$43=TRUE,(((VLOOKUP($C19,Filtered!$A$1:$AD$700,9,FALSE))-Filtered!$AK$24)/Filtered!$AL$24),"")),"") ->  | AC19: =IFERROR(IF((OR($D19="RP",$D19="SP")),IF(Personalize!$E$52=TRUE,(((VLOOKUP($C19,'Filtered-P'!$A$1:$AD$700,21,FALSE))-'Filtered-P'!$AF$29)/(-1*'Filtered-P'!$AG$29)),""),IF(Personalize!$E$49=TRUE,(((VLOOKUP($C19,Filtered!$A$1:$AF$628,30,FALSE))-Filtered!$AK$45)/Filtered!$AL$45),"")),"") ->  | AD19: =IFERROR(IF((OR($D19="RP",$D19="SP")),IF(Personalize!$E$53=TRUE,(((VLOOKUP($C19,'Filtered-P'!$A$1:$AD$700,23,FALSE))-'Filtered-P'!$AF$31)/(-1*'Filtered-P'!$AG$31)),""),IF(Personalize!$E$50=TRUE,(((VLOOKUP($C19,Filtered!$A$1:$AF$628,31,FALSE))-Filtered!$AK$46)/Filtered!$AL$46),"")),"") ->  | AE19: =IFERROR(IF((OR($D19="RP",$D19="SP")),IF(Personalize!$E$54=TRUE,(((VLOOKUP($C19,'Filtered-P'!$A$1:$AD$700,24,FALSE))-'Filtered-P'!$AF$32)/'Filtered-P'!$AG$32),""),IF(Personalize!$E$51=TRUE,(((VLOOKUP($C19,Filtered!$A$1:$AF$628,15,FALSE))-Filtered!$AK$30)/(-1*Filtered!$AL$30)),"")),"") ->  | AF19: =IFERROR(IF((OR($D19="RP",$D19="SP")),IF(Personalize!$E$56=TRUE,(((VLOOKUP($C19,'Filtered-P'!$A$1:$AD$700,29,FALSE))-'Filtered-P'!$AF$35)/'Filtered-P'!$AG$35),""),IF(Personalize!$E$60=TRUE,(((VLOOKUP($C19,Filtered!$A$1:$AF$700,7,FALSE))-Filtered!$AK$22)/Filtered!$AL$22),"")),"") ->  | AG19: =IFERROR(IF((OR($D19="RP",$D19="SP")),IF(Personalize!$E$57=TRUE,(((VLOOKUP($C19,'Filtered-P'!$A$1:$AD$700,28,FALSE))-'Filtered-P'!$AF$34)/'Filtered-P'!$AG$34),""),IF(Personalize!$E$61=TRUE,(((VLOOKUP($C19,Filtered!$A$1:$AZ$700,34,FALSE))-Filtered!$AK$47)/Filtered!$AL$47),"")),"") ->  | AH19: =IFERROR(IF((OR($D19="RP",$D19="SP")),IF(Personalize!$E$58=TRUE,(((VLOOKUP($C19,'Filtered-P'!$A$1:$Z$700,8,FALSE))-'Filtered-P'!$AF$14)/'Filtered-P'!$AG$14),""),IF(Personalize!$E$62=TRUE,(((VLOOKUP($C19,Filtered!$A$1:$AF$700,13,FALSE))-Filtered!$AK$28)/(-1*Filtered!$AL$28)),"")),"") ->  | AI19: =IFERROR(IF((OR($D19="RP",$D19="SP")),IF(Personalize!$E$59=TRUE,(((VLOOKUP($C19,'Filtered-P'!$A$1:$AD$700,27,FALSE))-'Filtered-P'!$AF$33)/'Filtered-P'!$AG$33),""),IF(Personalize!$E$63=TRUE,(((VLOOKUP($C19,Filtered!$A$1:$AZ$700,35,FALSE))-Filtered!$AK$48)/(-1*Filtered!$AL$48)),"")),"") ->  | AJ19: =IFERROR(IF((OR($D19="RP",$D19="SP")),VLOOKUP($C19,'Filtered-P'!$A$1:$P$700,2,FALSE),""),"") -> 15.03507613 | AK19: =IFERROR(IF((OR($D19="RP",$D19="SP")),VLOOKUP($C19,'Filtered-P'!$A$1:$P$700,9,FALSE),""),"") -> 0 | AL19: =IFERROR(IF((OR($D19="RP",$D19="SP")),VLOOKUP($C19,'Filtered-P'!$A$1:$P$700,7,FALSE),""),"") -> 241.2497628 | AM19: =IFERROR(IF((OR($D19="RP",$D19="SP")),VLOOKUP($C19,'Filtered-P'!$A$1:$P$700,10,FALSE),""),"") -> 2.856481579 | AN19: =IFERROR(IF((OR($D19="RP",$D19="SP")),VLOOKUP($C19,'Filtered-P'!$A$1:$P$700,11,FALSE),""),"") -> 1.091537799 | AO19: =IFERROR(IF((OR($D19="RP",$D19="SP")),"",VLOOKUP($C19,Filtered!$A$1:$X$700,16,FALSE)),"") ->  | AP19: =IFERROR(IF((OR($D19="RP",$D19="SP")),"",VLOOKUP($C19,Filtered!$A$1:$X$700,10,FALSE)),"") ->  | AQ19: =IFERROR(IF((OR($D19="RP",$D19="SP")),"",VLOOKUP($C19,Filtered!$A$1:$X$700,11,FALSE)),"") ->  | AR19: =IFERROR(IF((OR($D19="RP",$D19="SP")),"",VLOOKUP($C19,Filtered!$A$1:$X$700,5,FALSE)),"") ->  | AS19: =IFERROR(IF((OR($D19="RP",$D19="SP")),"",VLOOKUP($C19,Filtered!$A$1:$X$700,12,FALSE)),"") ->  | AU19: =IF(ISBLANK(A19),0,1) -> 0 | AV19: =IF(M19="",0,1) -> 1 | AW19: =A19 -> 0 | AX19: =IF(D19="C",1,IF(D19="1B",2,IF(D19="2B",3,IF(D19="3B",4,IF(D19="SS",5,IF(D19="CI",6,IF(D19="MI",7,IF(D19="OF",11,IF(D19="LF",8,IF(D19="CF",9,IF(D19="RF",10,IF(D19="DH",12,IF(D19="SP",13,IF(D19="RP",14,IF(D19="P",15,16))))))))))))))) -> 13 | AY19: =VLOOKUP(C19,'Starter Calc'!$B$2:$BS$700,70,FALSE) -> Bench | AZ19: =VLOOKUP(C19,'Starter Calc'!$B$2:$AO$700,40,FALSE) -> Yes | BA19: =IFERROR(IF(ISTEXT($A19),"",IF((OR($D19="RP",$D19="SP")),ABS(VLOOKUP(D19,'Filtered-P'!$AE$3:$AI$4,5,FALSE))+M19,ABS(VLOOKUP(D19,Filtered!$AJ$3:$AN$14,5,FALSE))+M19)),"") -> 10.53064742 | BB19: =IFERROR(BA19+ABS($BA$4),"") -> 11.40192235 | BC19: =IF(AND($A19<>"",$B19<>""),B19,"N") -> N | BD19: =IFERROR(VLOOKUP($C19,'ADP-Rank'!$A$2:$AB$620,25,FALSE),TRUE) -> TRUE | BE19: =IFERROR((BB19-BB$3)^2,"") -> 51.99249049 | BF19: =VLOOKUP(C19,'Starter Calc'!$B$2:$CD$700,71,FALSE) -> SP.No
C20: Anthony Rizzo | D20: 1B | E20: =IFERROR(IF(VLOOKUP(C20,'Starter Calc'!$B$2:$E$700,4,FALSE)="","",VLOOKUP(C20,'Starter Calc'!$B$2:$E$700,4,FALSE)),"") -> ,, | F20: =IFERROR(VLOOKUP($C20,'ADP-Rank'!$A$2:$G$620,5,FALSE),"") -> CHC | G20: =IFERROR(VLOOKUP($C20,'ADP-Rank'!$A$2:$X$620,6,FALSE),"") -> 25 | H20: =IFERROR(IF(ISBLANK($B20),IF(BF20="Rostered",1,(IF((OR($D20="RP",$D20="SP")),ROUND((N20*($BB$1/$BD$1))+1,0),ROUND((N20*($BB$2/$BD$2))+1,0)))),""),"") -> 30 | I20: =VLOOKUP($C20,'ADP-Rank'!$A$2:$AB$620,26,FALSE) -> 13 | J20: =IF(ISBLANK($B20),IFERROR(CHOOSE(Personalize!$E$31,(VLOOKUP(C20,'ADP-Rank'!$A$2:$Z$620,7,FALSE)*(Personalize!$A$3)+1),(VLOOKUP(C20,'ADP-Rank'!$A$2:$Z$620,8,FALSE)*(Personalize!$A$3)+1),(VLOOKUP(C20,'ADP-Rank'!$A$2:$Z$620,9,FALSE)*(Personalize!$A$3)+1),(VLOOKUP(C20,'ADP-Rank'!$A$2:$AA$620,10,FALSE)*(Personalize!$A$3)+1),(VLOOKUP(C20,'ADP-Rank'!$A$2:$AA$620,11,FALSE)*(Personalize!$A$3)+1),(VLOOKUP(C20,'ADP-Rank'!$A$2:$AA$620,12,FALSE)*(Personalize!$A$3)+1),(VLOOKUP(C20,'ADP-Rank'!$A$2:$AA$620,13,FALSE)*(Personalize!$A$3)+1),(VLOOKUP(C20,'ADP-Rank'!$A$2:$AA$620,14,FALSE)*(Personalize!$A$3)+1),(VLOOKUP(C20,'ADP-Rank'!$A$2:$AA$620,15,FALSE)*(Personalize!$A$3)+1),(VLOOKUP(C20,'ADP-Rank'!$A$2:$AG$620,28,FALSE)*(Personalize!$A$3)+1)),""),"") -> 29 | K20: =IF(ISBLANK($B20),IFERROR(CHOOSE(Personalize!$E$31,(VLOOKUP(C20,'ADP-Rank'!$A$2:$Z$620,7,FALSE)*(Personalize!$A$3-$AZ$4)+1),(VLOOKUP(C20,'ADP-Rank'!$A$2:$Z$620,8,FALSE)*(Personalize!$A$3-$AZ$4)+1),(VLOOKUP(C20,'ADP-Rank'!$A$2:$Z$620,9,FALSE)*(Personalize!$A$3-$AZ$4)+1),(VLOOKUP(C20,'ADP-Rank'!$A$2:$AA$620,10,FALSE)*(Personalize!$A$3-$AZ$4)+1),(VLOOKUP(C20,'ADP-Rank'!$A$2:$AA$620,11,FALSE)*(Personalize!$A$3-$AZ$4)+1),(VLOOKUP(C20,'ADP-Rank'!$A$2:$AA$620,12,FALSE)*(Personalize!$A$3-$AZ$4)+1),(VLOOKUP(C20,'ADP-Rank'!$A$2:$AA$620,13,FALSE)*(Personalize!$A$3-$AZ$4)+1),(VLOOKUP(C20,'ADP-Rank'!$A$2:$AA$620,14,FALSE)*(Personalize!$A$3-$AZ$4)+1),(VLOOKUP(C20,'ADP-Rank'!$A$2:$AA$620,15,FALSE)*(Personalize!$A$3-$AZ$4)+1),(VLOOKUP(C20,'ADP-Rank'!$A$2:$AG$620,28,FALSE)*(Personalize!$A$3-$AZ$4)+1)),""),"") -> 29 | L20: =IFERROR(RANK($M20,$M$7:$M$746,0),"") -> 16 | M20: =IF((SUM(O20:AI20)=0),"",SUM(O20:AI20)) -> 5.412351621 | N20: =IFERROR(IF(ISTEXT($A20),"",IF((OR($D20="RP",$D20="SP")),ABS(VLOOKUP(D20,'Filtered-P'!$AE$3:$AI$4,5,FALSE))+M20,ABS(VLOOKUP(D20,Filtered!$AJ$3:$AN$14,5,FALSE))+M20)),"") -> 7.599548004 | O20: =IFERROR(IF((OR($D20="RP",$D20="SP")),IF(Personalize!$E$10=TRUE,(((VLOOKUP($C20,'Filtered-P'!$A$1:$P$700,2,FALSE))-'Filtered-P'!$AF$8)/'Filtered-P'!$AG$8),""),IF(Personalize!$E$4=TRUE,(((VLOOKUP($C20,Filtered!$A$1:$AD$700,22,FALSE))-Filtered!$AK$35)/Filtered!$AL$35),"")),"") -> 0.4267048311 | P20: =IFERROR(IF((OR($D20="RP",$D20="SP")),IF(Personalize!$E$12=TRUE,(((VLOOKUP($C20,'Filtered-P'!$A$1:$P$700,9,FALSE))-'Filtered-P'!$AF$15)/'Filtered-P'!$AG$15),""),IF(Personalize!$E$3=TRUE,(((VLOOKUP($C20,Filtered!$A$1:$AB$700,10,FALSE))-Filtered!$AK$25)/Filtered!$AL$25),"")),"") -> 1.996379449 | Q20: =IFERROR(IF((OR($D20="RP",$D20="SP")),IF(Personalize!$E$11=TRUE,(((VLOOKUP($C20,'Filtered-P'!$A$1:$P$700,7,FALSE))-'Filtered-P'!$AF$13)/'Filtered-P'!$AG$13),""),IF(Personalize!$E$2=TRUE,(((VLOOKUP($C20,Filtered!$A$1:$AB$700,5,FALSE))-Filtered!$AK$20)/Filtered!$AL$20),"")),"") -> 1.878125114 | R20: =IFERROR(IF((OR($D20="RP",$D20="SP")),IF(Personalize!$E$13=TRUE,(((VLOOKUP($C20,'Filtered-P'!$A$1:$P$700,13,FALSE))-'Filtered-P'!$AF$19)/'Filtered-P'!$AG$19),""),IF(Personalize!$E$5=TRUE,(((VLOOKUP($C20,Filtered!$A$1:$AB$700,11,FALSE))-Filtered!$AK$26)/Filtered!$AL$26),"")),"") -> 1.668001466 | S20: =IFERROR(IF((OR($D20="RP",$D20="SP")),IF(Personalize!$E$14=TRUE,(((VLOOKUP($C20,'Filtered-P'!$A$1:$P$700,14,FALSE))-'Filtered-P'!$AF$20)/'Filtered-P'!$AG$20),""),IF(Personalize!$E$6=TRUE,(((VLOOKUP($C20,Filtered!$A$1:$AB$700,12,FALSE))-Filtered!$AK$27)/Filtered!$AL$27),"")),"") -> -0.5568592385 | T20: =IFERROR(IF((OR($D20="RP",$D20="SP")),IF(Personalize!$E$16=TRUE,(((VLOOKUP($C20,'Filtered-P'!$A$1:$P$700,3,FALSE))-'Filtered-P'!$AF$9)/'Filtered-P'!$AG$9),""),IF(Personalize!$E$7=TRUE,(((VLOOKUP($C20,Filtered!$A$1:$AD$700,24,FALSE))-Filtered!$AK$37)/Filtered!$AL$37),"")),"") ->  | U20: =IFERROR(IF((OR($D20="RP",$D20="SP")),IF(Personalize!$E$15=TRUE,(((VLOOKUP($C20,'Filtered-P'!$A$1:$P$700,15,FALSE))-'Filtered-P'!$AF$21)/'Filtered-P'!$AG$21),""),IF(Personalize!$E$8=TRUE,(((VLOOKUP($C20,Filtered!$A$1:$AD$700,23,FALSE))-Filtered!$AK$36)/Filtered!$AL$36),"")),"") ->  | V20: =IFERROR(IF((OR($D20="RP",$D20="SP")),IF(Personalize!$E$17=TRUE,(((VLOOKUP($C20,'Filtered-P'!$A$1:$P$700,16,FALSE))-'Filtered-P'!$AF$22)/'Filtered-P'!$AG$22),""),IF(Personalize!$E$9=TRUE,(((VLOOKUP($C20,Filtered!$A$1:$AD$700,25,FALSE))-Filtered!$AK$38)/Filtered!$AL$38),"")),"") ->  | W20: =IFERROR(IF((OR($D20="RP",$D20="SP")),IF(Personalize!$E$37=TRUE,(((VLOOKUP($C20,'Filtered-P'!$A$1:$Z$700,17,FALSE))-'Filtered-P'!$AF$25)/'Filtered-P'!$AG$25),""),IF(Personalize!$E$39=TRUE,(((VLOOKUP($C20,Filtered!$A$1:$X$700,6,FALSE))-Filtered!$AK$21)/Filtered!$AL$21),"")),"") ->  | X20: =IFERROR(IF((OR($D20="RP",$D20="SP")),IF(Personalize!$E$38=TRUE,(((VLOOKUP($C20,'Filtered-P'!$A$1:$Z$700,18,FALSE))-'Filtered-P'!$AF$26)/'Filtered-P'!$AG$26),""),IF(Personalize!$E$40=TRUE,(((VLOOKUP($C20,Filtered!$A$1:$X$700,14,FALSE))-Filtered!$AK$29)/Filtered!$AL$29),"")),"") ->  | Y20: =IFERROR(IF((OR($D20="RP",$D20="SP")),IF(Personalize!$E$45=TRUE,(((VLOOKUP($C20,'Filtered-P'!$A$1:$Z$700,4,FALSE))-'Filtered-P'!$AF$10)/'Filtered-P'!$AG$10),""),IF(Personalize!$E$41=TRUE,(((VLOOKUP($C20,Filtered!$A$1:$AD$700,20,FALSE))-Filtered!$AK$43)/Filtered!$AL$43),"")),"") ->  | Z20: =IFERROR(IF((OR($D20="RP",$D20="SP")),IF(Personalize!$E$46=TRUE,(((VLOOKUP($C20,'Filtered-P'!$A$1:$Z$700,19,FALSE))-'Filtered-P'!$AF$27)/'Filtered-P'!$AG$27),""),IF(Personalize!$E$44=TRUE,(((VLOOKUP($C20,Filtered!$A$1:$AD$700,21,FALSE))-Filtered!$AK$44)/Filtered!$AL$44),"")),"") ->  | AA20: =IFERROR(IF((OR($D20="RP",$D20="SP")),IF(Personalize!$E$47=TRUE,(((VLOOKUP($C20,'Filtered-P'!$A$1:$Z$700,6,FALSE))-'Filtered-P'!$AF$12)/'Filtered-P'!$AG$12),""),IF(Personalize!$E$42=TRUE,(((VLOOKUP($C20,Filtered!$A$1:$AD$700,8,FALSE))-Filtered!$AK$23)/Filtered!$AL$23),"")),"") ->  | AB20: =IFERROR(IF((OR($D20="RP",$D20="SP")),IF(Personalize!$E$48=TRUE,(((VLOOKUP($C20,'Filtered-P'!$A$1:$Z$700,5,FALSE))-'Filtered-P'!$AF$11)/'Filtered-P'!$AG$11),""),IF(Personalize!$E$43=TRUE,(((VLOOKUP($C20,Filtered!$A$1:$AD$700,9,FALSE))-Filtered!$AK$24)/Filtered!$AL$24),"")),"") ->  | AC20: =IFERROR(IF((OR($D20="RP",$D20="SP")),IF(Personalize!$E$52=TRUE,(((VLOOKUP($C20,'Filtered-P'!$A$1:$AD$700,21,FALSE))-'Filtered-P'!$AF$29)/(-1*'Filtered-P'!$AG$29)),""),IF(Personalize!$E$49=TRUE,(((VLOOKUP($C20,Filtered!$A$1:$AF$628,30,FALSE))-Filtered!$AK$45)/Filtered!$AL$45),"")),"") ->  | AD20: =IFERROR(IF((OR($D20="RP",$D20="SP")),IF(Personalize!$E$53=TRUE,(((VLOOKUP($C20,'Filtered-P'!$A$1:$AD$700,23,FALSE))-'Filtered-P'!$AF$31)/(-1*'Filtered-P'!$AG$31)),""),IF(Personalize!$E$50=TRUE,(((VLOOKUP($C20,Filtered!$A$1:$AF$628,31,FALSE))-Filtered!$AK$46)/Filtered!$AL$46),"")),"") ->  | AE20: =IFERROR(IF((OR($D20="RP",$D20="SP")),IF(Personalize!$E$54=TRUE,(((VLOOKUP($C20,'Filtered-P'!$A$1:$AD$700,24,FALSE))-'Filtered-P'!$AF$32)/'Filtered-P'!$AG$32),""),IF(Personalize!$E$51=TRUE,(((VLOOKUP($C20,Filtered!$A$1:$AF$628,15,FALSE))-Filtered!$AK$30)/(-1*Filtered!$AL$30)),"")),"") ->  | AF20: =IFERROR(IF((OR($D20="RP",$D20="SP")),IF(Personalize!$E$56=TRUE,(((VLOOKUP($C20,'Filtered-P'!$A$1:$AD$700,29,FALSE))-'Filtered-P'!$AF$35)/'Filtered-P'!$AG$35),""),IF(Personalize!$E$60=TRUE,(((VLOOKUP($C20,Filtered!$A$1:$AF$700,7,FALSE))-Filtered!$AK$22)/Filtered!$AL$22),"")),"") ->  | AG20: =IFERROR(IF((OR($D20="RP",$D20="SP")),IF(Personalize!$E$57=TRUE,(((VLOOKUP($C20,'Filtered-P'!$A$1:$AD$700,28,FALSE))-'Filtered-P'!$AF$34)/'Filtered-P'!$AG$34),""),IF(Personalize!$E$61=TRUE,(((VLOOKUP($C20,Filtered!$A$1:$AZ$700,34,FALSE))-Filtered!$AK$47)/Filtered!$AL$47),"")),"") ->  | AH20: =IFERROR(IF((OR($D20="RP",$D20="SP")),IF(Personalize!$E$58=TRUE,(((VLOOKUP($C20,'Filtered-P'!$A$1:$Z$700,8,FALSE))-'Filtered-P'!$AF$14)/'Filtered-P'!$AG$14),""),IF(Personalize!$E$62=TRUE,(((VLOOKUP($C20,Filtered!$A$1:$AF$700,13,FALSE))-Filtered!$AK$28)/(-1*Filtered!$AL$28)),"")),"") ->  | AI20: =IFERROR(IF((OR($D20="RP",$D20="SP")),IF(Personalize!$E$59=TRUE,(((VLOOKUP($C20,'Filtered-P'!$A$1:$AD$700,27,FALSE))-'Filtered-P'!$AF$33)/'Filtered-P'!$AG$33),""),IF(Personalize!$E$63=TRUE,(((VLOOKUP($C20,Filtered!$A$1:$AZ$700,35,FALSE))-Filtered!$AK$48)/(-1*Filtered!$AL$48)),"")),"") ->  | AJ20: =IFERROR(IF((OR($D20="RP",$D20="SP")),VLOOKUP($C20,'Filtered-P'!$A$1:$P$700,2,FALSE),""),"") ->  | AK20: =IFERROR(IF((OR($D20="RP",$D20="SP")),VLOOKUP($C20,'Filtered-P'!$A$1:$P$700,9,FALSE),""),"") ->  | AL20: =IFERROR(IF((OR($D20="RP",$D20="SP")),VLOOKUP($C20,'Filtered-P'!$A$1:$P$700,7,FALSE),""),"") ->  | AM20: =IFERROR(IF((OR($D20="RP",$D20="SP")),VLOOKUP($C20,'Filtered-P'!$A$1:$P$700,10,FALSE),""),"") ->  | AN20: =IFERROR(IF((OR($D20="RP",$D20="SP")),VLOOKUP($C20,'Filtered-P'!$A$1:$P$700,11,FALSE),""),"") ->  | AO20: =IFERROR(IF((OR($D20="RP",$D20="SP")),"",VLOOKUP($C20,Filtered!$A$1:$X$700,16,FALSE)),"") -> 0.2696190599 | AP20: =IFERROR(IF((OR($D20="RP",$D20="SP")),"",VLOOKUP($C20,Filtered!$A$1:$X$700,10,FALSE)),"") -> 30.62649585 | AQ20: =IFERROR(IF((OR($D20="RP",$D20="SP")),"",VLOOKUP($C20,Filtered!$A$1:$X$700,11,FALSE)),"") -> 87.88645638 | AR20: =IFERROR(IF((OR($D20="RP",$D20="SP")),"",VLOOKUP($C20,Filtered!$A$1:$X$700,5,FALSE)),"") -> 87.00974139 | AS20: =IFERROR(IF((OR($D20="RP",$D20="SP")),"",VLOOKUP($C20,Filtered!$A$1:$X$700,12,FALSE)),"") -> 5.157594172 | AU20: =IF(ISBLANK(A20),0,1) -> 0 | AV20: =IF(M20="",0,1) -> 1 | AW20: =A20 -> 0 | AX20: =IF(D20="C",1,IF(D20="1B",2,IF(D20="2B",3,IF(D20="3B",4,IF(D20="SS",5,IF(D20="CI",6,IF(D20="MI",7,IF(D20="OF",11,IF(D20="LF",8,IF(D20="CF",9,IF(D20="RF",10,IF(D20="DH",12,IF(D20="SP",13,IF(D20="RP",14,IF(D20="P",15,16))))))))))))))) -> 2 | AY20: =VLOOKUP(C20,'Starter Calc'!$B$2:$BS$700,70,FALSE) -> Bench | AZ20: =VLOOKUP(C20,'Starter Calc'!$B$2:$AO$700,40,FALSE) -> Yes | BA20: =IFERROR(IF(ISTEXT($A20),"",IF((OR($D20="RP",$D20="SP")),ABS(VLOOKUP(D20,'Filtered-P'!$AE$3:$AI$4,5,FALSE))+M20,ABS(VLOOKUP(D20,Filtered!$AJ$3:$AN$14,5,FALSE))+M20)),"") -> 7.599548004 | BB20: =IFERROR(BA20+ABS($BA$4),"") -> 8.470822934 | BC20: =IF(AND($A20<>"",$B20<>""),B20,"N") -> N | BD20: =IFERROR(VLOOKUP($C20,'ADP-Rank'!$A$2:$AB$620,25,FALSE),TRUE) -> TRUE | BE20: =IFERROR((BB20-BB$3)^2,"") -> 18.3139698 | BF20: =VLOOKUP(C20,'Starter Calc'!$B$2:$CD$700,71,FALSE) -> 1B.Yes
C21: Adam Jones | D21: OF | E21: =IFERROR(IF(VLOOKUP(C21,'Starter Calc'!$B$2:$E$700,4,FALSE)="","",VLOOKUP(C21,'Starter Calc'!$B$2:$E$700,4,FALSE)),"") -> ,CF, | F21: =IFERROR(VLOOKUP($C21,'ADP-Rank'!$A$2:$G$620,5,FALSE),"") -> BAL | G21: =IFERROR(VLOOKUP($C21,'ADP-Rank'!$A$2:$X$620,6,FALSE),"") -> 29 | H21: =IFERROR(IF(ISBLANK($B21),IF(BF21="Rostered",1,(IF((OR($D21="RP",$D21="SP")),ROUND((N21*($BB$1/$BD$1))+1,0),ROUND((N21*($BB$2/$BD$2))+1,0)))),""),"") -> 30 | I21: =VLOOKUP($C21,'ADP-Rank'!$A$2:$AB$620,26,FALSE) -> 10 | J21: =IF(ISBLANK($B21),IFERROR(CHOOSE(Personalize!$E$31,(VLOOKUP(C21,'ADP-Rank'!$A$2:$Z$620,7,FALSE)*(Personalize!$A$3)+1),(VLOOKUP(C21,'ADP-Rank'!$A$2:$Z$620,8,FALSE)*(Personalize!$A$3)+1),(VLOOKUP(C21,'ADP-Rank'!$A$2:$Z$620,9,FALSE)*(Personalize!$A$3)+1),(VLOOKUP(C21,'ADP-Rank'!$A$2:$AA$620,10,FALSE)*(Personalize!$A$3)+1),(VLOOKUP(C21,'ADP-Rank'!$A$2:$AA$620,11,FALSE)*(Personalize!$A$3)+1),(VLOOKUP(C21,'ADP-Rank'!$A$2:$AA$620,12,FALSE)*(Personalize!$A$3)+1),(VLOOKUP(C21,'ADP-Rank'!$A$2:$AA$620,13,FALSE)*(Personalize!$A$3)+1),(VLOOKUP(C21,'ADP-Rank'!$A$2:$AA$620,14,FALSE)*(Personalize!$A$3)+1),(VLOOKUP(C21,'ADP-Rank'!$A$2:$AA$620,15,FALSE)*(Personalize!$A$3)+1),(VLOOKUP(C21,'ADP-Rank'!$A$2:$AG$620,28,FALSE)*(Personalize!$A$3)+1)),""),"") -> 34 | K21: =IF(ISBLANK($B21),IFERROR(CHOOSE(Personalize!$E$31,(VLOOKUP(C21,'ADP-Rank'!$A$2:$Z$620,7,FALSE)*(Personalize!$A$3-$AZ$4)+1),(VLOOKUP(C21,'ADP-Rank'!$A$2:$Z$620,8,FALSE)*(Personalize!$A$3-$AZ$4)+1),(VLOOKUP(C21,'ADP-Rank'!$A$2:$Z$620,9,FALSE)*(Personalize!$A$3-$AZ$4)+1),(VLOOKUP(C21,'ADP-Rank'!$A$2:$AA$620,10,FALSE)*(Personalize!$A$3-$AZ$4)+1),(VLOOKUP(C21,'ADP-Rank'!$A$2:$AA$620,11,FALSE)*(Personalize!$A$3-$AZ$4)+1),(VLOOKUP(C21,'ADP-Rank'!$A$2:$AA$620,12,FALSE)*(Personalize!$A$3-$AZ$4)+1),(VLOOKUP(C21,'ADP-Rank'!$A$2:$AA$620,13,FALSE)*(Personalize!$A$3-$AZ$4)+1),(VLOOKUP(C21,'ADP-Rank'!$A$2:$AA$620,14,FALSE)*(Personalize!$A$3-$AZ$4)+1),(VLOOKUP(C21,'ADP-Rank'!$A$2:$AA$620,15,FALSE)*(Personalize!$A$3-$AZ$4)+1),(VLOOKUP(C21,'ADP-Rank'!$A$2:$AG$620,28,FALSE)*(Personalize!$A$3-$AZ$4)+1)),""),"") -> 34 | L21: =IFERROR(RANK($M21,$M$7:$M$746,0),"") -> 19 | M21: =IF((SUM(O21:AI21)=0),"",SUM(O21:AI21)) -> 4.630380693 | N21: =IFERROR(IF(ISTEXT($A21),"",IF((OR($D21="RP",$D21="SP")),ABS(VLOOKUP(D21,'Filtered-P'!$AE$3:$AI$4,5,FALSE))+M21,ABS(VLOOKUP(D21,Filtered!$AJ$3:$AN$14,5,FALSE))+M21)),"") -> 7.72822285 | O21: =IFERROR(IF((OR($D21="RP",$D21="SP")),IF(Personalize!$E$10=TRUE,(((VLOOKUP($C21,'Filtered-P'!$A$1:$P$700,2,FALSE))-'Filtered-P'!$AF$8)/'Filtered-P'!$AG$8),""),IF(Personalize!$E$4=TRUE,(((VLOOKUP($C21,Filtered!$A$1:$AD$700,22,FALSE))-Filtered!$AK$35)/Filtered!$AL$35),"")),"") -> 0.5140585474 | P21: =IFERROR(IF((OR($D21="RP",$D21="SP")),IF(Personalize!$E$12=TRUE,(((VLOOKUP($C21,'Filtered-P'!$A$1:$P$700,9,FALSE))-'Filtered-P'!$AF$15)/'Filtered-P'!$AG$15),""),IF(Personalize!$E$3=TRUE,(((VLOOKUP($C21,Filtered!$A$1:$AB$700,10,FALSE))-Filtered!$AK$25)/Filtered!$AL$25),"")),"") -> 1.45443643 | Q21: =IFERROR(IF((OR($D21="RP",$D21="SP")),IF(Personalize!$E$11=TRUE,(((VLOOKUP($C21,'Filtered-P'!$A$1:$P$700,7,FALSE))-'Filtered-P'!$AF$13)/'Filtered-P'!$AG$13),""),IF(Personalize!$E$2=TRUE,(((VLOOKUP($C21,Filtered!$A$1:$AB$700,5,FALSE))-Filtered!$AK$20)/Filtered!$AL$20),"")),"") -> 1.071371567 | R21: =IFERROR(IF((OR($D21="RP",$D21="SP")),IF(Personalize!$E$13=TRUE,(((VLOOKUP($C21,'Filtered-P'!$A$1:$P$700,13,FALSE))-'Filtered-P'!$AF$19)/'Filtered-P'!$AG$19),""),IF(Personalize!$E$5=TRUE,(((VLOOKUP($C21,Filtered!$A$1:$AB$700,11,FALSE))-Filtered!$AK$26)/Filtered!$AL$26),"")),"") -> 1.595472213 | S21: =IFERROR(IF((OR($D21="RP",$D21="SP")),IF(Personalize!$E$14=TRUE,(((VLOOKUP($C21,'Filtered-P'!$A$1:$P$700,14,FALSE))-'Filtered-P'!$AF$20)/'Filtered-P'!$AG$20),""),IF(Personalize!$E$6=TRUE,(((VLOOKUP($C21,Filtered!$A$1:$AB$700,12,FALSE))-Filtered!$AK$27)/Filtered!$AL$27),"")),"") -> -0.004958064723 | T21: =IFERROR(IF((OR($D21="RP",$D21="SP")),IF(Personalize!$E$16=TRUE,(((VLOOKUP($C21,'Filtered-P'!$A$1:$P$700,3,FALSE))-'Filtered-P'!$AF$9)/'Filtered-P'!$AG$9),""),IF(Personalize!$E$7=TRUE,(((VLOOKUP($C21,Filtered!$A$1:$AD$700,24,FALSE))-Filtered!$AK$37)/Filtered!$AL$37),"")),"") ->  | U21: =IFERROR(IF((OR($D21="RP",$D21="SP")),IF(Personalize!$E$15=TRUE,(((VLOOKUP($C21,'Filtered-P'!$A$1:$P$700,15,FALSE))-'Filtered-P'!$AF$21)/'Filtered-P'!$AG$21),""),IF(Personalize!$E$8=TRUE,(((VLOOKUP($C21,Filtered!$A$1:$AD$700,23,FALSE))-Filtered!$AK$36)/Filtered!$AL$36),"")),"") ->  | V21: =IFERROR(IF((OR($D21="RP",$D21="SP")),IF(Personalize!$E$17=TRUE,(((VLOOKUP($C21,'Filtered-P'!$A$1:$P$700,16,FALSE))-'Filtered-P'!$AF$22)/'Filtered-P'!$AG$22),""),IF(Personalize!$E$9=TRUE,(((VLOOKUP($C21,Filtered!$A$1:$AD$700,25,FALSE))-Filtered!$AK$38)/Filtered!$AL$38),"")),"") ->  | W21: =IFERROR(IF((OR($D21="RP",$D21="SP")),IF(Personalize!$E$37=TRUE,(((VLOOKUP($C21,'Filtered-P'!$A$1:$Z$700,17,FALSE))-'Filtered-P'!$AF$25)/'Filtered-P'!$AG$25),""),IF(Personalize!$E$39=TRUE,(((VLOOKUP($C21,Filtered!$A$1:$X$700,6,FALSE))-Filtered!$AK$21)/Filtered!$AL$21),"")),"") ->  | X21: =IFERROR(IF((OR($D21="RP",$D21="SP")),IF(Personalize!$E$38=TRUE,(((VLOOKUP($C21,'Filtered-P'!$A$1:$Z$700,18,FALSE))-'Filtered-P'!$AF$26)/'Filtered-P'!$AG$26),""),IF(Personalize!$E$40=TRUE,(((VLOOKUP($C21,Filtered!$A$1:$X$700,14,FALSE))-Filtered!$AK$29)/Filtered!$AL$29),"")),"") ->  | Y21: =IFERROR(IF((OR($D21="RP",$D21="SP")),IF(Personalize!$E$45=TRUE,(((VLOOKUP($C21,'Filtered-P'!$A$1:$Z$700,4,FALSE))-'Filtered-P'!$AF$10)/'Filtered-P'!$AG$10),""),IF(Personalize!$E$41=TRUE,(((VLOOKUP($C21,Filtered!$A$1:$AD$700,20,FALSE))-Filtered!$AK$43)/Filtered!$AL$43),"")),"") ->  | Z21: =IFERROR(IF((OR($D21="RP",$D21="SP")),IF(Personalize!$E$46=TRUE,(((VLOOKUP($C21,'Filtered-P'!$A$1:$Z$700,19,FALSE))-'Filtered-P'!$AF$27)/'Filtered-P'!$AG$27),""),IF(Personalize!$E$44=TRUE,(((VLOOKUP($C21,Filtered!$A$1:$AD$700,21,FALSE))-Filtered!$AK$44)/Filtered!$AL$44),"")),"") ->  | AA21: =IFERROR(IF((OR($D21="RP",$D21="SP")),IF(Personalize!$E$47=TRUE,(((VLOOKUP($C21,'Filtered-P'!$A$1:$Z$700,6,FALSE))-'Filtered-P'!$AF$12)/'Filtered-P'!$AG$12),""),IF(Personalize!$E$42=TRUE,(((VLOOKUP($C21,Filtered!$A$1:$AD$700,8,FALSE))-Filtered!$AK$23)/Filtered!$AL$23),"")),"") ->  | AB21: =IFERROR(IF((OR($D21="RP",$D21="SP")),IF(Personalize!$E$48=TRUE,(((VLOOKUP($C21,'Filtered-P'!$A$1:$Z$700,5,FALSE))-'Filtered-P'!$AF$11)/'Filtered-P'!$AG$11),""),IF(Personalize!$E$43=TRUE,(((VLOOKUP($C21,Filtered!$A$1:$AD$700,9,FALSE))-Filtered!$AK$24)/Filtered!$AL$24),"")),"") ->  | AC21: =IFERROR(IF((OR($D21="RP",$D21="SP")),IF(Personalize!$E$52=TRUE,(((VLOOKUP($C21,'Filtered-P'!$A$1:$AD$700,21,FALSE))-'Filtered-P'!$AF$29)/(-1*'Filtered-P'!$AG$29)),""),IF(Personalize!$E$49=TRUE,(((VLOOKUP($C21,Filtered!$A$1:$AF$628,30,FALSE))-Filtered!$AK$45)/Filtered!$AL$45),"")),"") ->  | AD21: =IFERROR(IF((OR($D21="RP",$D21="SP")),IF(Personalize!$E$53=TRUE,(((VLOOKUP($C21,'Filtered-P'!$A$1:$AD$700,23,FALSE))-'Filtered-P'!$AF$31)/(-1*'Filtered-P'!$AG$31)),""),IF(Personalize!$E$50=TRUE,(((VLOOKUP($C21,Filtered!$A$1:$AF$628,31,FALSE))-Filtered!$AK$46)/Filtered!$AL$46),"")),"") ->  | AE21: =IFERROR(IF((OR($D21="RP",$D21="SP")),IF(Personalize!$E$54=TRUE,(((VLOOKUP($C21,'Filtered-P'!$A$1:$AD$700,24,FALSE))-'Filtered-P'!$AF$32)/'Filtered-P'!$AG$32),""),IF(Personalize!$E$51=TRUE,(((VLOOKUP($C21,Filtered!$A$1:$AF$628,15,FALSE))-Filtered!$AK$30)/(-1*Filtered!$AL$30)),"")),"") ->  | AF21: =IFERROR(IF((OR($D21="RP",$D21="SP")),IF(Personalize!$E$56=TRUE,(((VLOOKUP($C21,'Filtered-P'!$A$1:$AD$700,29,FALSE))-'Filtered-P'!$AF$35)/'Filtered-P'!$AG$35),""),IF(Personalize!$E$60=TRUE,(((VLOOKUP($C21,Filtered!$A$1:$AF$700,7,FALSE))-Filtered!$AK$22)/Filtered!$AL$22),"")),"") ->  | AG21: =IFERROR(IF((OR($D21="RP",$D21="SP")),IF(Personalize!$E$57=TRUE,(((VLOOKUP($C21,'Filtered-P'!$A$1:$AD$700,28,FALSE))-'Filtered-P'!$AF$34)/'Filtered-P'!$AG$34),""),IF(Personalize!$E$61=TRUE,(((VLOOKUP($C21,Filtered!$A$1:$AZ$700,34,FALSE))-Filtered!$AK$47)/Filtered!$AL$47),"")),"") ->  | AH21: =IFERROR(IF((OR($D21="RP",$D21="SP")),IF(Personalize!$E$58=TRUE,(((VLOOKUP($C21,'Filtered-P'!$A$1:$Z$700,8,FALSE))-'Filtered-P'!$AF$14)/'Filtered-P'!$AG$14),""),IF(Personalize!$E$62=TRUE,(((VLOOKUP($C21,Filtered!$A$1:$AF$700,13,FALSE))-Filtered!$AK$28)/(-1*Filtered!$AL$28)),"")),"") ->  | AI21: =IFERROR(IF((OR($D21="RP",$D21="SP")),IF(Personalize!$E$59=TRUE,(((VLOOKUP($C21,'Filtered-P'!$A$1:$AD$700,27,FALSE))-'Filtered-P'!$AF$33)/'Filtered-P'!$AG$33),""),IF(Personalize!$E$63=TRUE,(((VLOOKUP($C21,Filtered!$A$1:$AZ$700,35,FALSE))-Filtered!$AK$48)/(-1*Filtered!$AL$48)),"")),"") ->  | AJ21: =IFERROR(IF((OR($D21="RP",$D21="SP")),VLOOKUP($C21,'Filtered-P'!$A$1:$P$700,2,FALSE),""),"") ->  | AK21: =IFERROR(IF((OR($D21="RP",$D21="SP")),VLOOKUP($C21,'Filtered-P'!$A$1:$P$700,9,FALSE),""),"") ->  | AL21: =IFERROR(IF((OR($D21="RP",$D21="SP")),VLOOKUP($C21,'Filtered-P'!$A$1:$P$700,7,FALSE),""),"") ->  | AM21: =IFERROR(IF((OR($D21="RP",$D21="SP")),VLOOKUP($C21,'Filtered-P'!$A$1:$P$700,10,FALSE),""),"") ->  | AN21: =IFERROR(IF((OR($D21="RP",$D21="SP")),VLOOKUP($C21,'Filtered-P'!$A$1:$P$700,11,FALSE),""),"") ->  | AO21: =IFERROR(IF((OR($D21="RP",$D21="SP")),"",VLOOKUP($C21,Filtered!$A$1:$X$700,16,FALSE)),"") -> 0.2699078798 | AP21: =IFERROR(IF((OR($D21="RP",$D21="SP")),"",VLOOKUP($C21,Filtered!$A$1:$X$700,10,FALSE)),"") -> 26.90505765 | AQ21: =IFERROR(IF((OR($D21="RP",$D21="SP")),"",VLOOKUP($C21,Filtered!$A$1:$X$700,11,FALSE)),"") -> 86.93727356 | AR21: =IFERROR(IF((OR($D21="RP",$D21="SP")),"",VLOOKUP($C21,Filtered!$A$1:$X$700,5,FALSE)),"") -> 78.67321318 | AS21: =IFERROR(IF((OR($D21="RP",$D21="SP")),"",VLOOKUP($C21,Filtered!$A$1:$X$700,12,FALSE)),"") -> 10.14094858 | AU21: =IF(ISBLANK(A21),0,1) -> 0 | AV21: =IF(M21="",0,1) -> 1 | AW21: =A21 -> 0 | AX21: =IF(D21="C",1,IF(D21="1B",2,IF(D21="2B",3,IF(D21="3B",4,IF(D21="SS",5,IF(D21="CI",6,IF(D21="MI",7,IF(D21="OF",11,IF(D21="LF",8,IF(D21="CF",9,IF(D21="RF",10,IF(D21="DH",12,IF(D21="SP",13,IF(D21="RP",14,IF(D21="P",15,16))))))))))))))) -> 11 | AY21: =VLOOKUP(C21,'Starter Calc'!$B$2:$BS$700,70,FALSE) -> Bench | AZ21: =VLOOKUP(C21,'Starter Calc'!$B$2:$AO$700,40,FALSE) -> Yes | BA21: =IFERROR(IF(ISTEXT($A21),"",IF((OR($D21="RP",$D21="SP")),ABS(VLOOKUP(D21,'Filtered-P'!$AE$3:$AI$4,5,FALSE))+M21,ABS(VLOOKUP(D21,Filtered!$AJ$3:$AN$14,5,FALSE))+M21)),"") -> 7.72822285 | BB21: =IFERROR(BA21+ABS($BA$4),"") -> 8.599497779 | BC21: =IF(AND($A21<>"",$B21<>""),B21,"N") -> N | BD21: =IFERROR(VLOOKUP($C21,'ADP-Rank'!$A$2:$AB$620,25,FALSE),TRUE) -> TRUE | BE21: =IFERROR((BB21-BB$3)^2,"") -> 19.4318505 | BF21: =VLOOKUP(C21,'Starter Calc'!$B$2:$CD$700,71,FALSE) -> OF.Yes
C22: Troy Tulowitzki | D22: SS | E22: =IFERROR(IF(VLOOKUP(C22,'Starter Calc'!$B$2:$E$700,4,FALSE)="","",VLOOKUP(C22,'Starter Calc'!$B$2:$E$700,4,FALSE)),"") -> ,, | F22: =IFERROR(VLOOKUP($C22,'ADP-Rank'!$A$2:$G$620,5,FALSE),"") -> COL | G22: =IFERROR(VLOOKUP($C22,'ADP-Rank'!$A$2:$X$620,6,FALSE),"") -> 30 | H22: =IFERROR(IF(ISBLANK($B22),IF(BF22="Rostered",1,(IF((OR($D22="RP",$D22="SP")),ROUND((N22*($BB$1/$BD$1))+1,0),ROUND((N22*($BB$2/$BD$2))+1,0)))),""),"") -> 30 | I22: =VLOOKUP($C22,'ADP-Rank'!$A$2:$AB$620,26,FALSE) -> 19 | J22: =IF(ISBLANK($B22),IFERROR(CHOOSE(Personalize!$E$31,(VLOOKUP(C22,'ADP-Rank'!$A$2:$Z$620,7,FALSE)*(Personalize!$A$3)+1),(VLOOKUP(C22,'ADP-Rank'!$A$2:$Z$620,8,FALSE)*(Personalize!$A$3)+1),(VLOOKUP(C22,'ADP-Rank'!$A$2:$Z$620,9,FALSE)*(Personalize!$A$3)+1),(VLOOKUP(C22,'ADP-Rank'!$A$2:$AA$620,10,FALSE)*(Personalize!$A$3)+1),(VLOOKUP(C22,'ADP-Rank'!$A$2:$AA$620,11,FALSE)*(Personalize!$A$3)+1),(VLOOKUP(C22,'ADP-Rank'!$A$2:$AA$620,12,FALSE)*(Personalize!$A$3)+1),(VLOOKUP(C22,'ADP-Rank'!$A$2:$AA$620,13,FALSE)*(Personalize!$A$3)+1),(VLOOKUP(C22,'ADP-Rank'!$A$2:$AA$620,14,FALSE)*(Personalize!$A$3)+1),(VLOOKUP(C22,'ADP-Rank'!$A$2:$AA$620,15,FALSE)*(Personalize!$A$3)+1),(VLOOKUP(C22,'ADP-Rank'!$A$2:$AG$620,28,FALSE)*(Personalize!$A$3)+1)),""),"") -> 27 | K22: =IF(ISBLANK($B22),IFERROR(CHOOSE(Personalize!$E$31,(VLOOKUP(C22,'ADP-Rank'!$A$2:$Z$620,7,FALSE)*(Personalize!$A$3-$AZ$4)+1),(VLOOKUP(C22,'ADP-Rank'!$A$2:$Z$620,8,FALSE)*(Personalize!$A$3-$AZ$4)+1),(VLOOKUP(C22,'ADP-Rank'!$A$2:$Z$620,9,FALSE)*(Personalize!$A$3-$AZ$4)+1),(VLOOKUP(C22,'ADP-Rank'!$A$2:$AA$620,10,FALSE)*(Personalize!$A$3-$AZ$4)+1),(VLOOKUP(C22,'ADP-Rank'!$A$2:$AA$620,11,FALSE)*(Personalize!$A$3-$AZ$4)+1),(VLOOKUP(C22,'ADP-Rank'!$A$2:$AA$620,12,FALSE)*(Personalize!$A$3-$AZ$4)+1),(VLOOKUP(C22,'ADP-Rank'!$A$2:$AA$620,13,FALSE)*(Personalize!$A$3-$AZ$4)+1),(VLOOKUP(C22,'ADP-Rank'!$A$2:$AA$620,14,FALSE)*(Personalize!$A$3-$AZ$4)+1),(VLOOKUP(C22,'ADP-Rank'!$A$2:$AA$620,15,FALSE)*(Personalize!$A$3-$AZ$4)+1),(VLOOKUP(C22,'ADP-Rank'!$A$2:$AG$620,28,FALSE)*(Personalize!$A$3-$AZ$4)+1)),""),"") -> 27 | L22: =IFERROR(RANK($M22,$M$7:$M$746,0),"") -> 37 | M22: =IF((SUM(O22:AI22)=0),"",SUM(O22:AI22)) -> 3.211636244 | N22: =IFERROR(IF(ISTEXT($A22),"",IF((OR($D22="RP",$D22="SP")),ABS(VLOOKUP(D22,'Filtered-P'!$AE$3:$AI$4,5,FALSE))+M22,ABS(VLOOKUP(D22,Filtered!$AJ$3:$AN$14,5,FALSE))+M22)),"") -> 7.567273687 | O22: =IFERROR(IF((OR($D22="RP",$D22="SP")),IF(Personalize!$E$10=TRUE,(((VLOOKUP($C22,'Filtered-P'!$A$1:$P$700,2,FALSE))-'Filtered-P'!$AF$8)/'Filtered-P'!$AG$8),""),IF(Personalize!$E$4=TRUE,(((VLOOKUP($C22,Filtered!$A$1:$AD$700,22,FALSE))-Filtered!$AK$35)/Filtered!$AL$35),"")),"") -> 1.829304293 | P22: =IFERROR(IF((OR($D22="RP",$D22="SP")),IF(Personalize!$E$12=TRUE,(((VLOOKUP($C22,'Filtered-P'!$A$1:$P$700,9,FALSE))-'Filtered-P'!$AF$15)/'Filtered-P'!$AG$15),""),IF(Personalize!$E$3=TRUE,(((VLOOKUP($C22,Filtered!$A$1:$AB$700,10,FALSE))-Filtered!$AK$25)/Filtered!$AL$25),"")),"") -> 0.9933936608 | Q22: =IFERROR(IF((OR($D22="RP",$D22="SP")),IF(Personalize!$E$11=TRUE,(((VLOOKUP($C22,'Filtered-P'!$A$1:$P$700,7,FALSE))-'Filtered-P'!$AF$13)/'Filtered-P'!$AG$13),""),IF(Personalize!$E$2=TRUE,(((VLOOKUP($C22,Filtered!$A$1:$AB$700,5,FALSE))-Filtered!$AK$20)/Filtered!$AL$20),"")),"") -> 0.566270859 | R22: =IFERROR(IF((OR($D22="RP",$D22="SP")),IF(Personalize!$E$13=TRUE,(((VLOOKUP($C22,'Filtered-P'!$A$1:$P$700,13,FALSE))-'Filtered-P'!$AF$19)/'Filtered-P'!$AG$19),""),IF(Personalize!$E$5=TRUE,(((VLOOKUP($C22,Filtered!$A$1:$AB$700,11,FALSE))-Filtered!$AK$26)/Filtered!$AL$26),"")),"") -> 0.5963271619 | S22: =IFERROR(IF((OR($D22="RP",$D22="SP")),IF(Personalize!$E$14=TRUE,(((VLOOKUP($C22,'Filtered-P'!$A$1:$P$700,14,FALSE))-'Filtered-P'!$AF$20)/'Filtered-P'!$AG$20),""),IF(Personalize!$E$6=TRUE,(((VLOOKUP($C22,Filtered!$A$1:$AB$700,12,FALSE))-Filtered!$AK$27)/Filtered!$AL$27),"")),"") -> -0.7736597312 | T22: =IFERROR(IF((OR($D22="RP",$D22="SP")),IF(Personalize!$E$16=TRUE,(((VLOOKUP($C22,'Filtered-P'!$A$1:$P$700,3,FALSE))-'Filtered-P'!$AF$9)/'Filtered-P'!$AG$9),""),IF(Personalize!$E$7=TRUE,(((VLOOKUP($C22,Filtered!$A$1:$AD$700,24,FALSE))-Filtered!$AK$37)/Filtered!$AL$37),"")),"") ->  | U22: =IFERROR(IF((OR($D22="RP",$D22="SP")),IF(Personalize!$E$15=TRUE,(((VLOOKUP($C22,'Filtered-P'!$A$1:$P$700,15,FALSE))-'Filtered-P'!$AF$21)/'Filtered-P'!$AG$21),""),IF(Personalize!$E$8=TRUE,(((VLOOKUP($C22,Filtered!$A$1:$AD$700,23,FALSE))-Filtered!$AK$36)/Filtered!$AL$36),"")),"") ->  | V22: =IFERROR(IF((OR($D22="RP",$D22="SP")),IF(Personalize!$E$17=TRUE,(((VLOOKUP($C22,'Filtered-P'!$A$1:$P$700,16,FALSE))-'Filtered-P'!$AF$22)/'Filtered-P'!$AG$22),""),IF(Personalize!$E$9=TRUE,(((VLOOKUP($C22,Filtered!$A$1:$AD$700,25,FALSE))-Filtered!$AK$38)/Filtered!$AL$38),"")),"") ->  | W22: =IFERROR(IF((OR($D22="RP",$D22="SP")),IF(Personalize!$E$37=TRUE,(((VLOOKUP($C22,'Filtered-P'!$A$1:$Z$700,17,FALSE))-'Filtered-P'!$AF$25)/'Filtered-P'!$AG$25),""),IF(Personalize!$E$39=TRUE,(((VLOOKUP($C22,Filtered!$A$1:$X$700,6,FALSE))-Filtered!$AK$21)/Filtered!$AL$21),"")),"") ->  | X22: =IFERROR(IF((OR($D22="RP",$D22="SP")),IF(Personalize!$E$38=TRUE,(((VLOOKUP($C22,'Filtered-P'!$A$1:$Z$700,18,FALSE))-'Filtered-P'!$AF$26)/'Filtered-P'!$AG$26),""),IF(Personalize!$E$40=TRUE,(((VLOOKUP($C22,Filtered!$A$1:$X$700,14,FALSE))-Filtered!$AK$29)/Filtered!$AL$29),"")),"") ->  | Y22: =IFERROR(IF((OR($D22="RP",$D22="SP")),IF(Personalize!$E$45=TRUE,(((VLOOKUP($C22,'Filtered-P'!$A$1:$Z$700,4,FALSE))-'Filtered-P'!$AF$10)/'Filtered-P'!$AG$10),""),IF(Personalize!$E$41=TRUE,(((VLOOKUP($C22,Filtered!$A$1:$AD$700,20,FALSE))-Filtered!$AK$43)/Filtered!$AL$43),"")),"") ->  | Z22: =IFERROR(IF((OR($D22="RP",$D22="SP")),IF(Personalize!$E$46=TRUE,(((VLOOKUP($C22,'Filtered-P'!$A$1:$Z$700,19,FALSE))-'Filtered-P'!$AF$27)/'Filtered-P'!$AG$27),""),IF(Personalize!$E$44=TRUE,(((VLOOKUP($C22,Filtered!$A$1:$AD$700,21,FALSE))-Filtered!$AK$44)/Filtered!$AL$44),"")),"") ->  | AA22: =IFERROR(IF((OR($D22="RP",$D22="SP")),IF(Personalize!$E$47=TRUE,(((VLOOKUP($C22,'Filtered-P'!$A$1:$Z$700,6,FALSE))-'Filtered-P'!$AF$12)/'Filtered-P'!$AG$12),""),IF(Personalize!$E$42=TRUE,(((VLOOKUP($C22,Filtered!$A$1:$AD$700,8,FALSE))-Filtered!$AK$23)/Filtered!$AL$23),"")),"") ->  | AB22: =IFERROR(IF((OR($D22="RP",$D22="SP")),IF(Personalize!$E$48=TRUE,(((VLOOKUP($C22,'Filtered-P'!$A$1:$Z$700,5,FALSE))-'Filtered-P'!$AF$11)/'Filtered-P'!$AG$11),""),IF(Personalize!$E$43=TRUE,(((VLOOKUP($C22,Filtered!$A$1:$AD$700,9,FALSE))-Filtered!$AK$24)/Filtered!$AL$24),"")),"") ->  | AC22: =IFERROR(IF((OR($D22="RP",$D22="SP")),IF(Personalize!$E$52=TRUE,(((VLOOKUP($C22,'Filtered-P'!$A$1:$AD$700,21,FALSE))-'Filtered-P'!$AF$29)/(-1*'Filtered-P'!$AG$29)),""),IF(Personalize!$E$49=TRUE,(((VLOOKUP($C22,Filtered!$A$1:$AF$628,30,FALSE))-Filtered!$AK$45)/Filtered!$AL$45),"")),"") ->  | AD22: =IFERROR(IF((OR($D22="RP",$D22="SP")),IF(Personalize!$E$53=TRUE,(((VLOOKUP($C22,'Filtered-P'!$A$1:$AD$700,23,FALSE))-'Filtered-P'!$AF$31)/(-1*'Filtered-P'!$AG$31)),""),IF(Personalize!$E$50=TRUE,(((VLOOKUP($C22,Filtered!$A$1:$AF$628,31,FALSE))-Filtered!$AK$46)/Filtered!$AL$46),"")),"") ->  | AE22: =IFERROR(IF((OR($D22="RP",$D22="SP")),IF(Personalize!$E$54=TRUE,(((VLOOKUP($C22,'Filtered-P'!$A$1:$AD$700,24,FALSE))-'Filtered-P'!$AF$32)/'Filtered-P'!$AG$32),""),IF(Personalize!$E$51=TRUE,(((VLOOKUP($C22,Filtered!$A$1:$AF$628,15,FALSE))-Filtered!$AK$30)/(-1*Filtered!$AL$30)),"")),"") ->  | AF22: =IFERROR(IF((OR($D22="RP",$D22="SP")),IF(Personalize!$E$56=TRUE,(((VLOOKUP($C22,'Filtered-P'!$A$1:$AD$700,29,FALSE))-'Filtered-P'!$AF$35)/'Filtered-P'!$AG$35),""),IF(Personalize!$E$60=TRUE,(((VLOOKUP($C22,Filtered!$A$1:$AF$700,7,FALSE))-Filtered!$AK$22)/Filtered!$AL$22),"")),"") ->  | AG22: =IFERROR(IF((OR($D22="RP",$D22="SP")),IF(Personalize!$E$57=TRUE,(((VLOOKUP($C22,'Filtered-P'!$A$1:$AD$700,28,FALSE))-'Filtered-P'!$AF$34)/'Filtered-P'!$AG$34),""),IF(Personalize!$E$61=TRUE,(((VLOOKUP($C22,Filtered!$A$1:$AZ$700,34,FALSE))-Filtered!$AK$47)/Filtered!$AL$47),"")),"") ->  | AH22: =IFERROR(IF((OR($D22="RP",$D22="SP")),IF(Personalize!$E$58=TRUE,(((VLOOKUP($C22,'Filtered-P'!$A$1:$Z$700,8,FALSE))-'Filtered-P'!$AF$14)/'Filtered-P'!$AG$14),""),IF(Personalize!$E$62=TRUE,(((VLOOKUP($C22,Filtered!$A$1:$AF$700,13,FALSE))-Filtered!$AK$28)/(-1*Filtered!$AL$28)),"")),"") ->  | AI22: =IFERROR(IF((OR($D22="RP",$D22="SP")),IF(Personalize!$E$59=TRUE,(((VLOOKUP($C22,'Filtered-P'!$A$1:$AD$700,27,FALSE))-'Filtered-P'!$AF$33)/'Filtered-P'!$AG$33),""),IF(Personalize!$E$63=TRUE,(((VLOOKUP($C22,Filtered!$A$1:$AZ$700,35,FALSE))-Filtered!$AK$48)/(-1*Filtered!$AL$48)),"")),"") ->  | AJ22: =IFERROR(IF((OR($D22="RP",$D22="SP")),VLOOKUP($C22,'Filtered-P'!$A$1:$P$700,2,FALSE),""),"") ->  | AK22: =IFERROR(IF((OR($D22="RP",$D22="SP")),VLOOKUP($C22,'Filtered-P'!$A$1:$P$700,9,FALSE),""),"") ->  | AL22: =IFERROR(IF((OR($D22="RP",$D22="SP")),VLOOKUP($C22,'Filtered-P'!$A$1:$P$700,7,FALSE),""),"") ->  | AM22: =IFERROR(IF((OR($D22="RP",$D22="SP")),VLOOKUP($C22,'Filtered-P'!$A$1:$P$700,10,FALSE),""),"") ->  | AN22: =IFERROR(IF((OR($D22="RP",$D22="SP")),VLOOKUP($C22,'Filtered-P'!$A$1:$P$700,11,FALSE),""),"") ->  | AO22: =IFERROR(IF((OR($D22="RP",$D22="SP")),"",VLOOKUP($C22,Filtered!$A$1:$X$700,16,FALSE)),"") -> 0.2993685479 | AP22: =IFERROR(IF((OR($D22="RP",$D22="SP")),"",VLOOKUP($C22,Filtered!$A$1:$X$700,10,FALSE)),"") -> 23.73914885 | AQ22: =IFERROR(IF((OR($D22="RP",$D22="SP")),"",VLOOKUP($C22,Filtered!$A$1:$X$700,11,FALSE)),"") -> 73.86156584 | AR22: =IFERROR(IF((OR($D22="RP",$D22="SP")),"",VLOOKUP($C22,Filtered!$A$1:$X$700,5,FALSE)),"") -> 73.45379231 | AS22: =IFERROR(IF((OR($D22="RP",$D22="SP")),"",VLOOKUP($C22,Filtered!$A$1:$X$700,12,FALSE)),"") -> 3.200008751 | AU22: =IF(ISBLANK(A22),0,1) -> 0 | AV22: =IF(M22="",0,1) -> 1 | AW22: =A22 -> 0 | AX22: =IF(D22="C",1,IF(D22="1B",2,IF(D22="2B",3,IF(D22="3B",4,IF(D22="SS",5,IF(D22="CI",6,IF(D22="MI",7,IF(D22="OF",11,IF(D22="LF",8,IF(D22="CF",9,IF(D22="RF",10,IF(D22="DH",12,IF(D22="SP",13,IF(D22="RP",14,IF(D22="P",15,16))))))))))))))) -> 5 | AY22: =VLOOKUP(C22,'Starter Calc'!$B$2:$BS$700,70,FALSE) -> Bench | AZ22: =VLOOKUP(C22,'Starter Calc'!$B$2:$AO$700,40,FALSE) -> Yes | BA22: =IFERROR(IF(ISTEXT($A22),"",IF((OR($D22="RP",$D22="SP")),ABS(VLOOKUP(D22,'Filtered-P'!$AE$3:$AI$4,5,FALSE))+M22,ABS(VLOOKUP(D22,Filtered!$AJ$3:$AN$14,5,FALSE))+M22)),"") -> 7.567273687 | BB22: =IFERROR(BA22+ABS($BA$4),"") -> 8.438548617 | BC22: =IF(AND($A22<>"",$B22<>""),B22,"N") -> N | BD22: =IFERROR(VLOOKUP($C22,'ADP-Rank'!$A$2:$AB$620,25,FALSE),TRUE) -> TRUE | BE22: =IFERROR((BB22-BB$3)^2,"") -> 18.03877669 | BF22: =VLOOKUP(C22,'Starter Calc'!$B$2:$CD$700,71,FALSE) -> SS.Yes
C23: Carlos Gomez | D23: OF | E23: =IFERROR(IF(VLOOKUP(C23,'Starter Calc'!$B$2:$E$700,4,FALSE)="","",VLOOKUP(C23,'Starter Calc'!$B$2:$E$700,4,FALSE)),"") -> ,CF, | F23: =IFERROR(VLOOKUP($C23,'ADP-Rank'!$A$2:$G$620,5,FALSE),"") -> MIL | G23: =IFERROR(VLOOKUP($C23,'ADP-Rank'!$A$2:$X$620,6,FALSE),"") -> 29 | H23: =IFERROR(IF(ISBLANK($B23),IF(BF23="Rostered",1,(IF((OR($D23="RP",$D23="SP")),ROUND((N23*($BB$1/$BD$1))+1,0),ROUND((N23*($BB$2/$BD$2))+1,0)))),""),"") -> 30 | I23: =VLOOKUP($C23,'ADP-Rank'!$A$2:$AB$620,26,FALSE) -> 8 | J23: =IF(ISBLANK($B23),IFERROR(CHOOSE(Personalize!$E$31,(VLOOKUP(C23,'ADP-Rank'!$A$2:$Z$620,7,FALSE)*(Personalize!$A$3)+1),(VLOOKUP(C23,'ADP-Rank'!$A$2:$Z$620,8,FALSE)*(Personalize!$A$3)+1),(VLOOKUP(C23,'ADP-Rank'!$A$2:$Z$620,9,FALSE)*(Personalize!$A$3)+1),(VLOOKUP(C23,'ADP-Rank'!$A$2:$AA$620,10,FALSE)*(Personalize!$A$3)+1),(VLOOKUP(C23,'ADP-Rank'!$A$2:$AA$620,11,FALSE)*(Personalize!$A$3)+1),(VLOOKUP(C23,'ADP-Rank'!$A$2:$AA$620,12,FALSE)*(Personalize!$A$3)+1),(VLOOKUP(C23,'ADP-Rank'!$A$2:$AA$620,13,FALSE)*(Personalize!$A$3)+1),(VLOOKUP(C23,'ADP-Rank'!$A$2:$AA$620,14,FALSE)*(Personalize!$A$3)+1),(VLOOKUP(C23,'ADP-Rank'!$A$2:$AA$620,15,FALSE)*(Personalize!$A$3)+1),(VLOOKUP(C23,'ADP-Rank'!$A$2:$AG$620,28,FALSE)*(Personalize!$A$3)+1)),""),"") -> 33 | K23: =IF(ISBLANK($B23),IFERROR(CHOOSE(Personalize!$E$31,(VLOOKUP(C23,'ADP-Rank'!$A$2:$Z$620,7,FALSE)*(Personalize!$A$3-$AZ$4)+1),(VLOOKUP(C23,'ADP-Rank'!$A$2:$Z$620,8,FALSE)*(Personalize!$A$3-$AZ$4)+1),(VLOOKUP(C23,'ADP-Rank'!$A$2:$Z$620,9,FALSE)*(Personalize!$A$3-$AZ$4)+1),(VLOOKUP(C23,'ADP-Rank'!$A$2:$AA$620,10,FALSE)*(Personalize!$A$3-$AZ$4)+1),(VLOOKUP(C23,'ADP-Rank'!$A$2:$AA$620,11,FALSE)*(Personalize!$A$3-$AZ$4)+1),(VLOOKUP(C23,'ADP-Rank'!$A$2:$AA$620,12,FALSE)*(Personalize!$A$3-$AZ$4)+1),(VLOOKUP(C23,'ADP-Rank'!$A$2:$AA$620,13,FALSE)*(Personalize!$A$3-$AZ$4)+1),(VLOOKUP(C23,'ADP-Rank'!$A$2:$AA$620,14,FALSE)*(Personalize!$A$3-$AZ$4)+1),(VLOOKUP(C23,'ADP-Rank'!$A$2:$AA$620,15,FALSE)*(Personalize!$A$3-$AZ$4)+1),(VLOOKUP(C23,'ADP-Rank'!$A$2:$AG$620,28,FALSE)*(Personalize!$A$3-$AZ$4)+1)),""),"") -> 33 | L23: =IFERROR(RANK($M23,$M$7:$M$746,0),"") -> 20 | M23: =IF((SUM(O23:AI23)=0),"",SUM(O23:AI23)) -> 4.612939855 | N23: =IFERROR(IF(ISTEXT($A23),"",IF((OR($D23="RP",$D23="SP")),ABS(VLOOKUP(D23,'Filtered-P'!$AE$3:$AI$4,5,FALSE))+M23,ABS(VLOOKUP(D23,Filtered!$AJ$3:$AN$14,5,FALSE))+M23)),"") -> 7.710782012 | O23: =IFERROR(IF((OR($D23="RP",$D23="SP")),IF(Personalize!$E$10=TRUE,(((VLOOKUP($C23,'Filtered-P'!$A$1:$P$700,2,FALSE))-'Filtered-P'!$AF$8)/'Filtered-P'!$AG$8),""),IF(Personalize!$E$4=TRUE,(((VLOOKUP($C23,Filtered!$A$1:$AD$700,22,FALSE))-Filtered!$AK$35)/Filtered!$AL$35),"")),"") -> -0.2966268896 | P23: =IFERROR(IF((OR($D23="RP",$D23="SP")),IF(Personalize!$E$12=TRUE,(((VLOOKUP($C23,'Filtered-P'!$A$1:$P$700,9,FALSE))-'Filtered-P'!$AF$15)/'Filtered-P'!$AG$15),""),IF(Personalize!$E$3=TRUE,(((VLOOKUP($C23,Filtered!$A$1:$AB$700,10,FALSE))-Filtered!$AK$25)/Filtered!$AL$25),"")),"") -> 0.6070349181 | Q23: =IFERROR(IF((OR($D23="RP",$D23="SP")),IF(Personalize!$E$11=TRUE,(((VLOOKUP($C23,'Filtered-P'!$A$1:$P$700,7,FALSE))-'Filtered-P'!$AF$13)/'Filtered-P'!$AG$13),""),IF(Personalize!$E$2=TRUE,(((VLOOKUP($C23,Filtered!$A$1:$AB$700,5,FALSE))-Filtered!$AK$20)/Filtered!$AL$20),"")),"") -> 1.761668892 | R23: =IFERROR(IF((OR($D23="RP",$D23="SP")),IF(Personalize!$E$13=TRUE,(((VLOOKUP($C23,'Filtered-P'!$A$1:$P$700,13,FALSE))-'Filtered-P'!$AF$19)/'Filtered-P'!$AG$19),""),IF(Personalize!$E$5=TRUE,(((VLOOKUP($C23,Filtered!$A$1:$AB$700,11,FALSE))-Filtered!$AK$26)/Filtered!$AL$26),"")),"") -> 0.1012830375 | S23: =IFERROR(IF((OR($D23="RP",$D23="SP")),IF(Personalize!$E$14=TRUE,(((VLOOKUP($C23,'Filtered-P'!$A$1:$P$700,14,FALSE))-'Filtered-P'!$AF$20)/'Filtered-P'!$AG$20),""),IF(Personalize!$E$6=TRUE,(((VLOOKUP($C23,Filtered!$A$1:$AB$700,12,FALSE))-Filtered!$AK$27)/Filtered!$AL$27),"")),"") -> 2.439579896 | T23: =IFERROR(IF((OR($D23="RP",$D23="SP")),IF(Personalize!$E$16=TRUE,(((VLOOKUP($C23,'Filtered-P'!$A$1:$P$700,3,FALSE))-'Filtered-P'!$AF$9)/'Filtered-P'!$AG$9),""),IF(Personalize!$E$7=TRUE,(((VLOOKUP($C23,Filtered!$A$1:$AD$700,24,FALSE))-Filtered!$AK$37)/Filtered!$AL$37),"")),"") ->  | U23: =IFERROR(IF((OR($D23="RP",$D23="SP")),IF(Personalize!$E$15=TRUE,(((VLOOKUP($C23,'Filtered-P'!$A$1:$P$700,15,FALSE))-'Filtered-P'!$AF$21)/'Filtered-P'!$AG$21),""),IF(Personalize!$E$8=TRUE,(((VLOOKUP($C23,Filtered!$A$1:$AD$700,23,FALSE))-Filtered!$AK$36)/Filtered!$AL$36),"")),"") ->  | V23: =IFERROR(IF((OR($D23="RP",$D23="SP")),IF(Personalize!$E$17=TRUE,(((VLOOKUP($C23,'Filtered-P'!$A$1:$P$700,16,FALSE))-'Filtered-P'!$AF$22)/'Filtered-P'!$AG$22),""),IF(Personalize!$E$9=TRUE,(((VLOOKUP($C23,Filtered!$A$1:$AD$700,25,FALSE))-Filtered!$AK$38)/Filtered!$AL$38),"")),"") ->  | W23: =IFERROR(IF((OR($D23="RP",$D23="SP")),IF(Personalize!$E$37=TRUE,(((VLOOKUP($C23,'Filtered-P'!$A$1:$Z$700,17,FALSE))-'Filtered-P'!$AF$25)/'Filtered-P'!$AG$25),""),IF(Personalize!$E$39=TRUE,(((VLOOKUP($C23,Filtered!$A$1:$X$700,6,FALSE))-Filtered!$AK$21)/Filtered!$AL$21),"")),"") ->  | X23: =IFERROR(IF((OR($D23="RP",$D23="SP")),IF(Personalize!$E$38=TRUE,(((VLOOKUP($C23,'Filtered-P'!$A$1:$Z$700,18,FALSE))-'Filtered-P'!$AF$26)/'Filtered-P'!$AG$26),""),IF(Personalize!$E$40=TRUE,(((VLOOKUP($C23,Filtered!$A$1:$X$700,14,FALSE))-Filtered!$AK$29)/Filtered!$AL$29),"")),"") ->  | Y23: =IFERROR(IF((OR($D23="RP",$D23="SP")),IF(Personalize!$E$45=TRUE,(((VLOOKUP($C23,'Filtered-P'!$A$1:$Z$700,4,FALSE))-'Filtered-P'!$AF$10)/'Filtered-P'!$AG$10),""),IF(Personalize!$E$41=TRUE,(((VLOOKUP($C23,Filtered!$A$1:$AD$700,20,FALSE))-Filtered!$AK$43)/Filtered!$AL$43),"")),"") ->  | Z23: =IFERROR(IF((OR($D23="RP",$D23="SP")),IF(Personalize!$E$46=TRUE,(((VLOOKUP($C23,'Filtered-P'!$A$1:$Z$700,19,FALSE))-'Filtered-P'!$AF$27)/'Filtered-P'!$AG$27),""),IF(Personalize!$E$44=TRUE,(((VLOOKUP($C23,Filtered!$A$1:$AD$700,21,FALSE))-Filtered!$AK$44)/Filtered!$AL$44),"")),"") ->  | AA23: =IFERROR(IF((OR($D23="RP",$D23="SP")),IF(Personalize!$E$47=TRUE,(((VLOOKUP($C23,'Filtered-P'!$A$1:$Z$700,6,FALSE))-'Filtered-P'!$AF$12)/'Filtered-P'!$AG$12),""),IF(Personalize!$E$42=TRUE,(((VLOOKUP($C23,Filtered!$A$1:$AD$700,8,FALSE))-Filtered!$AK$23)/Filtered!$AL$23),"")),"") ->  | AB23: =IFERROR(IF((OR($D23="RP",$D23="SP")),IF(Personalize!$E$48=TRUE,(((VLOOKUP($C23,'Filtered-P'!$A$1:$Z$700,5,FALSE))-'Filtered-P'!$AF$11)/'Filtered-P'!$AG$11),""),IF(Personalize!$E$43=TRUE,(((VLOOKUP($C23,Filtered!$A$1:$AD$700,9,FALSE))-Filtered!$AK$24)/Filtered!$AL$24),"")),"") ->  | AC23: =IFERROR(IF((OR($D23="RP",$D23="SP")),IF(Personalize!$E$52=TRUE,(((VLOOKUP($C23,'Filtered-P'!$A$1:$AD$700,21,FALSE))-'Filtered-P'!$AF$29)/(-1*'Filtered-P'!$AG$29)),""),IF(Personalize!$E$49=TRUE,(((VLOOKUP($C23,Filtered!$A$1:$AF$628,30,FALSE))-Filtered!$AK$45)/Filtered!$AL$45),"")),"") ->  | AD23: =IFERROR(IF((OR($D23="RP",$D23="SP")),IF(Personalize!$E$53=TRUE,(((VLOOKUP($C23,'Filtered-P'!$A$1:$AD$700,23,FALSE))-'Filtered-P'!$AF$31)/(-1*'Filtered-P'!$AG$31)),""),IF(Personalize!$E$50=TRUE,(((VLOOKUP($C23,Filtered!$A$1:$AF$628,31,FALSE))-Filtered!$AK$46)/Filtered!$AL$46),"")),"") ->  | AE23: =IFERROR(IF((OR($D23="RP",$D23="SP")),IF(Personalize!$E$54=TRUE,(((VLOOKUP($C23,'Filtered-P'!$A$1:$AD$700,24,FALSE))-'Filtered-P'!$AF$32)/'Filtered-P'!$AG$32),""),IF(Personalize!$E$51=TRUE,(((VLOOKUP($C23,Filtered!$A$1:$AF$628,15,FALSE))-Filtered!$AK$30)/(-1*Filtered!$AL$30)),"")),"") ->  | AF23: =IFERROR(IF((OR($D23="RP",$D23="SP")),IF(Personalize!$E$56=TRUE,(((VLOOKUP($C23,'Filtered-P'!$A$1:$AD$700,29,FALSE))-'Filtered-P'!$AF$35)/'Filtered-P'!$AG$35),""),IF(Personalize!$E$60=TRUE,(((VLOOKUP($C23,Filtered!$A$1:$AF$700,7,FALSE))-Filtered!$AK$22)/Filtered!$AL$22),"")),"") ->  | AG23: =IFERROR(IF((OR($D23="RP",$D23="SP")),IF(Personalize!$E$57=TRUE,(((VLOOKUP($C23,'Filtered-P'!$A$1:$AD$700,28,FALSE))-'Filtered-P'!$AF$34)/'Filtered-P'!$AG$34),""),IF(Personalize!$E$61=TRUE,(((VLOOKUP($C23,Filtered!$A$1:$AZ$700,34,FALSE))-Filtered!$AK$47)/Filtered!$AL$47),"")),"") ->  | AH23: =IFERROR(IF((OR($D23="RP",$D23="SP")),IF(Personalize!$E$58=TRUE,(((VLOOKUP($C23,'Filtered-P'!$A$1:$Z$700,8,FALSE))-'Filtered-P'!$AF$14)/'Filtered-P'!$AG$14),""),IF(Personalize!$E$62=TRUE,(((VLOOKUP($C23,Filtered!$A$1:$AF$700,13,FALSE))-Filtered!$AK$28)/(-1*Filtered!$AL$28)),"")),"") ->  | AI23: =IFERROR(IF((OR($D23="RP",$D23="SP")),IF(Personalize!$E$59=TRUE,(((VLOOKUP($C23,'Filtered-P'!$A$1:$AD$700,27,FALSE))-'Filtered-P'!$AF$33)/'Filtered-P'!$AG$33),""),IF(Personalize!$E$63=TRUE,(((VLOOKUP($C23,Filtered!$A$1:$AZ$700,35,FALSE))-Filtered!$AK$48)/(-1*Filtered!$AL$48)),"")),"") ->  | AJ23: =IFERROR(IF((OR($D23="RP",$D23="SP")),VLOOKUP($C23,'Filtered-P'!$A$1:$P$700,2,FALSE),""),"") ->  | AK23: =IFERROR(IF((OR($D23="RP",$D23="SP")),VLOOKUP($C23,'Filtered-P'!$A$1:$P$700,9,FALSE),""),"") ->  | AL23: =IFERROR(IF((OR($D23="RP",$D23="SP")),VLOOKUP($C23,'Filtered-P'!$A$1:$P$700,7,FALSE),""),"") ->  | AM23: =IFERROR(IF((OR($D23="RP",$D23="SP")),VLOOKUP($C23,'Filtered-P'!$A$1:$P$700,10,FALSE),""),"") ->  | AN23: =IFERROR(IF((OR($D23="RP",$D23="SP")),VLOOKUP($C23,'Filtered-P'!$A$1:$P$700,11,FALSE),""),"") ->  | AO23: =IFERROR(IF((OR($D23="RP",$D23="SP")),"",VLOOKUP($C23,Filtered!$A$1:$X$700,16,FALSE)),"") -> 0.258823128 | AP23: =IFERROR(IF((OR($D23="RP",$D23="SP")),"",VLOOKUP($C23,Filtered!$A$1:$X$700,10,FALSE)),"") -> 21.08608362 | AQ23: =IFERROR(IF((OR($D23="RP",$D23="SP")),"",VLOOKUP($C23,Filtered!$A$1:$X$700,11,FALSE)),"") -> 67.38297469 | AR23: =IFERROR(IF((OR($D23="RP",$D23="SP")),"",VLOOKUP($C23,Filtered!$A$1:$X$700,5,FALSE)),"") -> 85.80634963 | AS23: =IFERROR(IF((OR($D23="RP",$D23="SP")),"",VLOOKUP($C23,Filtered!$A$1:$X$700,12,FALSE)),"") -> 32.21373915 | AU23: =IF(ISBLANK(A23),0,1) -> 0 | AV23: =IF(M23="",0,1) -> 1 | AW23: =A23 -> 0 | AX23: =IF(D23="C",1,IF(D23="1B",2,IF(D23="2B",3,IF(D23="3B",4,IF(D23="SS",5,IF(D23="CI",6,IF(D23="MI",7,IF(D23="OF",11,IF(D23="LF",8,IF(D23="CF",9,IF(D23="RF",10,IF(D23="DH",12,IF(D23="SP",13,IF(D23="RP",14,IF(D23="P",15,16))))))))))))))) -> 11 | AY23: =VLOOKUP(C23,'Starter Calc'!$B$2:$BS$700,70,FALSE) -> Bench | AZ23: =VLOOKUP(C23,'Starter Calc'!$B$2:$AO$700,40,FALSE) -> Yes | BA23: =IFERROR(IF(ISTEXT($A23),"",IF((OR($D23="RP",$D23="SP")),ABS(VLOOKUP(D23,'Filtered-P'!$AE$3:$AI$4,5,FALSE))+M23,ABS(VLOOKUP(D23,Filtered!$AJ$3:$AN$14,5,FALSE))+M23)),"") -> 7.710782012 | BB23: =IFERROR(BA23+ABS($BA$4),"") -> 8.582056942 | BC23: =IF(AND($A23<>"",$B23<>""),B23,"N") -> N | BD23: =IFERROR(VLOOKUP($C23,'ADP-Rank'!$A$2:$AB$620,25,FALSE),TRUE) -> TRUE | BE23: =IFERROR((BB23-BB$3)^2,"") -> 19.27839077 | BF23: =VLOOKUP(C23,'Starter Calc'!$B$2:$CD$700,71,FALSE) -> OF.Yes
C24: Yasiel Puig | D24: OF | E24: =IFERROR(IF(VLOOKUP(C24,'Starter Calc'!$B$2:$E$700,4,FALSE)="","",VLOOKUP(C24,'Starter Calc'!$B$2:$E$700,4,FALSE)),"") -> ,CF,RF | F24: =IFERROR(VLOOKUP($C24,'ADP-Rank'!$A$2:$G$620,5,FALSE),"") -> LAD | G24: =IFERROR(VLOOKUP($C24,'ADP-Rank'!$A$2:$X$620,6,FALSE),"") -> 24 | H24: =IFERROR(IF(ISBLANK($B24),IF(BF24="Rostered",1,(IF((OR($D24="RP",$D24="SP")),ROUND((N24*($BB$1/$BD$1))+1,0),ROUND((N24*($BB$2/$BD$2))+1,0)))),""),"") -> 29 | I24: =VLOOKUP($C24,'ADP-Rank'!$A$2:$AB$620,26,FALSE) -> 18 | J24: =IF(ISBLANK($B24),IFERROR(CHOOSE(Personalize!$E$31,(VLOOKUP(C24,'ADP-Rank'!$A$2:$Z$620,7,FALSE)*(Personalize!$A$3)+1),(VLOOKUP(C24,'ADP-Rank'!$A$2:$Z$620,8,FALSE)*(Personalize!$A$3)+1),(VLOOKUP(C24,'ADP-Rank'!$A$2:$Z$620,9,FALSE)*(Personalize!$A$3)+1),(VLOOKUP(C24,'ADP-Rank'!$A$2:$AA$620,10,FALSE)*(Personalize!$A$3)+1),(VLOOKUP(C24,'ADP-Rank'!$A$2:$AA$620,11,FALSE)*(Personalize!$A$3)+1),(VLOOKUP(C24,'ADP-Rank'!$A$2:$AA$620,12,FALSE)*(Personalize!$A$3)+1),(VLOOKUP(C24,'ADP-Rank'!$A$2:$AA$620,13,FALSE)*(Personalize!$A$3)+1),(VLOOKUP(C24,'ADP-Rank'!$A$2:$AA$620,14,FALSE)*(Personalize!$A$3)+1),(VLOOKUP(C24,'ADP-Rank'!$A$2:$AA$620,15,FALSE)*(Personalize!$A$3)+1),(VLOOKUP(C24,'ADP-Rank'!$A$2:$AG$620,28,FALSE)*(Personalize!$A$3)+1)),""),"") -> 34 | K24: =IF(ISBLANK($B24),IFERROR(CHOOSE(Personalize!$E$31,(VLOOKUP(C24,'ADP-Rank'!$A$2:$Z$620,7,FALSE)*(Personalize!$A$3-$AZ$4)+1),(VLOOKUP(C24,'ADP-Rank'!$A$2:$Z$620,8,FALSE)*(Personalize!$A$3-$AZ$4)+1),(VLOOKUP(C24,'ADP-Rank'!$A$2:$Z$620,9,FALSE)*(Personalize!$A$3-$AZ$4)+1),(VLOOKUP(C24,'ADP-Rank'!$A$2:$AA$620,10,FALSE)*(Personalize!$A$3-$AZ$4)+1),(VLOOKUP(C24,'ADP-Rank'!$A$2:$AA$620,11,FALSE)*(Personalize!$A$3-$AZ$4)+1),(VLOOKUP(C24,'ADP-Rank'!$A$2:$AA$620,12,FALSE)*(Personalize!$A$3-$AZ$4)+1),(VLOOKUP(C24,'ADP-Rank'!$A$2:$AA$620,13,FALSE)*(Personalize!$A$3-$AZ$4)+1),(VLOOKUP(C24,'ADP-Rank'!$A$2:$AA$620,14,FALSE)*(Personalize!$A$3-$AZ$4)+1),(VLOOKUP(C24,'ADP-Rank'!$A$2:$AA$620,15,FALSE)*(Personalize!$A$3-$AZ$4)+1),(VLOOKUP(C24,'ADP-Rank'!$A$2:$AG$620,28,FALSE)*(Personalize!$A$3-$AZ$4)+1)),""),"") -> 34 | L24: =IFERROR(RANK($M24,$M$7:$M$746,0),"") -> 22 | M24: =IF((SUM(O24:AI24)=0),"",SUM(O24:AI24)) -> 4.264506946 | N24: =IFERROR(IF(ISTEXT($A24),"",IF((OR($D24="RP",$D24="SP")),ABS(VLOOKUP(D24,'Filtered-P'!$AE$3:$AI$4,5,FALSE))+M24,ABS(VLOOKUP(D24,Filtered!$AJ$3:$AN$14,5,FALSE))+M24)),"") -> 7.362349103 | O24: =IFERROR(IF((OR($D24="RP",$D24="SP")),IF(Personalize!$E$10=TRUE,(((VLOOKUP($C24,'Filtered-P'!$A$1:$P$700,2,FALSE))-'Filtered-P'!$AF$8)/'Filtered-P'!$AG$8),""),IF(Personalize!$E$4=TRUE,(((VLOOKUP($C24,Filtered!$A$1:$AD$700,22,FALSE))-Filtered!$AK$35)/Filtered!$AL$35),"")),"") -> 1.350119137 | P24: =IFERROR(IF((OR($D24="RP",$D24="SP")),IF(Personalize!$E$12=TRUE,(((VLOOKUP($C24,'Filtered-P'!$A$1:$P$700,9,FALSE))-'Filtered-P'!$AF$15)/'Filtered-P'!$AG$15),""),IF(Personalize!$E$3=TRUE,(((VLOOKUP($C24,Filtered!$A$1:$AB$700,10,FALSE))-Filtered!$AK$25)/Filtered!$AL$25),"")),"") -> 0.49160824 | Q24: =IFERROR(IF((OR($D24="RP",$D24="SP")),IF(Personalize!$E$11=TRUE,(((VLOOKUP($C24,'Filtered-P'!$A$1:$P$700,7,FALSE))-'Filtered-P'!$AF$13)/'Filtered-P'!$AG$13),""),IF(Personalize!$E$2=TRUE,(((VLOOKUP($C24,Filtered!$A$1:$AB$700,5,FALSE))-Filtered!$AK$20)/Filtered!$AL$20),"")),"") -> 1.617376946 | R24: =IFERROR(IF((OR($D24="RP",$D24="SP")),IF(Personalize!$E$13=TRUE,(((VLOOKUP($C24,'Filtered-P'!$A$1:$P$700,13,FALSE))-'Filtered-P'!$AF$19)/'Filtered-P'!$AG$19),""),IF(Personalize!$E$5=TRUE,(((VLOOKUP($C24,Filtered!$A$1:$AB$700,11,FALSE))-Filtered!$AK$26)/Filtered!$AL$26),"")),"") -> 0.4569365997 | S24: =IFERROR(IF((OR($D24="RP",$D24="SP")),IF(Personalize!$E$14=TRUE,(((VLOOKUP($C24,'Filtered-P'!$A$1:$P$700,14,FALSE))-'Filtered-P'!$AF$20)/'Filtered-P'!$AG$20),""),IF(Personalize!$E$6=TRUE,(((VLOOKUP($C24,Filtered!$A$1:$AB$700,12,FALSE))-Filtered!$AK$27)/Filtered!$AL$27),"")),"") -> 0.3484660234 | T24: =IFERROR(IF((OR($D24="RP",$D24="SP")),IF(Personalize!$E$16=TRUE,(((VLOOKUP($C24,'Filtered-P'!$A$1:$P$700,3,FALSE))-'Filtered-P'!$AF$9)/'Filtered-P'!$AG$9),""),IF(Personalize!$E$7=TRUE,(((VLOOKUP($C24,Filtered!$A$1:$AD$700,24,FALSE))-Filtered!$AK$37)/Filtered!$AL$37),"")),"") ->  | U24: =IFERROR(IF((OR($D24="RP",$D24="SP")),IF(Personalize!$E$15=TRUE,(((VLOOKUP($C24,'Filtered-P'!$A$1:$P$700,15,FALSE))-'Filtered-P'!$AF$21)/'Filtered-P'!$AG$21),""),IF(Personalize!$E$8=TRUE,(((VLOOKUP($C24,Filtered!$A$1:$AD$700,23,FALSE))-Filtered!$AK$36)/Filtered!$AL$36),"")),"") ->  | V24: =IFERROR(IF((OR($D24="RP",$D24="SP")),IF(Personalize!$E$17=TRUE,(((VLOOKUP($C24,'Filtered-P'!$A$1:$P$700,16,FALSE))-'Filtered-P'!$AF$22)/'Filtered-P'!$AG$22),""),IF(Personalize!$E$9=TRUE,(((VLOOKUP($C24,Filtered!$A$1:$AD$700,25,FALSE))-Filtered!$AK$38)/Filtered!$AL$38),"")),"") ->  | W24: =IFERROR(IF((OR($D24="RP",$D24="SP")),IF(Personalize!$E$37=TRUE,(((VLOOKUP($C24,'Filtered-P'!$A$1:$Z$700,17,FALSE))-'Filtered-P'!$AF$25)/'Filtered-P'!$AG$25),""),IF(Personalize!$E$39=TRUE,(((VLOOKUP($C24,Filtered!$A$1:$X$700,6,FALSE))-Filtered!$AK$21)/Filtered!$AL$21),"")),"") ->  | X24: =IFERROR(IF((OR($D24="RP",$D24="SP")),IF(Personalize!$E$38=TRUE,(((VLOOKUP($C24,'Filtered-P'!$A$1:$Z$700,18,FALSE))-'Filtered-P'!$AF$26)/'Filtered-P'!$AG$26),""),IF(Personalize!$E$40=TRUE,(((VLOOKUP($C24,Filtered!$A$1:$X$700,14,FALSE))-Filtered!$AK$29)/Filtered!$AL$29),"")),"") ->  | Y24: =IFERROR(IF((OR($D24="RP",$D24="SP")),IF(Personalize!$E$45=TRUE,(((VLOOKUP($C24,'Filtered-P'!$A$1:$Z$700,4,FALSE))-'Filtered-P'!$AF$10)/'Filtered-P'!$AG$10),""),IF(Personalize!$E$41=TRUE,(((VLOOKUP($C24,Filtered!$A$1:$AD$700,20,FALSE))-Filtered!$AK$43)/Filtered!$AL$43),"")),"") ->  | Z24: =IFERROR(IF((OR($D24="RP",$D24="SP")),IF(Personalize!$E$46=TRUE,(((VLOOKUP($C24,'Filtered-P'!$A$1:$Z$700,19,FALSE))-'Filtered-P'!$AF$27)/'Filtered-P'!$AG$27),""),IF(Personalize!$E$44=TRUE,(((VLOOKUP($C24,Filtered!$A$1:$AD$700,21,FALSE))-Filtered!$AK$44)/Filtered!$AL$44),"")),"") ->  | AA24: =IFERROR(IF((OR($D24="RP",$D24="SP")),IF(Personalize!$E$47=TRUE,(((VLOOKUP($C24,'Filtered-P'!$A$1:$Z$700,6,FALSE))-'Filtered-P'!$AF$12)/'Filtered-P'!$AG$12),""),IF(Personalize!$E$42=TRUE,(((VLOOKUP($C24,Filtered!$A$1:$AD$700,8,FALSE))-Filtered!$AK$23)/Filtered!$AL$23),"")),"") ->  | AB24: =IFERROR(IF((OR($D24="RP",$D24="SP")),IF(Personalize!$E$48=TRUE,(((VLOOKUP($C24,'Filtered-P'!$A$1:$Z$700,5,FALSE))-'Filtered-P'!$AF$11)/'Filtered-P'!$AG$11),""),IF(Personalize!$E$43=TRUE,(((VLOOKUP($C24,Filtered!$A$1:$AD$700,9,FALSE))-Filtered!$AK$24)/Filtered!$AL$24),"")),"") ->  | AC24: =IFERROR(IF((OR($D24="RP",$D24="SP")),IF(Personalize!$E$52=TRUE,(((VLOOKUP($C24,'Filtered-P'!$A$1:$AD$700,21,FALSE))-'Filtered-P'!$AF$29)/(-1*'Filtered-P'!$AG$29)),""),IF(Personalize!$E$49=TRUE,(((VLOOKUP($C24,Filtered!$A$1:$AF$628,30,FALSE))-Filtered!$AK$45)/Filtered!$AL$45),"")),"") ->  | AD24: =IFERROR(IF((OR($D24="RP",$D24="SP")),IF(Personalize!$E$53=TRUE,(((VLOOKUP($C24,'Filtered-P'!$A$1:$AD$700,23,FALSE))-'Filtered-P'!$AF$31)/(-1*'Filtered-P'!$AG$31)),""),IF(Personalize!$E$50=TRUE,(((VLOOKUP($C24,Filtered!$A$1:$AF$628,31,FALSE))-Filtered!$AK$46)/Filtered!$AL$46),"")),"") ->  | AE24: =IFERROR(IF((OR($D24="RP",$D24="SP")),IF(Personalize!$E$54=TRUE,(((VLOOKUP($C24,'Filtered-P'!$A$1:$AD$700,24,FALSE))-'Filtered-P'!$AF$32)/'Filtered-P'!$AG$32),""),IF(Personalize!$E$51=TRUE,(((VLOOKUP($C24,Filtered!$A$1:$AF$628,15,FALSE))-Filtered!$AK$30)/(-1*Filtered!$AL$30)),"")),"") ->  | AF24: =IFERROR(IF((OR($D24="RP",$D24="SP")),IF(Personalize!$E$56=TRUE,(((VLOOKUP($C24,'Filtered-P'!$A$1:$AD$700,29,FALSE))-'Filtered-P'!$AF$35)/'Filtered-P'!$AG$35),""),IF(Personalize!$E$60=TRUE,(((VLOOKUP($C24,Filtered!$A$1:$AF$700,7,FALSE))-Filtered!$AK$22)/Filtered!$AL$22),"")),"") ->  | AG24: =IFERROR(IF((OR($D24="RP",$D24="SP")),IF(Personalize!$E$57=TRUE,(((VLOOKUP($C24,'Filtered-P'!$A$1:$AD$700,28,FALSE))-'Filtered-P'!$AF$34)/'Filtered-P'!$AG$34),""),IF(Personalize!$E$61=TRUE,(((VLOOKUP($C24,Filtered!$A$1:$AZ$700,34,FALSE))-Filtered!$AK$47)/Filtered!$AL$47),"")),"") ->  | AH24: =IFERROR(IF((OR($D24="RP",$D24="SP")),IF(Personalize!$E$58=TRUE,(((VLOOKUP($C24,'Filtered-P'!$A$1:$Z$700,8,FALSE))-'Filtered-P'!$AF$14)/'Filtered-P'!$AG$14),""),IF(Personalize!$E$62=TRUE,(((VLOOKUP($C24,Filtered!$A$1:$AF$700,13,FALSE))-Filtered!$AK$28)/(-1*Filtered!$AL$28)),"")),"") ->  | AI24: =IFERROR(IF((OR($D24="RP",$D24="SP")),IF(Personalize!$E$59=TRUE,(((VLOOKUP($C24,'Filtered-P'!$A$1:$AD$700,27,FALSE))-'Filtered-P'!$AF$33)/'Filtered-P'!$AG$33),""),IF(Personalize!$E$63=TRUE,(((VLOOKUP($C24,Filtered!$A$1:$AZ$700,35,FALSE))-Filtered!$AK$48)/(-1*Filtered!$AL$48)),"")),"") ->  | AJ24: =IFERROR(IF((OR($D24="RP",$D24="SP")),VLOOKUP($C24,'Filtered-P'!$A$1:$P$700,2,FALSE),""),"") ->  | AK24: =IFERROR(IF((OR($D24="RP",$D24="SP")),VLOOKUP($C24,'Filtered-P'!$A$1:$P$700,9,FALSE),""),"") ->  | AL24: =IFERROR(IF((OR($D24="RP",$D24="SP")),VLOOKUP($C24,'Filtered-P'!$A$1:$P$700,7,FALSE),""),"") ->  | AM24: =IFERROR(IF((OR($D24="RP",$D24="SP")),VLOOKUP($C24,'Filtered-P'!$A$1:$P$700,10,FALSE),""),"") ->  | AN24: =IFERROR(IF((OR($D24="RP",$D24="SP")),VLOOKUP($C24,'Filtered-P'!$A$1:$P$700,11,FALSE),""),"") ->  | AO24: =IFERROR(IF((OR($D24="RP",$D24="SP")),"",VLOOKUP($C24,Filtered!$A$1:$X$700,16,FALSE)),"") -> 0.2843437312 | AP24: =IFERROR(IF((OR($D24="RP",$D24="SP")),"",VLOOKUP($C24,Filtered!$A$1:$X$700,10,FALSE)),"") -> 20.29346662 | AQ24: =IFERROR(IF((OR($D24="RP",$D24="SP")),"",VLOOKUP($C24,Filtered!$A$1:$X$700,11,FALSE)),"") -> 72.037376 | AR24: =IFERROR(IF((OR($D24="RP",$D24="SP")),"",VLOOKUP($C24,Filtered!$A$1:$X$700,5,FALSE)),"") -> 84.31531945 | AS24: =IFERROR(IF((OR($D24="RP",$D24="SP")),"",VLOOKUP($C24,Filtered!$A$1:$X$700,12,FALSE)),"") -> 13.33216754 | AU24: =IF(ISBLANK(A24),0,1) -> 0 | AV24: =IF(M24="",0,1) -> 1 | AW24: =A24 -> 0 | AX24: =IF(D24="C",1,IF(D24="1B",2,IF(D24="2B",3,IF(D24="3B",4,IF(D24="SS",5,IF(D24="CI",6,IF(D24="MI",7,IF(D24="OF",11,IF(D24="LF",8,IF(D24="CF",9,IF(D24="RF",10,IF(D24="DH",12,IF(D24="SP",13,IF(D24="RP",14,IF(D24="P",15,16))))))))))))))) -> 11 | AY24: =VLOOKUP(C24,'Starter Calc'!$B$2:$BS$700,70,FALSE) -> Bench | AZ24: =VLOOKUP(C24,'Starter Calc'!$B$2:$AO$700,40,FALSE) -> Yes | BA24: =IFERROR(IF(ISTEXT($A24),"",IF((OR($D24="RP",$D24="SP")),ABS(VLOOKUP(D24,'Filtered-P'!$AE$3:$AI$4,5,FALSE))+M24,ABS(VLOOKUP(D24,Filtered!$AJ$3:$AN$14,5,FALSE))+M24)),"") -> 7.362349103 | BB24: =IFERROR(BA24+ABS($BA$4),"") -> 8.233624033 | BC24: =IF(AND($A24<>"",$B24<>""),B24,"N") -> N | BD24: =IFERROR(VLOOKUP($C24,'ADP-Rank'!$A$2:$AB$620,25,FALSE),TRUE) -> TRUE | BE24: =IFERROR((BB24-BB$3)^2,"") -> 16.34005607 | BF24: =VLOOKUP(C24,'Starter Calc'!$B$2:$CD$700,71,FALSE) -> OF.Yes
C25: Josh Donaldson | D25: 3B | E25: =IFERROR(IF(VLOOKUP(C25,'Starter Calc'!$B$2:$E$700,4,FALSE)="","",VLOOKUP(C25,'Starter Calc'!$B$2:$E$700,4,FALSE)),"") -> ,, | F25: =IFERROR(VLOOKUP($C25,'ADP-Rank'!$A$2:$G$620,5,FALSE),"") -> TOR | G25: =IFERROR(VLOOKUP($C25,'ADP-Rank'!$A$2:$X$620,6,FALSE),"") -> 29 | H25: =IFERROR(IF(ISBLANK($B25),IF(BF25="Rostered",1,(IF((OR($D25="RP",$D25="SP")),ROUND((N25*($BB$1/$BD$1))+1,0),ROUND((N25*($BB$2/$BD$2))+1,0)))),""),"") -> 29 | I25: =VLOOKUP($C25,'ADP-Rank'!$A$2:$AB$620,26,FALSE) -> 20 | J25: =IF(ISBLANK($B25),IFERROR(CHOOSE(Personalize!$E$31,(VLOOKUP(C25,'ADP-Rank'!$A$2:$Z$620,7,FALSE)*(Personalize!$A$3)+1),(VLOOKUP(C25,'ADP-Rank'!$A$2:$Z$620,8,FALSE)*(Personalize!$A$3)+1),(VLOOKUP(C25,'ADP-Rank'!$A$2:$Z$620,9,FALSE)*(Personalize!$A$3)+1),(VLOOKUP(C25,'ADP-Rank'!$A$2:$AA$620,10,FALSE)*(Personalize!$A$3)+1),(VLOOKUP(C25,'ADP-Rank'!$A$2:$AA$620,11,FALSE)*(Personalize!$A$3)+1),(VLOOKUP(C25,'ADP-Rank'!$A$2:$AA$620,12,FALSE)*(Personalize!$A$3)+1),(VLOOKUP(C25,'ADP-Rank'!$A$2:$AA$620,13,FALSE)*(Personalize!$A$3)+1),(VLOOKUP(C25,'ADP-Rank'!$A$2:$AA$620,14,FALSE)*(Personalize!$A$3)+1),(VLOOKUP(C25,'ADP-Rank'!$A$2:$AA$620,15,FALSE)*(Personalize!$A$3)+1),(VLOOKUP(C25,'ADP-Rank'!$A$2:$AG$620,28,FALSE)*(Personalize!$A$3)+1)),""),"") -> 29 | K25: =IF(ISBLANK($B25),IFERROR(CHOOSE(Personalize!$E$31,(VLOOKUP(C25,'ADP-Rank'!$A$2:$Z$620,7,FALSE)*(Personalize!$A$3-$AZ$4)+1),(VLOOKUP(C25,'ADP-Rank'!$A$2:$Z$620,8,FALSE)*(Personalize!$A$3-$AZ$4)+1),(VLOOKUP(C25,'ADP-Rank'!$A$2:$Z$620,9,FALSE)*(Personalize!$A$3-$AZ$4)+1),(VLOOKUP(C25,'ADP-Rank'!$A$2:$AA$620,10,FALSE)*(Personalize!$A$3-$AZ$4)+1),(VLOOKUP(C25,'ADP-Rank'!$A$2:$AA$620,11,FALSE)*(Personalize!$A$3-$AZ$4)+1),(VLOOKUP(C25,'ADP-Rank'!$A$2:$AA$620,12,FALSE)*(Personalize!$A$3-$AZ$4)+1),(VLOOKUP(C25,'ADP-Rank'!$A$2:$AA$620,13,FALSE)*(Personalize!$A$3-$AZ$4)+1),(VLOOKUP(C25,'ADP-Rank'!$A$2:$AA$620,14,FALSE)*(Personalize!$A$3-$AZ$4)+1),(VLOOKUP(C25,'ADP-Rank'!$A$2:$AA$620,15,FALSE)*(Personalize!$A$3-$AZ$4)+1),(VLOOKUP(C25,'ADP-Rank'!$A$2:$AG$620,28,FALSE)*(Personalize!$A$3-$AZ$4)+1)),""),"") -> 29 | L25: =IFERROR(RANK($M25,$M$7:$M$746,0),"") -> 26 | M25: =IF((SUM(O25:AI25)=0),"",SUM(O25:AI25)) -> 3.932611676 | N25: =IFERROR(IF(ISTEXT($A25),"",IF((OR($D25="RP",$D25="SP")),ABS(VLOOKUP(D25,'Filtered-P'!$AE$3:$AI$4,5,FALSE))+M25,ABS(VLOOKUP(D25,Filtered!$AJ$3:$AN$14,5,FALSE))+M25)),"") -> 7.249381086 | O25: =IFERROR(IF((OR($D25="RP",$D25="SP")),IF(Personalize!$E$10=TRUE,(((VLOOKUP($C25,'Filtered-P'!$A$1:$P$700,2,FALSE))-'Filtered-P'!$AF$8)/'Filtered-P'!$AG$8),""),IF(Personalize!$E$4=TRUE,(((VLOOKUP($C25,Filtered!$A$1:$AD$700,22,FALSE))-Filtered!$AK$35)/Filtered!$AL$35),"")),"") -> 0.09119911921 | P25: =IFERROR(IF((OR($D25="RP",$D25="SP")),IF(Personalize!$E$12=TRUE,(((VLOOKUP($C25,'Filtered-P'!$A$1:$P$700,9,FALSE))-'Filtered-P'!$AF$15)/'Filtered-P'!$AG$15),""),IF(Personalize!$E$3=TRUE,(((VLOOKUP($C25,Filtered!$A$1:$AB$700,10,FALSE))-Filtered!$AK$25)/Filtered!$AL$25),"")),"") -> 1.361602477 | Q25: =IFERROR(IF((OR($D25="RP",$D25="SP")),IF(Personalize!$E$11=TRUE,(((VLOOKUP($C25,'Filtered-P'!$A$1:$P$700,7,FALSE))-'Filtered-P'!$AF$13)/'Filtered-P'!$AG$13),""),IF(Personalize!$E$2=TRUE,(((VLOOKUP($C25,Filtered!$A$1:$AB$700,5,FALSE))-Filtered!$AK$20)/Filtered!$AL$20),"")),"") -> 1.42687708 | R25: =IFERROR(IF((OR($D25="RP",$D25="SP")),IF(Personalize!$E$13=TRUE,(((VLOOKUP($C25,'Filtered-P'!$A$1:$P$700,13,FALSE))-'Filtered-P'!$AF$19)/'Filtered-P'!$AG$19),""),IF(Personalize!$E$5=TRUE,(((VLOOKUP($C25,Filtered!$A$1:$AB$700,11,FALSE))-Filtered!$AK$26)/Filtered!$AL$26),"")),"") -> 1.529037786 | S25: =IFERROR(IF((OR($D25="RP",$D25="SP")),IF(Personalize!$E$14=TRUE,(((VLOOKUP($C25,'Filtered-P'!$A$1:$P$700,14,FALSE))-'Filtered-P'!$AF$20)/'Filtered-P'!$AG$20),""),IF(Personalize!$E$6=TRUE,(((VLOOKUP($C25,Filtered!$A$1:$AB$700,12,FALSE))-Filtered!$AK$27)/Filtered!$AL$27),"")),"") -> -0.4761047865 | T25: =IFERROR(IF((OR($D25="RP",$D25="SP")),IF(Personalize!$E$16=TRUE,(((VLOOKUP($C25,'Filtered-P'!$A$1:$P$700,3,FALSE))-'Filtered-P'!$AF$9)/'Filtered-P'!$AG$9),""),IF(Personalize!$E$7=TRUE,(((VLOOKUP($C25,Filtered!$A$1:$AD$700,24,FALSE))-Filtered!$AK$37)/Filtered!$AL$37),"")),"") ->  | U25: =IFERROR(IF((OR($D25="RP",$D25="SP")),IF(Personalize!$E$15=TRUE,(((VLOOKUP($C25,'Filtered-P'!$A$1:$P$700,15,FALSE))-'Filtered-P'!$AF$21)/'Filtered-P'!$AG$21),""),IF(Personalize!$E$8=TRUE,(((VLOOKUP($C25,Filtered!$A$1:$AD$700,23,FALSE))-Filtered!$AK$36)/Filtered!$AL$36),"")),"") ->  | V25: =IFERROR(IF((OR($D25="RP",$D25="SP")),IF(Personalize!$E$17=TRUE,(((VLOOKUP($C25,'Filtered-P'!$A$1:$P$700,16,FALSE))-'Filtered-P'!$AF$22)/'Filtered-P'!$AG$22),""),IF(Personalize!$E$9=TRUE,(((VLOOKUP($C25,Filtered!$A$1:$AD$700,25,FALSE))-Filtered!$AK$38)/Filtered!$AL$38),"")),"") ->  | W25: =IFERROR(IF((OR($D25="RP",$D25="SP")),IF(Personalize!$E$37=TRUE,(((VLOOKUP($C25,'Filtered-P'!$A$1:$Z$700,17,FALSE))-'Filtered-P'!$AF$25)/'Filtered-P'!$AG$25),""),IF(Personalize!$E$39=TRUE,(((VLOOKUP($C25,Filtered!$A$1:$X$700,6,FALSE))-Filtered!$AK$21)/Filtered!$AL$21),"")),"") ->  | X25: =IFERROR(IF((OR($D25="RP",$D25="SP")),IF(Personalize!$E$38=TRUE,(((VLOOKUP($C25,'Filtered-P'!$A$1:$Z$700,18,FALSE))-'Filtered-P'!$AF$26)/'Filtered-P'!$AG$26),""),IF(Personalize!$E$40=TRUE,(((VLOOKUP($C25,Filtered!$A$1:$X$700,14,FALSE))-Filtered!$AK$29)/Filtered!$AL$29),"")),"") ->  | Y25: =IFERROR(IF((OR($D25="RP",$D25="SP")),IF(Personalize!$E$45=TRUE,(((VLOOKUP($C25,'Filtered-P'!$A$1:$Z$700,4,FALSE))-'Filtered-P'!$AF$10)/'Filtered-P'!$AG$10),""),IF(Personalize!$E$41=TRUE,(((VLOOKUP($C25,Filtered!$A$1:$AD$700,20,FALSE))-Filtered!$AK$43)/Filtered!$AL$43),"")),"") ->  | Z25: =IFERROR(IF((OR($D25="RP",$D25="SP")),IF(Personalize!$E$46=TRUE,(((VLOOKUP($C25,'Filtered-P'!$A$1:$Z$700,19,FALSE))-'Filtered-P'!$AF$27)/'Filtered-P'!$AG$27),""),IF(Personalize!$E$44=TRUE,(((VLOOKUP($C25,Filtered!$A$1:$AD$700,21,FALSE))-Filtered!$AK$44)/Filtered!$AL$44),"")),"") ->  | AA25: =IFERROR(IF((OR($D25="RP",$D25="SP")),IF(Personalize!$E$47=TRUE,(((VLOOKUP($C25,'Filtered-P'!$A$1:$Z$700,6,FALSE))-'Filtered-P'!$AF$12)/'Filtered-P'!$AG$12),""),IF(Personalize!$E$42=TRUE,(((VLOOKUP($C25,Filtered!$A$1:$AD$700,8,FALSE))-Filtered!$AK$23)/Filtered!$AL$23),"")),"") ->  | AB25: =IFERROR(IF((OR($D25="RP",$D25="SP")),IF(Personalize!$E$48=TRUE,(((VLOOKUP($C25,'Filtered-P'!$A$1:$Z$700,5,FALSE))-'Filtered-P'!$AF$11)/'Filtered-P'!$AG$11),""),IF(Personalize!$E$43=TRUE,(((VLOOKUP($C25,Filtered!$A$1:$AD$700,9,FALSE))-Filtered!$AK$24)/Filtered!$AL$24),"")),"") ->  | AC25: =IFERROR(IF((OR($D25="RP",$D25="SP")),IF(Personalize!$E$52=TRUE,(((VLOOKUP($C25,'Filtered-P'!$A$1:$AD$700,21,FALSE))-'Filtered-P'!$AF$29)/(-1*'Filtered-P'!$AG$29)),""),IF(Personalize!$E$49=TRUE,(((VLOOKUP($C25,Filtered!$A$1:$AF$628,30,FALSE))-Filtered!$AK$45)/Filtered!$AL$45),"")),"") ->  | AD25: =IFERROR(IF((OR($D25="RP",$D25="SP")),IF(Personalize!$E$53=TRUE,(((VLOOKUP($C25,'Filtered-P'!$A$1:$AD$700,23,FALSE))-'Filtered-P'!$AF$31)/(-1*'Filtered-P'!$AG$31)),""),IF(Personalize!$E$50=TRUE,(((VLOOKUP($C25,Filtered!$A$1:$AF$628,31,FALSE))-Filtered!$AK$46)/Filtered!$AL$46),"")),"") ->  | AE25: =IFERROR(IF((OR($D25="RP",$D25="SP")),IF(Personalize!$E$54=TRUE,(((VLOOKUP($C25,'Filtered-P'!$A$1:$AD$700,24,FALSE))-'Filtered-P'!$AF$32)/'Filtered-P'!$AG$32),""),IF(Personalize!$E$51=TRUE,(((VLOOKUP($C25,Filtered!$A$1:$AF$628,15,FALSE))-Filtered!$AK$30)/(-1*Filtered!$AL$30)),"")),"") ->  | AF25: =IFERROR(IF((OR($D25="RP",$D25="SP")),IF(Personalize!$E$56=TRUE,(((VLOOKUP($C25,'Filtered-P'!$A$1:$AD$700,29,FALSE))-'Filtered-P'!$AF$35)/'Filtered-P'!$AG$35),""),IF(Personalize!$E$60=TRUE,(((VLOOKUP($C25,Filtered!$A$1:$AF$700,7,FALSE))-Filtered!$AK$22)/Filtered!$AL$22),"")),"") ->  | AG25: =IFERROR(IF((OR($D25="RP",$D25="SP")),IF(Personalize!$E$57=TRUE,(((VLOOKUP($C25,'Filtered-P'!$A$1:$AD$700,28,FALSE))-'Filtered-P'!$AF$34)/'Filtered-P'!$AG$34),""),IF(Personalize!$E$61=TRUE,(((VLOOKUP($C25,Filtered!$A$1:$AZ$700,34,FALSE))-Filtered!$AK$47)/Filtered!$AL$47),"")),"") ->  | AH25: =IFERROR(IF((OR($D25="RP",$D25="SP")),IF(Personalize!$E$58=TRUE,(((VLOOKUP($C25,'Filtered-P'!$A$1:$Z$700,8,FALSE))-'Filtered-P'!$AF$14)/'Filtered-P'!$AG$14),""),IF(Personalize!$E$62=TRUE,(((VLOOKUP($C25,Filtered!$A$1:$AF$700,13,FALSE))-Filtered!$AK$28)/(-1*Filtered!$AL$28)),"")),"") ->  | AI25: =IFERROR(IF((OR($D25="RP",$D25="SP")),IF(Personalize!$E$59=TRUE,(((VLOOKUP($C25,'Filtered-P'!$A$1:$AD$700,27,FALSE))-'Filtered-P'!$AF$33)/'Filtered-P'!$AG$33),""),IF(Personalize!$E$63=TRUE,(((VLOOKUP($C25,Filtered!$A$1:$AZ$700,35,FALSE))-Filtered!$AK$48)/(-1*Filtered!$AL$48)),"")),"") ->  | AJ25: =IFERROR(IF((OR($D25="RP",$D25="SP")),VLOOKUP($C25,'Filtered-P'!$A$1:$P$700,2,FALSE),""),"") ->  | AK25: =IFERROR(IF((OR($D25="RP",$D25="SP")),VLOOKUP($C25,'Filtered-P'!$A$1:$P$700,9,FALSE),""),"") ->  | AL25: =IFERROR(IF((OR($D25="RP",$D25="SP")),VLOOKUP($C25,'Filtered-P'!$A$1:$P$700,7,FALSE),""),"") ->  | AM25: =IFERROR(IF((OR($D25="RP",$D25="SP")),VLOOKUP($C25,'Filtered-P'!$A$1:$P$700,10,FALSE),""),"") ->  | AN25: =IFERROR(IF((OR($D25="RP",$D25="SP")),VLOOKUP($C25,'Filtered-P'!$A$1:$P$700,11,FALSE),""),"") ->  | AO25: =IFERROR(IF((OR($D25="RP",$D25="SP")),"",VLOOKUP($C25,Filtered!$A$1:$X$700,16,FALSE)),"") -> 0.2645294098 | AP25: =IFERROR(IF((OR($D25="RP",$D25="SP")),"",VLOOKUP($C25,Filtered!$A$1:$X$700,10,FALSE)),"") -> 26.26758137 | AQ25: =IFERROR(IF((OR($D25="RP",$D25="SP")),"",VLOOKUP($C25,Filtered!$A$1:$X$700,11,FALSE)),"") -> 86.0678531 | AR25: =IFERROR(IF((OR($D25="RP",$D25="SP")),"",VLOOKUP($C25,Filtered!$A$1:$X$700,5,FALSE)),"") -> 82.34680315 | AS25: =IFERROR(IF((OR($D25="RP",$D25="SP")),"",VLOOKUP($C25,Filtered!$A$1:$X$700,12,FALSE)),"") -> 5.886761046 | AU25: =IF(ISBLANK(A25),0,1) -> 0 | AV25: =IF(M25="",0,1) -> 1 | AW25: =A25 -> 0 | AX25: =IF(D25="C",1,IF(D25="1B",2,IF(D25="2B",3,IF(D25="3B",4,IF(D25="SS",5,IF(D25="CI",6,IF(D25="MI",7,IF(D25="OF",11,IF(D25="LF",8,IF(D25="CF",9,IF(D25="RF",10,IF(D25="DH",12,IF(D25="SP",13,IF(D25="RP",14,IF(D25="P",15,16))))))))))))))) -> 4 | AY25: =VLOOKUP(C25,'Starter Calc'!$B$2:$BS$700,70,FALSE) -> Bench | AZ25: =VLOOKUP(C25,'Starter Calc'!$B$2:$AO$700,40,FALSE) -> Yes | BA25: =IFERROR(IF(ISTEXT($A25),"",IF((OR($D25="RP",$D25="SP")),ABS(VLOOKUP(D25,'Filtered-P'!$AE$3:$AI$4,5,FALSE))+M25,ABS(VLOOKUP(D25,Filtered!$AJ$3:$AN$14,5,FALSE))+M25)),"") -> 7.249381086 | BB25: =IFERROR(BA25+ABS($BA$4),"") -> 8.120656015 | BC25: =IF(AND($A25<>"",$B25<>""),B25,"N") -> N | BD25: =IFERROR(VLOOKUP($C25,'ADP-Rank'!$A$2:$AB$620,25,FALSE),TRUE) -> TRUE | BE25: =IFERROR((BB25-BB$3)^2,"") -> 15.43952033 | BF25: =VLOOKUP(C25,'Starter Calc'!$B$2:$CD$700,71,FALSE) -> 3B.Yes
C26: Michael Brantley | D26: OF | E26: =IFERROR(IF(VLOOKUP(C26,'Starter Calc'!$B$2:$E$700,4,FALSE)="","",VLOOKUP(C26,'Starter Calc'!$B$2:$E$700,4,FALSE)),"") -> LF,CF, | F26: =IFERROR(VLOOKUP($C26,'ADP-Rank'!$A$2:$G$620,5,FALSE),"") -> CLE | G26: =IFERROR(VLOOKUP($C26,'ADP-Rank'!$A$2:$X$620,6,FALSE),"") -> 27 | H26: =IFERROR(IF(ISBLANK($B26),IF(BF26="Rostered",1,(IF((OR($D26="RP",$D26="SP")),ROUND((N26*($BB$1/$BD$1))+1,0),ROUND((N26*($BB$2/$BD$2))+1,0)))),""),"") -> 28 | I26: =VLOOKUP($C26,'ADP-Rank'!$A$2:$AB$620,26,FALSE) -> 26 | J26: =IF(ISBLANK($B26),IFERROR(CHOOSE(Personalize!$E$31,(VLOOKUP(C26,'ADP-Rank'!$A$2:$Z$620,7,FALSE)*(Personalize!$A$3)+1),(VLOOKUP(C26,'ADP-Rank'!$A$2:$Z$620,8,FALSE)*(Personalize!$A$3)+1),(VLOOKUP(C26,'ADP-Rank'!$A$2:$Z$620,9,FALSE)*(Personalize!$A$3)+1),(VLOOKUP(C26,'ADP-Rank'!$A$2:$AA$620,10,FALSE)*(Personalize!$A$3)+1),(VLOOKUP(C26,'ADP-Rank'!$A$2:$AA$620,11,FALSE)*(Personalize!$A$3)+1),(VLOOKUP(C26,'ADP-Rank'!$A$2:$AA$620,12,FALSE)*(Personalize!$A$3)+1),(VLOOKUP(C26,'ADP-Rank'!$A$2:$AA$620,13,FALSE)*(Personalize!$A$3)+1),(VLOOKUP(C26,'ADP-Rank'!$A$2:$AA$620,14,FALSE)*(Personalize!$A$3)+1),(VLOOKUP(C26,'ADP-Rank'!$A$2:$AA$620,15,FALSE)*(Personalize!$A$3)+1),(VLOOKUP(C26,'ADP-Rank'!$A$2:$AG$620,28,FALSE)*(Personalize!$A$3)+1)),""),"") -> 29 | K26: =IF(ISBLANK($B26),IFERROR(CHOOSE(Personalize!$E$31,(VLOOKUP(C26,'ADP-Rank'!$A$2:$Z$620,7,FALSE)*(Personalize!$A$3-$AZ$4)+1),(VLOOKUP(C26,'ADP-Rank'!$A$2:$Z$620,8,FALSE)*(Personalize!$A$3-$AZ$4)+1),(VLOOKUP(C26,'ADP-Rank'!$A$2:$Z$620,9,FALSE)*(Personalize!$A$3-$AZ$4)+1),(VLOOKUP(C26,'ADP-Rank'!$A$2:$AA$620,10,FALSE)*(Personalize!$A$3-$AZ$4)+1),(VLOOKUP(C26,'ADP-Rank'!$A$2:$AA$620,11,FALSE)*(Personalize!$A$3-$AZ$4)+1),(VLOOKUP(C26,'ADP-Rank'!$A$2:$AA$620,12,FALSE)*(Personalize!$A$3-$AZ$4)+1),(VLOOKUP(C26,'ADP-Rank'!$A$2:$AA$620,13,FALSE)*(Personalize!$A$3-$AZ$4)+1),(VLOOKUP(C26,'ADP-Rank'!$A$2:$AA$620,14,FALSE)*(Personalize!$A$3-$AZ$4)+1),(VLOOKUP(C26,'ADP-Rank'!$A$2:$AA$620,15,FALSE)*(Personalize!$A$3-$AZ$4)+1),(VLOOKUP(C26,'ADP-Rank'!$A$2:$AG$620,28,FALSE)*(Personalize!$A$3-$AZ$4)+1)),""),"") -> 29 | L26: =IFERROR(RANK($M26,$M$7:$M$746,0),"") -> 25 | M26: =IF((SUM(O26:AI26)=0),"",SUM(O26:AI26)) -> 3.940538233 | N26: =IFERROR(IF(ISTEXT($A26),"",IF((OR($D26="RP",$D26="SP")),ABS(VLOOKUP(D26,'Filtered-P'!$AE$3:$AI$4,5,FALSE))+M26,ABS(VLOOKUP(D26,Filtered!$AJ$3:$AN$14,5,FALSE))+M26)),"") -> 7.038380391 | O26: =IFERROR(IF((OR($D26="RP",$D26="SP")),IF(Personalize!$E$10=TRUE,(((VLOOKUP($C26,'Filtered-P'!$A$1:$P$700,2,FALSE))-'Filtered-P'!$AF$8)/'Filtered-P'!$AG$8),""),IF(Personalize!$E$4=TRUE,(((VLOOKUP($C26,Filtered!$A$1:$AD$700,22,FALSE))-Filtered!$AK$35)/Filtered!$AL$35),"")),"") -> 1.856724597 | P26: =IFERROR(IF((OR($D26="RP",$D26="SP")),IF(Personalize!$E$12=TRUE,(((VLOOKUP($C26,'Filtered-P'!$A$1:$P$700,9,FALSE))-'Filtered-P'!$AF$15)/'Filtered-P'!$AG$15),""),IF(Personalize!$E$3=TRUE,(((VLOOKUP($C26,Filtered!$A$1:$AB$700,10,FALSE))-Filtered!$AK$25)/Filtered!$AL$25),"")),"") -> -0.4167660901 | Q26: =IFERROR(IF((OR($D26="RP",$D26="SP")),IF(Personalize!$E$11=TRUE,(((VLOOKUP($C26,'Filtered-P'!$A$1:$P$700,7,FALSE))-'Filtered-P'!$AF$13)/'Filtered-P'!$AG$13),""),IF(Personalize!$E$2=TRUE,(((VLOOKUP($C26,Filtered!$A$1:$AB$700,5,FALSE))-Filtered!$AK$20)/Filtered!$AL$20),"")),"") -> 0.8862989035 | R26: =IFERROR(IF((OR($D26="RP",$D26="SP")),IF(Personalize!$E$13=TRUE,(((VLOOKUP($C26,'Filtered-P'!$A$1:$P$700,13,FALSE))-'Filtered-P'!$AF$19)/'Filtered-P'!$AG$19),""),IF(Personalize!$E$5=TRUE,(((VLOOKUP($C26,Filtered!$A$1:$AB$700,11,FALSE))-Filtered!$AK$26)/Filtered!$AL$26),"")),"") -> 0.8260252615 | S26: =IFERROR(IF((OR($D26="RP",$D26="SP")),IF(Personalize!$E$14=TRUE,(((VLOOKUP($C26,'Filtered-P'!$A$1:$P$700,14,FALSE))-'Filtered-P'!$AF$20)/'Filtered-P'!$AG$20),""),IF(Personalize!$E$6=TRUE,(((VLOOKUP($C26,Filtered!$A$1:$AB$700,12,FALSE))-Filtered!$AK$27)/Filtered!$AL$27),"")),"") -> 0.7882555613 | T26: =IFERROR(IF((OR($D26="RP",$D26="SP")),IF(Personalize!$E$16=TRUE,(((VLOOKUP($C26,'Filtered-P'!$A$1:$P$700,3,FALSE))-'Filtered-P'!$AF$9)/'Filtered-P'!$AG$9),""),IF(Personalize!$E$7=TRUE,(((VLOOKUP($C26,Filtered!$A$1:$AD$700,24,FALSE))-Filtered!$AK$37)/Filtered!$AL$37),"")),"") ->  | U26: =IFERROR(IF((OR($D26="RP",$D26="SP")),IF(Personalize!$E$15=TRUE,(((VLOOKUP($C26,'Filtered-P'!$A$1:$P$700,15,FALSE))-'Filtered-P'!$AF$21)/'Filtered-P'!$AG$21),""),IF(Personalize!$E$8=TRUE,(((VLOOKUP($C26,Filtered!$A$1:$AD$700,23,FALSE))-Filtered!$AK$36)/Filtered!$AL$36),"")),"") ->  | V26: =IFERROR(IF((OR($D26="RP",$D26="SP")),IF(Personalize!$E$17=TRUE,(((VLOOKUP($C26,'Filtered-P'!$A$1:$P$700,16,FALSE))-'Filtered-P'!$AF$22)/'Filtered-P'!$AG$22),""),IF(Personalize!$E$9=TRUE,(((VLOOKUP($C26,Filtered!$A$1:$AD$700,25,FALSE))-Filtered!$AK$38)/Filtered!$AL$38),"")),"") ->  | W26: =IFERROR(IF((OR($D26="RP",$D26="SP")),IF(Personalize!$E$37=TRUE,(((VLOOKUP($C26,'Filtered-P'!$A$1:$Z$700,17,FALSE))-'Filtered-P'!$AF$25)/'Filtered-P'!$AG$25),""),IF(Personalize!$E$39=TRUE,(((VLOOKUP($C26,Filtered!$A$1:$X$700,6,FALSE))-Filtered!$AK$21)/Filtered!$AL$21),"")),"") ->  | X26: =IFERROR(IF((OR($D26="RP",$D26="SP")),IF(Personalize!$E$38=TRUE,(((VLOOKUP($C26,'Filtered-P'!$A$1:$Z$700,18,FALSE))-'Filtered-P'!$AF$26)/'Filtered-P'!$AG$26),""),IF(Personalize!$E$40=TRUE,(((VLOOKUP($C26,Filtered!$A$1:$X$700,14,FALSE))-Filtered!$AK$29)/Filtered!$AL$29),"")),"") ->  | Y26: =IFERROR(IF((OR($D26="RP",$D26="SP")),IF(Personalize!$E$45=TRUE,(((VLOOKUP($C26,'Filtered-P'!$A$1:$Z$700,4,FALSE))-'Filtered-P'!$AF$10)/'Filtered-P'!$AG$10),""),IF(Personalize!$E$41=TRUE,(((VLOOKUP($C26,Filtered!$A$1:$AD$700,20,FALSE))-Filtered!$AK$43)/Filtered!$AL$43),"")),"") ->  | Z26: =IFERROR(IF((OR($D26="RP",$D26="SP")),IF(Personalize!$E$46=TRUE,(((VLOOKUP($C26,'Filtered-P'!$A$1:$Z$700,19,FALSE))-'Filtered-P'!$AF$27)/'Filtered-P'!$AG$27),""),IF(Personalize!$E$44=TRUE,(((VLOOKUP($C26,Filtered!$A$1:$AD$700,21,FALSE))-Filtered!$AK$44)/Filtered!$AL$44),"")),"") ->  | AA26: =IFERROR(IF((OR($D26="RP",$D26="SP")),IF(Personalize!$E$47=TRUE,(((VLOOKUP($C26,'Filtered-P'!$A$1:$Z$700,6,FALSE))-'Filtered-P'!$AF$12)/'Filtered-P'!$AG$12),""),IF(Personalize!$E$42=TRUE,(((VLOOKUP($C26,Filtered!$A$1:$AD$700,8,FALSE))-Filtered!$AK$23)/Filtered!$AL$23),"")),"") ->  | AB26: =IFERROR(IF((OR($D26="RP",$D26="SP")),IF(Personalize!$E$48=TRUE,(((VLOOKUP($C26,'Filtered-P'!$A$1:$Z$700,5,FALSE))-'Filtered-P'!$AF$11)/'Filtered-P'!$AG$11),""),IF(Personalize!$E$43=TRUE,(((VLOOKUP($C26,Filtered!$A$1:$AD$700,9,FALSE))-Filtered!$AK$24)/Filtered!$AL$24),"")),"") ->  | AC26: =IFERROR(IF((OR($D26="RP",$D26="SP")),IF(Personalize!$E$52=TRUE,(((VLOOKUP($C26,'Filtered-P'!$A$1:$AD$700,21,FALSE))-'Filtered-P'!$AF$29)/(-1*'Filtered-P'!$AG$29)),""),IF(Personalize!$E$49=TRUE,(((VLOOKUP($C26,Filtered!$A$1:$AF$628,30,FALSE))-Filtered!$AK$45)/Filtered!$AL$45),"")),"") ->  | AD26: =IFERROR(IF((OR($D26="RP",$D26="SP")),IF(Personalize!$E$53=TRUE,(((VLOOKUP($C26,'Filtered-P'!$A$1:$AD$700,23,FALSE))-'Filtered-P'!$AF$31)/(-1*'Filtered-P'!$AG$31)),""),IF(Personalize!$E$50=TRUE,(((VLOOKUP($C26,Filtered!$A$1:$AF$628,31,FALSE))-Filtered!$AK$46)/Filtered!$AL$46),"")),"") ->  | AE26: =IFERROR(IF((OR($D26="RP",$D26="SP")),IF(Personalize!$E$54=TRUE,(((VLOOKUP($C26,'Filtered-P'!$A$1:$AD$700,24,FALSE))-'Filtered-P'!$AF$32)/'Filtered-P'!$AG$32),""),IF(Personalize!$E$51=TRUE,(((VLOOKUP($C26,Filtered!$A$1:$AF$628,15,FALSE))-Filtered!$AK$30)/(-1*Filtered!$AL$30)),"")),"") ->  | AF26: =IFERROR(IF((OR($D26="RP",$D26="SP")),IF(Personalize!$E$56=TRUE,(((VLOOKUP($C26,'Filtered-P'!$A$1:$AD$700,29,FALSE))-'Filtered-P'!$AF$35)/'Filtered-P'!$AG$35),""),IF(Personalize!$E$60=TRUE,(((VLOOKUP($C26,Filtered!$A$1:$AF$700,7,FALSE))-Filtered!$AK$22)/Filtered!$AL$22),"")),"") ->  | AG26: =IFERROR(IF((OR($D26="RP",$D26="SP")),IF(Personalize!$E$57=TRUE,(((VLOOKUP($C26,'Filtered-P'!$A$1:$AD$700,28,FALSE))-'Filtered-P'!$AF$34)/'Filtered-P'!$AG$34),""),IF(Personalize!$E$61=TRUE,(((VLOOKUP($C26,Filtered!$A$1:$AZ$700,34,FALSE))-Filtered!$AK$47)/Filtered!$AL$47),"")),"") ->  | AH26: =IFERROR(IF((OR($D26="RP",$D26="SP")),IF(Personalize!$E$58=TRUE,(((VLOOKUP($C26,'Filtered-P'!$A$1:$Z$700,8,FALSE))-'Filtered-P'!$AF$14)/'Filtered-P'!$AG$14),""),IF(Personalize!$E$62=TRUE,(((VLOOKUP($C26,Filtered!$A$1:$AF$700,13,FALSE))-Filtered!$AK$28)/(-1*Filtered!$AL$28)),"")),"") ->  | AI26: =IFERROR(IF((OR($D26="RP",$D26="SP")),IF(Personalize!$E$59=TRUE,(((VLOOKUP($C26,'Filtered-P'!$A$1:$AD$700,27,FALSE))-'Filtered-P'!$AF$33)/'Filtered-P'!$AG$33),""),IF(Personalize!$E$63=TRUE,(((VLOOKUP($C26,Filtered!$A$1:$AZ$700,35,FALSE))-Filtered!$AK$48)/(-1*Filtered!$AL$48)),"")),"") ->  | AJ26: =IFERROR(IF((OR($D26="RP",$D26="SP")),VLOOKUP($C26,'Filtered-P'!$A$1:$P$700,2,FALSE),""),"") ->  | AK26: =IFERROR(IF((OR($D26="RP",$D26="SP")),VLOOKUP($C26,'Filtered-P'!$A$1:$P$700,9,FALSE),""),"") ->  | AL26: =IFERROR(IF((OR($D26="RP",$D26="SP")),VLOOKUP($C26,'Filtered-P'!$A$1:$P$700,7,FALSE),""),"") ->  | AM26: =IFERROR(IF((OR($D26="RP",$D26="SP")),VLOOKUP($C26,'Filtered-P'!$A$1:$P$700,10,FALSE),""),"") ->  | AN26: =IFERROR(IF((OR($D26="RP",$D26="SP")),VLOOKUP($C26,'Filtered-P'!$A$1:$P$700,11,FALSE),""),"") ->  | AO26: =IFERROR(IF((OR($D26="RP",$D26="SP")),"",VLOOKUP($C26,Filtered!$A$1:$X$700,16,FALSE)),"") -> 0.2889321992 | AP26: =IFERROR(IF((OR($D26="RP",$D26="SP")),"",VLOOKUP($C26,Filtered!$A$1:$X$700,10,FALSE)),"") -> 14.05580175 | AQ26: =IFERROR(IF((OR($D26="RP",$D26="SP")),"",VLOOKUP($C26,Filtered!$A$1:$X$700,11,FALSE)),"") -> 76.86760106 | AR26: =IFERROR(IF((OR($D26="RP",$D26="SP")),"",VLOOKUP($C26,Filtered!$A$1:$X$700,5,FALSE)),"") -> 76.76077848 | AS26: =IFERROR(IF((OR($D26="RP",$D26="SP")),"",VLOOKUP($C26,Filtered!$A$1:$X$700,12,FALSE)),"") -> 17.30321749 | AU26: =IF(ISBLANK(A26),0,1) -> 0 | AV26: =IF(M26="",0,1) -> 1 | AW26: =A26 -> 0 | AX26: =IF(D26="C",1,IF(D26="1B",2,IF(D26="2B",3,IF(D26="3B",4,IF(D26="SS",5,IF(D26="CI",6,IF(D26="MI",7,IF(D26="OF",11,IF(D26="LF",8,IF(D26="CF",9,IF(D26="RF",10,IF(D26="DH",12,IF(D26="SP",13,IF(D26="RP",14,IF(D26="P",15,16))))))))))))))) -> 11 | AY26: =VLOOKUP(C26,'Starter Calc'!$B$2:$BS$700,70,FALSE) -> Bench | AZ26: =VLOOKUP(C26,'Starter Calc'!$B$2:$AO$700,40,FALSE) -> Yes | BA26: =IFERROR(IF(ISTEXT($A26),"",IF((OR($D26="RP",$D26="SP")),ABS(VLOOKUP(D26,'Filtered-P'!$AE$3:$AI$4,5,FALSE))+M26,ABS(VLOOKUP(D26,Filtered!$AJ$3:$AN$14,5,FALSE))+M26)),"") -> 7.038380391 | BB26: =IFERROR(BA26+ABS($BA$4),"") -> 7.90965532 | BC26: =IF(AND($A26<>"",$B26<>""),B26,"N") -> N | BD26: =IFERROR(VLOOKUP($C26,'ADP-Rank'!$A$2:$AB$620,25,FALSE),TRUE) -> TRUE | BE26: =IFERROR((BB26-BB$3)^2,"") -> 13.82586502 | BF26: =VLOOKUP(C26,'Starter Calc'!$B$2:$CD$700,71,FALSE) -> OF.Yes
C27: Adrian Beltre | D27: 3B | E27: =IFERROR(IF(VLOOKUP(C27,'Starter Calc'!$B$2:$E$700,4,FALSE)="","",VLOOKUP(C27,'Starter Calc'!$B$2:$E$700,4,FALSE)),"") -> ,, | F27: =IFERROR(VLOOKUP($C27,'ADP-Rank'!$A$2:$G$620,5,FALSE),"") -> TEX | G27: =IFERROR(VLOOKUP($C27,'ADP-Rank'!$A$2:$X$620,6,FALSE),"") -> 36 | H27: =IFERROR(IF(ISBLANK($B27),IF(BF27="Rostered",1,(IF((OR($D27="RP",$D27="SP")),ROUND((N27*($BB$1/$BD$1))+1,0),ROUND((N27*($BB$2/$BD$2))+1,0)))),""),"") -> 27 | I27: =VLOOKUP($C27,'ADP-Rank'!$A$2:$AB$620,26,FALSE) -> 21 | J27: =IF(ISBLANK($B27),IFERROR(CHOOSE(Personalize!$E$31,(VLOOKUP(C27,'ADP-Rank'!$A$2:$Z$620,7,FALSE)*(Personalize!$A$3)+1),(VLOOKUP(C27,'ADP-Rank'!$A$2:$Z$620,8,FALSE)*(Personalize!$A$3)+1),(VLOOKUP(C27,'ADP-Rank'!$A$2:$Z$620,9,FALSE)*(Personalize!$A$3)+1),(VLOOKUP(C27,'ADP-Rank'!$A$2:$AA$620,10,FALSE)*(Personalize!$A$3)+1),(VLOOKUP(C27,'ADP-Rank'!$A$2:$AA$620,11,FALSE)*(Personalize!$A$3)+1),(VLOOKUP(C27,'ADP-Rank'!$A$2:$AA$620,12,FALSE)*(Personalize!$A$3)+1),(VLOOKUP(C27,'ADP-Rank'!$A$2:$AA$620,13,FALSE)*(Personalize!$A$3)+1),(VLOOKUP(C27,'ADP-Rank'!$A$2:$AA$620,14,FALSE)*(Personalize!$A$3)+1),(VLOOKUP(C27,'ADP-Rank'!$A$2:$AA$620,15,FALSE)*(Personalize!$A$3)+1),(VLOOKUP(C27,'ADP-Rank'!$A$2:$AG$620,28,FALSE)*(Personalize!$A$3)+1)),""),"") -> 26 | K27: =IF(ISBLANK($B27),IFERROR(CHOOSE(Personalize!$E$31,(VLOOKUP(C27,'ADP-Rank'!$A$2:$Z$620,7,FALSE)*(Personalize!$A$3-$AZ$4)+1),(VLOOKUP(C27,'ADP-Rank'!$A$2:$Z$620,8,FALSE)*(Personalize!$A$3-$AZ$4)+1),(VLOOKUP(C27,'ADP-Rank'!$A$2:$Z$620,9,FALSE)*(Personalize!$A$3-$AZ$4)+1),(VLOOKUP(C27,'ADP-Rank'!$A$2:$AA$620,10,FALSE)*(Personalize!$A$3-$AZ$4)+1),(VLOOKUP(C27,'ADP-Rank'!$A$2:$AA$620,11,FALSE)*(Personalize!$A$3-$AZ$4)+1),(VLOOKUP(C27,'ADP-Rank'!$A$2:$AA$620,12,FALSE)*(Personalize!$A$3-$AZ$4)+1),(VLOOKUP(C27,'ADP-Rank'!$A$2:$AA$620,13,FALSE)*(Personalize!$A$3-$AZ$4)+1),(VLOOKUP(C27,'ADP-Rank'!$A$2:$AA$620,14,FALSE)*(Personalize!$A$3-$AZ$4)+1),(VLOOKUP(C27,'ADP-Rank'!$A$2:$AA$620,15,FALSE)*(Personalize!$A$3-$AZ$4)+1),(VLOOKUP(C27,'ADP-Rank'!$A$2:$AG$620,28,FALSE)*(Personalize!$A$3-$AZ$4)+1)),""),"") -> 26 | L27: =IFERROR(RANK($M27,$M$7:$M$746,0),"") -> 34 | M27: =IF((SUM(O27:AI27)=0),"",SUM(O27:AI27)) -> 3.396927801 | N27: =IFERROR(IF(ISTEXT($A27),"",IF((OR($D27="RP",$D27="SP")),ABS(VLOOKUP(D27,'Filtered-P'!$AE$3:$AI$4,5,FALSE))+M27,ABS(VLOOKUP(D27,Filtered!$AJ$3:$AN$14,5,FALSE))+M27)),"") -> 6.713697211 | O27: =IFERROR(IF((OR($D27="RP",$D27="SP")),IF(Personalize!$E$10=TRUE,(((VLOOKUP($C27,'Filtered-P'!$A$1:$P$700,2,FALSE))-'Filtered-P'!$AF$8)/'Filtered-P'!$AG$8),""),IF(Personalize!$E$4=TRUE,(((VLOOKUP($C27,Filtered!$A$1:$AD$700,22,FALSE))-Filtered!$AK$35)/Filtered!$AL$35),"")),"") -> 1.770688452 | P27: =IFERROR(IF((OR($D27="RP",$D27="SP")),IF(Personalize!$E$12=TRUE,(((VLOOKUP($C27,'Filtered-P'!$A$1:$P$700,9,FALSE))-'Filtered-P'!$AF$15)/'Filtered-P'!$AG$15),""),IF(Personalize!$E$3=TRUE,(((VLOOKUP($C27,Filtered!$A$1:$AB$700,10,FALSE))-Filtered!$AK$25)/Filtered!$AL$25),"")),"") -> 0.6287598266 | Q27: =IFERROR(IF((OR($D27="RP",$D27="SP")),IF(Personalize!$E$11=TRUE,(((VLOOKUP($C27,'Filtered-P'!$A$1:$P$700,7,FALSE))-'Filtered-P'!$AF$13)/'Filtered-P'!$AG$13),""),IF(Personalize!$E$2=TRUE,(((VLOOKUP($C27,Filtered!$A$1:$AB$700,5,FALSE))-Filtered!$AK$20)/Filtered!$AL$20),"")),"") -> 0.6410964703 | R27: =IFERROR(IF((OR($D27="RP",$D27="SP")),IF(Personalize!$E$13=TRUE,(((VLOOKUP($C27,'Filtered-P'!$A$1:$P$700,13,FALSE))-'Filtered-P'!$AF$19)/'Filtered-P'!$AG$19),""),IF(Personalize!$E$5=TRUE,(((VLOOKUP($C27,Filtered!$A$1:$AB$700,11,FALSE))-Filtered!$AK$26)/Filtered!$AL$26),"")),"") -> 1.340039483 | S27: =IFERROR(IF((OR($D27="RP",$D27="SP")),IF(Personalize!$E$14=TRUE,(((VLOOKUP($C27,'Filtered-P'!$A$1:$P$700,14,FALSE))-'Filtered-P'!$AF$20)/'Filtered-P'!$AG$20),""),IF(Personalize!$E$6=TRUE,(((VLOOKUP($C27,Filtered!$A$1:$AB$700,12,FALSE))-Filtered!$AK$27)/Filtered!$AL$27),"")),"") -> -0.9836564318 | T27: =IFERROR(IF((OR($D27="RP",$D27="SP")),IF(Personalize!$E$16=TRUE,(((VLOOKUP($C27,'Filtered-P'!$A$1:$P$700,3,FALSE))-'Filtered-P'!$AF$9)/'Filtered-P'!$AG$9),""),IF(Personalize!$E$7=TRUE,(((VLOOKUP($C27,Filtered!$A$1:$AD$700,24,FALSE))-Filtered!$AK$37)/Filtered!$AL$37),"")),"") ->  | U27: =IFERROR(IF((OR($D27="RP",$D27="SP")),IF(Personalize!$E$15=TRUE,(((VLOOKUP($C27,'Filtered-P'!$A$1:$P$700,15,FALSE))-'Filtered-P'!$AF$21)/'Filtered-P'!$AG$21),""),IF(Personalize!$E$8=TRUE,(((VLOOKUP($C27,Filtered!$A$1:$AD$700,23,FALSE))-Filtered!$AK$36)/Filtered!$AL$36),"")),"") ->  | V27: =IFERROR(IF((OR($D27="RP",$D27="SP")),IF(Personalize!$E$17=TRUE,(((VLOOKUP($C27,'Filtered-P'!$A$1:$P$700,16,FALSE))-'Filtered-P'!$AF$22)/'Filtered-P'!$AG$22),""),IF(Personalize!$E$9=TRUE,(((VLOOKUP($C27,Filtered!$A$1:$AD$700,25,FALSE))-Filtered!$AK$38)/Filtered!$AL$38),"")),"") ->  | W27: =IFERROR(IF((OR($D27="RP",$D27="SP")),IF(Personalize!$E$37=TRUE,(((VLOOKUP($C27,'Filtered-P'!$A$1:$Z$700,17,FALSE))-'Filtered-P'!$AF$25)/'Filtered-P'!$AG$25),""),IF(Personalize!$E$39=TRUE,(((VLOOKUP($C27,Filtered!$A$1:$X$700,6,FALSE))-Filtered!$AK$21)/Filtered!$AL$21),"")),"") ->  | X27: =IFERROR(IF((OR($D27="RP",$D27="SP")),IF(Personalize!$E$38=TRUE,(((VLOOKUP($C27,'Filtered-P'!$A$1:$Z$700,18,FALSE))-'Filtered-P'!$AF$26)/'Filtered-P'!$AG$26),""),IF(Personalize!$E$40=TRUE,(((VLOOKUP($C27,Filtered!$A$1:$X$700,14,FALSE))-Filtered!$AK$29)/Filtered!$AL$29),"")),"") ->  | Y27: =IFERROR(IF((OR($D27="RP",$D27="SP")),IF(Personalize!$E$45=TRUE,(((VLOOKUP($C27,'Filtered-P'!$A$1:$Z$700,4,FALSE))-'Filtered-P'!$AF$10)/'Filtered-P'!$AG$10),""),IF(Personalize!$E$41=TRUE,(((VLOOKUP($C27,Filtered!$A$1:$AD$700,20,FALSE))-Filtered!$AK$43)/Filtered!$AL$43),"")),"") ->  | Z27: =IFERROR(IF((OR($D27="RP",$D27="SP")),IF(Personalize!$E$46=TRUE,(((VLOOKUP($C27,'Filtered-P'!$A$1:$Z$700,19,FALSE))-'Filtered-P'!$AF$27)/'Filtered-P'!$AG$27),""),IF(Personalize!$E$44=TRUE,(((VLOOKUP($C27,Filtered!$A$1:$AD$700,21,FALSE))-Filtered!$AK$44)/Filtered!$AL$44),"")),"") ->  | AA27: =IFERROR(IF((OR($D27="RP",$D27="SP")),IF(Personalize!$E$47=TRUE,(((VLOOKUP($C27,'Filtered-P'!$A$1:$Z$700,6,FALSE))-'Filtered-P'!$AF$12)/'Filtered-P'!$AG$12),""),IF(Personalize!$E$42=TRUE,(((VLOOKUP($C27,Filtered!$A$1:$AD$700,8,FALSE))-Filtered!$AK$23)/Filtered!$AL$23),"")),"") ->  | AB27: =IFERROR(IF((OR($D27="RP",$D27="SP")),IF(Personalize!$E$48=TRUE,(((VLOOKUP($C27,'Filtered-P'!$A$1:$Z$700,5,FALSE))-'Filtered-P'!$AF$11)/'Filtered-P'!$AG$11),""),IF(Personalize!$E$43=TRUE,(((VLOOKUP($C27,Filtered!$A$1:$AD$700,9,FALSE))-Filtered!$AK$24)/Filtered!$AL$24),"")),"") ->  | AC27: =IFERROR(IF((OR($D27="RP",$D27="SP")),IF(Personalize!$E$52=TRUE,(((VLOOKUP($C27,'Filtered-P'!$A$1:$AD$700,21,FALSE))-'Filtered-P'!$AF$29)/(-1*'Filtered-P'!$AG$29)),""),IF(Personalize!$E$49=TRUE,(((VLOOKUP($C27,Filtered!$A$1:$AF$628,30,FALSE))-Filtered!$AK$45)/Filtered!$AL$45),"")),"") ->  | AD27: =IFERROR(IF((OR($D27="RP",$D27="SP")),IF(Personalize!$E$53=TRUE,(((VLOOKUP($C27,'Filtered-P'!$A$1:$AD$700,23,FALSE))-'Filtered-P'!$AF$31)/(-1*'Filtered-P'!$AG$31)),""),IF(Personalize!$E$50=TRUE,(((VLOOKUP($C27,Filtered!$A$1:$AF$628,31,FALSE))-Filtered!$AK$46)/Filtered!$AL$46),"")),"") ->  | AE27: =IFERROR(IF((OR($D27="RP",$D27="SP")),IF(Personalize!$E$54=TRUE,(((VLOOKUP($C27,'Filtered-P'!$A$1:$AD$700,24,FALSE))-'Filtered-P'!$AF$32)/'Filtered-P'!$AG$32),""),IF(Personalize!$E$51=TRUE,(((VLOOKUP($C27,Filtered!$A$1:$AF$628,15,FALSE))-Filtered!$AK$30)/(-1*Filtered!$AL$30)),"")),"") ->  | AF27: =IFERROR(IF((OR($D27="RP",$D27="SP")),IF(Personalize!$E$56=TRUE,(((VLOOKUP($C27,'Filtered-P'!$A$1:$AD$700,29,FALSE))-'Filtered-P'!$AF$35)/'Filtered-P'!$AG$35),""),IF(Personalize!$E$60=TRUE,(((VLOOKUP($C27,Filtered!$A$1:$AF$700,7,FALSE))-Filtered!$AK$22)/Filtered!$AL$22),"")),"") ->  | AG27: =IFERROR(IF((OR($D27="RP",$D27="SP")),IF(Personalize!$E$57=TRUE,(((VLOOKUP($C27,'Filtered-P'!$A$1:$AD$700,28,FALSE))-'Filtered-P'!$AF$34)/'Filtered-P'!$AG$34),""),IF(Personalize!$E$61=TRUE,(((VLOOKUP($C27,Filtered!$A$1:$AZ$700,34,FALSE))-Filtered!$AK$47)/Filtered!$AL$47),"")),"") ->  | AH27: =IFERROR(IF((OR($D27="RP",$D27="SP")),IF(Personalize!$E$58=TRUE,(((VLOOKUP($C27,'Filtered-P'!$A$1:$Z$700,8,FALSE))-'Filtered-P'!$AF$14)/'Filtered-P'!$AG$14),""),IF(Personalize!$E$62=TRUE,(((VLOOKUP($C27,Filtered!$A$1:$AF$700,13,FALSE))-Filtered!$AK$28)/(-1*Filtered!$AL$28)),"")),"") ->  | AI27: =IFERROR(IF((OR($D27="RP",$D27="SP")),IF(Personalize!$E$59=TRUE,(((VLOOKUP($C27,'Filtered-P'!$A$1:$AD$700,27,FALSE))-'Filtered-P'!$AF$33)/'Filtered-P'!$AG$33),""),IF(Personalize!$E$63=TRUE,(((VLOOKUP($C27,Filtered!$A$1:$AZ$700,35,FALSE))-Filtered!$AK$48)/(-1*Filtered!$AL$48)),"")),"") ->  | AJ27: =IFERROR(IF((OR($D27="RP",$D27="SP")),VLOOKUP($C27,'Filtered-P'!$A$1:$P$700,2,FALSE),""),"") ->  | AK27: =IFERROR(IF((OR($D27="RP",$D27="SP")),VLOOKUP($C27,'Filtered-P'!$A$1:$P$700,9,FALSE),""),"") ->  | AL27: =IFERROR(IF((OR($D27="RP",$D27="SP")),VLOOKUP($C27,'Filtered-P'!$A$1:$P$700,7,FALSE),""),"") ->  | AM27: =IFERROR(IF((OR($D27="RP",$D27="SP")),VLOOKUP($C27,'Filtered-P'!$A$1:$P$700,10,FALSE),""),"") ->  | AN27: =IFERROR(IF((OR($D27="RP",$D27="SP")),VLOOKUP($C27,'Filtered-P'!$A$1:$P$700,11,FALSE),""),"") ->  | AO27: =IFERROR(IF((OR($D27="RP",$D27="SP")),"",VLOOKUP($C27,Filtered!$A$1:$X$700,16,FALSE)),"") -> 0.2896104859 | AP27: =IFERROR(IF((OR($D27="RP",$D27="SP")),"",VLOOKUP($C27,Filtered!$A$1:$X$700,10,FALSE)),"") -> 21.23526518 | AQ27: =IFERROR(IF((OR($D27="RP",$D27="SP")),"",VLOOKUP($C27,Filtered!$A$1:$X$700,11,FALSE)),"") -> 83.5944519 | AR27: =IFERROR(IF((OR($D27="RP",$D27="SP")),"",VLOOKUP($C27,Filtered!$A$1:$X$700,5,FALSE)),"") -> 74.22699724 | AS27: =IFERROR(IF((OR($D27="RP",$D27="SP")),"",VLOOKUP($C27,Filtered!$A$1:$X$700,12,FALSE)),"") -> 1.303857713 | AU27: =IF(ISBLANK(A27),0,1) -> 0 | AV27: =IF(M27="",0,1) -> 1 | AW27: =A27 -> 0 | AX27: =IF(D27="C",1,IF(D27="1B",2,IF(D27="2B",3,IF(D27="3B",4,IF(D27="SS",5,IF(D27="CI",6,IF(D27="MI",7,IF(D27="OF",11,IF(D27="LF",8,IF(D27="CF",9,IF(D27="RF",10,IF(D27="DH",12,IF(D27="SP",13,IF(D27="RP",14,IF(D27="P",15,16))))))))))))))) -> 4 | AY27: =VLOOKUP(C27,'Starter Calc'!$B$2:$BS$700,70,FALSE) -> Bench | AZ27: =VLOOKUP(C27,'Starter Calc'!$B$2:$AO$700,40,FALSE) -> Yes | BA27: =IFERROR(IF(ISTEXT($A27),"",IF((OR($D27="RP",$D27="SP")),ABS(VLOOKUP(D27,'Filtered-P'!$AE$3:$AI$4,5,FALSE))+M27,ABS(VLOOKUP(D27,Filtered!$AJ$3:$AN$14,5,FALSE))+M27)),"") -> 6.713697211 | BB27: =IFERROR(BA27+ABS($BA$4),"") -> 7.58497214 | BC27: =IF(AND($A27<>"",$B27<>""),B27,"N") -> N | BD27: =IFERROR(VLOOKUP($C27,'ADP-Rank'!$A$2:$AB$620,25,FALSE),TRUE) -> TRUE | BE27: =IFERROR((BB27-BB$3)^2,"") -> 11.51673563 | BF27: =VLOOKUP(C27,'Starter Calc'!$B$2:$CD$700,71,FALSE) -> 3B.Yes
C28: Ryan Braun | D28: OF | E28: =IFERROR(IF(VLOOKUP(C28,'Starter Calc'!$B$2:$E$700,4,FALSE)="","",VLOOKUP(C28,'Starter Calc'!$B$2:$E$700,4,FALSE)),"") -> ,,RF | F28: =IFERROR(VLOOKUP($C28,'ADP-Rank'!$A$2:$G$620,5,FALSE),"") -> MIL | G28: =IFERROR(VLOOKUP($C28,'ADP-Rank'!$A$2:$X$620,6,FALSE),"") -> 31 | H28: =IFERROR(IF(ISBLANK($B28),IF(BF28="Rostered",1,(IF((OR($D28="RP",$D28="SP")),ROUND((N28*($BB$1/$BD$1))+1,0),ROUND((N28*($BB$2/$BD$2))+1,0)))),""),"") -> 27 | I28: =VLOOKUP($C28,'ADP-Rank'!$A$2:$AB$620,26,FALSE) -> 30 | J28: =IF(ISBLANK($B28),IFERROR(CHOOSE(Personalize!$E$31,(VLOOKUP(C28,'ADP-Rank'!$A$2:$Z$620,7,FALSE)*(Personalize!$A$3)+1),(VLOOKUP(C28,'ADP-Rank'!$A$2:$Z$620,8,FALSE)*(Personalize!$A$3)+1),(VLOOKUP(C28,'ADP-Rank'!$A$2:$Z$620,9,FALSE)*(Personalize!$A$3)+1),(VLOOKUP(C28,'ADP-Rank'!$A$2:$AA$620,10,FALSE)*(Personalize!$A$3)+1),(VLOOKUP(C28,'ADP-Rank'!$A$2:$AA$620,11,FALSE)*(Personalize!$A$3)+1),(VLOOKUP(C28,'ADP-Rank'!$A$2:$AA$620,12,FALSE)*(Personalize!$A$3)+1),(VLOOKUP(C28,'ADP-Rank'!$A$2:$AA$620,13,FALSE)*(Personalize!$A$3)+1),(VLOOKUP(C28,'ADP-Rank'!$A$2:$AA$620,14,FALSE)*(Personalize!$A$3)+1),(VLOOKUP(C28,'ADP-Rank'!$A$2:$AA$620,15,FALSE)*(Personalize!$A$3)+1),(VLOOKUP(C28,'ADP-Rank'!$A$2:$AG$620,28,FALSE)*(Personalize!$A$3)+1)),""),"") -> 29 | K28: =IF(ISBLANK($B28),IFERROR(CHOOSE(Personalize!$E$31,(VLOOKUP(C28,'ADP-Rank'!$A$2:$Z$620,7,FALSE)*(Personalize!$A$3-$AZ$4)+1),(VLOOKUP(C28,'ADP-Rank'!$A$2:$Z$620,8,FALSE)*(Personalize!$A$3-$AZ$4)+1),(VLOOKUP(C28,'ADP-Rank'!$A$2:$Z$620,9,FALSE)*(Personalize!$A$3-$AZ$4)+1),(VLOOKUP(C28,'ADP-Rank'!$A$2:$AA$620,10,FALSE)*(Personalize!$A$3-$AZ$4)+1),(VLOOKUP(C28,'ADP-Rank'!$A$2:$AA$620,11,FALSE)*(Personalize!$A$3-$AZ$4)+1),(VLOOKUP(C28,'ADP-Rank'!$A$2:$AA$620,12,FALSE)*(Personalize!$A$3-$AZ$4)+1),(VLOOKUP(C28,'ADP-Rank'!$A$2:$AA$620,13,FALSE)*(Personalize!$A$3-$AZ$4)+1),(VLOOKUP(C28,'ADP-Rank'!$A$2:$AA$620,14,FALSE)*(Personalize!$A$3-$AZ$4)+1),(VLOOKUP(C28,'ADP-Rank'!$A$2:$AA$620,15,FALSE)*(Personalize!$A$3-$AZ$4)+1),(VLOOKUP(C28,'ADP-Rank'!$A$2:$AG$620,28,FALSE)*(Personalize!$A$3-$AZ$4)+1)),""),"") -> 29 | L28: =IFERROR(RANK($M28,$M$7:$M$746,0),"") -> 31 | M28: =IF((SUM(O28:AI28)=0),"",SUM(O28:AI28)) -> 3.650180615 | N28: =IFERROR(IF(ISTEXT($A28),"",IF((OR($D28="RP",$D28="SP")),ABS(VLOOKUP(D28,'Filtered-P'!$AE$3:$AI$4,5,FALSE))+M28,ABS(VLOOKUP(D28,Filtered!$AJ$3:$AN$14,5,FALSE))+M28)),"") -> 6.748022773 | O28: =IFERROR(IF((OR($D28="RP",$D28="SP")),IF(Personalize!$E$10=TRUE,(((VLOOKUP($C28,'Filtered-P'!$A$1:$P$700,2,FALSE))-'Filtered-P'!$AF$8)/'Filtered-P'!$AG$8),""),IF(Personalize!$E$4=TRUE,(((VLOOKUP($C28,Filtered!$A$1:$AD$700,22,FALSE))-Filtered!$AK$35)/Filtered!$AL$35),"")),"") -> 0.7199483487 | P28: =IFERROR(IF((OR($D28="RP",$D28="SP")),IF(Personalize!$E$12=TRUE,(((VLOOKUP($C28,'Filtered-P'!$A$1:$P$700,9,FALSE))-'Filtered-P'!$AF$15)/'Filtered-P'!$AG$15),""),IF(Personalize!$E$3=TRUE,(((VLOOKUP($C28,Filtered!$A$1:$AB$700,10,FALSE))-Filtered!$AK$25)/Filtered!$AL$25),"")),"") -> 0.7890756139 | Q28: =IFERROR(IF((OR($D28="RP",$D28="SP")),IF(Personalize!$E$11=TRUE,(((VLOOKUP($C28,'Filtered-P'!$A$1:$P$700,7,FALSE))-'Filtered-P'!$AF$13)/'Filtered-P'!$AG$13),""),IF(Personalize!$E$2=TRUE,(((VLOOKUP($C28,Filtered!$A$1:$AB$700,5,FALSE))-Filtered!$AK$20)/Filtered!$AL$20),"")),"") -> 0.7405668786 | R28: =IFERROR(IF((OR($D28="RP",$D28="SP")),IF(Personalize!$E$13=TRUE,(((VLOOKUP($C28,'Filtered-P'!$A$1:$P$700,13,FALSE))-'Filtered-P'!$AF$19)/'Filtered-P'!$AG$19),""),IF(Personalize!$E$5=TRUE,(((VLOOKUP($C28,Filtered!$A$1:$AB$700,11,FALSE))-Filtered!$AK$26)/Filtered!$AL$26),"")),"") -> 1.009745512 | S28: =IFERROR(IF((OR($D28="RP",$D28="SP")),IF(Personalize!$E$14=TRUE,(((VLOOKUP($C28,'Filtered-P'!$A$1:$P$700,14,FALSE))-'Filtered-P'!$AF$20)/'Filtered-P'!$AG$20),""),IF(Personalize!$E$6=TRUE,(((VLOOKUP($C28,Filtered!$A$1:$AB$700,12,FALSE))-Filtered!$AK$27)/Filtered!$AL$27),"")),"") -> 0.3908442621 | T28: =IFERROR(IF((OR($D28="RP",$D28="SP")),IF(Personalize!$E$16=TRUE,(((VLOOKUP($C28,'Filtered-P'!$A$1:$P$700,3,FALSE))-'Filtered-P'!$AF$9)/'Filtered-P'!$AG$9),""),IF(Personalize!$E$7=TRUE,(((VLOOKUP($C28,Filtered!$A$1:$AD$700,24,FALSE))-Filtered!$AK$37)/Filtered!$AL$37),"")),"") ->  | U28: =IFERROR(IF((OR($D28="RP",$D28="SP")),IF(Personalize!$E$15=TRUE,(((VLOOKUP($C28,'Filtered-P'!$A$1:$P$700,15,FALSE))-'Filtered-P'!$AF$21)/'Filtered-P'!$AG$21),""),IF(Personalize!$E$8=TRUE,(((VLOOKUP($C28,Filtered!$A$1:$AD$700,23,FALSE))-Filtered!$AK$36)/Filtered!$AL$36),"")),"") ->  | V28: =IFERROR(IF((OR($D28="RP",$D28="SP")),IF(Personalize!$E$17=TRUE,(((VLOOKUP($C28,'Filtered-P'!$A$1:$P$700,16,FALSE))-'Filtered-P'!$AF$22)/'Filtered-P'!$AG$22),""),IF(Personalize!$E$9=TRUE,(((VLOOKUP($C28,Filtered!$A$1:$AD$700,25,FALSE))-Filtered!$AK$38)/Filtered!$AL$38),"")),"") ->  | W28: =IFERROR(IF((OR($D28="RP",$D28="SP")),IF(Personalize!$E$37=TRUE,(((VLOOKUP($C28,'Filtered-P'!$A$1:$Z$700,17,FALSE))-'Filtered-P'!$AF$25)/'Filtered-P'!$AG$25),""),IF(Personalize!$E$39=TRUE,(((VLOOKUP($C28,Filtered!$A$1:$X$700,6,FALSE))-Filtered!$AK$21)/Filtered!$AL$21),"")),"") ->  | X28: =IFERROR(IF((OR($D28="RP",$D28="SP")),IF(Personalize!$E$38=TRUE,(((VLOOKUP($C28,'Filtered-P'!$A$1:$Z$700,18,FALSE))-'Filtered-P'!$AF$26)/'Filtered-P'!$AG$26),""),IF(Personalize!$E$40=TRUE,(((VLOOKUP($C28,Filtered!$A$1:$X$700,14,FALSE))-Filtered!$AK$29)/Filtered!$AL$29),"")),"") ->  | Y28: =IFERROR(IF((OR($D28="RP",$D28="SP")),IF(Personalize!$E$45=TRUE,(((VLOOKUP($C28,'Filtered-P'!$A$1:$Z$700,4,FALSE))-'Filtered-P'!$AF$10)/'Filtered-P'!$AG$10),""),IF(Personalize!$E$41=TRUE,(((VLOOKUP($C28,Filtered!$A$1:$AD$700,20,FALSE))-Filtered!$AK$43)/Filtered!$AL$43),"")),"") ->  | Z28: =IFERROR(IF((OR($D28="RP",$D28="SP")),IF(Personalize!$E$46=TRUE,(((VLOOKUP($C28,'Filtered-P'!$A$1:$Z$700,19,FALSE))-'Filtered-P'!$AF$27)/'Filtered-P'!$AG$27),""),IF(Personalize!$E$44=TRUE,(((VLOOKUP($C28,Filtered!$A$1:$AD$700,21,FALSE))-Filtered!$AK$44)/Filtered!$AL$44),"")),"") ->  | AA28: =IFERROR(IF((OR($D28="RP",$D28="SP")),IF(Personalize!$E$47=TRUE,(((VLOOKUP($C28,'Filtered-P'!$A$1:$Z$700,6,FALSE))-'Filtered-P'!$AF$12)/'Filtered-P'!$AG$12),""),IF(Personalize!$E$42=TRUE,(((VLOOKUP($C28,Filtered!$A$1:$AD$700,8,FALSE))-Filtered!$AK$23)/Filtered!$AL$23),"")),"") ->  | AB28: =IFERROR(IF((OR($D28="RP",$D28="SP")),IF(Personalize!$E$48=TRUE,(((VLOOKUP($C28,'Filtered-P'!$A$1:$Z$700,5,FALSE))-'Filtered-P'!$AF$11)/'Filtered-P'!$AG$11),""),IF(Personalize!$E$43=TRUE,(((VLOOKUP($C28,Filtered!$A$1:$AD$700,9,FALSE))-Filtered!$AK$24)/Filtered!$AL$24),"")),"") ->  | AC28: =IFERROR(IF((OR($D28="RP",$D28="SP")),IF(Personalize!$E$52=TRUE,(((VLOOKUP($C28,'Filtered-P'!$A$1:$AD$700,21,FALSE))-'Filtered-P'!$AF$29)/(-1*'Filtered-P'!$AG$29)),""),IF(Personalize!$E$49=TRUE,(((VLOOKUP($C28,Filtered!$A$1:$AF$628,30,FALSE))-Filtered!$AK$45)/Filtered!$AL$45),"")),"") ->  | AD28: =IFERROR(IF((OR($D28="RP",$D28="SP")),IF(Personalize!$E$53=TRUE,(((VLOOKUP($C28,'Filtered-P'!$A$1:$AD$700,23,FALSE))-'Filtered-P'!$AF$31)/(-1*'Filtered-P'!$AG$31)),""),IF(Personalize!$E$50=TRUE,(((VLOOKUP($C28,Filtered!$A$1:$AF$628,31,FALSE))-Filtered!$AK$46)/Filtered!$AL$46),"")),"") ->  | AE28: =IFERROR(IF((OR($D28="RP",$D28="SP")),IF(Personalize!$E$54=TRUE,(((VLOOKUP($C28,'Filtered-P'!$A$1:$AD$700,24,FALSE))-'Filtered-P'!$AF$32)/'Filtered-P'!$AG$32),""),IF(Personalize!$E$51=TRUE,(((VLOOKUP($C28,Filtered!$A$1:$AF$628,15,FALSE))-Filtered!$AK$30)/(-1*Filtered!$AL$30)),"")),"") ->  | AF28: =IFERROR(IF((OR($D28="RP",$D28="SP")),IF(Personalize!$E$56=TRUE,(((VLOOKUP($C28,'Filtered-P'!$A$1:$AD$700,29,FALSE))-'Filtered-P'!$AF$35)/'Filtered-P'!$AG$35),""),IF(Personalize!$E$60=TRUE,(((VLOOKUP($C28,Filtered!$A$1:$AF$700,7,FALSE))-Filtered!$AK$22)/Filtered!$AL$22),"")),"") ->  | AG28: =IFERROR(IF((OR($D28="RP",$D28="SP")),IF(Personalize!$E$57=TRUE,(((VLOOKUP($C28,'Filtered-P'!$A$1:$AD$700,28,FALSE))-'Filtered-P'!$AF$34)/'Filtered-P'!$AG$34),""),IF(Personalize!$E$61=TRUE,(((VLOOKUP($C28,Filtered!$A$1:$AZ$700,34,FALSE))-Filtered!$AK$47)/Filtered!$AL$47),"")),"") ->  | AH28: =IFERROR(IF((OR($D28="RP",$D28="SP")),IF(Personalize!$E$58=TRUE,(((VLOOKUP($C28,'Filtered-P'!$A$1:$Z$700,8,FALSE))-'Filtered-P'!$AF$14)/'Filtered-P'!$AG$14),""),IF(Personalize!$E$62=TRUE,(((VLOOKUP($C28,Filtered!$A$1:$AF$700,13,FALSE))-Filtered!$AK$28)/(-1*Filtered!$AL$28)),"")),"") ->  | AI28: =IFERROR(IF((OR($D28="RP",$D28="SP")),IF(Personalize!$E$59=TRUE,(((VLOOKUP($C28,'Filtered-P'!$A$1:$AD$700,27,FALSE))-'Filtered-P'!$AF$33)/'Filtered-P'!$AG$33),""),IF(Personalize!$E$63=TRUE,(((VLOOKUP($C28,Filtered!$A$1:$AZ$700,35,FALSE))-Filtered!$AK$48)/(-1*Filtered!$AL$48)),"")),"") ->  | AJ28: =IFERROR(IF((OR($D28="RP",$D28="SP")),VLOOKUP($C28,'Filtered-P'!$A$1:$P$700,2,FALSE),""),"") ->  | AK28: =IFERROR(IF((OR($D28="RP",$D28="SP")),VLOOKUP($C28,'Filtered-P'!$A$1:$P$700,9,FALSE),""),"") ->  | AL28: =IFERROR(IF((OR($D28="RP",$D28="SP")),VLOOKUP($C28,'Filtered-P'!$A$1:$P$700,7,FALSE),""),"") ->  | AM28: =IFERROR(IF((OR($D28="RP",$D28="SP")),VLOOKUP($C28,'Filtered-P'!$A$1:$P$700,10,FALSE),""),"") ->  | AN28: =IFERROR(IF((OR($D28="RP",$D28="SP")),VLOOKUP($C28,'Filtered-P'!$A$1:$P$700,11,FALSE),""),"") ->  | AO28: =IFERROR(IF((OR($D28="RP",$D28="SP")),"",VLOOKUP($C28,Filtered!$A$1:$X$700,16,FALSE)),"") -> 0.2752894255 | AP28: =IFERROR(IF((OR($D28="RP",$D28="SP")),"",VLOOKUP($C28,Filtered!$A$1:$X$700,10,FALSE)),"") -> 22.33612869 | AQ28: =IFERROR(IF((OR($D28="RP",$D28="SP")),"",VLOOKUP($C28,Filtered!$A$1:$X$700,11,FALSE)),"") -> 79.27192893 | AR28: =IFERROR(IF((OR($D28="RP",$D28="SP")),"",VLOOKUP($C28,Filtered!$A$1:$X$700,5,FALSE)),"") -> 75.25486736 | AS28: =IFERROR(IF((OR($D28="RP",$D28="SP")),"",VLOOKUP($C28,Filtered!$A$1:$X$700,12,FALSE)),"") -> 13.71481898 | AU28: =IF(ISBLANK(A28),0,1) -> 0 | AV28: =IF(M28="",0,1) -> 1 | AW28: =A28 -> 0 | AX28: =IF(D28="C",1,IF(D28="1B",2,IF(D28="2B",3,IF(D28="3B",4,IF(D28="SS",5,IF(D28="CI",6,IF(D28="MI",7,IF(D28="OF",11,IF(D28="LF",8,IF(D28="CF",9,IF(D28="RF",10,IF(D28="DH",12,IF(D28="SP",13,IF(D28="RP",14,IF(D28="P",15,16))))))))))))))) -> 11 | AY28: =VLOOKUP(C28,'Starter Calc'!$B$2:$BS$700,70,FALSE) -> Bench | AZ28: =VLOOKUP(C28,'Starter Calc'!$B$2:$AO$700,40,FALSE) -> Yes | BA28: =IFERROR(IF(ISTEXT($A28),"",IF((OR($D28="RP",$D28="SP")),ABS(VLOOKUP(D28,'Filtered-P'!$AE$3:$AI$4,5,FALSE))+M28,ABS(VLOOKUP(D28,Filtered!$AJ$3:$AN$14,5,FALSE))+M28)),"") -> 6.748022773 | BB28: =IFERROR(BA28+ABS($BA$4),"") -> 7.619297702 | BC28: =IF(AND($A28<>"",$B28<>""),B28,"N") -> N | BD28: =IFERROR(VLOOKUP($C28,'ADP-Rank'!$A$2:$AB$620,25,FALSE),TRUE) -> TRUE | BE28: =IFERROR((BB28-BB$3)^2,"") -> 11.7508905 | BF28: =VLOOKUP(C28,'Starter Calc'!$B$2:$CD$700,71,FALSE) -> OF.Yes
C29: Anthony Rendon | D29: 3B | E29: =IFERROR(IF(VLOOKUP(C29,'Starter Calc'!$B$2:$E$700,4,FALSE)="","",VLOOKUP(C29,'Starter Calc'!$B$2:$E$700,4,FALSE)),"") -> ,, | F29: =IFERROR(VLOOKUP($C29,'ADP-Rank'!$A$2:$G$620,5,FALSE),"") -> WSH | G29: =IFERROR(VLOOKUP($C29,'ADP-Rank'!$A$2:$X$620,6,FALSE),"") -> 24 | H29: =IFERROR(IF(ISBLANK($B29),IF(BF29="Rostered",1,(IF((OR($D29="RP",$D29="SP")),ROUND((N29*($BB$1/$BD$1))+1,0),ROUND((N29*($BB$2/$BD$2))+1,0)))),""),"") -> 27 | I29: =VLOOKUP($C29,'ADP-Rank'!$A$2:$AB$620,26,FALSE) -> 15 | J29: =IF(ISBLANK($B29),IFERROR(CHOOSE(Personalize!$E$31,(VLOOKUP(C29,'ADP-Rank'!$A$2:$Z$620,7,FALSE)*(Personalize!$A$3)+1),(VLOOKUP(C29,'ADP-Rank'!$A$2:$Z$620,8,FALSE)*(Personalize!$A$3)+1),(VLOOKUP(C29,'ADP-Rank'!$A$2:$Z$620,9,FALSE)*(Personalize!$A$3)+1),(VLOOKUP(C29,'ADP-Rank'!$A$2:$AA$620,10,FALSE)*(Personalize!$A$3)+1),(VLOOKUP(C29,'ADP-Rank'!$A$2:$AA$620,11,FALSE)*(Personalize!$A$3)+1),(VLOOKUP(C29,'ADP-Rank'!$A$2:$AA$620,12,FALSE)*(Personalize!$A$3)+1),(VLOOKUP(C29,'ADP-Rank'!$A$2:$AA$620,13,FALSE)*(Personalize!$A$3)+1),(VLOOKUP(C29,'ADP-Rank'!$A$2:$AA$620,14,FALSE)*(Personalize!$A$3)+1),(VLOOKUP(C29,'ADP-Rank'!$A$2:$AA$620,15,FALSE)*(Personalize!$A$3)+1),(VLOOKUP(C29,'ADP-Rank'!$A$2:$AG$620,28,FALSE)*(Personalize!$A$3)+1)),""),"") -> 27 | K29: =IF(ISBLANK($B29),IFERROR(CHOOSE(Personalize!$E$31,(VLOOKUP(C29,'ADP-Rank'!$A$2:$Z$620,7,FALSE)*(Personalize!$A$3-$AZ$4)+1),(VLOOKUP(C29,'ADP-Rank'!$A$2:$Z$620,8,FALSE)*(Personalize!$A$3-$AZ$4)+1),(VLOOKUP(C29,'ADP-Rank'!$A$2:$Z$620,9,FALSE)*(Personalize!$A$3-$AZ$4)+1),(VLOOKUP(C29,'ADP-Rank'!$A$2:$AA$620,10,FALSE)*(Personalize!$A$3-$AZ$4)+1),(VLOOKUP(C29,'ADP-Rank'!$A$2:$AA$620,11,FALSE)*(Personalize!$A$3-$AZ$4)+1),(VLOOKUP(C29,'ADP-Rank'!$A$2:$AA$620,12,FALSE)*(Personalize!$A$3-$AZ$4)+1),(VLOOKUP(C29,'ADP-Rank'!$A$2:$AA$620,13,FALSE)*(Personalize!$A$3-$AZ$4)+1),(VLOOKUP(C29,'ADP-Rank'!$A$2:$AA$620,14,FALSE)*(Personalize!$A$3-$AZ$4)+1),(VLOOKUP(C29,'ADP-Rank'!$A$2:$AA$620,15,FALSE)*(Personalize!$A$3-$AZ$4)+1),(VLOOKUP(C29,'ADP-Rank'!$A$2:$AG$620,28,FALSE)*(Personalize!$A$3-$AZ$4)+1)),""),"") -> 27 | L29: =IFERROR(RANK($M29,$M$7:$M$746,0),"") -> 32 | M29: =IF((SUM(O29:AI29)=0),"",SUM(O29:AI29)) -> 3.577562313 | N29: =IFERROR(IF(ISTEXT($A29),"",IF((OR($D29="RP",$D29="SP")),ABS(VLOOKUP(D29,'Filtered-P'!$AE$3:$AI$4,5,FALSE))+M29,ABS(VLOOKUP(D29,Filtered!$AJ$3:$AN$14,5,FALSE))+M29)),"") -> 6.894331723 | O29: =IFERROR(IF((OR($D29="RP",$D29="SP")),IF(Personalize!$E$10=TRUE,(((VLOOKUP($C29,'Filtered-P'!$A$1:$P$700,2,FALSE))-'Filtered-P'!$AF$8)/'Filtered-P'!$AG$8),""),IF(Personalize!$E$4=TRUE,(((VLOOKUP($C29,Filtered!$A$1:$AD$700,22,FALSE))-Filtered!$AK$35)/Filtered!$AL$35),"")),"") -> 0.5617792454 | P29: =IFERROR(IF((OR($D29="RP",$D29="SP")),IF(Personalize!$E$12=TRUE,(((VLOOKUP($C29,'Filtered-P'!$A$1:$P$700,9,FALSE))-'Filtered-P'!$AF$15)/'Filtered-P'!$AG$15),""),IF(Personalize!$E$3=TRUE,(((VLOOKUP($C29,Filtered!$A$1:$AB$700,10,FALSE))-Filtered!$AK$25)/Filtered!$AL$25),"")),"") -> 0.3798914994 | Q29: =IFERROR(IF((OR($D29="RP",$D29="SP")),IF(Personalize!$E$11=TRUE,(((VLOOKUP($C29,'Filtered-P'!$A$1:$P$700,7,FALSE))-'Filtered-P'!$AF$13)/'Filtered-P'!$AG$13),""),IF(Personalize!$E$2=TRUE,(((VLOOKUP($C29,Filtered!$A$1:$AB$700,5,FALSE))-Filtered!$AK$20)/Filtered!$AL$20),"")),"") -> 1.902772054 | R29: =IFERROR(IF((OR($D29="RP",$D29="SP")),IF(Personalize!$E$13=TRUE,(((VLOOKUP($C29,'Filtered-P'!$A$1:$P$700,13,FALSE))-'Filtered-P'!$AF$19)/'Filtered-P'!$AG$19),""),IF(Personalize!$E$5=TRUE,(((VLOOKUP($C29,Filtered!$A$1:$AB$700,11,FALSE))-Filtered!$AK$26)/Filtered!$AL$26),"")),"") -> 0.6114079845 | S29: =IFERROR(IF((OR($D29="RP",$D29="SP")),IF(Personalize!$E$14=TRUE,(((VLOOKUP($C29,'Filtered-P'!$A$1:$P$700,14,FALSE))-'Filtered-P'!$AF$20)/'Filtered-P'!$AG$20),""),IF(Personalize!$E$6=TRUE,(((VLOOKUP($C29,Filtered!$A$1:$AB$700,12,FALSE))-Filtered!$AK$27)/Filtered!$AL$27),"")),"") -> 0.1217115304 | T29: =IFERROR(IF((OR($D29="RP",$D29="SP")),IF(Personalize!$E$16=TRUE,(((VLOOKUP($C29,'Filtered-P'!$A$1:$P$700,3,FALSE))-'Filtered-P'!$AF$9)/'Filtered-P'!$AG$9),""),IF(Personalize!$E$7=TRUE,(((VLOOKUP($C29,Filtered!$A$1:$AD$700,24,FALSE))-Filtered!$AK$37)/Filtered!$AL$37),"")),"") ->  | U29: =IFERROR(IF((OR($D29="RP",$D29="SP")),IF(Personalize!$E$15=TRUE,(((VLOOKUP($C29,'Filtered-P'!$A$1:$P$700,15,FALSE))-'Filtered-P'!$AF$21)/'Filtered-P'!$AG$21),""),IF(Personalize!$E$8=TRUE,(((VLOOKUP($C29,Filtered!$A$1:$AD$700,23,FALSE))-Filtered!$AK$36)/Filtered!$AL$36),"")),"") ->  | V29: =IFERROR(IF((OR($D29="RP",$D29="SP")),IF(Personalize!$E$17=TRUE,(((VLOOKUP($C29,'Filtered-P'!$A$1:$P$700,16,FALSE))-'Filtered-P'!$AF$22)/'Filtered-P'!$AG$22),""),IF(Personalize!$E$9=TRUE,(((VLOOKUP($C29,Filtered!$A$1:$AD$700,25,FALSE))-Filtered!$AK$38)/Filtered!$AL$38),"")),"") ->  | W29: =IFERROR(IF((OR($D29="RP",$D29="SP")),IF(Personalize!$E$37=TRUE,(((VLOOKUP($C29,'Filtered-P'!$A$1:$Z$700,17,FALSE))-'Filtered-P'!$AF$25)/'Filtered-P'!$AG$25),""),IF(Personalize!$E$39=TRUE,(((VLOOKUP($C29,Filtered!$A$1:$X$700,6,FALSE))-Filtered!$AK$21)/Filtered!$AL$21),"")),"") ->  | X29: =IFERROR(IF((OR($D29="RP",$D29="SP")),IF(Personalize!$E$38=TRUE,(((VLOOKUP($C29,'Filtered-P'!$A$1:$Z$700,18,FALSE))-'Filtered-P'!$AF$26)/'Filtered-P'!$AG$26),""),IF(Personalize!$E$40=TRUE,(((VLOOKUP($C29,Filtered!$A$1:$X$700,14,FALSE))-Filtered!$AK$29)/Filtered!$AL$29),"")),"") ->  | Y29: =IFERROR(IF((OR($D29="RP",$D29="SP")),IF(Personalize!$E$45=TRUE,(((VLOOKUP($C29,'Filtered-P'!$A$1:$Z$700,4,FALSE))-'Filtered-P'!$AF$10)/'Filtered-P'!$AG$10),""),IF(Personalize!$E$41=TRUE,(((VLOOKUP($C29,Filtered!$A$1:$AD$700,20,FALSE))-Filtered!$AK$43)/Filtered!$AL$43),"")),"") ->  | Z29: =IFERROR(IF((OR($D29="RP",$D29="SP")),IF(Personalize!$E$46=TRUE,(((VLOOKUP($C29,'Filtered-P'!$A$1:$Z$700,19,FALSE))-'Filtered-P'!$AF$27)/'Filtered-P'!$AG$27),""),IF(Personalize!$E$44=TRUE,(((VLOOKUP($C29,Filtered!$A$1:$AD$700,21,FALSE))-Filtered!$AK$44)/Filtered!$AL$44),"")),"") ->  | AA29: =IFERROR(IF((OR($D29="RP",$D29="SP")),IF(Personalize!$E$47=TRUE,(((VLOOKUP($C29,'Filtered-P'!$A$1:$Z$700,6,FALSE))-'Filtered-P'!$AF$12)/'Filtered-P'!$AG$12),""),IF(Personalize!$E$42=TRUE,(((VLOOKUP($C29,Filtered!$A$1:$AD$700,8,FALSE))-Filtered!$AK$23)/Filtered!$AL$23),"")),"") ->  | AB29: =IFERROR(IF((OR($D29="RP",$D29="SP")),IF(Personalize!$E$48=TRUE,(((VLOOKUP($C29,'Filtered-P'!$A$1:$Z$700,5,FALSE))-'Filtered-P'!$AF$11)/'Filtered-P'!$AG$11),""),IF(Personalize!$E$43=TRUE,(((VLOOKUP($C29,Filtered!$A$1:$AD$700,9,FALSE))-Filtered!$AK$24)/Filtered!$AL$24),"")),"") ->  | AC29: =IFERROR(IF((OR($D29="RP",$D29="SP")),IF(Personalize!$E$52=TRUE,(((VLOOKUP($C29,'Filtered-P'!$A$1:$AD$700,21,FALSE))-'Filtered-P'!$AF$29)/(-1*'Filtered-P'!$AG$29)),""),IF(Personalize!$E$49=TRUE,(((VLOOKUP($C29,Filtered!$A$1:$AF$628,30,FALSE))-Filtered!$AK$45)/Filtered!$AL$45),"")),"") ->  | AD29: =IFERROR(IF((OR($D29="RP",$D29="SP")),IF(Personalize!$E$53=TRUE,(((VLOOKUP($C29,'Filtered-P'!$A$1:$AD$700,23,FALSE))-'Filtered-P'!$AF$31)/(-1*'Filtered-P'!$AG$31)),""),IF(Personalize!$E$50=TRUE,(((VLOOKUP($C29,Filtered!$A$1:$AF$628,31,FALSE))-Filtered!$AK$46)/Filtered!$AL$46),"")),"") ->  | AE29: =IFERROR(IF((OR($D29="RP",$D29="SP")),IF(Personalize!$E$54=TRUE,(((VLOOKUP($C29,'Filtered-P'!$A$1:$AD$700,24,FALSE))-'Filtered-P'!$AF$32)/'Filtered-P'!$AG$32),""),IF(Personalize!$E$51=TRUE,(((VLOOKUP($C29,Filtered!$A$1:$AF$628,15,FALSE))-Filtered!$AK$30)/(-1*Filtered!$AL$30)),"")),"") ->  | AF29: =IFERROR(IF((OR($D29="RP",$D29="SP")),IF(Personalize!$E$56=TRUE,(((VLOOKUP($C29,'Filtered-P'!$A$1:$AD$700,29,FALSE))-'Filtered-P'!$AF$35)/'Filtered-P'!$AG$35),""),IF(Personalize!$E$60=TRUE,(((VLOOKUP($C29,Filtered!$A$1:$AF$700,7,FALSE))-Filtered!$AK$22)/Filtered!$AL$22),"")),"") ->  | AG29: =IFERROR(IF((OR($D29="RP",$D29="SP")),IF(Personalize!$E$57=TRUE,(((VLOOKUP($C29,'Filtered-P'!$A$1:$AD$700,28,FALSE))-'Filtered-P'!$AF$34)/'Filtered-P'!$AG$34),""),IF(Personalize!$E$61=TRUE,(((VLOOKUP($C29,Filtered!$A$1:$AZ$700,34,FALSE))-Filtered!$AK$47)/Filtered!$AL$47),"")),"") ->  | AH29: =IFERROR(IF((OR($D29="RP",$D29="SP")),IF(Personalize!$E$58=TRUE,(((VLOOKUP($C29,'Filtered-P'!$A$1:$Z$700,8,FALSE))-'Filtered-P'!$AF$14)/'Filtered-P'!$AG$14),""),IF(Personalize!$E$62=TRUE,(((VLOOKUP($C29,Filtered!$A$1:$AF$700,13,FALSE))-Filtered!$AK$28)/(-1*Filtered!$AL$28)),"")),"") ->  | AI29: =IFERROR(IF((OR($D29="RP",$D29="SP")),IF(Personalize!$E$59=TRUE,(((VLOOKUP($C29,'Filtered-P'!$A$1:$AD$700,27,FALSE))-'Filtered-P'!$AF$33)/'Filtered-P'!$AG$33),""),IF(Personalize!$E$63=TRUE,(((VLOOKUP($C29,Filtered!$A$1:$AZ$700,35,FALSE))-Filtered!$AK$48)/(-1*Filtered!$AL$48)),"")),"") ->  | AJ29: =IFERROR(IF((OR($D29="RP",$D29="SP")),VLOOKUP($C29,'Filtered-P'!$A$1:$P$700,2,FALSE),""),"") ->  | AK29: =IFERROR(IF((OR($D29="RP",$D29="SP")),VLOOKUP($C29,'Filtered-P'!$A$1:$P$700,9,FALSE),""),"") ->  | AL29: =IFERROR(IF((OR($D29="RP",$D29="SP")),VLOOKUP($C29,'Filtered-P'!$A$1:$P$700,7,FALSE),""),"") ->  | AM29: =IFERROR(IF((OR($D29="RP",$D29="SP")),VLOOKUP($C29,'Filtered-P'!$A$1:$P$700,10,FALSE),""),"") ->  | AN29: =IFERROR(IF((OR($D29="RP",$D29="SP")),VLOOKUP($C29,'Filtered-P'!$A$1:$P$700,11,FALSE),""),"") ->  | AO29: =IFERROR(IF((OR($D29="RP",$D29="SP")),"",VLOOKUP($C29,Filtered!$A$1:$X$700,16,FALSE)),"") -> 0.2711468634 | AP29: =IFERROR(IF((OR($D29="RP",$D29="SP")),"",VLOOKUP($C29,Filtered!$A$1:$X$700,10,FALSE)),"") -> 19.52632518 | AQ29: =IFERROR(IF((OR($D29="RP",$D29="SP")),"",VLOOKUP($C29,Filtered!$A$1:$X$700,11,FALSE)),"") -> 74.058927 | AR29: =IFERROR(IF((OR($D29="RP",$D29="SP")),"",VLOOKUP($C29,Filtered!$A$1:$X$700,5,FALSE)),"") -> 87.26442873 | AS29: =IFERROR(IF((OR($D29="RP",$D29="SP")),"",VLOOKUP($C29,Filtered!$A$1:$X$700,12,FALSE)),"") -> 11.28470314 | AU29: =IF(ISBLANK(A29),0,1) -> 0 | AV29: =IF(M29="",0,1) -> 1 | AW29: =A29 -> 0 | AX29: =IF(D29="C",1,IF(D29="1B",2,IF(D29="2B",3,IF(D29="3B",4,IF(D29="SS",5,IF(D29="CI",6,IF(D29="MI",7,IF(D29="OF",11,IF(D29="LF",8,IF(D29="CF",9,IF(D29="RF",10,IF(D29="DH",12,IF(D29="SP",13,IF(D29="RP",14,IF(D29="P",15,16))))))))))))))) -> 4 | AY29: =VLOOKUP(C29,'Starter Calc'!$B$2:$BS$700,70,FALSE) -> Bench | AZ29: =VLOOKUP(C29,'Starter Calc'!$B$2:$AO$700,40,FALSE) -> Yes | BA29: =IFERROR(IF(ISTEXT($A29),"",IF((OR($D29="RP",$D29="SP")),ABS(VLOOKUP(D29,'Filtered-P'!$AE$3:$AI$4,5,FALSE))+M29,ABS(VLOOKUP(D29,Filtered!$AJ$3:$AN$14,5,FALSE))+M29)),"") -> 6.894331723 | BB29: =IFERROR(BA29+ABS($BA$4),"") -> 7.765606653 | BC29: =IF(AND($A29<>"",$B29<>""),B29,"N") -> N | BD29: =IFERROR(VLOOKUP($C29,'ADP-Rank'!$A$2:$AB$620,25,FALSE),TRUE) -> TRUE | BE29: =IFERROR((BB29-BB$3)^2,"") -> 12.77537845 | BF29: =VLOOKUP(C29,'Starter Calc'!$B$2:$CD$700,71,FALSE) -> 3B.Yes
C30: Chris Sale | D30: SP | E30: =IFERROR(IF(VLOOKUP(C30,'Starter Calc'!$B$2:$E$700,4,FALSE)="","",VLOOKUP(C30,'Starter Calc'!$B$2:$E$700,4,FALSE)),"") -> ,, | F30: =IFERROR(VLOOKUP($C30,'ADP-Rank'!$A$2:$G$620,5,FALSE),"") -> CWS | G30: =IFERROR(VLOOKUP($C30,'ADP-Rank'!$A$2:$X$620,6,FALSE),"") -> 26 | H30: =IFERROR(IF(ISBLANK($B30),IF(BF30="Rostered",1,(IF((OR($D30="RP",$D30="SP")),ROUND((N30*($BB$1/$BD$1))+1,0),ROUND((N30*($BB$2/$BD$2))+1,0)))),""),"") -> 26 | I30: =VLOOKUP($C30,'ADP-Rank'!$A$2:$AB$620,26,FALSE) -> 22 | J30: =IF(ISBLANK($B30),IFERROR(CHOOSE(Personalize!$E$31,(VLOOKUP(C30,'ADP-Rank'!$A$2:$Z$620,7,FALSE)*(Personalize!$A$3)+1),(VLOOKUP(C30,'ADP-Rank'!$A$2:$Z$620,8,FALSE)*(Personalize!$A$3)+1),(VLOOKUP(C30,'ADP-Rank'!$A$2:$Z$620,9,FALSE)*(Personalize!$A$3)+1),(VLOOKUP(C30,'ADP-Rank'!$A$2:$AA$620,10,FALSE)*(Personalize!$A$3)+1),(VLOOKUP(C30,'ADP-Rank'!$A$2:$AA$620,11,FALSE)*(Personalize!$A$3)+1),(VLOOKUP(C30,'ADP-Rank'!$A$2:$AA$620,12,FALSE)*(Personalize!$A$3)+1),(VLOOKUP(C30,'ADP-Rank'!$A$2:$AA$620,13,FALSE)*(Personalize!$A$3)+1),(VLOOKUP(C30,'ADP-Rank'!$A$2:$AA$620,14,FALSE)*(Personalize!$A$3)+1),(VLOOKUP(C30,'ADP-Rank'!$A$2:$AA$620,15,FALSE)*(Personalize!$A$3)+1),(VLOOKUP(C30,'ADP-Rank'!$A$2:$AG$620,28,FALSE)*(Personalize!$A$3)+1)),""),"") -> 27 | K30: =IF(ISBLANK($B30),IFERROR(CHOOSE(Personalize!$E$31,(VLOOKUP(C30,'ADP-Rank'!$A$2:$Z$620,7,FALSE)*(Personalize!$A$3-$AZ$4)+1),(VLOOKUP(C30,'ADP-Rank'!$A$2:$Z$620,8,FALSE)*(Personalize!$A$3-$AZ$4)+1),(VLOOKUP(C30,'ADP-Rank'!$A$2:$Z$620,9,FALSE)*(Personalize!$A$3-$AZ$4)+1),(VLOOKUP(C30,'ADP-Rank'!$A$2:$AA$620,10,FALSE)*(Personalize!$A$3-$AZ$4)+1),(VLOOKUP(C30,'ADP-Rank'!$A$2:$AA$620,11,FALSE)*(Personalize!$A$3-$AZ$4)+1),(VLOOKUP(C30,'ADP-Rank'!$A$2:$AA$620,12,FALSE)*(Personalize!$A$3-$AZ$4)+1),(VLOOKUP(C30,'ADP-Rank'!$A$2:$AA$620,13,FALSE)*(Personalize!$A$3-$AZ$4)+1),(VLOOKUP(C30,'ADP-Rank'!$A$2:$AA$620,14,FALSE)*(Personalize!$A$3-$AZ$4)+1),(VLOOKUP(C30,'ADP-Rank'!$A$2:$AA$620,15,FALSE)*(Personalize!$A$3-$AZ$4)+1),(VLOOKUP(C30,'ADP-Rank'!$A$2:$AG$620,28,FALSE)*(Personalize!$A$3-$AZ$4)+1)),""),"") -> 27 | L30: =IFERROR(RANK($M30,$M$7:$M$746,0),"") -> 10 | M30: =IF((SUM(O30:AI30)=0),"",SUM(O30:AI30)) -> 6.277125215 | N30: =IFERROR(IF(ISTEXT($A30),"",IF((OR($D30="RP",$D30="SP")),ABS(VLOOKUP(D30,'Filtered-P'!$AE$3:$AI$4,5,FALSE))+M30,ABS(VLOOKUP(D30,Filtered!$AJ$3:$AN$14,5,FALSE))+M30)),"") -> 8.99660255 | O30: =IFERROR(IF((OR($D30="RP",$D30="SP")),IF(Personalize!$E$10=TRUE,(((VLOOKUP($C30,'Filtered-P'!$A$1:$P$700,2,FALSE))-'Filtered-P'!$AF$8)/'Filtered-P'!$AG$8),""),IF(Personalize!$E$4=TRUE,(((VLOOKUP($C30,Filtered!$A$1:$AD$700,22,FALSE))-Filtered!$AK$35)/Filtered!$AL$35),"")),"") -> 0.8427821046 | P30: =IFERROR(IF((OR($D30="RP",$D30="SP")),IF(Personalize!$E$12=TRUE,(((VLOOKUP($C30,'Filtered-P'!$A$1:$P$700,9,FALSE))-'Filtered-P'!$AF$15)/'Filtered-P'!$AG$15),""),IF(Personalize!$E$3=TRUE,(((VLOOKUP($C30,Filtered!$A$1:$AB$700,10,FALSE))-Filtered!$AK$25)/Filtered!$AL$25),"")),"") -> -0.4771200697 | Q30: =IFERROR(IF((OR($D30="RP",$D30="SP")),IF(Personalize!$E$11=TRUE,(((VLOOKUP($C30,'Filtered-P'!$A$1:$P$700,7,FALSE))-'Filtered-P'!$AF$13)/'Filtered-P'!$AG$13),""),IF(Personalize!$E$2=TRUE,(((VLOOKUP($C30,Filtered!$A$1:$AB$700,5,FALSE))-Filtered!$AK$20)/Filtered!$AL$20),"")),"") -> 1.780273138 | R30: =IFERROR(IF((OR($D30="RP",$D30="SP")),IF(Personalize!$E$13=TRUE,(((VLOOKUP($C30,'Filtered-P'!$A$1:$P$700,13,FALSE))-'Filtered-P'!$AF$19)/'Filtered-P'!$AG$19),""),IF(Personalize!$E$5=TRUE,(((VLOOKUP($C30,Filtered!$A$1:$AB$700,11,FALSE))-Filtered!$AK$26)/Filtered!$AL$26),"")),"") -> 1.608256822 | S30: =IFERROR(IF((OR($D30="RP",$D30="SP")),IF(Personalize!$E$14=TRUE,(((VLOOKUP($C30,'Filtered-P'!$A$1:$P$700,14,FALSE))-'Filtered-P'!$AF$20)/'Filtered-P'!$AG$20),""),IF(Personalize!$E$6=TRUE,(((VLOOKUP($C30,Filtered!$A$1:$AB$700,12,FALSE))-Filtered!$AK$27)/Filtered!$AL$27),"")),"") -> 2.522933219 | T30: =IFERROR(IF((OR($D30="RP",$D30="SP")),IF(Personalize!$E$16=TRUE,(((VLOOKUP($C30,'Filtered-P'!$A$1:$P$700,3,FALSE))-'Filtered-P'!$AF$9)/'Filtered-P'!$AG$9),""),IF(Personalize!$E$7=TRUE,(((VLOOKUP($C30,Filtered!$A$1:$AD$700,24,FALSE))-Filtered!$AK$37)/Filtered!$AL$37),"")),"") ->  | U30: =IFERROR(IF((OR($D30="RP",$D30="SP")),IF(Personalize!$E$15=TRUE,(((VLOOKUP($C30,'Filtered-P'!$A$1:$P$700,15,FALSE))-'Filtered-P'!$AF$21)/'Filtered-P'!$AG$21),""),IF(Personalize!$E$8=TRUE,(((VLOOKUP($C30,Filtered!$A$1:$AD$700,23,FALSE))-Filtered!$AK$36)/Filtered!$AL$36),"")),"") ->  | V30: =IFERROR(IF((OR($D30="RP",$D30="SP")),IF(Personalize!$E$17=TRUE,(((VLOOKUP($C30,'Filtered-P'!$A$1:$P$700,16,FALSE))-'Filtered-P'!$AF$22)/'Filtered-P'!$AG$22),""),IF(Personalize!$E$9=TRUE,(((VLOOKUP($C30,Filtered!$A$1:$AD$700,25,FALSE))-Filtered!$AK$38)/Filtered!$AL$38),"")),"") ->  | W30: =IFERROR(IF((OR($D30="RP",$D30="SP")),IF(Personalize!$E$37=TRUE,(((VLOOKUP($C30,'Filtered-P'!$A$1:$Z$700,17,FALSE))-'Filtered-P'!$AF$25)/'Filtered-P'!$AG$25),""),IF(Personalize!$E$39=TRUE,(((VLOOKUP($C30,Filtered!$A$1:$X$700,6,FALSE))-Filtered!$AK$21)/Filtered!$AL$21),"")),"") ->  | X30: =IFERROR(IF((OR($D30="RP",$D30="SP")),IF(Personalize!$E$38=TRUE,(((VLOOKUP($C30,'Filtered-P'!$A$1:$Z$700,18,FALSE))-'Filtered-P'!$AF$26)/'Filtered-P'!$AG$26),""),IF(Personalize!$E$40=TRUE,(((VLOOKUP($C30,Filtered!$A$1:$X$700,14,FALSE))-Filtered!$AK$29)/Filtered!$AL$29),"")),"") ->  | Y30: =IFERROR(IF((OR($D30="RP",$D30="SP")),IF(Personalize!$E$45=TRUE,(((VLOOKUP($C30,'Filtered-P'!$A$1:$Z$700,4,FALSE))-'Filtered-P'!$AF$10)/'Filtered-P'!$AG$10),""),IF(Personalize!$E$41=TRUE,(((VLOOKUP($C30,Filtered!$A$1:$AD$700,20,FALSE))-Filtered!$AK$43)/Filtered!$AL$43),"")),"") ->  | Z30: =IFERROR(IF((OR($D30="RP",$D30="SP")),IF(Personalize!$E$46=TRUE,(((VLOOKUP($C30,'Filtered-P'!$A$1:$Z$700,19,FALSE))-'Filtered-P'!$AF$27)/'Filtered-P'!$AG$27),""),IF(Personalize!$E$44=TRUE,(((VLOOKUP($C30,Filtered!$A$1:$AD$700,21,FALSE))-Filtered!$AK$44)/Filtered!$AL$44),"")),"") ->  | AA30: =IFERROR(IF((OR($D30="RP",$D30="SP")),IF(Personalize!$E$47=TRUE,(((VLOOKUP($C30,'Filtered-P'!$A$1:$Z$700,6,FALSE))-'Filtered-P'!$AF$12)/'Filtered-P'!$AG$12),""),IF(Personalize!$E$42=TRUE,(((VLOOKUP($C30,Filtered!$A$1:$AD$700,8,FALSE))-Filtered!$AK$23)/Filtered!$AL$23),"")),"") ->  | AB30: =IFERROR(IF((OR($D30="RP",$D30="SP")),IF(Personalize!$E$48=TRUE,(((VLOOKUP($C30,'Filtered-P'!$A$1:$Z$700,5,FALSE))-'Filtered-P'!$AF$11)/'Filtered-P'!$AG$11),""),IF(Personalize!$E$43=TRUE,(((VLOOKUP($C30,Filtered!$A$1:$AD$700,9,FALSE))-Filtered!$AK$24)/Filtered!$AL$24),"")),"") ->  | AC30: =IFERROR(IF((OR($D30="RP",$D30="SP")),IF(Personalize!$E$52=TRUE,(((VLOOKUP($C30,'Filtered-P'!$A$1:$AD$700,21,FALSE))-'Filtered-P'!$AF$29)/(-1*'Filtered-P'!$AG$29)),""),IF(Personalize!$E$49=TRUE,(((VLOOKUP($C30,Filtered!$A$1:$AF$628,30,FALSE))-Filtered!$AK$45)/Filtered!$AL$45),"")),"") ->  | AD30: =IFERROR(IF((OR($D30="RP",$D30="SP")),IF(Personalize!$E$53=TRUE,(((VLOOKUP($C30,'Filtered-P'!$A$1:$AD$700,23,FALSE))-'Filtered-P'!$AF$31)/(-1*'Filtered-P'!$AG$31)),""),IF(Personalize!$E$50=TRUE,(((VLOOKUP($C30,Filtered!$A$1:$AF$628,31,FALSE))-Filtered!$AK$46)/Filtered!$AL$46),"")),"") ->  | AE30: =IFERROR(IF((OR($D30="RP",$D30="SP")),IF(Personalize!$E$54=TRUE,(((VLOOKUP($C30,'Filtered-P'!$A$1:$AD$700,24,FALSE))-'Filtered-P'!$AF$32)/'Filtered-P'!$AG$32),""),IF(Personalize!$E$51=TRUE,(((VLOOKUP($C30,Filtered!$A$1:$AF$628,15,FALSE))-Filtered!$AK$30)/(-1*Filtered!$AL$30)),"")),"") ->  | AF30: =IFERROR(IF((OR($D30="RP",$D30="SP")),IF(Personalize!$E$56=TRUE,(((VLOOKUP($C30,'Filtered-P'!$A$1:$AD$700,29,FALSE))-'Filtered-P'!$AF$35)/'Filtered-P'!$AG$35),""),IF(Personalize!$E$60=TRUE,(((VLOOKUP($C30,Filtered!$A$1:$AF$700,7,FALSE))-Filtered!$AK$22)/Filtered!$AL$22),"")),"") ->  | AG30: =IFERROR(IF((OR($D30="RP",$D30="SP")),IF(Personalize!$E$57=TRUE,(((VLOOKUP($C30,'Filtered-P'!$A$1:$AD$700,28,FALSE))-'Filtered-P'!$AF$34)/'Filtered-P'!$AG$34),""),IF(Personalize!$E$61=TRUE,(((VLOOKUP($C30,Filtered!$A$1:$AZ$700,34,FALSE))-Filtered!$AK$47)/Filtered!$AL$47),"")),"") ->  | AH30: =IFERROR(IF((OR($D30="RP",$D30="SP")),IF(Personalize!$E$58=TRUE,(((VLOOKUP($C30,'Filtered-P'!$A$1:$Z$700,8,FALSE))-'Filtered-P'!$AF$14)/'Filtered-P'!$AG$14),""),IF(Personalize!$E$62=TRUE,(((VLOOKUP($C30,Filtered!$A$1:$AF$700,13,FALSE))-Filtered!$AK$28)/(-1*Filtered!$AL$28)),"")),"") ->  | AI30: =IFERROR(IF((OR($D30="RP",$D30="SP")),IF(Personalize!$E$59=TRUE,(((VLOOKUP($C30,'Filtered-P'!$A$1:$AD$700,27,FALSE))-'Filtered-P'!$AF$33)/'Filtered-P'!$AG$33),""),IF(Personalize!$E$63=TRUE,(((VLOOKUP($C30,Filtered!$A$1:$AZ$700,35,FALSE))-Filtered!$AK$48)/(-1*Filtered!$AL$48)),"")),"") ->  | AJ30: =IFERROR(IF((OR($D30="RP",$D30="SP")),VLOOKUP($C30,'Filtered-P'!$A$1:$P$700,2,FALSE),""),"") -> 12.56070432 | AK30: =IFERROR(IF((OR($D30="RP",$D30="SP")),VLOOKUP($C30,'Filtered-P'!$A$1:$P$700,9,FALSE),""),"") -> 0 | AL30: =IFERROR(IF((OR($D30="RP",$D30="SP")),VLOOKUP($C30,'Filtered-P'!$A$1:$P$700,7,FALSE),""),"") -> 217.434844 | AM30: =IFERROR(IF((OR($D30="RP",$D30="SP")),VLOOKUP($C30,'Filtered-P'!$A$1:$P$700,10,FALSE),""),"") -> 3.077074669 | AN30: =IFERROR(IF((OR($D30="RP",$D30="SP")),VLOOKUP($C30,'Filtered-P'!$A$1:$P$700,11,FALSE),""),"") -> 1.043799066 | AO30: =IFERROR(IF((OR($D30="RP",$D30="SP")),"",VLOOKUP($C30,Filtered!$A$1:$X$700,16,FALSE)),"") ->  | AP30: =IFERROR(IF((OR($D30="RP",$D30="SP")),"",VLOOKUP($C30,Filtered!$A$1:$X$700,10,FALSE)),"") ->  | AQ30: =IFERROR(IF((OR($D30="RP",$D30="SP")),"",VLOOKUP($C30,Filtered!$A$1:$X$700,11,FALSE)),"") ->  | AR30: =IFERROR(IF((OR($D30="RP",$D30="SP")),"",VLOOKUP($C30,Filtered!$A$1:$X$700,5,FALSE)),"") ->  | AS30: =IFERROR(IF((OR($D30="RP",$D30="SP")),"",VLOOKUP($C30,Filtered!$A$1:$X$700,12,FALSE)),"") ->  | AU30: =IF(ISBLANK(A30),0,1) -> 0 | AV30: =IF(M30="",0,1) -> 1 | AW30: =A30 -> 0 | AX30: =IF(D30="C",1,IF(D30="1B",2,IF(D30="2B",3,IF(D30="3B",4,IF(D30="SS",5,IF(D30="CI",6,IF(D30="MI",7,IF(D30="OF",11,IF(D30="LF",8,IF(D30="CF",9,IF(D30="RF",10,IF(D30="DH",12,IF(D30="SP",13,IF(D30="RP",14,IF(D30="P",15,16))))))))))))))) -> 13 | AY30: =VLOOKUP(C30,'Starter Calc'!$B$2:$BS$700,70,FALSE) -> Bench | AZ30: =VLOOKUP(C30,'Starter Calc'!$B$2:$AO$700,40,FALSE) -> Yes | BA30: =IFERROR(IF(ISTEXT($A30),"",IF((OR($D30="RP",$D30="SP")),ABS(VLOOKUP(D30,'Filtered-P'!$AE$3:$AI$4,5,FALSE))+M30,ABS(VLOOKUP(D30,Filtered!$AJ$3:$AN$14,5,FALSE))+M30)),"") -> 8.99660255 | BB30: =IFERROR(BA30+ABS($BA$4),"") -> 9.867877479 | BC30: =IF(AND($A30<>"",$B30<>""),B30,"N") -> N | BD30: =IFERROR(VLOOKUP($C30,'ADP-Rank'!$A$2:$AB$620,25,FALSE),TRUE) -> TRUE | BE30: =IFERROR((BB30-BB$3)^2,"") -> 32.22307195 | BF30: =VLOOKUP(C30,'Starter Calc'!$B$2:$CD$700,71,FALSE) -> SP.No
C31: David Price | D31: SP | E31: =IFERROR(IF(VLOOKUP(C31,'Starter Calc'!$B$2:$E$700,4,FALSE)="","",VLOOKUP(C31,'Starter Calc'!$B$2:$E$700,4,FALSE)),"") -> ,, | F31: =IFERROR(VLOOKUP($C31,'ADP-Rank'!$A$2:$G$620,5,FALSE),"") -> DET | G31: =IFERROR(VLOOKUP($C31,'ADP-Rank'!$A$2:$X$620,6,FALSE),"") -> 29 | H31: =IFERROR(IF(ISBLANK($B31),IF(BF31="Rostered",1,(IF((OR($D31="RP",$D31="SP")),ROUND((N31*($BB$1/$BD$1))+1,0),ROUND((N31*($BB$2/$BD$2))+1,0)))),""),"") -> 26 | I31: =VLOOKUP($C31,'ADP-Rank'!$A$2:$AB$620,26,FALSE) -> 28 | J31: =IF(ISBLANK($B31),IFERROR(CHOOSE(Personalize!$E$31,(VLOOKUP(C31,'ADP-Rank'!$A$2:$Z$620,7,FALSE)*(Personalize!$A$3)+1),(VLOOKUP(C31,'ADP-Rank'!$A$2:$Z$620,8,FALSE)*(Personalize!$A$3)+1),(VLOOKUP(C31,'ADP-Rank'!$A$2:$Z$620,9,FALSE)*(Personalize!$A$3)+1),(VLOOKUP(C31,'ADP-Rank'!$A$2:$AA$620,10,FALSE)*(Personalize!$A$3)+1),(VLOOKUP(C31,'ADP-Rank'!$A$2:$AA$620,11,FALSE)*(Personalize!$A$3)+1),(VLOOKUP(C31,'ADP-Rank'!$A$2:$AA$620,12,FALSE)*(Personalize!$A$3)+1),(VLOOKUP(C31,'ADP-Rank'!$A$2:$AA$620,13,FALSE)*(Personalize!$A$3)+1),(VLOOKUP(C31,'ADP-Rank'!$A$2:$AA$620,14,FALSE)*(Personalize!$A$3)+1),(VLOOKUP(C31,'ADP-Rank'!$A$2:$AA$620,15,FALSE)*(Personalize!$A$3)+1),(VLOOKUP(C31,'ADP-Rank'!$A$2:$AG$620,28,FALSE)*(Personalize!$A$3)+1)),""),"") -> 20 | K31: =IF(ISBLANK($B31),IFERROR(CHOOSE(Personalize!$E$31,(VLOOKUP(C31,'ADP-Rank'!$A$2:$Z$620,7,FALSE)*(Personalize!$A$3-$AZ$4)+1),(VLOOKUP(C31,'ADP-Rank'!$A$2:$Z$620,8,FALSE)*(Personalize!$A$3-$AZ$4)+1),(VLOOKUP(C31,'ADP-Rank'!$A$2:$Z$620,9,FALSE)*(Personalize!$A$3-$AZ$4)+1),(VLOOKUP(C31,'ADP-Rank'!$A$2:$AA$620,10,FALSE)*(Personalize!$A$3-$AZ$4)+1),(VLOOKUP(C31,'ADP-Rank'!$A$2:$AA$620,11,FALSE)*(Personalize!$A$3-$AZ$4)+1),(VLOOKUP(C31,'ADP-Rank'!$A$2:$AA$620,12,FALSE)*(Personalize!$A$3-$AZ$4)+1),(VLOOKUP(C31,'ADP-Rank'!$A$2:$AA$620,13,FALSE)*(Personalize!$A$3-$AZ$4)+1),(VLOOKUP(C31,'ADP-Rank'!$A$2:$AA$620,14,FALSE)*(Personalize!$A$3-$AZ$4)+1),(VLOOKUP(C31,'ADP-Rank'!$A$2:$AA$620,15,FALSE)*(Personalize!$A$3-$AZ$4)+1),(VLOOKUP(C31,'ADP-Rank'!$A$2:$AG$620,28,FALSE)*(Personalize!$A$3-$AZ$4)+1)),""),"") -> 20 | L31: =IFERROR(RANK($M31,$M$7:$M$746,0),"") -> 9 | M31: =IF((SUM(O31:AI31)=0),"",SUM(O31:AI31)) -> 6.333073463 | N31: =IFERROR(IF(ISTEXT($A31),"",IF((OR($D31="RP",$D31="SP")),ABS(VLOOKUP(D31,'Filtered-P'!$AE$3:$AI$4,5,FALSE))+M31,ABS(VLOOKUP(D31,Filtered!$AJ$3:$AN$14,5,FALSE))+M31)),"") -> 9.052550798 | O31: =IFERROR(IF((OR($D31="RP",$D31="SP")),IF(Personalize!$E$10=TRUE,(((VLOOKUP($C31,'Filtered-P'!$A$1:$P$700,2,FALSE))-'Filtered-P'!$AF$8)/'Filtered-P'!$AG$8),""),IF(Personalize!$E$4=TRUE,(((VLOOKUP($C31,Filtered!$A$1:$AD$700,22,FALSE))-Filtered!$AK$35)/Filtered!$AL$35),"")),"") -> 1.340579336 | P31: =IFERROR(IF((OR($D31="RP",$D31="SP")),IF(Personalize!$E$12=TRUE,(((VLOOKUP($C31,'Filtered-P'!$A$1:$P$700,9,FALSE))-'Filtered-P'!$AF$15)/'Filtered-P'!$AG$15),""),IF(Personalize!$E$3=TRUE,(((VLOOKUP($C31,Filtered!$A$1:$AB$700,10,FALSE))-Filtered!$AK$25)/Filtered!$AL$25),"")),"") -> -0.4771200697 | Q31: =IFERROR(IF((OR($D31="RP",$D31="SP")),IF(Personalize!$E$11=TRUE,(((VLOOKUP($C31,'Filtered-P'!$A$1:$P$700,7,FALSE))-'Filtered-P'!$AF$13)/'Filtered-P'!$AG$13),""),IF(Personalize!$E$2=TRUE,(((VLOOKUP($C31,Filtered!$A$1:$AB$700,5,FALSE))-Filtered!$AK$20)/Filtered!$AL$20),"")),"") -> 1.689234927 | R31: =IFERROR(IF((OR($D31="RP",$D31="SP")),IF(Personalize!$E$13=TRUE,(((VLOOKUP($C31,'Filtered-P'!$A$1:$P$700,13,FALSE))-'Filtered-P'!$AF$19)/'Filtered-P'!$AG$19),""),IF(Personalize!$E$5=TRUE,(((VLOOKUP($C31,Filtered!$A$1:$AB$700,11,FALSE))-Filtered!$AK$26)/Filtered!$AL$26),"")),"") -> 1.484525488 | S31: =IFERROR(IF((OR($D31="RP",$D31="SP")),IF(Personalize!$E$14=TRUE,(((VLOOKUP($C31,'Filtered-P'!$A$1:$P$700,14,FALSE))-'Filtered-P'!$AF$20)/'Filtered-P'!$AG$20),""),IF(Personalize!$E$6=TRUE,(((VLOOKUP($C31,Filtered!$A$1:$AB$700,12,FALSE))-Filtered!$AK$27)/Filtered!$AL$27),"")),"") -> 2.295853781 | T31: =IFERROR(IF((OR($D31="RP",$D31="SP")),IF(Personalize!$E$16=TRUE,(((VLOOKUP($C31,'Filtered-P'!$A$1:$P$700,3,FALSE))-'Filtered-P'!$AF$9)/'Filtered-P'!$AG$9),""),IF(Personalize!$E$7=TRUE,(((VLOOKUP($C31,Filtered!$A$1:$AD$700,24,FALSE))-Filtered!$AK$37)/Filtered!$AL$37),"")),"") ->  | U31: =IFERROR(IF((OR($D31="RP",$D31="SP")),IF(Personalize!$E$15=TRUE,(((VLOOKUP($C31,'Filtered-P'!$A$1:$P$700,15,FALSE))-'Filtered-P'!$AF$21)/'Filtered-P'!$AG$21),""),IF(Personalize!$E$8=TRUE,(((VLOOKUP($C31,Filtered!$A$1:$AD$700,23,FALSE))-Filtered!$AK$36)/Filtered!$AL$36),"")),"") ->  | V31: =IFERROR(IF((OR($D31="RP",$D31="SP")),IF(Personalize!$E$17=TRUE,(((VLOOKUP($C31,'Filtered-P'!$A$1:$P$700,16,FALSE))-'Filtered-P'!$AF$22)/'Filtered-P'!$AG$22),""),IF(Personalize!$E$9=TRUE,(((VLOOKUP($C31,Filtered!$A$1:$AD$700,25,FALSE))-Filtered!$AK$38)/Filtered!$AL$38),"")),"") ->  | W31: =IFERROR(IF((OR($D31="RP",$D31="SP")),IF(Personalize!$E$37=TRUE,(((VLOOKUP($C31,'Filtered-P'!$A$1:$Z$700,17,FALSE))-'Filtered-P'!$AF$25)/'Filtered-P'!$AG$25),""),IF(Personalize!$E$39=TRUE,(((VLOOKUP($C31,Filtered!$A$1:$X$700,6,FALSE))-Filtered!$AK$21)/Filtered!$AL$21),"")),"") ->  | X31: =IFERROR(IF((OR($D31="RP",$D31="SP")),IF(Personalize!$E$38=TRUE,(((VLOOKUP($C31,'Filtered-P'!$A$1:$Z$700,18,FALSE))-'Filtered-P'!$AF$26)/'Filtered-P'!$AG$26),""),IF(Personalize!$E$40=TRUE,(((VLOOKUP($C31,Filtered!$A$1:$X$700,14,FALSE))-Filtered!$AK$29)/Filtered!$AL$29),"")),"") ->  | Y31: =IFERROR(IF((OR($D31="RP",$D31="SP")),IF(Personalize!$E$45=TRUE,(((VLOOKUP($C31,'Filtered-P'!$A$1:$Z$700,4,FALSE))-'Filtered-P'!$AF$10)/'Filtered-P'!$AG$10),""),IF(Personalize!$E$41=TRUE,(((VLOOKUP($C31,Filtered!$A$1:$AD$700,20,FALSE))-Filtered!$AK$43)/Filtered!$AL$43),"")),"") ->  | Z31: =IFERROR(IF((OR($D31="RP",$D31="SP")),IF(Personalize!$E$46=TRUE,(((VLOOKUP($C31,'Filtered-P'!$A$1:$Z$700,19,FALSE))-'Filtered-P'!$AF$27)/'Filtered-P'!$AG$27),""),IF(Personalize!$E$44=TRUE,(((VLOOKUP($C31,Filtered!$A$1:$AD$700,21,FALSE))-Filtered!$AK$44)/Filtered!$AL$44),"")),"") ->  | AA31: =IFERROR(IF((OR($D31="RP",$D31="SP")),IF(Personalize!$E$47=TRUE,(((VLOOKUP($C31,'Filtered-P'!$A$1:$Z$700,6,FALSE))-'Filtered-P'!$AF$12)/'Filtered-P'!$AG$12),""),IF(Personalize!$E$42=TRUE,(((VLOOKUP($C31,Filtered!$A$1:$AD$700,8,FALSE))-Filtered!$AK$23)/Filtered!$AL$23),"")),"") ->  | AB31: =IFERROR(IF((OR($D31="RP",$D31="SP")),IF(Personalize!$E$48=TRUE,(((VLOOKUP($C31,'Filtered-P'!$A$1:$Z$700,5,FALSE))-'Filtered-P'!$AF$11)/'Filtered-P'!$AG$11),""),IF(Personalize!$E$43=TRUE,(((VLOOKUP($C31,Filtered!$A$1:$AD$700,9,FALSE))-Filtered!$AK$24)/Filtered!$AL$24),"")),"") ->  | AC31: =IFERROR(IF((OR($D31="RP",$D31="SP")),IF(Personalize!$E$52=TRUE,(((VLOOKUP($C31,'Filtered-P'!$A$1:$AD$700,21,FALSE))-'Filtered-P'!$AF$29)/(-1*'Filtered-P'!$AG$29)),""),IF(Personalize!$E$49=TRUE,(((VLOOKUP($C31,Filtered!$A$1:$AF$628,30,FALSE))-Filtered!$AK$45)/Filtered!$AL$45),"")),"") ->  | AD31: =IFERROR(IF((OR($D31="RP",$D31="SP")),IF(Personalize!$E$53=TRUE,(((VLOOKUP($C31,'Filtered-P'!$A$1:$AD$700,23,FALSE))-'Filtered-P'!$AF$31)/(-1*'Filtered-P'!$AG$31)),""),IF(Personalize!$E$50=TRUE,(((VLOOKUP($C31,Filtered!$A$1:$AF$628,31,FALSE))-Filtered!$AK$46)/Filtered!$AL$46),"")),"") ->  | AE31: =IFERROR(IF((OR($D31="RP",$D31="SP")),IF(Personalize!$E$54=TRUE,(((VLOOKUP($C31,'Filtered-P'!$A$1:$AD$700,24,FALSE))-'Filtered-P'!$AF$32)/'Filtered-P'!$AG$32),""),IF(Personalize!$E$51=TRUE,(((VLOOKUP($C31,Filtered!$A$1:$AF$628,15,FALSE))-Filtered!$AK$30)/(-1*Filtered!$AL$30)),"")),"") ->  | AF31: =IFERROR(IF((OR($D31="RP",$D31="SP")),IF(Personalize!$E$56=TRUE,(((VLOOKUP($C31,'Filtered-P'!$A$1:$AD$700,29,FALSE))-'Filtered-P'!$AF$35)/'Filtered-P'!$AG$35),""),IF(Personalize!$E$60=TRUE,(((VLOOKUP($C31,Filtered!$A$1:$AF$700,7,FALSE))-Filtered!$AK$22)/Filtered!$AL$22),"")),"") ->  | AG31: =IFERROR(IF((OR($D31="RP",$D31="SP")),IF(Personalize!$E$57=TRUE,(((VLOOKUP($C31,'Filtered-P'!$A$1:$AD$700,28,FALSE))-'Filtered-P'!$AF$34)/'Filtered-P'!$AG$34),""),IF(Personalize!$E$61=TRUE,(((VLOOKUP($C31,Filtered!$A$1:$AZ$700,34,FALSE))-Filtered!$AK$47)/Filtered!$AL$47),"")),"") ->  | AH31: =IFERROR(IF((OR($D31="RP",$D31="SP")),IF(Personalize!$E$58=TRUE,(((VLOOKUP($C31,'Filtered-P'!$A$1:$Z$700,8,FALSE))-'Filtered-P'!$AF$14)/'Filtered-P'!$AG$14),""),IF(Personalize!$E$62=TRUE,(((VLOOKUP($C31,Filtered!$A$1:$AF$700,13,FALSE))-Filtered!$AK$28)/(-1*Filtered!$AL$28)),"")),"") ->  | AI31: =IFERROR(IF((OR($D31="RP",$D31="SP")),IF(Personalize!$E$59=TRUE,(((VLOOKUP($C31,'Filtered-P'!$A$1:$AD$700,27,FALSE))-'Filtered-P'!$AF$33)/'Filtered-P'!$AG$33),""),IF(Personalize!$E$63=TRUE,(((VLOOKUP($C31,Filtered!$A$1:$AZ$700,35,FALSE))-Filtered!$AK$48)/(-1*Filtered!$AL$48)),"")),"") ->  | AJ31: =IFERROR(IF((OR($D31="RP",$D31="SP")),VLOOKUP($C31,'Filtered-P'!$A$1:$P$700,2,FALSE),""),"") -> 14.48036406 | AK31: =IFERROR(IF((OR($D31="RP",$D31="SP")),VLOOKUP($C31,'Filtered-P'!$A$1:$P$700,9,FALSE),""),"") -> 0 | AL31: =IFERROR(IF((OR($D31="RP",$D31="SP")),VLOOKUP($C31,'Filtered-P'!$A$1:$P$700,7,FALSE),""),"") -> 213.4377858 | AM31: =IFERROR(IF((OR($D31="RP",$D31="SP")),VLOOKUP($C31,'Filtered-P'!$A$1:$P$700,10,FALSE),""),"") -> 3.203046987 | AN31: =IFERROR(IF((OR($D31="RP",$D31="SP")),VLOOKUP($C31,'Filtered-P'!$A$1:$P$700,11,FALSE),""),"") -> 1.075060083 | AO31: =IFERROR(IF((OR($D31="RP",$D31="SP")),"",VLOOKUP($C31,Filtered!$A$1:$X$700,16,FALSE)),"") ->  | AP31: =IFERROR(IF((OR($D31="RP",$D31="SP")),"",VLOOKUP($C31,Filtered!$A$1:$X$700,10,FALSE)),"") ->  | AQ31: =IFERROR(IF((OR($D31="RP",$D31="SP")),"",VLOOKUP($C31,Filtered!$A$1:$X$700,11,FALSE)),"") ->  | AR31: =IFERROR(IF((OR($D31="RP",$D31="SP")),"",VLOOKUP($C31,Filtered!$A$1:$X$700,5,FALSE)),"") ->  | AS31: =IFERROR(IF((OR($D31="RP",$D31="SP")),"",VLOOKUP($C31,Filtered!$A$1:$X$700,12,FALSE)),"") ->  | AU31: =IF(ISBLANK(A31),0,1) -> 0 | AV31: =IF(M31="",0,1) -> 1 | AW31: =A31 -> 0 | AX31: =IF(D31="C",1,IF(D31="1B",2,IF(D31="2B",3,IF(D31="3B",4,IF(D31="SS",5,IF(D31="CI",6,IF(D31="MI",7,IF(D31="OF",11,IF(D31="LF",8,IF(D31="CF",9,IF(D31="RF",10,IF(D31="DH",12,IF(D31="SP",13,IF(D31="RP",14,IF(D31="P",15,16))))))))))))))) -> 13 | AY31: =VLOOKUP(C31,'Starter Calc'!$B$2:$BS$700,70,FALSE) -> Bench | AZ31: =VLOOKUP(C31,'Starter Calc'!$B$2:$AO$700,40,FALSE) -> Yes | BA31: =IFERROR(IF(ISTEXT($A31),"",IF((OR($D31="RP",$D31="SP")),ABS(VLOOKUP(D31,'Filtered-P'!$AE$3:$AI$4,5,FALSE))+M31,ABS(VLOOKUP(D31,Filtered!$AJ$3:$AN$14,5,FALSE))+M31)),"") -> 9.052550798 | BB31: =IFERROR(BA31+ABS($BA$4),"") -> 9.923825728 | BC31: =IF(AND($A31<>"",$B31<>""),B31,"N") -> N | BD31: =IFERROR(VLOOKUP($C31,'ADP-Rank'!$A$2:$AB$620,25,FALSE),TRUE) -> TRUE | BE31: =IFERROR((BB31-BB$3)^2,"") -> 32.86138675 | BF31: =VLOOKUP(C31,'Starter Calc'!$B$2:$CD$700,71,FALSE) -> SP.No
C32: Buster Posey | D32: C | E32: =IFERROR(IF(VLOOKUP(C32,'Starter Calc'!$B$2:$E$700,4,FALSE)="","",VLOOKUP(C32,'Starter Calc'!$B$2:$E$700,4,FALSE)),"") -> ,, | F32: =IFERROR(VLOOKUP($C32,'ADP-Rank'!$A$2:$G$620,5,FALSE),"") -> SF | G32: =IFERROR(VLOOKUP($C32,'ADP-Rank'!$A$2:$X$620,6,FALSE),"") -> 28 | H32: =IFERROR(IF(ISBLANK($B32),IF(BF32="Rostered",1,(IF((OR($D32="RP",$D32="SP")),ROUND((N32*($BB$1/$BD$1))+1,0),ROUND((N32*($BB$2/$BD$2))+1,0)))),""),"") -> 26 | I32: =VLOOKUP($C32,'ADP-Rank'!$A$2:$AB$620,26,FALSE) -> 35 | J32: =IF(ISBLANK($B32),IFERROR(CHOOSE(Personalize!$E$31,(VLOOKUP(C32,'ADP-Rank'!$A$2:$Z$620,7,FALSE)*(Personalize!$A$3)+1),(VLOOKUP(C32,'ADP-Rank'!$A$2:$Z$620,8,FALSE)*(Personalize!$A$3)+1),(VLOOKUP(C32,'ADP-Rank'!$A$2:$Z$620,9,FALSE)*(Personalize!$A$3)+1),(VLOOKUP(C32,'ADP-Rank'!$A$2:$AA$620,10,FALSE)*(Personalize!$A$3)+1),(VLOOKUP(C32,'ADP-Rank'!$A$2:$AA$620,11,FALSE)*(Personalize!$A$3)+1),(VLOOKUP(C32,'ADP-Rank'!$A$2:$AA$620,12,FALSE)*(Personalize!$A$3)+1),(VLOOKUP(C32,'ADP-Rank'!$A$2:$AA$620,13,FALSE)*(Personalize!$A$3)+1),(VLOOKUP(C32,'ADP-Rank'!$A$2:$AA$620,14,FALSE)*(Personalize!$A$3)+1),(VLOOKUP(C32,'ADP-Rank'!$A$2:$AA$620,15,FALSE)*(Personalize!$A$3)+1),(VLOOKUP(C32,'ADP-Rank'!$A$2:$AG$620,28,FALSE)*(Personalize!$A$3)+1)),""),"") -> 27 | K32: =IF(ISBLANK($B32),IFERROR(CHOOSE(Personalize!$E$31,(VLOOKUP(C32,'ADP-Rank'!$A$2:$Z$620,7,FALSE)*(Personalize!$A$3-$AZ$4)+1),(VLOOKUP(C32,'ADP-Rank'!$A$2:$Z$620,8,FALSE)*(Personalize!$A$3-$AZ$4)+1),(VLOOKUP(C32,'ADP-Rank'!$A$2:$Z$620,9,FALSE)*(Personalize!$A$3-$AZ$4)+1),(VLOOKUP(C32,'ADP-Rank'!$A$2:$AA$620,10,FALSE)*(Personalize!$A$3-$AZ$4)+1),(VLOOKUP(C32,'ADP-Rank'!$A$2:$AA$620,11,FALSE)*(Personalize!$A$3-$AZ$4)+1),(VLOOKUP(C32,'ADP-Rank'!$A$2:$AA$620,12,FALSE)*(Personalize!$A$3-$AZ$4)+1),(VLOOKUP(C32,'ADP-Rank'!$A$2:$AA$620,13,FALSE)*(Personalize!$A$3-$AZ$4)+1),(VLOOKUP(C32,'ADP-Rank'!$A$2:$AA$620,14,FALSE)*(Personalize!$A$3-$AZ$4)+1),(VLOOKUP(C32,'ADP-Rank'!$A$2:$AA$620,15,FALSE)*(Personalize!$A$3-$AZ$4)+1),(VLOOKUP(C32,'ADP-Rank'!$A$2:$AG$620,28,FALSE)*(Personalize!$A$3-$AZ$4)+1)),""),"") -> 27 | L32: =IFERROR(RANK($M32,$M$7:$M$746,0),"") -> 52 | M32: =IF((SUM(O32:AI32)=0),"",SUM(O32:AI32)) -> 1.979978354 | N32: =IFERROR(IF(ISTEXT($A32),"",IF((OR($D32="RP",$D32="SP")),ABS(VLOOKUP(D32,'Filtered-P'!$AE$3:$AI$4,5,FALSE))+M32,ABS(VLOOKUP(D32,Filtered!$AJ$3:$AN$14,5,FALSE))+M32)),"") -> 6.681734881 | O32: =IFERROR(IF((OR($D32="RP",$D32="SP")),IF(Personalize!$E$10=TRUE,(((VLOOKUP($C32,'Filtered-P'!$A$1:$P$700,2,FALSE))-'Filtered-P'!$AF$8)/'Filtered-P'!$AG$8),""),IF(Personalize!$E$4=TRUE,(((VLOOKUP($C32,Filtered!$A$1:$AD$700,22,FALSE))-Filtered!$AK$35)/Filtered!$AL$35),"")),"") -> 1.976589007 | P32: =IFERROR(IF((OR($D32="RP",$D32="SP")),IF(Personalize!$E$12=TRUE,(((VLOOKUP($C32,'Filtered-P'!$A$1:$P$700,9,FALSE))-'Filtered-P'!$AF$15)/'Filtered-P'!$AG$15),""),IF(Personalize!$E$3=TRUE,(((VLOOKUP($C32,Filtered!$A$1:$AB$700,10,FALSE))-Filtered!$AK$25)/Filtered!$AL$25),"")),"") -> 0.1315398131 | Q32: =IFERROR(IF((OR($D32="RP",$D32="SP")),IF(Personalize!$E$11=TRUE,(((VLOOKUP($C32,'Filtered-P'!$A$1:$P$700,7,FALSE))-'Filtered-P'!$AF$13)/'Filtered-P'!$AG$13),""),IF(Personalize!$E$2=TRUE,(((VLOOKUP($C32,Filtered!$A$1:$AB$700,5,FALSE))-Filtered!$AK$20)/Filtered!$AL$20),"")),"") -> 0.08338316538 | R32: =IFERROR(IF((OR($D32="RP",$D32="SP")),IF(Personalize!$E$13=TRUE,(((VLOOKUP($C32,'Filtered-P'!$A$1:$P$700,13,FALSE))-'Filtered-P'!$AF$19)/'Filtered-P'!$AG$19),""),IF(Personalize!$E$5=TRUE,(((VLOOKUP($C32,Filtered!$A$1:$AB$700,11,FALSE))-Filtered!$AK$26)/Filtered!$AL$26),"")),"") -> 0.7572061112 | S32: =IFERROR(IF((OR($D32="RP",$D32="SP")),IF(Personalize!$E$14=TRUE,(((VLOOKUP($C32,'Filtered-P'!$A$1:$P$700,14,FALSE))-'Filtered-P'!$AF$20)/'Filtered-P'!$AG$20),""),IF(Personalize!$E$6=TRUE,(((VLOOKUP($C32,Filtered!$A$1:$AB$700,12,FALSE))-Filtered!$AK$27)/Filtered!$AL$27),"")),"") -> -0.9687397426 | T32: =IFERROR(IF((OR($D32="RP",$D32="SP")),IF(Personalize!$E$16=TRUE,(((VLOOKUP($C32,'Filtered-P'!$A$1:$P$700,3,FALSE))-'Filtered-P'!$AF$9)/'Filtered-P'!$AG$9),""),IF(Personalize!$E$7=TRUE,(((VLOOKUP($C32,Filtered!$A$1:$AD$700,24,FALSE))-Filtered!$AK$37)/Filtered!$AL$37),"")),"") ->  | U32: =IFERROR(IF((OR($D32="RP",$D32="SP")),IF(Personalize!$E$15=TRUE,(((VLOOKUP($C32,'Filtered-P'!$A$1:$P$700,15,FALSE))-'Filtered-P'!$AF$21)/'Filtered-P'!$AG$21),""),IF(Personalize!$E$8=TRUE,(((VLOOKUP($C32,Filtered!$A$1:$AD$700,23,FALSE))-Filtered!$AK$36)/Filtered!$AL$36),"")),"") ->  | V32: =IFERROR(IF((OR($D32="RP",$D32="SP")),IF(Personalize!$E$17=TRUE,(((VLOOKUP($C32,'Filtered-P'!$A$1:$P$700,16,FALSE))-'Filtered-P'!$AF$22)/'Filtered-P'!$AG$22),""),IF(Personalize!$E$9=TRUE,(((VLOOKUP($C32,Filtered!$A$1:$AD$700,25,FALSE))-Filtered!$AK$38)/Filtered!$AL$38),"")),"") ->  | W32: =IFERROR(IF((OR($D32="RP",$D32="SP")),IF(Personalize!$E$37=TRUE,(((VLOOKUP($C32,'Filtered-P'!$A$1:$Z$700,17,FALSE))-'Filtered-P'!$AF$25)/'Filtered-P'!$AG$25),""),IF(Personalize!$E$39=TRUE,(((VLOOKUP($C32,Filtered!$A$1:$X$700,6,FALSE))-Filtered!$AK$21)/Filtered!$AL$21),"")),"") ->  | X32: =IFERROR(IF((OR($D32="RP",$D32="SP")),IF(Personalize!$E$38=TRUE,(((VLOOKUP($C32,'Filtered-P'!$A$1:$Z$700,18,FALSE))-'Filtered-P'!$AF$26)/'Filtered-P'!$AG$26),""),IF(Personalize!$E$40=TRUE,(((VLOOKUP($C32,Filtered!$A$1:$X$700,14,FALSE))-Filtered!$AK$29)/Filtered!$AL$29),"")),"") ->  | Y32: =IFERROR(IF((OR($D32="RP",$D32="SP")),IF(Personalize!$E$45=TRUE,(((VLOOKUP($C32,'Filtered-P'!$A$1:$Z$700,4,FALSE))-'Filtered-P'!$AF$10)/'Filtered-P'!$AG$10),""),IF(Personalize!$E$41=TRUE,(((VLOOKUP($C32,Filtered!$A$1:$AD$700,20,FALSE))-Filtered!$AK$43)/Filtered!$AL$43),"")),"") ->  | Z32: =IFERROR(IF((OR($D32="RP",$D32="SP")),IF(Personalize!$E$46=TRUE,(((VLOOKUP($C32,'Filtered-P'!$A$1:$Z$700,19,FALSE))-'Filtered-P'!$AF$27)/'Filtered-P'!$AG$27),""),IF(Personalize!$E$44=TRUE,(((VLOOKUP($C32,Filtered!$A$1:$AD$700,21,FALSE))-Filtered!$AK$44)/Filtered!$AL$44),"")),"") ->  | AA32: =IFERROR(IF((OR($D32="RP",$D32="SP")),IF(Personalize!$E$47=TRUE,(((VLOOKUP($C32,'Filtered-P'!$A$1:$Z$700,6,FALSE))-'Filtered-P'!$AF$12)/'Filtered-P'!$AG$12),""),IF(Personalize!$E$42=TRUE,(((VLOOKUP($C32,Filtered!$A$1:$AD$700,8,FALSE))-Filtered!$AK$23)/Filtered!$AL$23),"")),"") ->  | AB32: =IFERROR(IF((OR($D32="RP",$D32="SP")),IF(Personalize!$E$48=TRUE,(((VLOOKUP($C32,'Filtered-P'!$A$1:$Z$700,5,FALSE))-'Filtered-P'!$AF$11)/'Filtered-P'!$AG$11),""),IF(Personalize!$E$43=TRUE,(((VLOOKUP($C32,Filtered!$A$1:$AD$700,9,FALSE))-Filtered!$AK$24)/Filtered!$AL$24),"")),"") ->  | AC32: =IFERROR(IF((OR($D32="RP",$D32="SP")),IF(Personalize!$E$52=TRUE,(((VLOOKUP($C32,'Filtered-P'!$A$1:$AD$700,21,FALSE))-'Filtered-P'!$AF$29)/(-1*'Filtered-P'!$AG$29)),""),IF(Personalize!$E$49=TRUE,(((VLOOKUP($C32,Filtered!$A$1:$AF$628,30,FALSE))-Filtered!$AK$45)/Filtered!$AL$45),"")),"") ->  | AD32: =IFERROR(IF((OR($D32="RP",$D32="SP")),IF(Personalize!$E$53=TRUE,(((VLOOKUP($C32,'Filtered-P'!$A$1:$AD$700,23,FALSE))-'Filtered-P'!$AF$31)/(-1*'Filtered-P'!$AG$31)),""),IF(Personalize!$E$50=TRUE,(((VLOOKUP($C32,Filtered!$A$1:$AF$628,31,FALSE))-Filtered!$AK$46)/Filtered!$AL$46),"")),"") ->  | AE32: =IFERROR(IF((OR($D32="RP",$D32="SP")),IF(Personalize!$E$54=TRUE,(((VLOOKUP($C32,'Filtered-P'!$A$1:$AD$700,24,FALSE))-'Filtered-P'!$AF$32)/'Filtered-P'!$AG$32),""),IF(Personalize!$E$51=TRUE,(((VLOOKUP($C32,Filtered!$A$1:$AF$628,15,FALSE))-Filtered!$AK$30)/(-1*Filtered!$AL$30)),"")),"") ->  | AF32: =IFERROR(IF((OR($D32="RP",$D32="SP")),IF(Personalize!$E$56=TRUE,(((VLOOKUP($C32,'Filtered-P'!$A$1:$AD$700,29,FALSE))-'Filtered-P'!$AF$35)/'Filtered-P'!$AG$35),""),IF(Personalize!$E$60=TRUE,(((VLOOKUP($C32,Filtered!$A$1:$AF$700,7,FALSE))-Filtered!$AK$22)/Filtered!$AL$22),"")),"") ->  | AG32: =IFERROR(IF((OR($D32="RP",$D32="SP")),IF(Personalize!$E$57=TRUE,(((VLOOKUP($C32,'Filtered-P'!$A$1:$AD$700,28,FALSE))-'Filtered-P'!$AF$34)/'Filtered-P'!$AG$34),""),IF(Personalize!$E$61=TRUE,(((VLOOKUP($C32,Filtered!$A$1:$AZ$700,34,FALSE))-Filtered!$AK$47)/Filtered!$AL$47),"")),"") ->  | AH32: =IFERROR(IF((OR($D32="RP",$D32="SP")),IF(Personalize!$E$58=TRUE,(((VLOOKUP($C32,'Filtered-P'!$A$1:$Z$700,8,FALSE))-'Filtered-P'!$AF$14)/'Filtered-P'!$AG$14),""),IF(Personalize!$E$62=TRUE,(((VLOOKUP($C32,Filtered!$A$1:$AF$700,13,FALSE))-Filtered!$AK$28)/(-1*Filtered!$AL$28)),"")),"") ->  | AI32: =IFERROR(IF((OR($D32="RP",$D32="SP")),IF(Personalize!$E$59=TRUE,(((VLOOKUP($C32,'Filtered-P'!$A$1:$AD$700,27,FALSE))-'Filtered-P'!$AF$33)/'Filtered-P'!$AG$33),""),IF(Personalize!$E$63=TRUE,(((VLOOKUP($C32,Filtered!$A$1:$AZ$700,35,FALSE))-Filtered!$AK$48)/(-1*Filtered!$AL$48)),"")),"") ->  | AJ32: =IFERROR(IF((OR($D32="RP",$D32="SP")),VLOOKUP($C32,'Filtered-P'!$A$1:$P$700,2,FALSE),""),"") ->  | AK32: =IFERROR(IF((OR($D32="RP",$D32="SP")),VLOOKUP($C32,'Filtered-P'!$A$1:$P$700,9,FALSE),""),"") ->  | AL32: =IFERROR(IF((OR($D32="RP",$D32="SP")),VLOOKUP($C32,'Filtered-P'!$A$1:$P$700,7,FALSE),""),"") ->  | AM32: =IFERROR(IF((OR($D32="RP",$D32="SP")),VLOOKUP($C32,'Filtered-P'!$A$1:$P$700,10,FALSE),""),"") ->  | AN32: =IFERROR(IF((OR($D32="RP",$D32="SP")),VLOOKUP($C32,'Filtered-P'!$A$1:$P$700,11,FALSE),""),"") ->  | AO32: =IFERROR(IF((OR($D32="RP",$D32="SP")),"",VLOOKUP($C32,Filtered!$A$1:$X$700,16,FALSE)),"") -> 0.2961653136 | AP32: =IFERROR(IF((OR($D32="RP",$D32="SP")),"",VLOOKUP($C32,Filtered!$A$1:$X$700,10,FALSE)),"") -> 17.82093288 | AQ32: =IFERROR(IF((OR($D32="RP",$D32="SP")),"",VLOOKUP($C32,Filtered!$A$1:$X$700,11,FALSE)),"") -> 75.96697197 | AR32: =IFERROR(IF((OR($D32="RP",$D32="SP")),"",VLOOKUP($C32,Filtered!$A$1:$X$700,5,FALSE)),"") -> 68.46390798 | AS32: =IFERROR(IF((OR($D32="RP",$D32="SP")),"",VLOOKUP($C32,Filtered!$A$1:$X$700,12,FALSE)),"") -> 1.438546952 | AU32: =IF(ISBLANK(A32),0,1) -> 0 | AV32: =IF(M32="",0,1) -> 1 | AW32: =A32 -> 0 | AX32: =IF(D32="C",1,IF(D32="1B",2,IF(D32="2B",3,IF(D32="3B",4,IF(D32="SS",5,IF(D32="CI",6,IF(D32="MI",7,IF(D32="OF",11,IF(D32="LF",8,IF(D32="CF",9,IF(D32="RF",10,IF(D32="DH",12,IF(D32="SP",13,IF(D32="RP",14,IF(D32="P",15,16))))))))))))))) -> 1 | AY32: =VLOOKUP(C32,'Starter Calc'!$B$2:$BS$700,70,FALSE) -> Bench | AZ32: =VLOOKUP(C32,'Starter Calc'!$B$2:$AO$700,40,FALSE) -> Yes | BA32: =IFERROR(IF(ISTEXT($A32),"",IF((OR($D32="RP",$D32="SP")),ABS(VLOOKUP(D32,'Filtered-P'!$AE$3:$AI$4,5,FALSE))+M32,ABS(VLOOKUP(D32,Filtered!$AJ$3:$AN$14,5,FALSE))+M32)),"") -> 6.681734881 | BB32: =IFERROR(BA32+ABS($BA$4),"") -> 7.55300981 | BC32: =IF(AND($A32<>"",$B32<>""),B32,"N") -> N | BD32: =IFERROR(VLOOKUP($C32,'ADP-Rank'!$A$2:$AB$620,25,FALSE),TRUE) -> TRUE | BE32: =IFERROR((BB32-BB$3)^2,"") -> 11.30082047 | BF32: =VLOOKUP(C32,'Starter Calc'!$B$2:$CD$700,71,FALSE) -> C.Yes
C33: Ian Desmond | D33: SS | E33: =IFERROR(IF(VLOOKUP(C33,'Starter Calc'!$B$2:$E$700,4,FALSE)="","",VLOOKUP(C33,'Starter Calc'!$B$2:$E$700,4,FALSE)),"") -> ,, | F33: =IFERROR(VLOOKUP($C33,'ADP-Rank'!$A$2:$G$620,5,FALSE),"") -> WSH | G33: =IFERROR(VLOOKUP($C33,'ADP-Rank'!$A$2:$X$620,6,FALSE),"") -> 29 | H33: =IFERROR(IF(ISBLANK($B33),IF(BF33="Rostered",1,(IF((OR($D33="RP",$D33="SP")),ROUND((N33*($BB$1/$BD$1))+1,0),ROUND((N33*($BB$2/$BD$2))+1,0)))),""),"") -> 26 | I33: =VLOOKUP($C33,'ADP-Rank'!$A$2:$AB$620,26,FALSE) -> 27 | J33: =IF(ISBLANK($B33),IFERROR(CHOOSE(Personalize!$E$31,(VLOOKUP(C33,'ADP-Rank'!$A$2:$Z$620,7,FALSE)*(Personalize!$A$3)+1),(VLOOKUP(C33,'ADP-Rank'!$A$2:$Z$620,8,FALSE)*(Personalize!$A$3)+1),(VLOOKUP(C33,'ADP-Rank'!$A$2:$Z$620,9,FALSE)*(Personalize!$A$3)+1),(VLOOKUP(C33,'ADP-Rank'!$A$2:$AA$620,10,FALSE)*(Personalize!$A$3)+1),(VLOOKUP(C33,'ADP-Rank'!$A$2:$AA$620,11,FALSE)*(Personalize!$A$3)+1),(VLOOKUP(C33,'ADP-Rank'!$A$2:$AA$620,12,FALSE)*(Personalize!$A$3)+1),(VLOOKUP(C33,'ADP-Rank'!$A$2:$AA$620,13,FALSE)*(Personalize!$A$3)+1),(VLOOKUP(C33,'ADP-Rank'!$A$2:$AA$620,14,FALSE)*(Personalize!$A$3)+1),(VLOOKUP(C33,'ADP-Rank'!$A$2:$AA$620,15,FALSE)*(Personalize!$A$3)+1),(VLOOKUP(C33,'ADP-Rank'!$A$2:$AG$620,28,FALSE)*(Personalize!$A$3)+1)),""),"") -> 24 | K33: =IF(ISBLANK($B33),IFERROR(CHOOSE(Personalize!$E$31,(VLOOKUP(C33,'ADP-Rank'!$A$2:$Z$620,7,FALSE)*(Personalize!$A$3-$AZ$4)+1),(VLOOKUP(C33,'ADP-Rank'!$A$2:$Z$620,8,FALSE)*(Personalize!$A$3-$AZ$4)+1),(VLOOKUP(C33,'ADP-Rank'!$A$2:$Z$620,9,FALSE)*(Personalize!$A$3-$AZ$4)+1),(VLOOKUP(C33,'ADP-Rank'!$A$2:$AA$620,10,FALSE)*(Personalize!$A$3-$AZ$4)+1),(VLOOKUP(C33,'ADP-Rank'!$A$2:$AA$620,11,FALSE)*(Personalize!$A$3-$AZ$4)+1),(VLOOKUP(C33,'ADP-Rank'!$A$2:$AA$620,12,FALSE)*(Personalize!$A$3-$AZ$4)+1),(VLOOKUP(C33,'ADP-Rank'!$A$2:$AA$620,13,FALSE)*(Personalize!$A$3-$AZ$4)+1),(VLOOKUP(C33,'ADP-Rank'!$A$2:$AA$620,14,FALSE)*(Personalize!$A$3-$AZ$4)+1),(VLOOKUP(C33,'ADP-Rank'!$A$2:$AA$620,15,FALSE)*(Personalize!$A$3-$AZ$4)+1),(VLOOKUP(C33,'ADP-Rank'!$A$2:$AG$620,28,FALSE)*(Personalize!$A$3-$AZ$4)+1)),""),"") -> 24 | L33: =IFERROR(RANK($M33,$M$7:$M$746,0),"") -> 45 | M33: =IF((SUM(O33:AI33)=0),"",SUM(O33:AI33)) -> 2.319222838 | N33: =IFERROR(IF(ISTEXT($A33),"",IF((OR($D33="RP",$D33="SP")),ABS(VLOOKUP(D33,'Filtered-P'!$AE$3:$AI$4,5,FALSE))+M33,ABS(VLOOKUP(D33,Filtered!$AJ$3:$AN$14,5,FALSE))+M33)),"") -> 6.674860281 | O33: =IFERROR(IF((OR($D33="RP",$D33="SP")),IF(Personalize!$E$10=TRUE,(((VLOOKUP($C33,'Filtered-P'!$A$1:$P$700,2,FALSE))-'Filtered-P'!$AF$8)/'Filtered-P'!$AG$8),""),IF(Personalize!$E$4=TRUE,(((VLOOKUP($C33,Filtered!$A$1:$AD$700,22,FALSE))-Filtered!$AK$35)/Filtered!$AL$35),"")),"") -> -0.241634206 | P33: =IFERROR(IF((OR($D33="RP",$D33="SP")),IF(Personalize!$E$12=TRUE,(((VLOOKUP($C33,'Filtered-P'!$A$1:$P$700,9,FALSE))-'Filtered-P'!$AF$15)/'Filtered-P'!$AG$15),""),IF(Personalize!$E$3=TRUE,(((VLOOKUP($C33,Filtered!$A$1:$AB$700,10,FALSE))-Filtered!$AK$25)/Filtered!$AL$25),"")),"") -> 0.4421157112 | Q33: =IFERROR(IF((OR($D33="RP",$D33="SP")),IF(Personalize!$E$11=TRUE,(((VLOOKUP($C33,'Filtered-P'!$A$1:$P$700,7,FALSE))-'Filtered-P'!$AF$13)/'Filtered-P'!$AG$13),""),IF(Personalize!$E$2=TRUE,(((VLOOKUP($C33,Filtered!$A$1:$AB$700,5,FALSE))-Filtered!$AK$20)/Filtered!$AL$20),"")),"") -> 0.1299986472 | R33: =IFERROR(IF((OR($D33="RP",$D33="SP")),IF(Personalize!$E$13=TRUE,(((VLOOKUP($C33,'Filtered-P'!$A$1:$P$700,13,FALSE))-'Filtered-P'!$AF$19)/'Filtered-P'!$AG$19),""),IF(Personalize!$E$5=TRUE,(((VLOOKUP($C33,Filtered!$A$1:$AB$700,11,FALSE))-Filtered!$AK$26)/Filtered!$AL$26),"")),"") -> 0.6775799334 | S33: =IFERROR(IF((OR($D33="RP",$D33="SP")),IF(Personalize!$E$14=TRUE,(((VLOOKUP($C33,'Filtered-P'!$A$1:$P$700,14,FALSE))-'Filtered-P'!$AF$20)/'Filtered-P'!$AG$20),""),IF(Personalize!$E$6=TRUE,(((VLOOKUP($C33,Filtered!$A$1:$AB$700,12,FALSE))-Filtered!$AK$27)/Filtered!$AL$27),"")),"") -> 1.311162752 | T33: =IFERROR(IF((OR($D33="RP",$D33="SP")),IF(Personalize!$E$16=TRUE,(((VLOOKUP($C33,'Filtered-P'!$A$1:$P$700,3,FALSE))-'Filtered-P'!$AF$9)/'Filtered-P'!$AG$9),""),IF(Personalize!$E$7=TRUE,(((VLOOKUP($C33,Filtered!$A$1:$AD$700,24,FALSE))-Filtered!$AK$37)/Filtered!$AL$37),"")),"") ->  | U33: =IFERROR(IF((OR($D33="RP",$D33="SP")),IF(Personalize!$E$15=TRUE,(((VLOOKUP($C33,'Filtered-P'!$A$1:$P$700,15,FALSE))-'Filtered-P'!$AF$21)/'Filtered-P'!$AG$21),""),IF(Personalize!$E$8=TRUE,(((VLOOKUP($C33,Filtered!$A$1:$AD$700,23,FALSE))-Filtered!$AK$36)/Filtered!$AL$36),"")),"") ->  | V33: =IFERROR(IF((OR($D33="RP",$D33="SP")),IF(Personalize!$E$17=TRUE,(((VLOOKUP($C33,'Filtered-P'!$A$1:$P$700,16,FALSE))-'Filtered-P'!$AF$22)/'Filtered-P'!$AG$22),""),IF(Personalize!$E$9=TRUE,(((VLOOKUP($C33,Filtered!$A$1:$AD$700,25,FALSE))-Filtered!$AK$38)/Filtered!$AL$38),"")),"") ->  | W33: =IFERROR(IF((OR($D33="RP",$D33="SP")),IF(Personalize!$E$37=TRUE,(((VLOOKUP($C33,'Filtered-P'!$A$1:$Z$700,17,FALSE))-'Filtered-P'!$AF$25)/'Filtered-P'!$AG$25),""),IF(Personalize!$E$39=TRUE,(((VLOOKUP($C33,Filtered!$A$1:$X$700,6,FALSE))-Filtered!$AK$21)/Filtered!$AL$21),"")),"") ->  | X33: =IFERROR(IF((OR($D33="RP",$D33="SP")),IF(Personalize!$E$38=TRUE,(((VLOOKUP($C33,'Filtered-P'!$A$1:$Z$700,18,FALSE))-'Filtered-P'!$AF$26)/'Filtered-P'!$AG$26),""),IF(Personalize!$E$40=TRUE,(((VLOOKUP($C33,Filtered!$A$1:$X$700,14,FALSE))-Filtered!$AK$29)/Filtered!$AL$29),"")),"") ->  | Y33: =IFERROR(IF((OR($D33="RP",$D33="SP")),IF(Personalize!$E$45=TRUE,(((VLOOKUP($C33,'Filtered-P'!$A$1:$Z$700,4,FALSE))-'Filtered-P'!$AF$10)/'Filtered-P'!$AG$10),""),IF(Personalize!$E$41=TRUE,(((VLOOKUP($C33,Filtered!$A$1:$AD$700,20,FALSE))-Filtered!$AK$43)/Filtered!$AL$43),"")),"") ->  | Z33: =IFERROR(IF((OR($D33="RP",$D33="SP")),IF(Personalize!$E$46=TRUE,(((VLOOKUP($C33,'Filtered-P'!$A$1:$Z$700,19,FALSE))-'Filtered-P'!$AF$27)/'Filtered-P'!$AG$27),""),IF(Personalize!$E$44=TRUE,(((VLOOKUP($C33,Filtered!$A$1:$AD$700,21,FALSE))-Filtered!$AK$44)/Filtered!$AL$44),"")),"") ->  | AA33: =IFERROR(IF((OR($D33="RP",$D33="SP")),IF(Personalize!$E$47=TRUE,(((VLOOKUP($C33,'Filtered-P'!$A$1:$Z$700,6,FALSE))-'Filtered-P'!$AF$12)/'Filtered-P'!$AG$12),""),IF(Personalize!$E$42=TRUE,(((VLOOKUP($C33,Filtered!$A$1:$AD$700,8,FALSE))-Filtered!$AK$23)/Filtered!$AL$23),"")),"") ->  | AB33: =IFERROR(IF((OR($D33="RP",$D33="SP")),IF(Personalize!$E$48=TRUE,(((VLOOKUP($C33,'Filtered-P'!$A$1:$Z$700,5,FALSE))-'Filtered-P'!$AF$11)/'Filtered-P'!$AG$11),""),IF(Personalize!$E$43=TRUE,(((VLOOKUP($C33,Filtered!$A$1:$AD$700,9,FALSE))-Filtered!$AK$24)/Filtered!$AL$24),"")),"") ->  | AC33: =IFERROR(IF((OR($D33="RP",$D33="SP")),IF(Personalize!$E$52=TRUE,(((VLOOKUP($C33,'Filtered-P'!$A$1:$AD$700,21,FALSE))-'Filtered-P'!$AF$29)/(-1*'Filtered-P'!$AG$29)),""),IF(Personalize!$E$49=TRUE,(((VLOOKUP($C33,Filtered!$A$1:$AF$628,30,FALSE))-Filtered!$AK$45)/Filtered!$AL$45),"")),"") ->  | AD33: =IFERROR(IF((OR($D33="RP",$D33="SP")),IF(Personalize!$E$53=TRUE,(((VLOOKUP($C33,'Filtered-P'!$A$1:$AD$700,23,FALSE))-'Filtered-P'!$AF$31)/(-1*'Filtered-P'!$AG$31)),""),IF(Personalize!$E$50=TRUE,(((VLOOKUP($C33,Filtered!$A$1:$AF$628,31,FALSE))-Filtered!$AK$46)/Filtered!$AL$46),"")),"") ->  | AE33: =IFERROR(IF((OR($D33="RP",$D33="SP")),IF(Personalize!$E$54=TRUE,(((VLOOKUP($C33,'Filtered-P'!$A$1:$AD$700,24,FALSE))-'Filtered-P'!$AF$32)/'Filtered-P'!$AG$32),""),IF(Personalize!$E$51=TRUE,(((VLOOKUP($C33,Filtered!$A$1:$AF$628,15,FALSE))-Filtered!$AK$30)/(-1*Filtered!$AL$30)),"")),"") ->  | AF33: =IFERROR(IF((OR($D33="RP",$D33="SP")),IF(Personalize!$E$56=TRUE,(((VLOOKUP($C33,'Filtered-P'!$A$1:$AD$700,29,FALSE))-'Filtered-P'!$AF$35)/'Filtered-P'!$AG$35),""),IF(Personalize!$E$60=TRUE,(((VLOOKUP($C33,Filtered!$A$1:$AF$700,7,FALSE))-Filtered!$AK$22)/Filtered!$AL$22),"")),"") ->  | AG33: =IFERROR(IF((OR($D33="RP",$D33="SP")),IF(Personalize!$E$57=TRUE,(((VLOOKUP($C33,'Filtered-P'!$A$1:$AD$700,28,FALSE))-'Filtered-P'!$AF$34)/'Filtered-P'!$AG$34),""),IF(Personalize!$E$61=TRUE,(((VLOOKUP($C33,Filtered!$A$1:$AZ$700,34,FALSE))-Filtered!$AK$47)/Filtered!$AL$47),"")),"") ->  | AH33: =IFERROR(IF((OR($D33="RP",$D33="SP")),IF(Personalize!$E$58=TRUE,(((VLOOKUP($C33,'Filtered-P'!$A$1:$Z$700,8,FALSE))-'Filtered-P'!$AF$14)/'Filtered-P'!$AG$14),""),IF(Personalize!$E$62=TRUE,(((VLOOKUP($C33,Filtered!$A$1:$AF$700,13,FALSE))-Filtered!$AK$28)/(-1*Filtered!$AL$28)),"")),"") ->  | AI33: =IFERROR(IF((OR($D33="RP",$D33="SP")),IF(Personalize!$E$59=TRUE,(((VLOOKUP($C33,'Filtered-P'!$A$1:$AD$700,27,FALSE))-'Filtered-P'!$AF$33)/'Filtered-P'!$AG$33),""),IF(Personalize!$E$63=TRUE,(((VLOOKUP($C33,Filtered!$A$1:$AZ$700,35,FALSE))-Filtered!$AK$48)/(-1*Filtered!$AL$48)),"")),"") ->  | AJ33: =IFERROR(IF((OR($D33="RP",$D33="SP")),VLOOKUP($C33,'Filtered-P'!$A$1:$P$700,2,FALSE),""),"") ->  | AK33: =IFERROR(IF((OR($D33="RP",$D33="SP")),VLOOKUP($C33,'Filtered-P'!$A$1:$P$700,9,FALSE),""),"") ->  | AL33: =IFERROR(IF((OR($D33="RP",$D33="SP")),VLOOKUP($C33,'Filtered-P'!$A$1:$P$700,7,FALSE),""),"") ->  | AM33: =IFERROR(IF((OR($D33="RP",$D33="SP")),VLOOKUP($C33,'Filtered-P'!$A$1:$P$700,10,FALSE),""),"") ->  | AN33: =IFERROR(IF((OR($D33="RP",$D33="SP")),VLOOKUP($C33,'Filtered-P'!$A$1:$P$700,11,FALSE),""),"") ->  | AO33: =IFERROR(IF((OR($D33="RP",$D33="SP")),"",VLOOKUP($C33,Filtered!$A$1:$X$700,16,FALSE)),"") -> 0.2595847564 | AP33: =IFERROR(IF((OR($D33="RP",$D33="SP")),"",VLOOKUP($C33,Filtered!$A$1:$X$700,10,FALSE)),"") -> 19.95360914 | AQ33: =IFERROR(IF((OR($D33="RP",$D33="SP")),"",VLOOKUP($C33,Filtered!$A$1:$X$700,11,FALSE)),"") -> 74.92491244 | AR33: =IFERROR(IF((OR($D33="RP",$D33="SP")),"",VLOOKUP($C33,Filtered!$A$1:$X$700,5,FALSE)),"") -> 68.94560562 | AS33: =IFERROR(IF((OR($D33="RP",$D33="SP")),"",VLOOKUP($C33,Filtered!$A$1:$X$700,12,FALSE)),"") -> 22.02477269 | AU33: =IF(ISBLANK(A33),0,1) -> 0 | AV33: =IF(M33="",0,1) -> 1 | AW33: =A33 -> 0 | AX33: =IF(D33="C",1,IF(D33="1B",2,IF(D33="2B",3,IF(D33="3B",4,IF(D33="SS",5,IF(D33="CI",6,IF(D33="MI",7,IF(D33="OF",11,IF(D33="LF",8,IF(D33="CF",9,IF(D33="RF",10,IF(D33="DH",12,IF(D33="SP",13,IF(D33="RP",14,IF(D33="P",15,16))))))))))))))) -> 5 | AY33: =VLOOKUP(C33,'Starter Calc'!$B$2:$BS$700,70,FALSE) -> Bench | AZ33: =VLOOKUP(C33,'Starter Calc'!$B$2:$AO$700,40,FALSE) -> Yes | BA33: =IFERROR(IF(ISTEXT($A33),"",IF((OR($D33="RP",$D33="SP")),ABS(VLOOKUP(D33,'Filtered-P'!$AE$3:$AI$4,5,FALSE))+M33,ABS(VLOOKUP(D33,Filtered!$AJ$3:$AN$14,5,FALSE))+M33)),"") -> 6.674860281 | BB33: =IFERROR(BA33+ABS($BA$4),"") -> 7.546135211 | BC33: =IF(AND($A33<>"",$B33<>""),B33,"N") -> N | BD33: =IFERROR(VLOOKUP($C33,'ADP-Rank'!$A$2:$AB$620,25,FALSE),TRUE) -> TRUE | BE33: =IFERROR((BB33-BB$3)^2,"") -> 11.25464748 | BF33: =VLOOKUP(C33,'Starter Calc'!$B$2:$CD$700,71,FALSE) -> SS.Yes
